Workbook

Sheet Sheet1
H1: intermidate output
A2: wafer size mm | C2: 150 | D2: Die per wafer | F2: =IF((L9>0),L10,QTOTAL*4) -> 15084 | T2: Old Method | V2: New Method
A3: die active x (microns) | C3: 1000 | D3: Die Cost | F3: =Wafer_Cost/Die_Per_Wafer -> 0 | H3: total x | I3: =C3+C5 -> 1000 | J3: micron | T3: =C2/25 -> 6
A4: die active y (microns) | C4: 1000 | H4: total y | I4: =C4+C6 -> 1000 | J4: micron
A5: scribe x (microns) | C5: 0 | T5: =I3*I4 -> 1000000 | V5: =I3*I4 -> 1000000
A6: scribe y (microns) | C6: 0 | H6: rad max | I6: =C2/2-C7 -> 70 | J6: mm | T6: =3.14*(T3*25.4*1000/2*(70/3/25.4))^2/T5 -> 15386 | V6: =(3.1415927*(((C2/2-((0.67*(MAX(I3,I4))/1000))-($C$7)))*1000)^2)/V5 -> 15100.5331
A7: keepout mm | C7: 5
A8: wafer cost
J9: error code | L9: =ERRCODE -> 0
J10: STATUS | K10: -------> | L10: =IF((L9>0),"SYTEM OVERFLOW CALCULATION NOT VALID","VAILD COUNT") -> VAILD COUNT
A11: For each cell the Manhattan distance from the center of the wafer to the edge of the die. It is assumed the starting die is centered. The keepout area is subtracted from the die radius to eliminate die that are too close to the edge. This is a best case as shot maps normally do not cover the entire wafer.
B13: 1 | C13: 2 | D13: 3 | E13: 4 | F13: 5 | G13: 6 | H13: 7 | I13: 8 | J13: 9 | K13: 10 | L13: 11 | M13: 12 | N13: 13 | O13: 14 | P13: 15 | Q13: 16 | R13: 17 | S13: 18 | T13: 19 | U13: 20 | V13: 21 | W13: 22 | X13: 23 | Y13: 24 | Z13: 25 | AA13: 26 | AB13: 27 | AC13: 28 | AD13: 29 | AE13: 30 | AF13: 31 | AG13: 32 | AH13: 33 | AI13: 34 | AJ13: 35 | AK13: 36 | AL13: 37 | AM13: 38 | AN13: 39 | AO13: 40 | AP13: 41 | AQ13: 42 | AR13: 43 | AS13: 44 | AT13: 45 | AU13: 46 | AV13: 47 | AW13: 48 | AX13: 49 | AY13: 50 | AZ13: 51 | BA13: 52 | BB13: 53 | BC13: 54 | BD13: 55 | BE13: 56 | BF13: 57 | BG13: 58 | BH13: 59 | BI13: 60 | BJ13: 61 | BK13: 62 | BL13: 63 | BM13: 64 | BN13: 65 | BO13: 66 | BP13: 67 | BQ13: 68 | BR13: 69 | BS13: 70 | BT13: 71 | BU13: 72 | BV13: 73 | BW13: 74 | BX13: 75 | BY13: 76 | BZ13: 77 | CA13: 78 | CB13: 79 | CC13: 80 | CD13: 81 | CE13: 82 | CF13: 83 | CG13: 84 | CH13: 85 | CI13: 86 | CJ13: 87 | CK13: 88 | CL13: 89 | CM13: 90 | CN13: 91 | CO13: 92 | CP13: 93 | CQ13: 94 | CR13: 95 | CS13: 96 | CT13: 97 | CU13: 98 | CV13: 99 | CW13: 100 | CX13: 101 | CY13: 102 | CZ13: 103 | DA13: 104 | DB13: 105 | DC13: 106 | DD13: 107 | DE13: 108 | DF13: 109 | DG13: 110 | DH13: 111 | DI13: 112 | DJ13: 113 | DK13: 114 | DL13: 115 | DM13: 116 | DN13: 117 | DO13: 118 | DP13: 119 | DQ13: 120 | DR13: 121 | DS13: 122 | DT13: 123 | DU13: 124 | DV13: 125 | DW13: 126 | DX13: 127 | DY13: 128 | DZ13: 129 | EA13: 130 | EB13: 131 | EC13: 132 | ED13: 133 | EE13: 134 | EF13: 135 | EG13: 136 | EH13: 137 | EI13: 138 | EJ13: 139 | EK13: 140 | EL13: 141 | EM13: 142 | EN13: 143 | EO13: 144 | EP13: 145 | EQ13: 146 | ER13: 147 | ES13: 148 | ET13: 149 | EU13: 150 | EV13: 151 | EW13: 152 | EX13: 153 | EY13: 154 | EZ13: 155 | FA13: 156 | FB13: 157 | FC13: 158 | FD13: 159 | FE13: 160 | FF13: 161 | FG13: 162 | FH13: 163 | FI13: 164 | FJ13: 165 | FK13: 166 | FL13: 167 | FM13: 168 | FN13: 169 | FO13: 170 | FP13: 171 | FQ13: 172 | FR13: 173 | FS13: 174 | FT13: 175 | FU13: 176 | FV13: 177 | FW13: 178 | FX13: 179 | FY13: 180 | FZ13: 181 | GA13: 182 | GB13: 183 | GC13: 184 | GD13: 185 | GE13: 186 | GF13: 187 | GG13: 188 | GH13: 189 | GI13: 190 | GJ13: 191 | GK13: 192 | GL13: 193 | GM13: 194 | GN13: 195 | GO13: 196 | GP13: 197 | GQ13: 198 | GR13: 199 | GS13: 200 | GT13: 201 | GU13: 202 | GV13: 203 | GW13: 204 | GX13: 205 | GY13: 206 | GZ13: 207 | HA13: 208 | HB13: 209 | HC13: 210 | HD13: 211 | HE13: 212 | HF13: 213 | HG13: 214 | HH13: 215 | HI13: 216 | HJ13: 217 | HK13: 218 | HL13: 219 | HM13: 220 | HN13: 221 | HO13: 222 | HP13: 223 | HQ13: 224 | HR13: 225 | HS13: 226 | HT13: 227 | HU13: 228 | HV13: 229 | HW13: 230 | HX13: 231 | HY13: 232 | HZ13: 233 | IA13: 234 | IB13: 235 | IC13: 236 | ID13: 237 | IE13: 238 | IF13: 239 | IG13: 240 | IH13: 241 | II13: 242 | IJ13: 243 | IK13: 244 | IL13: 245 | IM13: 246 | IN13: 247 | IO13: 248 | IP13: 249 | IQ13: 250 | IR13: 251 | IS13: 252 | IT13: 253 | IU13: 254 | IV13: 255 | IW13: 256 | IX13: 257 | IY13: 258 | IZ13: 259 | JA13: 260 | JB13: 261 | JC13: 262 | JD13: 263 | JE13: 264 | JF13: 265 | JG13: 266 | JH13: 267 | JI13: 268 | JJ13: 269 | JK13: 270 | JL13: 271 | JM13: 272 | JN13: 273 | JO13: 274 | JP13: 275 | JQ13: 276 | JR13: 277 | JS13: 278 | JT13: 279 | JU13: 280 | JV13: 281 | JW13: 282 | JX13: 283 | JY13: 284 | JZ13: 285 | KA13: 286 | KB13: 287 | KC13: 288 | KD13: 289 | KE13: 290 | KF13: 291 | KG13: 292 | KH13: 293 | KI13: 294 | KJ13: 295 | KK13: 296 | KL13: 297 | KM13: 298 | KN13: 299 | KO13: 300 | KP13: 301 | KQ13: 302 | KR13: 303 | KS13: 304 | KT13: 305 | KU13: 306 | KV13: 307 | KW13: 308 | KX13: 309 | KY13: 310 | KZ13: 311 | LA13: 312 | LB13: 313 | LC13: 314 | LD13: 315 | LE13: 316 | LF13: 317 | LG13: 318 | LH13: 319 | LI13: 320 | LJ13: 321 | LK13: 322 | LL13: 323 | LM13: 324 | LN13: 325 | LO13: 326 | LP13: 327 | LQ13: 328 | LR13: 329 | LS13: 330 | LT13: 331 | LU13: 332 | LV13: 333 | LW13: 334 | LX13: 335 | LY13: 336 | LZ13: 337 | MA13: 338 | MB13: 339 | MC13: 340 | MD13: 341 | ME13: 342 | MF13: 343 | MG13: 344 | MH13: 345 | MI13: 346 | MJ13: 347 | MK13: 348 | ML13: 349 | MM13: 350 | MN13: 351 | MO13: 352 | MP13: 353 | MQ13: 354 | MR13: 355 | MS13: 356 | MT13: 357 | MU13: 358 | MV13: 359 | MW13: 360 | MX13: 361 | MY13: 362 | MZ13: 363 | NA13: 364 | NB13: 365 | NC13: 366 | ND13: 367 | NE13: 368 | NF13: 369 | NG13: 370 | NH13: 371 | NI13: 372 | NJ13: 373 | NK13: 374 | NL13: 375 | NM13: 376 | NN13: 377 | NO13: 378 | NP13: 379 | NQ13: 380 | NR13: 381 | NS13: 382 | NT13: 383 | NU13: 384 | NV13: 385 | NW13: 386 | NX13: 387 | NY13: 388 | NZ13: 389 | OA13: 390 | OB13: 391 | OC13: 392 | OD13: 393 | OE13: 394 | OF13: 395 | OG13: 396 | OH13: 397 | OI13: 398 | OJ13: 399 | OK13: 400 | OL13: 401 | OM13: 402 | ON13: 403 | OO13: 404 | OP13: 405 | OQ13: 406 | OR13: 407 | OS13: 408 | OT13: 409 | OU13: 410 | OV13: 411 | OW13: 412 | OX13: 413 | OY13: 414 | OZ13: 415 | PA13: 416 | PB13: 417 | PC13: 418 | PD13: 419 | PE13: 420 | PF13: 421 | PG13: 422 | PH13: 423 | PI13: 424 | PJ13: 425 | PK13: 426 | PL13: 427 | PM13: 428 | PN13: 429 | PO13: 430 | PP13: 431 | PQ13: 432 | PR13: 433 | PS13: 434 | PT13: 435 | PU13: 436 | PV13: 437 | PW13: 438 | PX13: 439 | PY13: 440 | PZ13: 441 | QA13: 442 | QB13: 443 | QC13: 444 | QD13: 445 | QE13: 446 | QF13: 447 | QG13: 448 | QH13: 449 | QI13: 450 | QJ13: 451 | QK13: 452 | QL13: 453 | QM13: 454 | QN13: 455 | QO13: 456 | QP13: 457 | QQ13: 458 | QR13: 459 | QS13: 460 | QT13: 461 | QU13: 462 | QV13: 463 | QW13: 464 | QX13: 465 | QY13: 466 | QZ13: 467 | RA13: 468 | RB13: 469 | RC13: 470 | RD13: 471 | RE13: 472 | RF13: 473 | RG13: 474 | RH13: 475 | RI13: 476 | RJ13: 477 | RK13: 478 | RL13: 479 | RM13: 480 | RN13: 481 | RO13: 482 | RP13: 483 | RQ13: 484 | RR13: 485 | RS13: 486 | RT13: 487 | RU13: 488 | RV13: 489 | RW13: 490 | RX13: 491 | RY13: 492 | RZ13: 493 | SA13: 494 | SB13: 495 | SC13: 496 | SD13: 497 | SE13: 498 | SF13: 499 | SG13: 500
A14: 1 | B14: =SQRT((($I$3*B$13)^2)+(($I$4*$A14)^2))/1000 -> 1.414213562 | C14: =SQRT((($I$3*C$13)^2)+(($I$4*$A14)^2))/1000 -> 2.236067977 | D14: =SQRT((($I$3*D$13)^2)+(($I$4*$A14)^2))/1000 -> 3.16227766 | E14: =SQRT((($I$3*E$13)^2)+(($I$4*$A14)^2))/1000 -> 4.123105626 | F14: =SQRT((($I$3*F$13)^2)+(($I$4*$A14)^2))/1000 -> 5.099019514 | G14: =SQRT((($I$3*G$13)^2)+(($I$4*$A14)^2))/1000 -> 6.08276253 | H14: =SQRT((($I$3*H$13)^2)+(($I$4*$A14)^2))/1000 -> 7.071067812 | I14: =SQRT((($I$3*I$13)^2)+(($I$4*$A14)^2))/1000 -> 8.062257748 | J14: =SQRT((($I$3*J$13)^2)+(($I$4*$A14)^2))/1000 -> 9.055385138 | K14: =SQRT((($I$3*K$13)^2)+(($I$4*$A14)^2))/1000 -> 10.04987562 | L14: =SQRT((($I$3*L$13)^2)+(($I$4*$A14)^2))/1000 -> 11.04536102 | M14: =SQRT((($I$3*M$13)^2)+(($I$4*$A14)^2))/1000 -> 12.04159458 | N14: =SQRT((($I$3*N$13)^2)+(($I$4*$A14)^2))/1000 -> 13.03840481 | O14: =SQRT((($I$3*O$13)^2)+(($I$4*$A14)^2))/1000 -> 14.03566885 | P14: =SQRT((($I$3*P$13)^2)+(($I$4*$A14)^2))/1000 -> 15.03329638 | Q14: =SQRT((($I$3*Q$13)^2)+(($I$4*$A14)^2))/1000 -> 16.03121954 | R14: =SQRT((($I$3*R$13)^2)+(($I$4*$A14)^2))/1000 -> 17.02938637 | S14: =SQRT((($I$3*S$13)^2)+(($I$4*$A14)^2))/1000 -> 18.02775638 | T14: =SQRT((($I$3*T$13)^2)+(($I$4*$A14)^2))/1000 -> 19.02629759 | U14: =SQRT((($I$3*U$13)^2)+(($I$4*$A14)^2))/1000 -> 20.02498439 | V14: =SQRT((($I$3*V$13)^2)+(($I$4*$A14)^2))/1000 -> 21.02379604 | W14: =SQRT((($I$3*W$13)^2)+(($I$4*$A14)^2))/1000 -> 22.02271555 | X14: =SQRT((($I$3*X$13)^2)+(($I$4*$A14)^2))/1000 -> 23.02172887 | Y14: =SQRT((($I$3*Y$13)^2)+(($I$4*$A14)^2))/1000 -> 24.0208243 | Z14: =SQRT((($I$3*Z$13)^2)+(($I$4*$A14)^2))/1000 -> 25.01999201 | AA14: =SQRT((($I$3*AA$13)^2)+(($I$4*$A14)^2))/1000 -> 26.01922366 | AB14: =SQRT((($I$3*AB$13)^2)+(($I$4*$A14)^2))/1000 -> 27.01851217 | AC14: =SQRT((($I$3*AC$13)^2)+(($I$4*$A14)^2))/1000 -> 28.01785145 | AD14: =SQRT((($I$3*AD$13)^2)+(($I$4*$A14)^2))/1000 -> 29.01723626 | AE14: =SQRT((($I$3*AE$13)^2)+(($I$4*$A14)^2))/1000 -> 30.01666204 | AF14: =SQRT((($I$3*AF$13)^2)+(($I$4*$A14)^2))/1000 -> 31.01612484 | AG14: =SQRT((($I$3*AG$13)^2)+(($I$4*$A14)^2))/1000 -> 32.01562119 | AH14: =SQRT((($I$3*AH$13)^2)+(($I$4*$A14)^2))/1000 -> 33.01514804 | AI14: =SQRT((($I$3*AI$13)^2)+(($I$4*$A14)^2))/1000 -> 34.0147027 | AJ14: =SQRT((($I$3*AJ$13)^2)+(($I$4*$A14)^2))/1000 -> 35.0142828 | AK14: =SQRT((($I$3*AK$13)^2)+(($I$4*$A14)^2))/1000 -> 36.01388621 | AL14: =SQRT((($I$3*AL$13)^2)+(($I$4*$A14)^2))/1000 -> 37.01351105 | AM14: =SQRT((($I$3*AM$13)^2)+(($I$4*$A14)^2))/1000 -> 38.01315562 | AN14: =SQRT((($I$3*AN$13)^2)+(($I$4*$A14)^2))/1000 -> 39.01281841 | AO14: =SQRT((($I$3*AO$13)^2)+(($I$4*$A14)^2))/1000 -> 40.01249805 | AP14: =SQRT((($I$3*AP$13)^2)+(($I$4*$A14)^2))/1000 -> 41.01219331 | AQ14: =SQRT((($I$3*AQ$13)^2)+(($I$4*$A14)^2))/1000 -> 42.01190308 | AR14: =SQRT((($I$3*AR$13)^2)+(($I$4*$A14)^2))/1000 -> 43.01162634 | AS14: =SQRT((($I$3*AS$13)^2)+(($I$4*$A14)^2))/1000 -> 44.01136217 | AT14: =SQRT((($I$3*AT$13)^2)+(($I$4*$A14)^2))/1000 -> 45.01110974 | AU14: =SQRT((($I$3*AU$13)^2)+(($I$4*$A14)^2))/1000 -> 46.01086828 | AV14: =SQRT((($I$3*AV$13)^2)+(($I$4*$A14)^2))/1000 -> 47.01063709 | AW14: =SQRT((($I$3*AW$13)^2)+(($I$4*$A14)^2))/1000 -> 48.01041554 | AX14: =SQRT((($I$3*AX$13)^2)+(($I$4*$A14)^2))/1000 -> 49.01020302 | AY14: =SQRT((($I$3*AY$13)^2)+(($I$4*$A14)^2))/1000 -> 50.009999 | AZ14: =SQRT((($I$3*AZ$13)^2)+(($I$4*$A14)^2))/1000 -> 51.00980298 | BA14: =SQRT((($I$3*BA$13)^2)+(($I$4*$A14)^2))/1000 -> 52.0096145 | BB14: =SQRT((($I$3*BB$13)^2)+(($I$4*$A14)^2))/1000 -> 53.00943312 | BC14: =SQRT((($I$3*BC$13)^2)+(($I$4*$A14)^2))/1000 -> 54.00925847 | BD14: =SQRT((($I$3*BD$13)^2)+(($I$4*$A14)^2))/1000 -> 55.00909016 | BE14: =SQRT((($I$3*BE$13)^2)+(($I$4*$A14)^2))/1000 -> 56.00892786 | BF14: =SQRT((($I$3*BF$13)^2)+(($I$4*$A14)^2))/1000 -> 57.00877125 | BG14: =SQRT((($I$3*BG$13)^2)+(($I$4*$A14)^2))/1000 -> 58.00862005 | BH14: =SQRT((($I$3*BH$13)^2)+(($I$4*$A14)^2))/1000 -> 59.00847397 | BI14: =SQRT((($I$3*BI$13)^2)+(($I$4*$A14)^2))/1000 -> 60.00833275 | BJ14: =SQRT((($I$3*BJ$13)^2)+(($I$4*$A14)^2))/1000 -> 61.00819617 | BK14: =SQRT((($I$3*BK$13)^2)+(($I$4*$A14)^2))/1000 -> 62.00806399 | BL14: =SQRT((($I$3*BL$13)^2)+(($I$4*$A14)^2))/1000 -> 63.00793601 | BM14: =SQRT((($I$3*BM$13)^2)+(($I$4*$A14)^2))/1000 -> 64.00781202 | BN14: =SQRT((($I$3*BN$13)^2)+(($I$4*$A14)^2))/1000 -> 65.00769185 | BO14: =SQRT((($I$3*BO$13)^2)+(($I$4*$A14)^2))/1000 -> 66.00757532 | BP14: =SQRT((($I$3*BP$13)^2)+(($I$4*$A14)^2))/1000 -> 67.00746227 | BQ14: =SQRT((($I$3*BQ$13)^2)+(($I$4*$A14)^2))/1000 -> 68.00735254 | BR14: =SQRT((($I$3*BR$13)^2)+(($I$4*$A14)^2))/1000 -> 69.007246 | BS14: =SQRT((($I$3*BS$13)^2)+(($I$4*$A14)^2))/1000 -> 70.00714249 | BT14: =SQRT((($I$3*BT$13)^2)+(($I$4*$A14)^2))/1000 -> 71.0070419 | BU14: =SQRT((($I$3*BU$13)^2)+(($I$4*$A14)^2))/1000 -> 72.00694411 | BV14: =SQRT((($I$3*BV$13)^2)+(($I$4*$A14)^2))/1000 -> 73.00684899 | BW14: =SQRT((($I$3*BW$13)^2)+(($I$4*$A14)^2))/1000 -> 74.00675645 | BX14: =SQRT((($I$3*BX$13)^2)+(($I$4*$A14)^2))/1000 -> 75.00666637 | BY14: =SQRT((($I$3*BY$13)^2)+(($I$4*$A14)^2))/1000 -> 76.00657866 | BZ14: =SQRT((($I$3*BZ$13)^2)+(($I$4*$A14)^2))/1000 -> 77.00649323 | CA14: =SQRT((($I$3*CA$13)^2)+(($I$4*$A14)^2))/1000 -> 78.00640999 | CB14: =SQRT((($I$3*CB$13)^2)+(($I$4*$A14)^2))/1000 -> 79.00632886 | CC14: =SQRT((($I$3*CC$13)^2)+(($I$4*$A14)^2))/1000 -> 80.00624976 | CD14: =SQRT((($I$3*CD$13)^2)+(($I$4*$A14)^2))/1000 -> 81.0061726 | CE14: =SQRT((($I$3*CE$13)^2)+(($I$4*$A14)^2))/1000 -> 82.00609733 | CF14: =SQRT((($I$3*CF$13)^2)+(($I$4*$A14)^2))/1000 -> 83.00602388 | CG14: =SQRT((($I$3*CG$13)^2)+(($I$4*$A14)^2))/1000 -> 84.00595217 | CH14: =SQRT((($I$3*CH$13)^2)+(($I$4*$A14)^2))/1000 -> 85.00588215 | CI14: =SQRT((($I$3*CI$13)^2)+(($I$4*$A14)^2))/1000 -> 86.00581376 | CJ14: =SQRT((($I$3*CJ$13)^2)+(($I$4*$A14)^2))/1000 -> 87.00574694 | CK14: =SQRT((($I$3*CK$13)^2)+(($I$4*$A14)^2))/1000 -> 88.00568163 | CL14: =SQRT((($I$3*CL$13)^2)+(($I$4*$A14)^2))/1000 -> 89.0056178 | CM14: =SQRT((($I$3*CM$13)^2)+(($I$4*$A14)^2))/1000 -> 90.00555538 | CN14: =SQRT((($I$3*CN$13)^2)+(($I$4*$A14)^2))/1000 -> 91.00549434 | CO14: =SQRT((($I$3*CO$13)^2)+(($I$4*$A14)^2))/1000 -> 92.00543462 | CP14: =SQRT((($I$3*CP$13)^2)+(($I$4*$A14)^2))/1000 -> 93.00537619 | CQ14: =SQRT((($I$3*CQ$13)^2)+(($I$4*$A14)^2))/1000 -> 94.005319 | CR14: =SQRT((($I$3*CR$13)^2)+(($I$4*$A14)^2))/1000 -> 95.00526301 | CS14: =SQRT((($I$3*CS$13)^2)+(($I$4*$A14)^2))/1000 -> 96.00520819 | CT14: =SQRT((($I$3*CT$13)^2)+(($I$4*$A14)^2))/1000 -> 97.0051545 | CU14: =SQRT((($I$3*CU$13)^2)+(($I$4*$A14)^2))/1000 -> 98.00510191 | CV14: =SQRT((($I$3*CV$13)^2)+(($I$4*$A14)^2))/1000 -> 99.00505038 | CW14: =SQRT((($I$3*CW$13)^2)+(($I$4*$A14)^2))/1000 -> 100.0049999 | CX14: =SQRT((($I$3*CX$13)^2)+(($I$4*$A14)^2))/1000 -> 101.0049504 | CY14: =SQRT((($I$3*CY$13)^2)+(($I$4*$A14)^2))/1000 -> 102.0049018 | CZ14: =SQRT((($I$3*CZ$13)^2)+(($I$4*$A14)^2))/1000 -> 103.0048543 | DA14: =SQRT((($I$3*DA$13)^2)+(($I$4*$A14)^2))/1000 -> 104.0048076 | DB14: =SQRT((($I$3*DB$13)^2)+(($I$4*$A14)^2))/1000 -> 105.0047618 | DC14: =SQRT((($I$3*DC$13)^2)+(($I$4*$A14)^2))/1000 -> 106.0047169 | DD14: =SQRT((($I$3*DD$13)^2)+(($I$4*$A14)^2))/1000 -> 107.0046728 | DE14: =SQRT((($I$3*DE$13)^2)+(($I$4*$A14)^2))/1000 -> 108.0046295 | DF14: =SQRT((($I$3*DF$13)^2)+(($I$4*$A14)^2))/1000 -> 109.0045871 | DG14: =SQRT((($I$3*DG$13)^2)+(($I$4*$A14)^2))/1000 -> 110.0045454 | DH14: =SQRT((($I$3*DH$13)^2)+(($I$4*$A14)^2))/1000 -> 111.0045044 | DI14: =SQRT((($I$3*DI$13)^2)+(($I$4*$A14)^2))/1000 -> 112.0044642 | DJ14: =SQRT((($I$3*DJ$13)^2)+(($I$4*$A14)^2))/1000 -> 113.0044247 | DK14: =SQRT((($I$3*DK$13)^2)+(($I$4*$A14)^2))/1000 -> 114.0043859 | DL14: =SQRT((($I$3*DL$13)^2)+(($I$4*$A14)^2))/1000 -> 115.0043477 | DM14: =SQRT((($I$3*DM$13)^2)+(($I$4*$A14)^2))/1000 -> 116.0043103 | DN14: =SQRT((($I$3*DN$13)^2)+(($I$4*$A14)^2))/1000 -> 117.0042734 | DO14: =SQRT((($I$3*DO$13)^2)+(($I$4*$A14)^2))/1000 -> 118.0042372 | DP14: =SQRT((($I$3*DP$13)^2)+(($I$4*$A14)^2))/1000 -> 119.0042016 | DQ14: =SQRT((($I$3*DQ$13)^2)+(($I$4*$A14)^2))/1000 -> 120.0041666 | DR14: =SQRT((($I$3*DR$13)^2)+(($I$4*$A14)^2))/1000 -> 121.0041322 | DS14: =SQRT((($I$3*DS$13)^2)+(($I$4*$A14)^2))/1000 -> 122.0040983 | DT14: =SQRT((($I$3*DT$13)^2)+(($I$4*$A14)^2))/1000 -> 123.004065 | DU14: =SQRT((($I$3*DU$13)^2)+(($I$4*$A14)^2))/1000 -> 124.0040322 | DV14: =SQRT((($I$3*DV$13)^2)+(($I$4*$A14)^2))/1000 -> 125.0039999 | DW14: =SQRT((($I$3*DW$13)^2)+(($I$4*$A14)^2))/1000 -> 126.0039682 | DX14: =SQRT((($I$3*DX$13)^2)+(($I$4*$A14)^2))/1000 -> 127.0039369 | DY14: =SQRT((($I$3*DY$13)^2)+(($I$4*$A14)^2))/1000 -> 128.0039062 | DZ14: =SQRT((($I$3*DZ$13)^2)+(($I$4*$A14)^2))/1000 -> 129.0038759 | EA14: =SQRT((($I$3*EA$13)^2)+(($I$4*$A14)^2))/1000 -> 130.0038461 | EB14: =SQRT((($I$3*EB$13)^2)+(($I$4*$A14)^2))/1000 -> 131.0038167 | EC14: =SQRT((($I$3*EC$13)^2)+(($I$4*$A14)^2))/1000 -> 132.0037878 | ED14: =SQRT((($I$3*ED$13)^2)+(($I$4*$A14)^2))/1000 -> 133.0037593 | EE14: =SQRT((($I$3*EE$13)^2)+(($I$4*$A14)^2))/1000 -> 134.0037313 | EF14: =SQRT((($I$3*EF$13)^2)+(($I$4*$A14)^2))/1000 -> 135.0037037 | EG14: =SQRT((($I$3*EG$13)^2)+(($I$4*$A14)^2))/1000 -> 136.0036764 | EH14: =SQRT((($I$3*EH$13)^2)+(($I$4*$A14)^2))/1000 -> 137.0036496 | EI14: =SQRT((($I$3*EI$13)^2)+(($I$4*$A14)^2))/1000 -> 138.0036231 | EJ14: =SQRT((($I$3*EJ$13)^2)+(($I$4*$A14)^2))/1000 -> 139.0035971 | EK14: =SQRT((($I$3*EK$13)^2)+(($I$4*$A14)^2))/1000 -> 140.0035714 | EL14: =SQRT((($I$3*EL$13)^2)+(($I$4*$A14)^2))/1000 -> 141.0035461 | EM14: =SQRT((($I$3*EM$13)^2)+(($I$4*$A14)^2))/1000 -> 142.0035211 | EN14: =SQRT((($I$3*EN$13)^2)+(($I$4*$A14)^2))/1000 -> 143.0034965 | EO14: =SQRT((($I$3*EO$13)^2)+(($I$4*$A14)^2))/1000 -> 144.0034722 | EP14: =SQRT((($I$3*EP$13)^2)+(($I$4*$A14)^2))/1000 -> 145.0034482 | EQ14: =SQRT((($I$3*EQ$13)^2)+(($I$4*$A14)^2))/1000 -> 146.0034246 | ER14: =SQRT((($I$3*ER$13)^2)+(($I$4*$A14)^2))/1000 -> 147.0034013 | ES14: =SQRT((($I$3*ES$13)^2)+(($I$4*$A14)^2))/1000 -> 148.0033783 | ET14: =SQRT((($I$3*ET$13)^2)+(($I$4*$A14)^2))/1000 -> 149.0033557 | EU14: =SQRT((($I$3*EU$13)^2)+(($I$4*$A14)^2))/1000 -> 150.0033333 | EV14: =SQRT((($I$3*EV$13)^2)+(($I$4*$A14)^2))/1000 -> 151.0033112 | EW14: =SQRT((($I$3*EW$13)^2)+(($I$4*$A14)^2))/1000 -> 152.0032894 | EX14: =SQRT((($I$3*EX$13)^2)+(($I$4*$A14)^2))/1000 -> 153.0032679 | EY14: =SQRT((($I$3*EY$13)^2)+(($I$4*$A14)^2))/1000 -> 154.0032467 | EZ14: =SQRT((($I$3*EZ$13)^2)+(($I$4*$A14)^2))/1000 -> 155.0032258 | FA14: =SQRT((($I$3*FA$13)^2)+(($I$4*$A14)^2))/1000 -> 156.0032051 | FB14: =SQRT((($I$3*FB$13)^2)+(($I$4*$A14)^2))/1000 -> 157.0031847 | FC14: =SQRT((($I$3*FC$13)^2)+(($I$4*$A14)^2))/1000 -> 158.0031645 | FD14: =SQRT((($I$3*FD$13)^2)+(($I$4*$A14)^2))/1000 -> 159.0031446 | FE14: =SQRT((($I$3*FE$13)^2)+(($I$4*$A14)^2))/1000 -> 160.003125 | FF14: =SQRT((($I$3*FF$13)^2)+(($I$4*$A14)^2))/1000 -> 161.0031056 | FG14: =SQRT((($I$3*FG$13)^2)+(($I$4*$A14)^2))/1000 -> 162.0030864 | FH14: =SQRT((($I$3*FH$13)^2)+(($I$4*$A14)^2))/1000 -> 163.0030675 | FI14: =SQRT((($I$3*FI$13)^2)+(($I$4*$A14)^2))/1000 -> 164.0030488 | FJ14: =SQRT((($I$3*FJ$13)^2)+(($I$4*$A14)^2))/1000 -> 165.0030303 | FK14: =SQRT((($I$3*FK$13)^2)+(($I$4*$A14)^2))/1000 -> 166.003012 | FL14: =SQRT((($I$3*FL$13)^2)+(($I$4*$A14)^2))/1000 -> 167.002994 | FM14: =SQRT((($I$3*FM$13)^2)+(($I$4*$A14)^2))/1000 -> 168.0029762 | FN14: =SQRT((($I$3*FN$13)^2)+(($I$4*$A14)^2))/1000 -> 169.0029586 | FO14: =SQRT((($I$3*FO$13)^2)+(($I$4*$A14)^2))/1000 -> 170.0029412 | FP14: =SQRT((($I$3*FP$13)^2)+(($I$4*$A14)^2))/1000 -> 171.002924 | FQ14: =SQRT((($I$3*FQ$13)^2)+(($I$4*$A14)^2))/1000 -> 172.002907 | FR14: =SQRT((($I$3*FR$13)^2)+(($I$4*$A14)^2))/1000 -> 173.0028901 | FS14: =SQRT((($I$3*FS$13)^2)+(($I$4*$A14)^2))/1000 -> 174.0028735 | FT14: =SQRT((($I$3*FT$13)^2)+(($I$4*$A14)^2))/1000 -> 175.0028571 | FU14: =SQRT((($I$3*FU$13)^2)+(($I$4*$A14)^2))/1000 -> 176.0028409 | FV14: =SQRT((($I$3*FV$13)^2)+(($I$4*$A14)^2))/1000 -> 177.0028248 | FW14: =SQRT((($I$3*FW$13)^2)+(($I$4*$A14)^2))/1000 -> 178.002809 | FX14: =SQRT((($I$3*FX$13)^2)+(($I$4*$A14)^2))/1000 -> 179.0027933 | FY14: =SQRT((($I$3*FY$13)^2)+(($I$4*$A14)^2))/1000 -> 180.0027778 | FZ14: =SQRT((($I$3*FZ$13)^2)+(($I$4*$A14)^2))/1000 -> 181.0027624 | GA14: =SQRT((($I$3*GA$13)^2)+(($I$4*$A14)^2))/1000 -> 182.0027472 | GB14: =SQRT((($I$3*GB$13)^2)+(($I$4*$A14)^2))/1000 -> 183.0027322 | GC14: =SQRT((($I$3*GC$13)^2)+(($I$4*$A14)^2))/1000 -> 184.0027174 | GD14: =SQRT((($I$3*GD$13)^2)+(($I$4*$A14)^2))/1000 -> 185.0027027 | GE14: =SQRT((($I$3*GE$13)^2)+(($I$4*$A14)^2))/1000 -> 186.0026882 | GF14: =SQRT((($I$3*GF$13)^2)+(($I$4*$A14)^2))/1000 -> 187.0026738 | GG14: =SQRT((($I$3*GG$13)^2)+(($I$4*$A14)^2))/1000 -> 188.0026596 | GH14: =SQRT((($I$3*GH$13)^2)+(($I$4*$A14)^2))/1000 -> 189.0026455 | GI14: =SQRT((($I$3*GI$13)^2)+(($I$4*$A14)^2))/1000 -> 190.0026316 | GJ14: =SQRT((($I$3*GJ$13)^2)+(($I$4*$A14)^2))/1000 -> 191.0026178 | GK14: =SQRT((($I$3*GK$13)^2)+(($I$4*$A14)^2))/1000 -> 192.0026041 | GL14: =SQRT((($I$3*GL$13)^2)+(($I$4*$A14)^2))/1000 -> 193.0025907 | GM14: =SQRT((($I$3*GM$13)^2)+(($I$4*$A14)^2))/1000 -> 194.0025773 | GN14: =SQRT((($I$3*GN$13)^2)+(($I$4*$A14)^2))/1000 -> 195.0025641 | GO14: =SQRT((($I$3*GO$13)^2)+(($I$4*$A14)^2))/1000 -> 196.002551 | GP14: =SQRT((($I$3*GP$13)^2)+(($I$4*$A14)^2))/1000 -> 197.0025381 | GQ14: =SQRT((($I$3*GQ$13)^2)+(($I$4*$A14)^2))/1000 -> 198.0025252 | GR14: =SQRT((($I$3*GR$13)^2)+(($I$4*$A14)^2))/1000 -> 199.0025125 | GS14: =SQRT((($I$3*GS$13)^2)+(($I$4*$A14)^2))/1000 -> 200.0025 | GT14: =SQRT((($I$3*GT$13)^2)+(($I$4*$A14)^2))/1000 -> 201.0024875 | GU14: =SQRT((($I$3*GU$13)^2)+(($I$4*$A14)^2))/1000 -> 202.0024752 | GV14: =SQRT((($I$3*GV$13)^2)+(($I$4*$A14)^2))/1000 -> 203.002463 | GW14: =SQRT((($I$3*GW$13)^2)+(($I$4*$A14)^2))/1000 -> 204.002451 | GX14: =SQRT((($I$3*GX$13)^2)+(($I$4*$A14)^2))/1000 -> 205.002439 | GY14: =SQRT((($I$3*GY$13)^2)+(($I$4*$A14)^2))/1000 -> 206.0024272 | GZ14: =SQRT((($I$3*GZ$13)^2)+(($I$4*$A14)^2))/1000 -> 207.0024154 | HA14: =SQRT((($I$3*HA$13)^2)+(($I$4*$A14)^2))/1000 -> 208.0024038 | HB14: =SQRT((($I$3*HB$13)^2)+(($I$4*$A14)^2))/1000 -> 209.0023923 | HC14: =SQRT((($I$3*HC$13)^2)+(($I$4*$A14)^2))/1000 -> 210.0023809 | HD14: =SQRT((($I$3*HD$13)^2)+(($I$4*$A14)^2))/1000 -> 211.0023697 | HE14: =SQRT((($I$3*HE$13)^2)+(($I$4*$A14)^2))/1000 -> 212.0023585 | HF14: =SQRT((($I$3*HF$13)^2)+(($I$4*$A14)^2))/1000 -> 213.0023474 | HG14: =SQRT((($I$3*HG$13)^2)+(($I$4*$A14)^2))/1000 -> 214.0023364 | HH14: =SQRT((($I$3*HH$13)^2)+(($I$4*$A14)^2))/1000 -> 215.0023256 | HI14: =SQRT((($I$3*HI$13)^2)+(($I$4*$A14)^2))/1000 -> 216.0023148 | HJ14: =SQRT((($I$3*HJ$13)^2)+(($I$4*$A14)^2))/1000 -> 217.0023041 | HK14: =SQRT((($I$3*HK$13)^2)+(($I$4*$A14)^2))/1000 -> 218.0022936 | HL14: =SQRT((($I$3*HL$13)^2)+(($I$4*$A14)^2))/1000 -> 219.0022831 | HM14: =SQRT((($I$3*HM$13)^2)+(($I$4*$A14)^2))/1000 -> 220.0022727 | HN14: =SQRT((($I$3*HN$13)^2)+(($I$4*$A14)^2))/1000 -> 221.0022624 | HO14: =SQRT((($I$3*HO$13)^2)+(($I$4*$A14)^2))/1000 -> 222.0022522 | HP14: =SQRT((($I$3*HP$13)^2)+(($I$4*$A14)^2))/1000 -> 223.0022421 | HQ14: =SQRT((($I$3*HQ$13)^2)+(($I$4*$A14)^2))/1000 -> 224.0022321 | HR14: =SQRT((($I$3*HR$13)^2)+(($I$4*$A14)^2))/1000 -> 225.0022222 | HS14: =SQRT((($I$3*HS$13)^2)+(($I$4*$A14)^2))/1000 -> 226.0022124 | HT14: =SQRT((($I$3*HT$13)^2)+(($I$4*$A14)^2))/1000 -> 227.0022026 | HU14: =SQRT((($I$3*HU$13)^2)+(($I$4*$A14)^2))/1000 -> 228.002193 | HV14: =SQRT((($I$3*HV$13)^2)+(($I$4*$A14)^2))/1000 -> 229.0021834 | HW14: =SQRT((($I$3*HW$13)^2)+(($I$4*$A14)^2))/1000 -> 230.0021739 | HX14: =SQRT((($I$3*HX$13)^2)+(($I$4*$A14)^2))/1000 -> 231.0021645 | HY14: =SQRT((($I$3*HY$13)^2)+(($I$4*$A14)^2))/1000 -> 232.0021552 | HZ14: =SQRT((($I$3*HZ$13)^2)+(($I$4*$A14)^2))/1000 -> 233.0021459 | IA14: =SQRT((($I$3*IA$13)^2)+(($I$4*$A14)^2))/1000 -> 234.0021367 | IB14: =SQRT((($I$3*IB$13)^2)+(($I$4*$A14)^2))/1000 -> 235.0021276 | IC14: =SQRT((($I$3*IC$13)^2)+(($I$4*$A14)^2))/1000 -> 236.0021186 | ID14: =SQRT((($I$3*ID$13)^2)+(($I$4*$A14)^2))/1000 -> 237.0021097 | IE14: =SQRT((($I$3*IE$13)^2)+(($I$4*$A14)^2))/1000 -> 238.0021008 | IF14: =SQRT((($I$3*IF$13)^2)+(($I$4*$A14)^2))/1000 -> 239.002092 | IG14: =SQRT((($I$3*IG$13)^2)+(($I$4*$A14)^2))/1000 -> 240.0020833 | IH14: =SQRT((($I$3*IH$13)^2)+(($I$4*$A14)^2))/1000 -> 241.0020747 | II14: =SQRT((($I$3*II$13)^2)+(($I$4*$A14)^2))/1000 -> 242.0020661 | IJ14: =SQRT((($I$3*IJ$13)^2)+(($I$4*$A14)^2))/1000 -> 243.0020576 | IK14: =SQRT((($I$3*IK$13)^2)+(($I$4*$A14)^2))/1000 -> 244.0020492 | IL14: =SQRT((($I$3*IL$13)^2)+(($I$4*$A14)^2))/1000 -> 245.0020408 | IM14: =SQRT((($I$3*IM$13)^2)+(($I$4*$A14)^2))/1000 -> 246.0020325 | IN14: =SQRT((($I$3*IN$13)^2)+(($I$4*$A14)^2))/1000 -> 247.0020243 | IO14: =SQRT((($I$3*IO$13)^2)+(($I$4*$A14)^2))/1000 -> 248.0020161 | IP14: =SQRT((($I$3*IP$13)^2)+(($I$4*$A14)^2))/1000 -> 249.002008 | IQ14: =SQRT((($I$3*IQ$13)^2)+(($I$4*$A14)^2))/1000 -> 250.002 | IR14: =SQRT((($I$3*IR$13)^2)+(($I$4*$A14)^2))/1000 -> 251.001992 | IS14: =SQRT((($I$3*IS$13)^2)+(($I$4*$A14)^2))/1000 -> 252.0019841 | IT14: =SQRT((($I$3*IT$13)^2)+(($I$4*$A14)^2))/1000 -> 253.0019763 | IU14: =SQRT((($I$3*IU$13)^2)+(($I$4*$A14)^2))/1000 -> 254.0019685 | IV14: =SQRT((($I$3*IV$13)^2)+(($I$4*$A14)^2))/1000 -> 255.0019608 | IW14: =SQRT((($I$3*IW$13)^2)+(($I$4*$A14)^2))/1000 -> 256.0019531 | IX14: =SQRT((($I$3*IX$13)^2)+(($I$4*$A14)^2))/1000 -> 257.0019455 | IY14: =SQRT((($I$3*IY$13)^2)+(($I$4*$A14)^2))/1000 -> 258.001938 | IZ14: =SQRT((($I$3*IZ$13)^2)+(($I$4*$A14)^2))/1000 -> 259.0019305 | JA14: =SQRT((($I$3*JA$13)^2)+(($I$4*$A14)^2))/1000 -> 260.0019231 | JB14: =SQRT((($I$3*JB$13)^2)+(($I$4*$A14)^2))/1000 -> 261.0019157 | JC14: =SQRT((($I$3*JC$13)^2)+(($I$4*$A14)^2))/1000 -> 262.0019084 | JD14: =SQRT((($I$3*JD$13)^2)+(($I$4*$A14)^2))/1000 -> 263.0019011 | JE14: =SQRT((($I$3*JE$13)^2)+(($I$4*$A14)^2))/1000 -> 264.0018939 | JF14: =SQRT((($I$3*JF$13)^2)+(($I$4*$A14)^2))/1000 -> 265.0018868 | JG14: =SQRT((($I$3*JG$13)^2)+(($I$4*$A14)^2))/1000 -> 266.0018797 | JH14: =SQRT((($I$3*JH$13)^2)+(($I$4*$A14)^2))/1000 -> 267.0018727 | JI14: =SQRT((($I$3*JI$13)^2)+(($I$4*$A14)^2))/1000 -> 268.0018657 | JJ14: =SQRT((($I$3*JJ$13)^2)+(($I$4*$A14)^2))/1000 -> 269.0018587 | JK14: =SQRT((($I$3*JK$13)^2)+(($I$4*$A14)^2))/1000 -> 270.0018518 | JL14: =SQRT((($I$3*JL$13)^2)+(($I$4*$A14)^2))/1000 -> 271.001845 | JM14: =SQRT((($I$3*JM$13)^2)+(($I$4*$A14)^2))/1000 -> 272.0018382 | JN14: =SQRT((($I$3*JN$13)^2)+(($I$4*$A14)^2))/1000 -> 273.0018315 | JO14: =SQRT((($I$3*JO$13)^2)+(($I$4*$A14)^2))/1000 -> 274.0018248 | JP14: =SQRT((($I$3*JP$13)^2)+(($I$4*$A14)^2))/1000 -> 275.0018182 | JQ14: =SQRT((($I$3*JQ$13)^2)+(($I$4*$A14)^2))/1000 -> 276.0018116 | JR14: =SQRT((($I$3*JR$13)^2)+(($I$4*$A14)^2))/1000 -> 277.001805 | JS14: =SQRT((($I$3*JS$13)^2)+(($I$4*$A14)^2))/1000 -> 278.0017986 | JT14: =SQRT((($I$3*JT$13)^2)+(($I$4*$A14)^2))/1000 -> 279.0017921 | JU14: =SQRT((($I$3*JU$13)^2)+(($I$4*$A14)^2))/1000 -> 280.0017857 | JV14: =SQRT((($I$3*JV$13)^2)+(($I$4*$A14)^2))/1000 -> 281.0017794 | JW14: =SQRT((($I$3*JW$13)^2)+(($I$4*$A14)^2))/1000 -> 282.001773 | JX14: =SQRT((($I$3*JX$13)^2)+(($I$4*$A14)^2))/1000 -> 283.0017668 | JY14: =SQRT((($I$3*JY$13)^2)+(($I$4*$A14)^2))/1000 -> 284.0017606 | JZ14: =SQRT((($I$3*JZ$13)^2)+(($I$4*$A14)^2))/1000 -> 285.0017544 | KA14: =SQRT((($I$3*KA$13)^2)+(($I$4*$A14)^2))/1000 -> 286.0017482 | KB14: =SQRT((($I$3*KB$13)^2)+(($I$4*$A14)^2))/1000 -> 287.0017422 | KC14: =SQRT((($I$3*KC$13)^2)+(($I$4*$A14)^2))/1000 -> 288.0017361 | KD14: =SQRT((($I$3*KD$13)^2)+(($I$4*$A14)^2))/1000 -> 289.0017301 | KE14: =SQRT((($I$3*KE$13)^2)+(($I$4*$A14)^2))/1000 -> 290.0017241 | KF14: =SQRT((($I$3*KF$13)^2)+(($I$4*$A14)^2))/1000 -> 291.0017182 | KG14: =SQRT((($I$3*KG$13)^2)+(($I$4*$A14)^2))/1000 -> 292.0017123 | KH14: =SQRT((($I$3*KH$13)^2)+(($I$4*$A14)^2))/1000 -> 293.0017065 | KI14: =SQRT((($I$3*KI$13)^2)+(($I$4*$A14)^2))/1000 -> 294.0017007 | KJ14: =SQRT((($I$3*KJ$13)^2)+(($I$4*$A14)^2))/1000 -> 295.0016949 | KK14: =SQRT((($I$3*KK$13)^2)+(($I$4*$A14)^2))/1000 -> 296.0016892 | KL14: =SQRT((($I$3*KL$13)^2)+(($I$4*$A14)^2))/1000 -> 297.0016835 | KM14: =SQRT((($I$3*KM$13)^2)+(($I$4*$A14)^2))/1000 -> 298.0016778 | KN14: =SQRT((($I$3*KN$13)^2)+(($I$4*$A14)^2))/1000 -> 299.0016722 | KO14: =SQRT((($I$3*KO$13)^2)+(($I$4*$A14)^2))/1000 -> 300.0016667 | KP14: =SQRT((($I$3*KP$13)^2)+(($I$4*$A14)^2))/1000 -> 301.0016611 | KQ14: =SQRT((($I$3*KQ$13)^2)+(($I$4*$A14)^2))/1000 -> 302.0016556 | KR14: =SQRT((($I$3*KR$13)^2)+(($I$4*$A14)^2))/1000 -> 303.0016502 | KS14: =SQRT((($I$3*KS$13)^2)+(($I$4*$A14)^2))/1000 -> 304.0016447 | KT14: =SQRT((($I$3*KT$13)^2)+(($I$4*$A14)^2))/1000 -> 305.0016393 | KU14: =SQRT((($I$3*KU$13)^2)+(($I$4*$A14)^2))/1000 -> 306.001634 | KV14: =SQRT((($I$3*KV$13)^2)+(($I$4*$A14)^2))/1000 -> 307.0016287 | KW14: =SQRT((($I$3*KW$13)^2)+(($I$4*$A14)^2))/1000 -> 308.0016234 | KX14: =SQRT((($I$3*KX$13)^2)+(($I$4*$A14)^2))/1000 -> 309.0016181 | KY14: =SQRT((($I$3*KY$13)^2)+(($I$4*$A14)^2))/1000 -> 310.0016129 | KZ14: =SQRT((($I$3*KZ$13)^2)+(($I$4*$A14)^2))/1000 -> 311.0016077 | LA14: =SQRT((($I$3*LA$13)^2)+(($I$4*$A14)^2))/1000 -> 312.0016026 | LB14: =SQRT((($I$3*LB$13)^2)+(($I$4*$A14)^2))/1000 -> 313.0015974 | LC14: =SQRT((($I$3*LC$13)^2)+(($I$4*$A14)^2))/1000 -> 314.0015924 | LD14: =SQRT((($I$3*LD$13)^2)+(($I$4*$A14)^2))/1000 -> 315.0015873 | LE14: =SQRT((($I$3*LE$13)^2)+(($I$4*$A14)^2))/1000 -> 316.0015823 | LF14: =SQRT((($I$3*LF$13)^2)+(($I$4*$A14)^2))/1000 -> 317.0015773 | LG14: =SQRT((($I$3*LG$13)^2)+(($I$4*$A14)^2))/1000 -> 318.0015723 | LH14: =SQRT((($I$3*LH$13)^2)+(($I$4*$A14)^2))/1000 -> 319.0015674 | LI14: =SQRT((($I$3*LI$13)^2)+(($I$4*$A14)^2))/1000 -> 320.0015625 | LJ14: =SQRT((($I$3*LJ$13)^2)+(($I$4*$A14)^2))/1000 -> 321.0015576 | LK14: =SQRT((($I$3*LK$13)^2)+(($I$4*$A14)^2))/1000 -> 322.0015528 | LL14: =SQRT((($I$3*LL$13)^2)+(($I$4*$A14)^2))/1000 -> 323.001548 | LM14: =SQRT((($I$3*LM$13)^2)+(($I$4*$A14)^2))/1000 -> 324.0015432 | LN14: =SQRT((($I$3*LN$13)^2)+(($I$4*$A14)^2))/1000 -> 325.0015385 | LO14: =SQRT((($I$3*LO$13)^2)+(($I$4*$A14)^2))/1000 -> 326.0015337 | LP14: =SQRT((($I$3*LP$13)^2)+(($I$4*$A14)^2))/1000 -> 327.001529 | LQ14: =SQRT((($I$3*LQ$13)^2)+(($I$4*$A14)^2))/1000 -> 328.0015244 | LR14: =SQRT((($I$3*LR$13)^2)+(($I$4*$A14)^2))/1000 -> 329.0015198 | LS14: =SQRT((($I$3*LS$13)^2)+(($I$4*$A14)^2))/1000 -> 330.0015151 | LT14: =SQRT((($I$3*LT$13)^2)+(($I$4*$A14)^2))/1000 -> 331.0015106 | LU14: =SQRT((($I$3*LU$13)^2)+(($I$4*$A14)^2))/1000 -> 332.001506 | LV14: =SQRT((($I$3*LV$13)^2)+(($I$4*$A14)^2))/1000 -> 333.0015015 | LW14: =SQRT((($I$3*LW$13)^2)+(($I$4*$A14)^2))/1000 -> 334.001497 | LX14: =SQRT((($I$3*LX$13)^2)+(($I$4*$A14)^2))/1000 -> 335.0014925 | LY14: =SQRT((($I$3*LY$13)^2)+(($I$4*$A14)^2))/1000 -> 336.0014881 | LZ14: =SQRT((($I$3*LZ$13)^2)+(($I$4*$A14)^2))/1000 -> 337.0014837 | MA14: =SQRT((($I$3*MA$13)^2)+(($I$4*$A14)^2))/1000 -> 338.0014793 | MB14: =SQRT((($I$3*MB$13)^2)+(($I$4*$A14)^2))/1000 -> 339.0014749 | MC14: =SQRT((($I$3*MC$13)^2)+(($I$4*$A14)^2))/1000 -> 340.0014706 | MD14: =SQRT((($I$3*MD$13)^2)+(($I$4*$A14)^2))/1000 -> 341.0014663 | ME14: =SQRT((($I$3*ME$13)^2)+(($I$4*$A14)^2))/1000 -> 342.001462 | MF14: =SQRT((($I$3*MF$13)^2)+(($I$4*$A14)^2))/1000 -> 343.0014577 | MG14: =SQRT((($I$3*MG$13)^2)+(($I$4*$A14)^2))/1000 -> 344.0014535 | MH14: =SQRT((($I$3*MH$13)^2)+(($I$4*$A14)^2))/1000 -> 345.0014493 | MI14: =SQRT((($I$3*MI$13)^2)+(($I$4*$A14)^2))/1000 -> 346.0014451 | MJ14: =SQRT((($I$3*MJ$13)^2)+(($I$4*$A14)^2))/1000 -> 347.0014409 | MK14: =SQRT((($I$3*MK$13)^2)+(($I$4*$A14)^2))/1000 -> 348.0014368 | ML14: =SQRT((($I$3*ML$13)^2)+(($I$4*$A14)^2))/1000 -> 349.0014327 | MM14: =SQRT((($I$3*MM$13)^2)+(($I$4*$A14)^2))/1000 -> 350.0014286 | MN14: =SQRT((($I$3*MN$13)^2)+(($I$4*$A14)^2))/1000 -> 351.0014245 | MO14: =SQRT((($I$3*MO$13)^2)+(($I$4*$A14)^2))/1000 -> 352.0014205 | MP14: =SQRT((($I$3*MP$13)^2)+(($I$4*$A14)^2))/1000 -> 353.0014164 | MQ14: =SQRT((($I$3*MQ$13)^2)+(($I$4*$A14)^2))/1000 -> 354.0014124 | MR14: =SQRT((($I$3*MR$13)^2)+(($I$4*$A14)^2))/1000 -> 355.0014084 | MS14: =SQRT((($I$3*MS$13)^2)+(($I$4*$A14)^2))/1000 -> 356.0014045 | MT14: =SQRT((($I$3*MT$13)^2)+(($I$4*$A14)^2))/1000 -> 357.0014006 | MU14: =SQRT((($I$3*MU$13)^2)+(($I$4*$A14)^2))/1000 -> 358.0013966 | MV14: =SQRT((($I$3*MV$13)^2)+(($I$4*$A14)^2))/1000 -> 359.0013928 | MW14: =SQRT((($I$3*MW$13)^2)+(($I$4*$A14)^2))/1000 -> 360.0013889 | MX14: =SQRT((($I$3*MX$13)^2)+(($I$4*$A14)^2))/1000 -> 361.001385 | MY14: =SQRT((($I$3*MY$13)^2)+(($I$4*$A14)^2))/1000 -> 362.0013812 | MZ14: =SQRT((($I$3*MZ$13)^2)+(($I$4*$A14)^2))/1000 -> 363.0013774 | NA14: =SQRT((($I$3*NA$13)^2)+(($I$4*$A14)^2))/1000 -> 364.0013736 | NB14: =SQRT((($I$3*NB$13)^2)+(($I$4*$A14)^2))/1000 -> 365.0013699 | NC14: =SQRT((($I$3*NC$13)^2)+(($I$4*$A14)^2))/1000 -> 366.0013661 | ND14: =SQRT((($I$3*ND$13)^2)+(($I$4*$A14)^2))/1000 -> 367.0013624 | NE14: =SQRT((($I$3*NE$13)^2)+(($I$4*$A14)^2))/1000 -> 368.0013587 | NF14: =SQRT((($I$3*NF$13)^2)+(($I$4*$A14)^2))/1000 -> 369.001355 | NG14: =SQRT((($I$3*NG$13)^2)+(($I$4*$A14)^2))/1000 -> 370.0013513 | NH14: =SQRT((($I$3*NH$13)^2)+(($I$4*$A14)^2))/1000 -> 371.0013477 | NI14: =SQRT((($I$3*NI$13)^2)+(($I$4*$A14)^2))/1000 -> 372.0013441 | NJ14: =SQRT((($I$3*NJ$13)^2)+(($I$4*$A14)^2))/1000 -> 373.0013405 | NK14: =SQRT((($I$3*NK$13)^2)+(($I$4*$A14)^2))/1000 -> 374.0013369 | NL14: =SQRT((($I$3*NL$13)^2)+(($I$4*$A14)^2))/1000 -> 375.0013333 | NM14: =SQRT((($I$3*NM$13)^2)+(($I$4*$A14)^2))/1000 -> 376.0013298 | NN14: =SQRT((($I$3*NN$13)^2)+(($I$4*$A14)^2))/1000 -> 377.0013263 | NO14: =SQRT((($I$3*NO$13)^2)+(($I$4*$A14)^2))/1000 -> 378.0013227 | NP14: =SQRT((($I$3*NP$13)^2)+(($I$4*$A14)^2))/1000 -> 379.0013193 | NQ14: =SQRT((($I$3*NQ$13)^2)+(($I$4*$A14)^2))/1000 -> 380.0013158 | NR14: =SQRT((($I$3*NR$13)^2)+(($I$4*$A14)^2))/1000 -> 381.0013123 | NS14: =SQRT((($I$3*NS$13)^2)+(($I$4*$A14)^2))/1000 -> 382.0013089 | NT14: =SQRT((($I$3*NT$13)^2)+(($I$4*$A14)^2))/1000 -> 383.0013055 | NU14: =SQRT((($I$3*NU$13)^2)+(($I$4*$A14)^2))/1000 -> 384.0013021 | NV14: =SQRT((($I$3*NV$13)^2)+(($I$4*$A14)^2))/1000 -> 385.0012987 | NW14: =SQRT((($I$3*NW$13)^2)+(($I$4*$A14)^2))/1000 -> 386.0012953 | NX14: =SQRT((($I$3*NX$13)^2)+(($I$4*$A14)^2))/1000 -> 387.001292 | NY14: =SQRT((($I$3*NY$13)^2)+(($I$4*$A14)^2))/1000 -> 388.0012887 | NZ14: =SQRT((($I$3*NZ$13)^2)+(($I$4*$A14)^2))/1000 -> 389.0012853 | OA14: =SQRT((($I$3*OA$13)^2)+(($I$4*$A14)^2))/1000 -> 390.001282 | OB14: =SQRT((($I$3*OB$13)^2)+(($I$4*$A14)^2))/1000 -> 391.0012788 | OC14: =SQRT((($I$3*OC$13)^2)+(($I$4*$A14)^2))/1000 -> 392.0012755 | OD14: =SQRT((($I$3*OD$13)^2)+(($I$4*$A14)^2))/1000 -> 393.0012723 | OE14: =SQRT((($I$3*OE$13)^2)+(($I$4*$A14)^2))/1000 -> 394.001269 | OF14: =SQRT((($I$3*OF$13)^2)+(($I$4*$A14)^2))/1000 -> 395.0012658 | OG14: =SQRT((($I$3*OG$13)^2)+(($I$4*$A14)^2))/1000 -> 396.0012626 | OH14: =SQRT((($I$3*OH$13)^2)+(($I$4*$A14)^2))/1000 -> 397.0012594 | OI14: =SQRT((($I$3*OI$13)^2)+(($I$4*$A14)^2))/1000 -> 398.0012563 | OJ14: =SQRT((($I$3*OJ$13)^2)+(($I$4*$A14)^2))/1000 -> 399.0012531 | OK14: =SQRT((($I$3*OK$13)^2)+(($I$4*$A14)^2))/1000 -> 400.00125 | OL14: =SQRT((($I$3*OL$13)^2)+(($I$4*$A14)^2))/1000 -> 401.0012469 | OM14: =SQRT((($I$3*OM$13)^2)+(($I$4*$A14)^2))/1000 -> 402.0012438 | ON14: =SQRT((($I$3*ON$13)^2)+(($I$4*$A14)^2))/1000 -> 403.0012407 | OO14: =SQRT((($I$3*OO$13)^2)+(($I$4*$A14)^2))/1000 -> 404.0012376 | OP14: =SQRT((($I$3*OP$13)^2)+(($I$4*$A14)^2))/1000 -> 405.0012346 | OQ14: =SQRT((($I$3*OQ$13)^2)+(($I$4*$A14)^2))/1000 -> 406.0012315 | OR14: =SQRT((($I$3*OR$13)^2)+(($I$4*$A14)^2))/1000 -> 407.0012285 | OS14: =SQRT((($I$3*OS$13)^2)+(($I$4*$A14)^2))/1000 -> 408.0012255 | OT14: =SQRT((($I$3*OT$13)^2)+(($I$4*$A14)^2))/1000 -> 409.0012225 | OU14: =SQRT((($I$3*OU$13)^2)+(($I$4*$A14)^2))/1000 -> 410.0012195 | OV14: =SQRT((($I$3*OV$13)^2)+(($I$4*$A14)^2))/1000 -> 411.0012165 | OW14: =SQRT((($I$3*OW$13)^2)+(($I$4*$A14)^2))/1000 -> 412.0012136 | OX14: =SQRT((($I$3*OX$13)^2)+(($I$4*$A14)^2))/1000 -> 413.0012107 | OY14: =SQRT((($I$3*OY$13)^2)+(($I$4*$A14)^2))/1000 -> 414.0012077 | OZ14: =SQRT((($I$3*OZ$13)^2)+(($I$4*$A14)^2))/1000 -> 415.0012048 | PA14: =SQRT((($I$3*PA$13)^2)+(($I$4*$A14)^2))/1000 -> 416.0012019 | PB14: =SQRT((($I$3*PB$13)^2)+(($I$4*$A14)^2))/1000 -> 417.001199 | PC14: =SQRT((($I$3*PC$13)^2)+(($I$4*$A14)^2))/1000 -> 418.0011962 | PD14: =SQRT((($I$3*PD$13)^2)+(($I$4*$A14)^2))/1000 -> 419.0011933 | PE14: =SQRT((($I$3*PE$13)^2)+(($I$4*$A14)^2))/1000 -> 420.0011905 | PF14: =SQRT((($I$3*PF$13)^2)+(($I$4*$A14)^2))/1000 -> 421.0011876 | PG14: =SQRT((($I$3*PG$13)^2)+(($I$4*$A14)^2))/1000 -> 422.0011848 | PH14: =SQRT((($I$3*PH$13)^2)+(($I$4*$A14)^2))/1000 -> 423.001182 | PI14: =SQRT((($I$3*PI$13)^2)+(($I$4*$A14)^2))/1000 -> 424.0011792 | PJ14: =SQRT((($I$3*PJ$13)^2)+(($I$4*$A14)^2))/1000 -> 425.0011765 | PK14: =SQRT((($I$3*PK$13)^2)+(($I$4*$A14)^2))/1000 -> 426.0011737 | PL14: =SQRT((($I$3*PL$13)^2)+(($I$4*$A14)^2))/1000 -> 427.001171 | PM14: =SQRT((($I$3*PM$13)^2)+(($I$4*$A14)^2))/1000 -> 428.0011682 | PN14: =SQRT((($I$3*PN$13)^2)+(($I$4*$A14)^2))/1000 -> 429.0011655 | PO14: =SQRT((($I$3*PO$13)^2)+(($I$4*$A14)^2))/1000 -> 430.0011628 | PP14: =SQRT((($I$3*PP$13)^2)+(($I$4*$A14)^2))/1000 -> 431.0011601 | PQ14: =SQRT((($I$3*PQ$13)^2)+(($I$4*$A14)^2))/1000 -> 432.0011574 | PR14: =SQRT((($I$3*PR$13)^2)+(($I$4*$A14)^2))/1000 -> 433.0011547 | PS14: =SQRT((($I$3*PS$13)^2)+(($I$4*$A14)^2))/1000 -> 434.0011521 | PT14: =SQRT((($I$3*PT$13)^2)+(($I$4*$A14)^2))/1000 -> 435.0011494 | PU14: =SQRT((($I$3*PU$13)^2)+(($I$4*$A14)^2))/1000 -> 436.0011468 | PV14: =SQRT((($I$3*PV$13)^2)+(($I$4*$A14)^2))/1000 -> 437.0011442 | PW14: =SQRT((($I$3*PW$13)^2)+(($I$4*$A14)^2))/1000 -> 438.0011416 | PX14: =SQRT((($I$3*PX$13)^2)+(($I$4*$A14)^2))/1000 -> 439.001139 | PY14: =SQRT((($I$3*PY$13)^2)+(($I$4*$A14)^2))/1000 -> 440.0011364 | PZ14: =SQRT((($I$3*PZ$13)^2)+(($I$4*$A14)^2))/1000 -> 441.0011338 | QA14: =SQRT((($I$3*QA$13)^2)+(($I$4*$A14)^2))/1000 -> 442.0011312 | QB14: =SQRT((($I$3*QB$13)^2)+(($I$4*$A14)^2))/1000 -> 443.0011287 | QC14: =SQRT((($I$3*QC$13)^2)+(($I$4*$A14)^2))/1000 -> 444.0011261 | QD14: =SQRT((($I$3*QD$13)^2)+(($I$4*$A14)^2))/1000 -> 445.0011236 | QE14: =SQRT((($I$3*QE$13)^2)+(($I$4*$A14)^2))/1000 -> 446.0011211 | QF14: =SQRT((($I$3*QF$13)^2)+(($I$4*$A14)^2))/1000 -> 447.0011186 | QG14: =SQRT((($I$3*QG$13)^2)+(($I$4*$A14)^2))/1000 -> 448.0011161 | QH14: =SQRT((($I$3*QH$13)^2)+(($I$4*$A14)^2))/1000 -> 449.0011136 | QI14: =SQRT((($I$3*QI$13)^2)+(($I$4*$A14)^2))/1000 -> 450.0011111 | QJ14: =SQRT((($I$3*QJ$13)^2)+(($I$4*$A14)^2))/1000 -> 451.0011086 | QK14: =SQRT((($I$3*QK$13)^2)+(($I$4*$A14)^2))/1000 -> 452.0011062 | QL14: =SQRT((($I$3*QL$13)^2)+(($I$4*$A14)^2))/1000 -> 453.0011038 | QM14: =SQRT((($I$3*QM$13)^2)+(($I$4*$A14)^2))/1000 -> 454.0011013 | QN14: =SQRT((($I$3*QN$13)^2)+(($I$4*$A14)^2))/1000 -> 455.0010989 | QO14: =SQRT((($I$3*QO$13)^2)+(($I$4*$A14)^2))/1000 -> 456.0010965 | QP14: =SQRT((($I$3*QP$13)^2)+(($I$4*$A14)^2))/1000 -> 457.0010941 | QQ14: =SQRT((($I$3*QQ$13)^2)+(($I$4*$A14)^2))/1000 -> 458.0010917 | QR14: =SQRT((($I$3*QR$13)^2)+(($I$4*$A14)^2))/1000 -> 459.0010893 | QS14: =SQRT((($I$3*QS$13)^2)+(($I$4*$A14)^2))/1000 -> 460.001087 | QT14: =SQRT((($I$3*QT$13)^2)+(($I$4*$A14)^2))/1000 -> 461.0010846 | QU14: =SQRT((($I$3*QU$13)^2)+(($I$4*$A14)^2))/1000 -> 462.0010822 | QV14: =SQRT((($I$3*QV$13)^2)+(($I$4*$A14)^2))/1000 -> 463.0010799 | QW14: =SQRT((($I$3*QW$13)^2)+(($I$4*$A14)^2))/1000 -> 464.0010776 | QX14: =SQRT((($I$3*QX$13)^2)+(($I$4*$A14)^2))/1000 -> 465.0010753 | QY14: =SQRT((($I$3*QY$13)^2)+(($I$4*$A14)^2))/1000 -> 466.001073 | QZ14: =SQRT((($I$3*QZ$13)^2)+(($I$4*$A14)^2))/1000 -> 467.0010707 | RA14: =SQRT((($I$3*RA$13)^2)+(($I$4*$A14)^2))/1000 -> 468.0010684 | RB14: =SQRT((($I$3*RB$13)^2)+(($I$4*$A14)^2))/1000 -> 469.0010661 | RC14: =SQRT((($I$3*RC$13)^2)+(($I$4*$A14)^2))/1000 -> 470.0010638 | RD14: =SQRT((($I$3*RD$13)^2)+(($I$4*$A14)^2))/1000 -> 471.0010616 | RE14: =SQRT((($I$3*RE$13)^2)+(($I$4*$A14)^2))/1000 -> 472.0010593 | RF14: =SQRT((($I$3*RF$13)^2)+(($I$4*$A14)^2))/1000 -> 473.0010571 | RG14: =SQRT((($I$3*RG$13)^2)+(($I$4*$A14)^2))/1000 -> 474.0010549 | RH14: =SQRT((($I$3*RH$13)^2)+(($I$4*$A14)^2))/1000 -> 475.0010526 | RI14: =SQRT((($I$3*RI$13)^2)+(($I$4*$A14)^2))/1000 -> 476.0010504 | RJ14: =SQRT((($I$3*RJ$13)^2)+(($I$4*$A14)^2))/1000 -> 477.0010482 | RK14: =SQRT((($I$3*RK$13)^2)+(($I$4*$A14)^2))/1000 -> 478.001046 | RL14: =SQRT((($I$3*RL$13)^2)+(($I$4*$A14)^2))/1000 -> 479.0010438 | RM14: =SQRT((($I$3*RM$13)^2)+(($I$4*$A14)^2))/1000 -> 480.0010417 | RN14: =SQRT((($I$3*RN$13)^2)+(($I$4*$A14)^2))/1000 -> 481.0010395 | RO14: =SQRT((($I$3*RO$13)^2)+(($I$4*$A14)^2))/1000 -> 482.0010373 | RP14: =SQRT((($I$3*RP$13)^2)+(($I$4*$A14)^2))/1000 -> 483.0010352 | RQ14: =SQRT((($I$3*RQ$13)^2)+(($I$4*$A14)^2))/1000 -> 484.0010331 | RR14: =SQRT((($I$3*RR$13)^2)+(($I$4*$A14)^2))/1000 -> 485.0010309 | RS14: =SQRT((($I$3*RS$13)^2)+(($I$4*$A14)^2))/1000 -> 486.0010288 | RT14: =SQRT((($I$3*RT$13)^2)+(($I$4*$A14)^2))/1000 -> 487.0010267 | RU14: =SQRT((($I$3*RU$13)^2)+(($I$4*$A14)^2))/1000 -> 488.0010246 | RV14: =SQRT((($I$3*RV$13)^2)+(($I$4*$A14)^2))/1000 -> 489.0010225 | RW14: =SQRT((($I$3*RW$13)^2)+(($I$4*$A14)^2))/1000 -> 490.0010204 | RX14: =SQRT((($I$3*RX$13)^2)+(($I$4*$A14)^2))/1000 -> 491.0010183 | RY14: =SQRT((($I$3*RY$13)^2)+(($I$4*$A14)^2))/1000 -> 492.0010163 | RZ14: =SQRT((($I$3*RZ$13)^2)+(($I$4*$A14)^2))/1000 -> 493.0010142 | SA14: =SQRT((($I$3*SA$13)^2)+(($I$4*$A14)^2))/1000 -> 494.0010121 | SB14: =SQRT((($I$3*SB$13)^2)+(($I$4*$A14)^2))/1000 -> 495.0010101 | SC14: =SQRT((($I$3*SC$13)^2)+(($I$4*$A14)^2))/1000 -> 496.0010081 | SD14: =SQRT((($I$3*SD$13)^2)+(($I$4*$A14)^2))/1000 -> 497.001006 | SE14: =SQRT((($I$3*SE$13)^2)+(($I$4*$A14)^2))/1000 -> 498.001004 | SF14: =SQRT((($I$3*SF$13)^2)+(($I$4*$A14)^2))/1000 -> 499.001002 | SG14: =SQRT((($I$3*SG$13)^2)+(($I$4*$A14)^2))/1000 -> 500.001
A15: 2 | B15: =SQRT((($I$3*B$13)^2)+(($I$4*$A15)^2))/1000 -> 2.236067977 | C15: =SQRT((($I$3*C$13)^2)+(($I$4*$A15)^2))/1000 -> 2.828427125 | D15: =SQRT((($I$3*D$13)^2)+(($I$4*$A15)^2))/1000 -> 3.605551275 | E15: =SQRT((($I$3*E$13)^2)+(($I$4*$A15)^2))/1000 -> 4.472135955 | F15: =SQRT((($I$3*F$13)^2)+(($I$4*$A15)^2))/1000 -> 5.385164807 | G15: =SQRT((($I$3*G$13)^2)+(($I$4*$A15)^2))/1000 -> 6.32455532 | H15: =SQRT((($I$3*H$13)^2)+(($I$4*$A15)^2))/1000 -> 7.280109889 | I15: =SQRT((($I$3*I$13)^2)+(($I$4*$A15)^2))/1000 -> 8.246211251 | J15: =SQRT((($I$3*J$13)^2)+(($I$4*$A15)^2))/1000 -> 9.219544457 | K15: =SQRT((($I$3*K$13)^2)+(($I$4*$A15)^2))/1000 -> 10.19803903 | L15: =SQRT((($I$3*L$13)^2)+(($I$4*$A15)^2))/1000 -> 11.18033989 | M15: =SQRT((($I$3*M$13)^2)+(($I$4*$A15)^2))/1000 -> 12.16552506 | N15: =SQRT((($I$3*N$13)^2)+(($I$4*$A15)^2))/1000 -> 13.15294644 | O15: =SQRT((($I$3*O$13)^2)+(($I$4*$A15)^2))/1000 -> 14.14213562 | P15: =SQRT((($I$3*P$13)^2)+(($I$4*$A15)^2))/1000 -> 15.13274595 | Q15: =SQRT((($I$3*Q$13)^2)+(($I$4*$A15)^2))/1000 -> 16.1245155 | R15: =SQRT((($I$3*R$13)^2)+(($I$4*$A15)^2))/1000 -> 17.11724277 | S15: =SQRT((($I$3*S$13)^2)+(($I$4*$A15)^2))/1000 -> 18.11077028 | T15: =SQRT((($I$3*T$13)^2)+(($I$4*$A15)^2))/1000 -> 19.10497317 | U15: =SQRT((($I$3*U$13)^2)+(($I$4*$A15)^2))/1000 -> 20.09975124 | V15: =SQRT((($I$3*V$13)^2)+(($I$4*$A15)^2))/1000 -> 21.09502311 | W15: =SQRT((($I$3*W$13)^2)+(($I$4*$A15)^2))/1000 -> 22.09072203 | X15: =SQRT((($I$3*X$13)^2)+(($I$4*$A15)^2))/1000 -> 23.08679276 | Y15: =SQRT((($I$3*Y$13)^2)+(($I$4*$A15)^2))/1000 -> 24.08318916 | Z15: =SQRT((($I$3*Z$13)^2)+(($I$4*$A15)^2))/1000 -> 25.07987241 | AA15: =SQRT((($I$3*AA$13)^2)+(($I$4*$A15)^2))/1000 -> 26.07680962 | AB15: =SQRT((($I$3*AB$13)^2)+(($I$4*$A15)^2))/1000 -> 27.07397274 | AC15: =SQRT((($I$3*AC$13)^2)+(($I$4*$A15)^2))/1000 -> 28.0713377 | AD15: =SQRT((($I$3*AD$13)^2)+(($I$4*$A15)^2))/1000 -> 29.06888371 | AE15: =SQRT((($I$3*AE$13)^2)+(($I$4*$A15)^2))/1000 -> 30.06659276 | AF15: =SQRT((($I$3*AF$13)^2)+(($I$4*$A15)^2))/1000 -> 31.06444913 | AG15: =SQRT((($I$3*AG$13)^2)+(($I$4*$A15)^2))/1000 -> 32.06243908 | AH15: =SQRT((($I$3*AH$13)^2)+(($I$4*$A15)^2))/1000 -> 33.06055051 | AI15: =SQRT((($I$3*AI$13)^2)+(($I$4*$A15)^2))/1000 -> 34.05877273 | AJ15: =SQRT((($I$3*AJ$13)^2)+(($I$4*$A15)^2))/1000 -> 35.05709629 | AK15: =SQRT((($I$3*AK$13)^2)+(($I$4*$A15)^2))/1000 -> 36.05551275 | AL15: =SQRT((($I$3*AL$13)^2)+(($I$4*$A15)^2))/1000 -> 37.05401463 | AM15: =SQRT((($I$3*AM$13)^2)+(($I$4*$A15)^2))/1000 -> 38.05259518 | AN15: =SQRT((($I$3*AN$13)^2)+(($I$4*$A15)^2))/1000 -> 39.05124838 | AO15: =SQRT((($I$3*AO$13)^2)+(($I$4*$A15)^2))/1000 -> 40.04996879 | AP15: =SQRT((($I$3*AP$13)^2)+(($I$4*$A15)^2))/1000 -> 41.0487515 | AQ15: =SQRT((($I$3*AQ$13)^2)+(($I$4*$A15)^2))/1000 -> 42.04759208 | AR15: =SQRT((($I$3*AR$13)^2)+(($I$4*$A15)^2))/1000 -> 43.0464865 | AS15: =SQRT((($I$3*AS$13)^2)+(($I$4*$A15)^2))/1000 -> 44.04543109 | AT15: =SQRT((($I$3*AT$13)^2)+(($I$4*$A15)^2))/1000 -> 45.04442252 | AU15: =SQRT((($I$3*AU$13)^2)+(($I$4*$A15)^2))/1000 -> 46.04345773 | AV15: =SQRT((($I$3*AV$13)^2)+(($I$4*$A15)^2))/1000 -> 47.04253395 | AW15: =SQRT((($I$3*AW$13)^2)+(($I$4*$A15)^2))/1000 -> 48.0416486 | AX15: =SQRT((($I$3*AX$13)^2)+(($I$4*$A15)^2))/1000 -> 49.04079934 | AY15: =SQRT((($I$3*AY$13)^2)+(($I$4*$A15)^2))/1000 -> 50.03998401 | AZ15: =SQRT((($I$3*AZ$13)^2)+(($I$4*$A15)^2))/1000 -> 51.03920062 | BA15: =SQRT((($I$3*BA$13)^2)+(($I$4*$A15)^2))/1000 -> 52.03844733 | BB15: =SQRT((($I$3*BB$13)^2)+(($I$4*$A15)^2))/1000 -> 53.03772242 | BC15: =SQRT((($I$3*BC$13)^2)+(($I$4*$A15)^2))/1000 -> 54.03702434 | BD15: =SQRT((($I$3*BD$13)^2)+(($I$4*$A15)^2))/1000 -> 55.03635162 | BE15: =SQRT((($I$3*BE$13)^2)+(($I$4*$A15)^2))/1000 -> 56.0357029 | BF15: =SQRT((($I$3*BF$13)^2)+(($I$4*$A15)^2))/1000 -> 57.03507693 | BG15: =SQRT((($I$3*BG$13)^2)+(($I$4*$A15)^2))/1000 -> 58.03447251 | BH15: =SQRT((($I$3*BH$13)^2)+(($I$4*$A15)^2))/1000 -> 59.03388857 | BI15: =SQRT((($I$3*BI$13)^2)+(($I$4*$A15)^2))/1000 -> 60.03332408 | BJ15: =SQRT((($I$3*BJ$13)^2)+(($I$4*$A15)^2))/1000 -> 61.03277808 | BK15: =SQRT((($I$3*BK$13)^2)+(($I$4*$A15)^2))/1000 -> 62.03224968 | BL15: =SQRT((($I$3*BL$13)^2)+(($I$4*$A15)^2))/1000 -> 63.03173804 | BM15: =SQRT((($I$3*BM$13)^2)+(($I$4*$A15)^2))/1000 -> 64.03124237 | BN15: =SQRT((($I$3*BN$13)^2)+(($I$4*$A15)^2))/1000 -> 65.03076195 | BO15: =SQRT((($I$3*BO$13)^2)+(($I$4*$A15)^2))/1000 -> 66.03029608 | BP15: =SQRT((($I$3*BP$13)^2)+(($I$4*$A15)^2))/1000 -> 67.0298441 | BQ15: =SQRT((($I$3*BQ$13)^2)+(($I$4*$A15)^2))/1000 -> 68.02940541 | BR15: =SQRT((($I$3*BR$13)^2)+(($I$4*$A15)^2))/1000 -> 69.02897942 | BS15: =SQRT((($I$3*BS$13)^2)+(($I$4*$A15)^2))/1000 -> 70.0285656 | BT15: =SQRT((($I$3*BT$13)^2)+(($I$4*$A15)^2))/1000 -> 71.02816343 | BU15: =SQRT((($I$3*BU$13)^2)+(($I$4*$A15)^2))/1000 -> 72.02777242 | BV15: =SQRT((($I$3*BV$13)^2)+(($I$4*$A15)^2))/1000 -> 73.02739212 | BW15: =SQRT((($I$3*BW$13)^2)+(($I$4*$A15)^2))/1000 -> 74.02702209 | BX15: =SQRT((($I$3*BX$13)^2)+(($I$4*$A15)^2))/1000 -> 75.02666193 | BY15: =SQRT((($I$3*BY$13)^2)+(($I$4*$A15)^2))/1000 -> 76.02631123 | BZ15: =SQRT((($I$3*BZ$13)^2)+(($I$4*$A15)^2))/1000 -> 77.02596965 | CA15: =SQRT((($I$3*CA$13)^2)+(($I$4*$A15)^2))/1000 -> 78.02563681 | CB15: =SQRT((($I$3*CB$13)^2)+(($I$4*$A15)^2))/1000 -> 79.0253124 | CC15: =SQRT((($I$3*CC$13)^2)+(($I$4*$A15)^2))/1000 -> 80.02499609 | CD15: =SQRT((($I$3*CD$13)^2)+(($I$4*$A15)^2))/1000 -> 81.0246876 | CE15: =SQRT((($I$3*CE$13)^2)+(($I$4*$A15)^2))/1000 -> 82.02438662 | CF15: =SQRT((($I$3*CF$13)^2)+(($I$4*$A15)^2))/1000 -> 83.02409289 | CG15: =SQRT((($I$3*CG$13)^2)+(($I$4*$A15)^2))/1000 -> 84.02380615 | CH15: =SQRT((($I$3*CH$13)^2)+(($I$4*$A15)^2))/1000 -> 85.02352616 | CI15: =SQRT((($I$3*CI$13)^2)+(($I$4*$A15)^2))/1000 -> 86.02325267 | CJ15: =SQRT((($I$3*CJ$13)^2)+(($I$4*$A15)^2))/1000 -> 87.02298547 | CK15: =SQRT((($I$3*CK$13)^2)+(($I$4*$A15)^2))/1000 -> 88.02272434 | CL15: =SQRT((($I$3*CL$13)^2)+(($I$4*$A15)^2))/1000 -> 89.02246907 | CM15: =SQRT((($I$3*CM$13)^2)+(($I$4*$A15)^2))/1000 -> 90.02221948 | CN15: =SQRT((($I$3*CN$13)^2)+(($I$4*$A15)^2))/1000 -> 91.02197537 | CO15: =SQRT((($I$3*CO$13)^2)+(($I$4*$A15)^2))/1000 -> 92.02173656 | CP15: =SQRT((($I$3*CP$13)^2)+(($I$4*$A15)^2))/1000 -> 93.02150289 | CQ15: =SQRT((($I$3*CQ$13)^2)+(($I$4*$A15)^2))/1000 -> 94.02127419 | CR15: =SQRT((($I$3*CR$13)^2)+(($I$4*$A15)^2))/1000 -> 95.0210503 | CS15: =SQRT((($I$3*CS$13)^2)+(($I$4*$A15)^2))/1000 -> 96.02083107 | CT15: =SQRT((($I$3*CT$13)^2)+(($I$4*$A15)^2))/1000 -> 97.02061637 | CU15: =SQRT((($I$3*CU$13)^2)+(($I$4*$A15)^2))/1000 -> 98.02040604 | CV15: =SQRT((($I$3*CV$13)^2)+(($I$4*$A15)^2))/1000 -> 99.02019996 | CW15: =SQRT((($I$3*CW$13)^2)+(($I$4*$A15)^2))/1000 -> 100.019998 | CX15: =SQRT((($I$3*CX$13)^2)+(($I$4*$A15)^2))/1000 -> 101.0198 | CY15: =SQRT((($I$3*CY$13)^2)+(($I$4*$A15)^2))/1000 -> 102.019606 | CZ15: =SQRT((($I$3*CZ$13)^2)+(($I$4*$A15)^2))/1000 -> 103.0194156 | DA15: =SQRT((($I$3*DA$13)^2)+(($I$4*$A15)^2))/1000 -> 104.019229 | DB15: =SQRT((($I$3*DB$13)^2)+(($I$4*$A15)^2))/1000 -> 105.0190459 | DC15: =SQRT((($I$3*DC$13)^2)+(($I$4*$A15)^2))/1000 -> 106.0188662 | DD15: =SQRT((($I$3*DD$13)^2)+(($I$4*$A15)^2))/1000 -> 107.01869 | DE15: =SQRT((($I$3*DE$13)^2)+(($I$4*$A15)^2))/1000 -> 108.0185169 | DF15: =SQRT((($I$3*DF$13)^2)+(($I$4*$A15)^2))/1000 -> 109.0183471 | DG15: =SQRT((($I$3*DG$13)^2)+(($I$4*$A15)^2))/1000 -> 110.0181803 | DH15: =SQRT((($I$3*DH$13)^2)+(($I$4*$A15)^2))/1000 -> 111.0180166 | DI15: =SQRT((($I$3*DI$13)^2)+(($I$4*$A15)^2))/1000 -> 112.0178557 | DJ15: =SQRT((($I$3*DJ$13)^2)+(($I$4*$A15)^2))/1000 -> 113.0176977 | DK15: =SQRT((($I$3*DK$13)^2)+(($I$4*$A15)^2))/1000 -> 114.0175425 | DL15: =SQRT((($I$3*DL$13)^2)+(($I$4*$A15)^2))/1000 -> 115.01739 | DM15: =SQRT((($I$3*DM$13)^2)+(($I$4*$A15)^2))/1000 -> 116.0172401 | DN15: =SQRT((($I$3*DN$13)^2)+(($I$4*$A15)^2))/1000 -> 117.0170928 | DO15: =SQRT((($I$3*DO$13)^2)+(($I$4*$A15)^2))/1000 -> 118.0169479 | DP15: =SQRT((($I$3*DP$13)^2)+(($I$4*$A15)^2))/1000 -> 119.0168055 | DQ15: =SQRT((($I$3*DQ$13)^2)+(($I$4*$A15)^2))/1000 -> 120.0166655 | DR15: =SQRT((($I$3*DR$13)^2)+(($I$4*$A15)^2))/1000 -> 121.0165278 | DS15: =SQRT((($I$3*DS$13)^2)+(($I$4*$A15)^2))/1000 -> 122.0163923 | DT15: =SQRT((($I$3*DT$13)^2)+(($I$4*$A15)^2))/1000 -> 123.0162591 | DU15: =SQRT((($I$3*DU$13)^2)+(($I$4*$A15)^2))/1000 -> 124.016128 | DV15: =SQRT((($I$3*DV$13)^2)+(($I$4*$A15)^2))/1000 -> 125.015999 | DW15: =SQRT((($I$3*DW$13)^2)+(($I$4*$A15)^2))/1000 -> 126.015872 | DX15: =SQRT((($I$3*DX$13)^2)+(($I$4*$A15)^2))/1000 -> 127.0157471 | DY15: =SQRT((($I$3*DY$13)^2)+(($I$4*$A15)^2))/1000 -> 128.015624 | DZ15: =SQRT((($I$3*DZ$13)^2)+(($I$4*$A15)^2))/1000 -> 129.0155029 | EA15: =SQRT((($I$3*EA$13)^2)+(($I$4*$A15)^2))/1000 -> 130.0153837 | EB15: =SQRT((($I$3*EB$13)^2)+(($I$4*$A15)^2))/1000 -> 131.0152663 | EC15: =SQRT((($I$3*EC$13)^2)+(($I$4*$A15)^2))/1000 -> 132.0151506 | ED15: =SQRT((($I$3*ED$13)^2)+(($I$4*$A15)^2))/1000 -> 133.0150367 | EE15: =SQRT((($I$3*EE$13)^2)+(($I$4*$A15)^2))/1000 -> 134.0149245 | EF15: =SQRT((($I$3*EF$13)^2)+(($I$4*$A15)^2))/1000 -> 135.014814 | EG15: =SQRT((($I$3*EG$13)^2)+(($I$4*$A15)^2))/1000 -> 136.0147051 | EH15: =SQRT((($I$3*EH$13)^2)+(($I$4*$A15)^2))/1000 -> 137.0145978 | EI15: =SQRT((($I$3*EI$13)^2)+(($I$4*$A15)^2))/1000 -> 138.014492 | EJ15: =SQRT((($I$3*EJ$13)^2)+(($I$4*$A15)^2))/1000 -> 139.0143877 | EK15: =SQRT((($I$3*EK$13)^2)+(($I$4*$A15)^2))/1000 -> 140.014285 | EL15: =SQRT((($I$3*EL$13)^2)+(($I$4*$A15)^2))/1000 -> 141.0141837 | EM15: =SQRT((($I$3*EM$13)^2)+(($I$4*$A15)^2))/1000 -> 142.0140838 | EN15: =SQRT((($I$3*EN$13)^2)+(($I$4*$A15)^2))/1000 -> 143.0139853 | EO15: =SQRT((($I$3*EO$13)^2)+(($I$4*$A15)^2))/1000 -> 144.0138882 | EP15: =SQRT((($I$3*EP$13)^2)+(($I$4*$A15)^2))/1000 -> 145.0137924 | EQ15: =SQRT((($I$3*EQ$13)^2)+(($I$4*$A15)^2))/1000 -> 146.013698 | ER15: =SQRT((($I$3*ER$13)^2)+(($I$4*$A15)^2))/1000 -> 147.0136048 | ES15: =SQRT((($I$3*ES$13)^2)+(($I$4*$A15)^2))/1000 -> 148.0135129 | ET15: =SQRT((($I$3*ET$13)^2)+(($I$4*$A15)^2))/1000 -> 149.0134222 | EU15: =SQRT((($I$3*EU$13)^2)+(($I$4*$A15)^2))/1000 -> 150.0133327 | EV15: =SQRT((($I$3*EV$13)^2)+(($I$4*$A15)^2))/1000 -> 151.0132445 | EW15: =SQRT((($I$3*EW$13)^2)+(($I$4*$A15)^2))/1000 -> 152.0131573 | EX15: =SQRT((($I$3*EX$13)^2)+(($I$4*$A15)^2))/1000 -> 153.0130713 | EY15: =SQRT((($I$3*EY$13)^2)+(($I$4*$A15)^2))/1000 -> 154.0129865 | EZ15: =SQRT((($I$3*EZ$13)^2)+(($I$4*$A15)^2))/1000 -> 155.0129027 | FA15: =SQRT((($I$3*FA$13)^2)+(($I$4*$A15)^2))/1000 -> 156.01282 | FB15: =SQRT((($I$3*FB$13)^2)+(($I$4*$A15)^2))/1000 -> 157.0127383 | FC15: =SQRT((($I$3*FC$13)^2)+(($I$4*$A15)^2))/1000 -> 158.0126577 | FD15: =SQRT((($I$3*FD$13)^2)+(($I$4*$A15)^2))/1000 -> 159.0125781 | FE15: =SQRT((($I$3*FE$13)^2)+(($I$4*$A15)^2))/1000 -> 160.0124995 | FF15: =SQRT((($I$3*FF$13)^2)+(($I$4*$A15)^2))/1000 -> 161.0124219 | FG15: =SQRT((($I$3*FG$13)^2)+(($I$4*$A15)^2))/1000 -> 162.0123452 | FH15: =SQRT((($I$3*FH$13)^2)+(($I$4*$A15)^2))/1000 -> 163.0122695 | FI15: =SQRT((($I$3*FI$13)^2)+(($I$4*$A15)^2))/1000 -> 164.0121947 | FJ15: =SQRT((($I$3*FJ$13)^2)+(($I$4*$A15)^2))/1000 -> 165.0121208 | FK15: =SQRT((($I$3*FK$13)^2)+(($I$4*$A15)^2))/1000 -> 166.0120478 | FL15: =SQRT((($I$3*FL$13)^2)+(($I$4*$A15)^2))/1000 -> 167.0119756 | FM15: =SQRT((($I$3*FM$13)^2)+(($I$4*$A15)^2))/1000 -> 168.0119043 | FN15: =SQRT((($I$3*FN$13)^2)+(($I$4*$A15)^2))/1000 -> 169.0118339 | FO15: =SQRT((($I$3*FO$13)^2)+(($I$4*$A15)^2))/1000 -> 170.0117643 | FP15: =SQRT((($I$3*FP$13)^2)+(($I$4*$A15)^2))/1000 -> 171.0116955 | FQ15: =SQRT((($I$3*FQ$13)^2)+(($I$4*$A15)^2))/1000 -> 172.0116275 | FR15: =SQRT((($I$3*FR$13)^2)+(($I$4*$A15)^2))/1000 -> 173.0115603 | FS15: =SQRT((($I$3*FS$13)^2)+(($I$4*$A15)^2))/1000 -> 174.0114939 | FT15: =SQRT((($I$3*FT$13)^2)+(($I$4*$A15)^2))/1000 -> 175.0114282 | FU15: =SQRT((($I$3*FU$13)^2)+(($I$4*$A15)^2))/1000 -> 176.0113633 | FV15: =SQRT((($I$3*FV$13)^2)+(($I$4*$A15)^2))/1000 -> 177.0112991 | FW15: =SQRT((($I$3*FW$13)^2)+(($I$4*$A15)^2))/1000 -> 178.0112356 | FX15: =SQRT((($I$3*FX$13)^2)+(($I$4*$A15)^2))/1000 -> 179.0111728 | FY15: =SQRT((($I$3*FY$13)^2)+(($I$4*$A15)^2))/1000 -> 180.0111108 | FZ15: =SQRT((($I$3*FZ$13)^2)+(($I$4*$A15)^2))/1000 -> 181.0110494 | GA15: =SQRT((($I$3*GA$13)^2)+(($I$4*$A15)^2))/1000 -> 182.0109887 | GB15: =SQRT((($I$3*GB$13)^2)+(($I$4*$A15)^2))/1000 -> 183.0109286 | GC15: =SQRT((($I$3*GC$13)^2)+(($I$4*$A15)^2))/1000 -> 184.0108692 | GD15: =SQRT((($I$3*GD$13)^2)+(($I$4*$A15)^2))/1000 -> 185.0108105 | GE15: =SQRT((($I$3*GE$13)^2)+(($I$4*$A15)^2))/1000 -> 186.0107524 | GF15: =SQRT((($I$3*GF$13)^2)+(($I$4*$A15)^2))/1000 -> 187.0106949 | GG15: =SQRT((($I$3*GG$13)^2)+(($I$4*$A15)^2))/1000 -> 188.010638 | GH15: =SQRT((($I$3*GH$13)^2)+(($I$4*$A15)^2))/1000 -> 189.0105817 | GI15: =SQRT((($I$3*GI$13)^2)+(($I$4*$A15)^2))/1000 -> 190.010526 | GJ15: =SQRT((($I$3*GJ$13)^2)+(($I$4*$A15)^2))/1000 -> 191.0104709 | GK15: =SQRT((($I$3*GK$13)^2)+(($I$4*$A15)^2))/1000 -> 192.0104164 | GL15: =SQRT((($I$3*GL$13)^2)+(($I$4*$A15)^2))/1000 -> 193.0103624 | GM15: =SQRT((($I$3*GM$13)^2)+(($I$4*$A15)^2))/1000 -> 194.010309 | GN15: =SQRT((($I$3*GN$13)^2)+(($I$4*$A15)^2))/1000 -> 195.0102561 | GO15: =SQRT((($I$3*GO$13)^2)+(($I$4*$A15)^2))/1000 -> 196.0102038 | GP15: =SQRT((($I$3*GP$13)^2)+(($I$4*$A15)^2))/1000 -> 197.010152 | GQ15: =SQRT((($I$3*GQ$13)^2)+(($I$4*$A15)^2))/1000 -> 198.0101008 | GR15: =SQRT((($I$3*GR$13)^2)+(($I$4*$A15)^2))/1000 -> 199.01005 | GS15: =SQRT((($I$3*GS$13)^2)+(($I$4*$A15)^2))/1000 -> 200.0099998 | GT15: =SQRT((($I$3*GT$13)^2)+(($I$4*$A15)^2))/1000 -> 201.00995 | GU15: =SQRT((($I$3*GU$13)^2)+(($I$4*$A15)^2))/1000 -> 202.0099007 | GV15: =SQRT((($I$3*GV$13)^2)+(($I$4*$A15)^2))/1000 -> 203.009852 | GW15: =SQRT((($I$3*GW$13)^2)+(($I$4*$A15)^2))/1000 -> 204.0098037 | GX15: =SQRT((($I$3*GX$13)^2)+(($I$4*$A15)^2))/1000 -> 205.0097559 | GY15: =SQRT((($I$3*GY$13)^2)+(($I$4*$A15)^2))/1000 -> 206.0097085 | GZ15: =SQRT((($I$3*GZ$13)^2)+(($I$4*$A15)^2))/1000 -> 207.0096616 | HA15: =SQRT((($I$3*HA$13)^2)+(($I$4*$A15)^2))/1000 -> 208.0096152 | HB15: =SQRT((($I$3*HB$13)^2)+(($I$4*$A15)^2))/1000 -> 209.0095692 | HC15: =SQRT((($I$3*HC$13)^2)+(($I$4*$A15)^2))/1000 -> 210.0095236 | HD15: =SQRT((($I$3*HD$13)^2)+(($I$4*$A15)^2))/1000 -> 211.0094785 | HE15: =SQRT((($I$3*HE$13)^2)+(($I$4*$A15)^2))/1000 -> 212.0094338 | HF15: =SQRT((($I$3*HF$13)^2)+(($I$4*$A15)^2))/1000 -> 213.0093895 | HG15: =SQRT((($I$3*HG$13)^2)+(($I$4*$A15)^2))/1000 -> 214.0093456 | HH15: =SQRT((($I$3*HH$13)^2)+(($I$4*$A15)^2))/1000 -> 215.0093021 | HI15: =SQRT((($I$3*HI$13)^2)+(($I$4*$A15)^2))/1000 -> 216.0092591 | HJ15: =SQRT((($I$3*HJ$13)^2)+(($I$4*$A15)^2))/1000 -> 217.0092164 | HK15: =SQRT((($I$3*HK$13)^2)+(($I$4*$A15)^2))/1000 -> 218.0091741 | HL15: =SQRT((($I$3*HL$13)^2)+(($I$4*$A15)^2))/1000 -> 219.0091322 | HM15: =SQRT((($I$3*HM$13)^2)+(($I$4*$A15)^2))/1000 -> 220.0090907 | HN15: =SQRT((($I$3*HN$13)^2)+(($I$4*$A15)^2))/1000 -> 221.0090496 | HO15: =SQRT((($I$3*HO$13)^2)+(($I$4*$A15)^2))/1000 -> 222.0090088 | HP15: =SQRT((($I$3*HP$13)^2)+(($I$4*$A15)^2))/1000 -> 223.0089684 | HQ15: =SQRT((($I$3*HQ$13)^2)+(($I$4*$A15)^2))/1000 -> 224.0089284 | HR15: =SQRT((($I$3*HR$13)^2)+(($I$4*$A15)^2))/1000 -> 225.0088887 | HS15: =SQRT((($I$3*HS$13)^2)+(($I$4*$A15)^2))/1000 -> 226.0088494 | HT15: =SQRT((($I$3*HT$13)^2)+(($I$4*$A15)^2))/1000 -> 227.0088104 | HU15: =SQRT((($I$3*HU$13)^2)+(($I$4*$A15)^2))/1000 -> 228.0087718 | HV15: =SQRT((($I$3*HV$13)^2)+(($I$4*$A15)^2))/1000 -> 229.0087335 | HW15: =SQRT((($I$3*HW$13)^2)+(($I$4*$A15)^2))/1000 -> 230.0086955 | HX15: =SQRT((($I$3*HX$13)^2)+(($I$4*$A15)^2))/1000 -> 231.0086578 | HY15: =SQRT((($I$3*HY$13)^2)+(($I$4*$A15)^2))/1000 -> 232.0086205 | HZ15: =SQRT((($I$3*HZ$13)^2)+(($I$4*$A15)^2))/1000 -> 233.0085835 | IA15: =SQRT((($I$3*IA$13)^2)+(($I$4*$A15)^2))/1000 -> 234.0085469 | IB15: =SQRT((($I$3*IB$13)^2)+(($I$4*$A15)^2))/1000 -> 235.0085105 | IC15: =SQRT((($I$3*IC$13)^2)+(($I$4*$A15)^2))/1000 -> 236.0084744 | ID15: =SQRT((($I$3*ID$13)^2)+(($I$4*$A15)^2))/1000 -> 237.0084387 | IE15: =SQRT((($I$3*IE$13)^2)+(($I$4*$A15)^2))/1000 -> 238.0084032 | IF15: =SQRT((($I$3*IF$13)^2)+(($I$4*$A15)^2))/1000 -> 239.0083681 | IG15: =SQRT((($I$3*IG$13)^2)+(($I$4*$A15)^2))/1000 -> 240.0083332 | IH15: =SQRT((($I$3*IH$13)^2)+(($I$4*$A15)^2))/1000 -> 241.0082986 | II15: =SQRT((($I$3*II$13)^2)+(($I$4*$A15)^2))/1000 -> 242.0082643 | IJ15: =SQRT((($I$3*IJ$13)^2)+(($I$4*$A15)^2))/1000 -> 243.0082303 | IK15: =SQRT((($I$3*IK$13)^2)+(($I$4*$A15)^2))/1000 -> 244.0081966 | IL15: =SQRT((($I$3*IL$13)^2)+(($I$4*$A15)^2))/1000 -> 245.0081631 | IM15: =SQRT((($I$3*IM$13)^2)+(($I$4*$A15)^2))/1000 -> 246.0081299 | IN15: =SQRT((($I$3*IN$13)^2)+(($I$4*$A15)^2))/1000 -> 247.008097 | IO15: =SQRT((($I$3*IO$13)^2)+(($I$4*$A15)^2))/1000 -> 248.0080644 | IP15: =SQRT((($I$3*IP$13)^2)+(($I$4*$A15)^2))/1000 -> 249.008032 | IQ15: =SQRT((($I$3*IQ$13)^2)+(($I$4*$A15)^2))/1000 -> 250.0079999 | IR15: =SQRT((($I$3*IR$13)^2)+(($I$4*$A15)^2))/1000 -> 251.007968 | IS15: =SQRT((($I$3*IS$13)^2)+(($I$4*$A15)^2))/1000 -> 252.0079364 | IT15: =SQRT((($I$3*IT$13)^2)+(($I$4*$A15)^2))/1000 -> 253.007905 | IU15: =SQRT((($I$3*IU$13)^2)+(($I$4*$A15)^2))/1000 -> 254.0078739 | IV15: =SQRT((($I$3*IV$13)^2)+(($I$4*$A15)^2))/1000 -> 255.007843 | IW15: =SQRT((($I$3*IW$13)^2)+(($I$4*$A15)^2))/1000 -> 256.0078124 | IX15: =SQRT((($I$3*IX$13)^2)+(($I$4*$A15)^2))/1000 -> 257.007782 | IY15: =SQRT((($I$3*IY$13)^2)+(($I$4*$A15)^2))/1000 -> 258.0077518 | IZ15: =SQRT((($I$3*IZ$13)^2)+(($I$4*$A15)^2))/1000 -> 259.0077219 | JA15: =SQRT((($I$3*JA$13)^2)+(($I$4*$A15)^2))/1000 -> 260.0076922 | JB15: =SQRT((($I$3*JB$13)^2)+(($I$4*$A15)^2))/1000 -> 261.0076627 | JC15: =SQRT((($I$3*JC$13)^2)+(($I$4*$A15)^2))/1000 -> 262.0076335 | JD15: =SQRT((($I$3*JD$13)^2)+(($I$4*$A15)^2))/1000 -> 263.0076045 | JE15: =SQRT((($I$3*JE$13)^2)+(($I$4*$A15)^2))/1000 -> 264.0075756 | JF15: =SQRT((($I$3*JF$13)^2)+(($I$4*$A15)^2))/1000 -> 265.0075471 | JG15: =SQRT((($I$3*JG$13)^2)+(($I$4*$A15)^2))/1000 -> 266.0075187 | JH15: =SQRT((($I$3*JH$13)^2)+(($I$4*$A15)^2))/1000 -> 267.0074905 | JI15: =SQRT((($I$3*JI$13)^2)+(($I$4*$A15)^2))/1000 -> 268.0074626 | JJ15: =SQRT((($I$3*JJ$13)^2)+(($I$4*$A15)^2))/1000 -> 269.0074348 | JK15: =SQRT((($I$3*JK$13)^2)+(($I$4*$A15)^2))/1000 -> 270.0074073 | JL15: =SQRT((($I$3*JL$13)^2)+(($I$4*$A15)^2))/1000 -> 271.00738 | JM15: =SQRT((($I$3*JM$13)^2)+(($I$4*$A15)^2))/1000 -> 272.0073528 | JN15: =SQRT((($I$3*JN$13)^2)+(($I$4*$A15)^2))/1000 -> 273.0073259 | JO15: =SQRT((($I$3*JO$13)^2)+(($I$4*$A15)^2))/1000 -> 274.0072992 | JP15: =SQRT((($I$3*JP$13)^2)+(($I$4*$A15)^2))/1000 -> 275.0072726 | JQ15: =SQRT((($I$3*JQ$13)^2)+(($I$4*$A15)^2))/1000 -> 276.0072463 | JR15: =SQRT((($I$3*JR$13)^2)+(($I$4*$A15)^2))/1000 -> 277.0072201 | JS15: =SQRT((($I$3*JS$13)^2)+(($I$4*$A15)^2))/1000 -> 278.0071942 | JT15: =SQRT((($I$3*JT$13)^2)+(($I$4*$A15)^2))/1000 -> 279.0071684 | JU15: =SQRT((($I$3*JU$13)^2)+(($I$4*$A15)^2))/1000 -> 280.0071428 | JV15: =SQRT((($I$3*JV$13)^2)+(($I$4*$A15)^2))/1000 -> 281.0071173 | JW15: =SQRT((($I$3*JW$13)^2)+(($I$4*$A15)^2))/1000 -> 282.0070921 | JX15: =SQRT((($I$3*JX$13)^2)+(($I$4*$A15)^2))/1000 -> 283.007067 | JY15: =SQRT((($I$3*JY$13)^2)+(($I$4*$A15)^2))/1000 -> 284.0070422 | JZ15: =SQRT((($I$3*JZ$13)^2)+(($I$4*$A15)^2))/1000 -> 285.0070175 | KA15: =SQRT((($I$3*KA$13)^2)+(($I$4*$A15)^2))/1000 -> 286.0069929 | KB15: =SQRT((($I$3*KB$13)^2)+(($I$4*$A15)^2))/1000 -> 287.0069686 | KC15: =SQRT((($I$3*KC$13)^2)+(($I$4*$A15)^2))/1000 -> 288.0069444 | KD15: =SQRT((($I$3*KD$13)^2)+(($I$4*$A15)^2))/1000 -> 289.0069203 | KE15: =SQRT((($I$3*KE$13)^2)+(($I$4*$A15)^2))/1000 -> 290.0068965 | KF15: =SQRT((($I$3*KF$13)^2)+(($I$4*$A15)^2))/1000 -> 291.0068728 | KG15: =SQRT((($I$3*KG$13)^2)+(($I$4*$A15)^2))/1000 -> 292.0068492 | KH15: =SQRT((($I$3*KH$13)^2)+(($I$4*$A15)^2))/1000 -> 293.0068259 | KI15: =SQRT((($I$3*KI$13)^2)+(($I$4*$A15)^2))/1000 -> 294.0068026 | KJ15: =SQRT((($I$3*KJ$13)^2)+(($I$4*$A15)^2))/1000 -> 295.0067796 | KK15: =SQRT((($I$3*KK$13)^2)+(($I$4*$A15)^2))/1000 -> 296.0067567 | KL15: =SQRT((($I$3*KL$13)^2)+(($I$4*$A15)^2))/1000 -> 297.0067339 | KM15: =SQRT((($I$3*KM$13)^2)+(($I$4*$A15)^2))/1000 -> 298.0067113 | KN15: =SQRT((($I$3*KN$13)^2)+(($I$4*$A15)^2))/1000 -> 299.0066889 | KO15: =SQRT((($I$3*KO$13)^2)+(($I$4*$A15)^2))/1000 -> 300.0066666 | KP15: =SQRT((($I$3*KP$13)^2)+(($I$4*$A15)^2))/1000 -> 301.0066444 | KQ15: =SQRT((($I$3*KQ$13)^2)+(($I$4*$A15)^2))/1000 -> 302.0066224 | KR15: =SQRT((($I$3*KR$13)^2)+(($I$4*$A15)^2))/1000 -> 303.0066006 | KS15: =SQRT((($I$3*KS$13)^2)+(($I$4*$A15)^2))/1000 -> 304.0065789 | KT15: =SQRT((($I$3*KT$13)^2)+(($I$4*$A15)^2))/1000 -> 305.0065573 | KU15: =SQRT((($I$3*KU$13)^2)+(($I$4*$A15)^2))/1000 -> 306.0065359 | KV15: =SQRT((($I$3*KV$13)^2)+(($I$4*$A15)^2))/1000 -> 307.0065146 | KW15: =SQRT((($I$3*KW$13)^2)+(($I$4*$A15)^2))/1000 -> 308.0064934 | KX15: =SQRT((($I$3*KX$13)^2)+(($I$4*$A15)^2))/1000 -> 309.0064724 | KY15: =SQRT((($I$3*KY$13)^2)+(($I$4*$A15)^2))/1000 -> 310.0064515 | KZ15: =SQRT((($I$3*KZ$13)^2)+(($I$4*$A15)^2))/1000 -> 311.0064308 | LA15: =SQRT((($I$3*LA$13)^2)+(($I$4*$A15)^2))/1000 -> 312.0064102 | LB15: =SQRT((($I$3*LB$13)^2)+(($I$4*$A15)^2))/1000 -> 313.0063897 | LC15: =SQRT((($I$3*LC$13)^2)+(($I$4*$A15)^2))/1000 -> 314.0063694 | LD15: =SQRT((($I$3*LD$13)^2)+(($I$4*$A15)^2))/1000 -> 315.0063491 | LE15: =SQRT((($I$3*LE$13)^2)+(($I$4*$A15)^2))/1000 -> 316.0063291 | LF15: =SQRT((($I$3*LF$13)^2)+(($I$4*$A15)^2))/1000 -> 317.0063091 | LG15: =SQRT((($I$3*LG$13)^2)+(($I$4*$A15)^2))/1000 -> 318.0062892 | LH15: =SQRT((($I$3*LH$13)^2)+(($I$4*$A15)^2))/1000 -> 319.0062695 | LI15: =SQRT((($I$3*LI$13)^2)+(($I$4*$A15)^2))/1000 -> 320.0062499 | LJ15: =SQRT((($I$3*LJ$13)^2)+(($I$4*$A15)^2))/1000 -> 321.0062305 | LK15: =SQRT((($I$3*LK$13)^2)+(($I$4*$A15)^2))/1000 -> 322.0062111 | LL15: =SQRT((($I$3*LL$13)^2)+(($I$4*$A15)^2))/1000 -> 323.0061919 | LM15: =SQRT((($I$3*LM$13)^2)+(($I$4*$A15)^2))/1000 -> 324.0061728 | LN15: =SQRT((($I$3*LN$13)^2)+(($I$4*$A15)^2))/1000 -> 325.0061538 | LO15: =SQRT((($I$3*LO$13)^2)+(($I$4*$A15)^2))/1000 -> 326.0061349 | LP15: =SQRT((($I$3*LP$13)^2)+(($I$4*$A15)^2))/1000 -> 327.0061162 | LQ15: =SQRT((($I$3*LQ$13)^2)+(($I$4*$A15)^2))/1000 -> 328.0060975 | LR15: =SQRT((($I$3*LR$13)^2)+(($I$4*$A15)^2))/1000 -> 329.006079 | LS15: =SQRT((($I$3*LS$13)^2)+(($I$4*$A15)^2))/1000 -> 330.0060606 | LT15: =SQRT((($I$3*LT$13)^2)+(($I$4*$A15)^2))/1000 -> 331.0060422 | LU15: =SQRT((($I$3*LU$13)^2)+(($I$4*$A15)^2))/1000 -> 332.006024 | LV15: =SQRT((($I$3*LV$13)^2)+(($I$4*$A15)^2))/1000 -> 333.006006 | LW15: =SQRT((($I$3*LW$13)^2)+(($I$4*$A15)^2))/1000 -> 334.005988 | LX15: =SQRT((($I$3*LX$13)^2)+(($I$4*$A15)^2))/1000 -> 335.0059701 | LY15: =SQRT((($I$3*LY$13)^2)+(($I$4*$A15)^2))/1000 -> 336.0059523 | LZ15: =SQRT((($I$3*LZ$13)^2)+(($I$4*$A15)^2))/1000 -> 337.0059347 | MA15: =SQRT((($I$3*MA$13)^2)+(($I$4*$A15)^2))/1000 -> 338.0059171 | MB15: =SQRT((($I$3*MB$13)^2)+(($I$4*$A15)^2))/1000 -> 339.0058997 | MC15: =SQRT((($I$3*MC$13)^2)+(($I$4*$A15)^2))/1000 -> 340.0058823 | MD15: =SQRT((($I$3*MD$13)^2)+(($I$4*$A15)^2))/1000 -> 341.0058651 | ME15: =SQRT((($I$3*ME$13)^2)+(($I$4*$A15)^2))/1000 -> 342.0058479 | MF15: =SQRT((($I$3*MF$13)^2)+(($I$4*$A15)^2))/1000 -> 343.0058309 | MG15: =SQRT((($I$3*MG$13)^2)+(($I$4*$A15)^2))/1000 -> 344.0058139 | MH15: =SQRT((($I$3*MH$13)^2)+(($I$4*$A15)^2))/1000 -> 345.0057971 | MI15: =SQRT((($I$3*MI$13)^2)+(($I$4*$A15)^2))/1000 -> 346.0057803 | MJ15: =SQRT((($I$3*MJ$13)^2)+(($I$4*$A15)^2))/1000 -> 347.0057636 | MK15: =SQRT((($I$3*MK$13)^2)+(($I$4*$A15)^2))/1000 -> 348.0057471 | ML15: =SQRT((($I$3*ML$13)^2)+(($I$4*$A15)^2))/1000 -> 349.0057306 | MM15: =SQRT((($I$3*MM$13)^2)+(($I$4*$A15)^2))/1000 -> 350.0057142 | MN15: =SQRT((($I$3*MN$13)^2)+(($I$4*$A15)^2))/1000 -> 351.005698 | MO15: =SQRT((($I$3*MO$13)^2)+(($I$4*$A15)^2))/1000 -> 352.0056818 | MP15: =SQRT((($I$3*MP$13)^2)+(($I$4*$A15)^2))/1000 -> 353.0056657 | MQ15: =SQRT((($I$3*MQ$13)^2)+(($I$4*$A15)^2))/1000 -> 354.0056497 | MR15: =SQRT((($I$3*MR$13)^2)+(($I$4*$A15)^2))/1000 -> 355.0056338 | MS15: =SQRT((($I$3*MS$13)^2)+(($I$4*$A15)^2))/1000 -> 356.0056179 | MT15: =SQRT((($I$3*MT$13)^2)+(($I$4*$A15)^2))/1000 -> 357.0056022 | MU15: =SQRT((($I$3*MU$13)^2)+(($I$4*$A15)^2))/1000 -> 358.0055865 | MV15: =SQRT((($I$3*MV$13)^2)+(($I$4*$A15)^2))/1000 -> 359.005571 | MW15: =SQRT((($I$3*MW$13)^2)+(($I$4*$A15)^2))/1000 -> 360.0055555 | MX15: =SQRT((($I$3*MX$13)^2)+(($I$4*$A15)^2))/1000 -> 361.0055401 | MY15: =SQRT((($I$3*MY$13)^2)+(($I$4*$A15)^2))/1000 -> 362.0055248 | MZ15: =SQRT((($I$3*MZ$13)^2)+(($I$4*$A15)^2))/1000 -> 363.0055096 | NA15: =SQRT((($I$3*NA$13)^2)+(($I$4*$A15)^2))/1000 -> 364.0054945 | NB15: =SQRT((($I$3*NB$13)^2)+(($I$4*$A15)^2))/1000 -> 365.0054794 | NC15: =SQRT((($I$3*NC$13)^2)+(($I$4*$A15)^2))/1000 -> 366.0054644 | ND15: =SQRT((($I$3*ND$13)^2)+(($I$4*$A15)^2))/1000 -> 367.0054496 | NE15: =SQRT((($I$3*NE$13)^2)+(($I$4*$A15)^2))/1000 -> 368.0054347 | NF15: =SQRT((($I$3*NF$13)^2)+(($I$4*$A15)^2))/1000 -> 369.00542 | NG15: =SQRT((($I$3*NG$13)^2)+(($I$4*$A15)^2))/1000 -> 370.0054054 | NH15: =SQRT((($I$3*NH$13)^2)+(($I$4*$A15)^2))/1000 -> 371.0053908 | NI15: =SQRT((($I$3*NI$13)^2)+(($I$4*$A15)^2))/1000 -> 372.0053763 | NJ15: =SQRT((($I$3*NJ$13)^2)+(($I$4*$A15)^2))/1000 -> 373.0053619 | NK15: =SQRT((($I$3*NK$13)^2)+(($I$4*$A15)^2))/1000 -> 374.0053476 | NL15: =SQRT((($I$3*NL$13)^2)+(($I$4*$A15)^2))/1000 -> 375.0053333 | NM15: =SQRT((($I$3*NM$13)^2)+(($I$4*$A15)^2))/1000 -> 376.0053191 | NN15: =SQRT((($I$3*NN$13)^2)+(($I$4*$A15)^2))/1000 -> 377.005305 | NO15: =SQRT((($I$3*NO$13)^2)+(($I$4*$A15)^2))/1000 -> 378.005291 | NP15: =SQRT((($I$3*NP$13)^2)+(($I$4*$A15)^2))/1000 -> 379.005277 | NQ15: =SQRT((($I$3*NQ$13)^2)+(($I$4*$A15)^2))/1000 -> 380.0052631 | NR15: =SQRT((($I$3*NR$13)^2)+(($I$4*$A15)^2))/1000 -> 381.0052493 | NS15: =SQRT((($I$3*NS$13)^2)+(($I$4*$A15)^2))/1000 -> 382.0052356 | NT15: =SQRT((($I$3*NT$13)^2)+(($I$4*$A15)^2))/1000 -> 383.0052219 | NU15: =SQRT((($I$3*NU$13)^2)+(($I$4*$A15)^2))/1000 -> 384.0052083 | NV15: =SQRT((($I$3*NV$13)^2)+(($I$4*$A15)^2))/1000 -> 385.0051948 | NW15: =SQRT((($I$3*NW$13)^2)+(($I$4*$A15)^2))/1000 -> 386.0051813 | NX15: =SQRT((($I$3*NX$13)^2)+(($I$4*$A15)^2))/1000 -> 387.0051679 | NY15: =SQRT((($I$3*NY$13)^2)+(($I$4*$A15)^2))/1000 -> 388.0051546 | NZ15: =SQRT((($I$3*NZ$13)^2)+(($I$4*$A15)^2))/1000 -> 389.0051414 | OA15: =SQRT((($I$3*OA$13)^2)+(($I$4*$A15)^2))/1000 -> 390.0051282 | OB15: =SQRT((($I$3*OB$13)^2)+(($I$4*$A15)^2))/1000 -> 391.0051151 | OC15: =SQRT((($I$3*OC$13)^2)+(($I$4*$A15)^2))/1000 -> 392.005102 | OD15: =SQRT((($I$3*OD$13)^2)+(($I$4*$A15)^2))/1000 -> 393.005089 | OE15: =SQRT((($I$3*OE$13)^2)+(($I$4*$A15)^2))/1000 -> 394.0050761 | OF15: =SQRT((($I$3*OF$13)^2)+(($I$4*$A15)^2))/1000 -> 395.0050633 | OG15: =SQRT((($I$3*OG$13)^2)+(($I$4*$A15)^2))/1000 -> 396.0050505 | OH15: =SQRT((($I$3*OH$13)^2)+(($I$4*$A15)^2))/1000 -> 397.0050378 | OI15: =SQRT((($I$3*OI$13)^2)+(($I$4*$A15)^2))/1000 -> 398.0050251 | OJ15: =SQRT((($I$3*OJ$13)^2)+(($I$4*$A15)^2))/1000 -> 399.0050125 | OK15: =SQRT((($I$3*OK$13)^2)+(($I$4*$A15)^2))/1000 -> 400.005 | OL15: =SQRT((($I$3*OL$13)^2)+(($I$4*$A15)^2))/1000 -> 401.0049875 | OM15: =SQRT((($I$3*OM$13)^2)+(($I$4*$A15)^2))/1000 -> 402.0049751 | ON15: =SQRT((($I$3*ON$13)^2)+(($I$4*$A15)^2))/1000 -> 403.0049627 | OO15: =SQRT((($I$3*OO$13)^2)+(($I$4*$A15)^2))/1000 -> 404.0049505 | OP15: =SQRT((($I$3*OP$13)^2)+(($I$4*$A15)^2))/1000 -> 405.0049382 | OQ15: =SQRT((($I$3*OQ$13)^2)+(($I$4*$A15)^2))/1000 -> 406.0049261 | OR15: =SQRT((($I$3*OR$13)^2)+(($I$4*$A15)^2))/1000 -> 407.004914 | OS15: =SQRT((($I$3*OS$13)^2)+(($I$4*$A15)^2))/1000 -> 408.0049019 | OT15: =SQRT((($I$3*OT$13)^2)+(($I$4*$A15)^2))/1000 -> 409.0048899 | OU15: =SQRT((($I$3*OU$13)^2)+(($I$4*$A15)^2))/1000 -> 410.004878 | OV15: =SQRT((($I$3*OV$13)^2)+(($I$4*$A15)^2))/1000 -> 411.0048662 | OW15: =SQRT((($I$3*OW$13)^2)+(($I$4*$A15)^2))/1000 -> 412.0048543 | OX15: =SQRT((($I$3*OX$13)^2)+(($I$4*$A15)^2))/1000 -> 413.0048426 | OY15: =SQRT((($I$3*OY$13)^2)+(($I$4*$A15)^2))/1000 -> 414.0048309 | OZ15: =SQRT((($I$3*OZ$13)^2)+(($I$4*$A15)^2))/1000 -> 415.0048192 | PA15: =SQRT((($I$3*PA$13)^2)+(($I$4*$A15)^2))/1000 -> 416.0048077 | PB15: =SQRT((($I$3*PB$13)^2)+(($I$4*$A15)^2))/1000 -> 417.0047961 | PC15: =SQRT((($I$3*PC$13)^2)+(($I$4*$A15)^2))/1000 -> 418.0047847 | PD15: =SQRT((($I$3*PD$13)^2)+(($I$4*$A15)^2))/1000 -> 419.0047732 | PE15: =SQRT((($I$3*PE$13)^2)+(($I$4*$A15)^2))/1000 -> 420.0047619 | PF15: =SQRT((($I$3*PF$13)^2)+(($I$4*$A15)^2))/1000 -> 421.0047506 | PG15: =SQRT((($I$3*PG$13)^2)+(($I$4*$A15)^2))/1000 -> 422.0047393 | PH15: =SQRT((($I$3*PH$13)^2)+(($I$4*$A15)^2))/1000 -> 423.0047281 | PI15: =SQRT((($I$3*PI$13)^2)+(($I$4*$A15)^2))/1000 -> 424.004717 | PJ15: =SQRT((($I$3*PJ$13)^2)+(($I$4*$A15)^2))/1000 -> 425.0047059 | PK15: =SQRT((($I$3*PK$13)^2)+(($I$4*$A15)^2))/1000 -> 426.0046948 | PL15: =SQRT((($I$3*PL$13)^2)+(($I$4*$A15)^2))/1000 -> 427.0046838 | PM15: =SQRT((($I$3*PM$13)^2)+(($I$4*$A15)^2))/1000 -> 428.0046729 | PN15: =SQRT((($I$3*PN$13)^2)+(($I$4*$A15)^2))/1000 -> 429.004662 | PO15: =SQRT((($I$3*PO$13)^2)+(($I$4*$A15)^2))/1000 -> 430.0046511 | PP15: =SQRT((($I$3*PP$13)^2)+(($I$4*$A15)^2))/1000 -> 431.0046403 | PQ15: =SQRT((($I$3*PQ$13)^2)+(($I$4*$A15)^2))/1000 -> 432.0046296 | PR15: =SQRT((($I$3*PR$13)^2)+(($I$4*$A15)^2))/1000 -> 433.0046189 | PS15: =SQRT((($I$3*PS$13)^2)+(($I$4*$A15)^2))/1000 -> 434.0046083 | PT15: =SQRT((($I$3*PT$13)^2)+(($I$4*$A15)^2))/1000 -> 435.0045977 | PU15: =SQRT((($I$3*PU$13)^2)+(($I$4*$A15)^2))/1000 -> 436.0045871 | PV15: =SQRT((($I$3*PV$13)^2)+(($I$4*$A15)^2))/1000 -> 437.0045766 | PW15: =SQRT((($I$3*PW$13)^2)+(($I$4*$A15)^2))/1000 -> 438.0045662 | PX15: =SQRT((($I$3*PX$13)^2)+(($I$4*$A15)^2))/1000 -> 439.0045558 | PY15: =SQRT((($I$3*PY$13)^2)+(($I$4*$A15)^2))/1000 -> 440.0045454 | PZ15: =SQRT((($I$3*PZ$13)^2)+(($I$4*$A15)^2))/1000 -> 441.0045351 | QA15: =SQRT((($I$3*QA$13)^2)+(($I$4*$A15)^2))/1000 -> 442.0045249 | QB15: =SQRT((($I$3*QB$13)^2)+(($I$4*$A15)^2))/1000 -> 443.0045146 | QC15: =SQRT((($I$3*QC$13)^2)+(($I$4*$A15)^2))/1000 -> 444.0045045 | QD15: =SQRT((($I$3*QD$13)^2)+(($I$4*$A15)^2))/1000 -> 445.0044944 | QE15: =SQRT((($I$3*QE$13)^2)+(($I$4*$A15)^2))/1000 -> 446.0044843 | QF15: =SQRT((($I$3*QF$13)^2)+(($I$4*$A15)^2))/1000 -> 447.0044743 | QG15: =SQRT((($I$3*QG$13)^2)+(($I$4*$A15)^2))/1000 -> 448.0044643 | QH15: =SQRT((($I$3*QH$13)^2)+(($I$4*$A15)^2))/1000 -> 449.0044543 | QI15: =SQRT((($I$3*QI$13)^2)+(($I$4*$A15)^2))/1000 -> 450.0044444 | QJ15: =SQRT((($I$3*QJ$13)^2)+(($I$4*$A15)^2))/1000 -> 451.0044346 | QK15: =SQRT((($I$3*QK$13)^2)+(($I$4*$A15)^2))/1000 -> 452.0044248 | QL15: =SQRT((($I$3*QL$13)^2)+(($I$4*$A15)^2))/1000 -> 453.004415 | QM15: =SQRT((($I$3*QM$13)^2)+(($I$4*$A15)^2))/1000 -> 454.0044053 | QN15: =SQRT((($I$3*QN$13)^2)+(($I$4*$A15)^2))/1000 -> 455.0043956 | QO15: =SQRT((($I$3*QO$13)^2)+(($I$4*$A15)^2))/1000 -> 456.0043859 | QP15: =SQRT((($I$3*QP$13)^2)+(($I$4*$A15)^2))/1000 -> 457.0043763 | QQ15: =SQRT((($I$3*QQ$13)^2)+(($I$4*$A15)^2))/1000 -> 458.0043668 | QR15: =SQRT((($I$3*QR$13)^2)+(($I$4*$A15)^2))/1000 -> 459.0043573 | QS15: =SQRT((($I$3*QS$13)^2)+(($I$4*$A15)^2))/1000 -> 460.0043478 | QT15: =SQRT((($I$3*QT$13)^2)+(($I$4*$A15)^2))/1000 -> 461.0043384 | QU15: =SQRT((($I$3*QU$13)^2)+(($I$4*$A15)^2))/1000 -> 462.004329 | QV15: =SQRT((($I$3*QV$13)^2)+(($I$4*$A15)^2))/1000 -> 463.0043196 | QW15: =SQRT((($I$3*QW$13)^2)+(($I$4*$A15)^2))/1000 -> 464.0043103 | QX15: =SQRT((($I$3*QX$13)^2)+(($I$4*$A15)^2))/1000 -> 465.0043011 | QY15: =SQRT((($I$3*QY$13)^2)+(($I$4*$A15)^2))/1000 -> 466.0042918 | QZ15: =SQRT((($I$3*QZ$13)^2)+(($I$4*$A15)^2))/1000 -> 467.0042826 | RA15: =SQRT((($I$3*RA$13)^2)+(($I$4*$A15)^2))/1000 -> 468.0042735 | RB15: =SQRT((($I$3*RB$13)^2)+(($I$4*$A15)^2))/1000 -> 469.0042644 | RC15: =SQRT((($I$3*RC$13)^2)+(($I$4*$A15)^2))/1000 -> 470.0042553 | RD15: =SQRT((($I$3*RD$13)^2)+(($I$4*$A15)^2))/1000 -> 471.0042463 | RE15: =SQRT((($I$3*RE$13)^2)+(($I$4*$A15)^2))/1000 -> 472.0042373 | RF15: =SQRT((($I$3*RF$13)^2)+(($I$4*$A15)^2))/1000 -> 473.0042283 | RG15: =SQRT((($I$3*RG$13)^2)+(($I$4*$A15)^2))/1000 -> 474.0042194 | RH15: =SQRT((($I$3*RH$13)^2)+(($I$4*$A15)^2))/1000 -> 475.0042105 | RI15: =SQRT((($I$3*RI$13)^2)+(($I$4*$A15)^2))/1000 -> 476.0042017 | RJ15: =SQRT((($I$3*RJ$13)^2)+(($I$4*$A15)^2))/1000 -> 477.0041929 | RK15: =SQRT((($I$3*RK$13)^2)+(($I$4*$A15)^2))/1000 -> 478.0041841 | RL15: =SQRT((($I$3*RL$13)^2)+(($I$4*$A15)^2))/1000 -> 479.0041753 | RM15: =SQRT((($I$3*RM$13)^2)+(($I$4*$A15)^2))/1000 -> 480.0041666 | RN15: =SQRT((($I$3*RN$13)^2)+(($I$4*$A15)^2))/1000 -> 481.004158 | RO15: =SQRT((($I$3*RO$13)^2)+(($I$4*$A15)^2))/1000 -> 482.0041494 | RP15: =SQRT((($I$3*RP$13)^2)+(($I$4*$A15)^2))/1000 -> 483.0041408 | RQ15: =SQRT((($I$3*RQ$13)^2)+(($I$4*$A15)^2))/1000 -> 484.0041322 | RR15: =SQRT((($I$3*RR$13)^2)+(($I$4*$A15)^2))/1000 -> 485.0041237 | RS15: =SQRT((($I$3*RS$13)^2)+(($I$4*$A15)^2))/1000 -> 486.0041152 | RT15: =SQRT((($I$3*RT$13)^2)+(($I$4*$A15)^2))/1000 -> 487.0041068 | RU15: =SQRT((($I$3*RU$13)^2)+(($I$4*$A15)^2))/1000 -> 488.0040983 | RV15: =SQRT((($I$3*RV$13)^2)+(($I$4*$A15)^2))/1000 -> 489.00409 | RW15: =SQRT((($I$3*RW$13)^2)+(($I$4*$A15)^2))/1000 -> 490.0040816 | RX15: =SQRT((($I$3*RX$13)^2)+(($I$4*$A15)^2))/1000 -> 491.0040733 | RY15: =SQRT((($I$3*RY$13)^2)+(($I$4*$A15)^2))/1000 -> 492.004065 | RZ15: =SQRT((($I$3*RZ$13)^2)+(($I$4*$A15)^2))/1000 -> 493.0040568 | SA15: =SQRT((($I$3*SA$13)^2)+(($I$4*$A15)^2))/1000 -> 494.0040486 | SB15: =SQRT((($I$3*SB$13)^2)+(($I$4*$A15)^2))/1000 -> 495.0040404 | SC15: =SQRT((($I$3*SC$13)^2)+(($I$4*$A15)^2))/1000 -> 496.0040322 | SD15: =SQRT((($I$3*SD$13)^2)+(($I$4*$A15)^2))/1000 -> 497.0040241 | SE15: =SQRT((($I$3*SE$13)^2)+(($I$4*$A15)^2))/1000 -> 498.004016 | SF15: =SQRT((($I$3*SF$13)^2)+(($I$4*$A15)^2))/1000 -> 499.004008 | SG15: =SQRT((($I$3*SG$13)^2)+(($I$4*$A15)^2))/1000 -> 500.004
A16: 3 | B16: =SQRT((($I$3*B$13)^2)+(($I$4*$A16)^2))/1000 -> 3.16227766 | C16: =SQRT((($I$3*C$13)^2)+(($I$4*$A16)^2))/1000 -> 3.605551275 | D16: =SQRT((($I$3*D$13)^2)+(($I$4*$A16)^2))/1000 -> 4.242640687 | E16: =SQRT((($I$3*E$13)^2)+(($I$4*$A16)^2))/1000 -> 5 | F16: =SQRT((($I$3*F$13)^2)+(($I$4*$A16)^2))/1000 -> 5.830951895 | G16: =SQRT((($I$3*G$13)^2)+(($I$4*$A16)^2))/1000 -> 6.708203932 | H16: =SQRT((($I$3*H$13)^2)+(($I$4*$A16)^2))/1000 -> 7.615773106 | I16: =SQRT((($I$3*I$13)^2)+(($I$4*$A16)^2))/1000 -> 8.544003745 | J16: =SQRT((($I$3*J$13)^2)+(($I$4*$A16)^2))/1000 -> 9.486832981 | K16: =SQRT((($I$3*K$13)^2)+(($I$4*$A16)^2))/1000 -> 10.44030651 | L16: =SQRT((($I$3*L$13)^2)+(($I$4*$A16)^2))/1000 -> 11.40175425 | M16: =SQRT((($I$3*M$13)^2)+(($I$4*$A16)^2))/1000 -> 12.36931688 | N16: =SQRT((($I$3*N$13)^2)+(($I$4*$A16)^2))/1000 -> 13.34166406 | O16: =SQRT((($I$3*O$13)^2)+(($I$4*$A16)^2))/1000 -> 14.31782106 | P16: =SQRT((($I$3*P$13)^2)+(($I$4*$A16)^2))/1000 -> 15.29705854 | Q16: =SQRT((($I$3*Q$13)^2)+(($I$4*$A16)^2))/1000 -> 16.2788206 | R16: =SQRT((($I$3*R$13)^2)+(($I$4*$A16)^2))/1000 -> 17.2626765 | S16: =SQRT((($I$3*S$13)^2)+(($I$4*$A16)^2))/1000 -> 18.24828759 | T16: =SQRT((($I$3*T$13)^2)+(($I$4*$A16)^2))/1000 -> 19.23538406 | U16: =SQRT((($I$3*U$13)^2)+(($I$4*$A16)^2))/1000 -> 20.22374842 | V16: =SQRT((($I$3*V$13)^2)+(($I$4*$A16)^2))/1000 -> 21.21320344 | W16: =SQRT((($I$3*W$13)^2)+(($I$4*$A16)^2))/1000 -> 22.20360331 | X16: =SQRT((($I$3*X$13)^2)+(($I$4*$A16)^2))/1000 -> 23.19482701 | Y16: =SQRT((($I$3*Y$13)^2)+(($I$4*$A16)^2))/1000 -> 24.18677324 | Z16: =SQRT((($I$3*Z$13)^2)+(($I$4*$A16)^2))/1000 -> 25.17935662 | AA16: =SQRT((($I$3*AA$13)^2)+(($I$4*$A16)^2))/1000 -> 26.17250466 | AB16: =SQRT((($I$3*AB$13)^2)+(($I$4*$A16)^2))/1000 -> 27.16615541 | AC16: =SQRT((($I$3*AC$13)^2)+(($I$4*$A16)^2))/1000 -> 28.16025568 | AD16: =SQRT((($I$3*AD$13)^2)+(($I$4*$A16)^2))/1000 -> 29.15475947 | AE16: =SQRT((($I$3*AE$13)^2)+(($I$4*$A16)^2))/1000 -> 30.14962686 | AF16: =SQRT((($I$3*AF$13)^2)+(($I$4*$A16)^2))/1000 -> 31.144823 | AG16: =SQRT((($I$3*AG$13)^2)+(($I$4*$A16)^2))/1000 -> 32.14031736 | AH16: =SQRT((($I$3*AH$13)^2)+(($I$4*$A16)^2))/1000 -> 33.13608305 | AI16: =SQRT((($I$3*AI$13)^2)+(($I$4*$A16)^2))/1000 -> 34.13209633 | AJ16: =SQRT((($I$3*AJ$13)^2)+(($I$4*$A16)^2))/1000 -> 35.12833614 | AK16: =SQRT((($I$3*AK$13)^2)+(($I$4*$A16)^2))/1000 -> 36.12478374 | AL16: =SQRT((($I$3*AL$13)^2)+(($I$4*$A16)^2))/1000 -> 37.12142239 | AM16: =SQRT((($I$3*AM$13)^2)+(($I$4*$A16)^2))/1000 -> 38.11823711 | AN16: =SQRT((($I$3*AN$13)^2)+(($I$4*$A16)^2))/1000 -> 39.11521443 | AO16: =SQRT((($I$3*AO$13)^2)+(($I$4*$A16)^2))/1000 -> 40.11234224 | AP16: =SQRT((($I$3*AP$13)^2)+(($I$4*$A16)^2))/1000 -> 41.10960958 | AQ16: =SQRT((($I$3*AQ$13)^2)+(($I$4*$A16)^2))/1000 -> 42.10700654 | AR16: =SQRT((($I$3*AR$13)^2)+(($I$4*$A16)^2))/1000 -> 43.10452412 | AS16: =SQRT((($I$3*AS$13)^2)+(($I$4*$A16)^2))/1000 -> 44.10215414 | AT16: =SQRT((($I$3*AT$13)^2)+(($I$4*$A16)^2))/1000 -> 45.09988914 | AU16: =SQRT((($I$3*AU$13)^2)+(($I$4*$A16)^2))/1000 -> 46.09772229 | AV16: =SQRT((($I$3*AV$13)^2)+(($I$4*$A16)^2))/1000 -> 47.09564736 | AW16: =SQRT((($I$3*AW$13)^2)+(($I$4*$A16)^2))/1000 -> 48.09365863 | AX16: =SQRT((($I$3*AX$13)^2)+(($I$4*$A16)^2))/1000 -> 49.09175083 | AY16: =SQRT((($I$3*AY$13)^2)+(($I$4*$A16)^2))/1000 -> 50.08991915 | AZ16: =SQRT((($I$3*AZ$13)^2)+(($I$4*$A16)^2))/1000 -> 51.0881591 | BA16: =SQRT((($I$3*BA$13)^2)+(($I$4*$A16)^2))/1000 -> 52.08646657 | BB16: =SQRT((($I$3*BB$13)^2)+(($I$4*$A16)^2))/1000 -> 53.08483776 | BC16: =SQRT((($I$3*BC$13)^2)+(($I$4*$A16)^2))/1000 -> 54.08326913 | BD16: =SQRT((($I$3*BD$13)^2)+(($I$4*$A16)^2))/1000 -> 55.08175742 | BE16: =SQRT((($I$3*BE$13)^2)+(($I$4*$A16)^2))/1000 -> 56.08029957 | BF16: =SQRT((($I$3*BF$13)^2)+(($I$4*$A16)^2))/1000 -> 57.07889277 | BG16: =SQRT((($I$3*BG$13)^2)+(($I$4*$A16)^2))/1000 -> 58.07753438 | BH16: =SQRT((($I$3*BH$13)^2)+(($I$4*$A16)^2))/1000 -> 59.07622195 | BI16: =SQRT((($I$3*BI$13)^2)+(($I$4*$A16)^2))/1000 -> 60.07495318 | BJ16: =SQRT((($I$3*BJ$13)^2)+(($I$4*$A16)^2))/1000 -> 61.07372594 | BK16: =SQRT((($I$3*BK$13)^2)+(($I$4*$A16)^2))/1000 -> 62.07253821 | BL16: =SQRT((($I$3*BL$13)^2)+(($I$4*$A16)^2))/1000 -> 63.07138812 | BM16: =SQRT((($I$3*BM$13)^2)+(($I$4*$A16)^2))/1000 -> 64.07027392 | BN16: =SQRT((($I$3*BN$13)^2)+(($I$4*$A16)^2))/1000 -> 65.06919394 | BO16: =SQRT((($I$3*BO$13)^2)+(($I$4*$A16)^2))/1000 -> 66.06814664 | BP16: =SQRT((($I$3*BP$13)^2)+(($I$4*$A16)^2))/1000 -> 67.06713055 | BQ16: =SQRT((($I$3*BQ$13)^2)+(($I$4*$A16)^2))/1000 -> 68.0661443 | BR16: =SQRT((($I$3*BR$13)^2)+(($I$4*$A16)^2))/1000 -> 69.0651866 | BS16: =SQRT((($I$3*BS$13)^2)+(($I$4*$A16)^2))/1000 -> 70.06425622 | BT16: =SQRT((($I$3*BT$13)^2)+(($I$4*$A16)^2))/1000 -> 71.06335202 | BU16: =SQRT((($I$3*BU$13)^2)+(($I$4*$A16)^2))/1000 -> 72.0624729 | BV16: =SQRT((($I$3*BV$13)^2)+(($I$4*$A16)^2))/1000 -> 73.06161783 | BW16: =SQRT((($I$3*BW$13)^2)+(($I$4*$A16)^2))/1000 -> 74.06078585 | BX16: =SQRT((($I$3*BX$13)^2)+(($I$4*$A16)^2))/1000 -> 75.05997602 | BY16: =SQRT((($I$3*BY$13)^2)+(($I$4*$A16)^2))/1000 -> 76.05918748 | BZ16: =SQRT((($I$3*BZ$13)^2)+(($I$4*$A16)^2))/1000 -> 77.0584194 | CA16: =SQRT((($I$3*CA$13)^2)+(($I$4*$A16)^2))/1000 -> 78.05767099 | CB16: =SQRT((($I$3*CB$13)^2)+(($I$4*$A16)^2))/1000 -> 79.0569415 | CC16: =SQRT((($I$3*CC$13)^2)+(($I$4*$A16)^2))/1000 -> 80.05623024 | CD16: =SQRT((($I$3*CD$13)^2)+(($I$4*$A16)^2))/1000 -> 81.05553652 | CE16: =SQRT((($I$3*CE$13)^2)+(($I$4*$A16)^2))/1000 -> 82.0548597 | CF16: =SQRT((($I$3*CF$13)^2)+(($I$4*$A16)^2))/1000 -> 83.05419917 | CG16: =SQRT((($I$3*CG$13)^2)+(($I$4*$A16)^2))/1000 -> 84.05355436 | CH16: =SQRT((($I$3*CH$13)^2)+(($I$4*$A16)^2))/1000 -> 85.0529247 | CI16: =SQRT((($I$3*CI$13)^2)+(($I$4*$A16)^2))/1000 -> 86.05230967 | CJ16: =SQRT((($I$3*CJ$13)^2)+(($I$4*$A16)^2))/1000 -> 87.05170877 | CK16: =SQRT((($I$3*CK$13)^2)+(($I$4*$A16)^2))/1000 -> 88.05112151 | CL16: =SQRT((($I$3*CL$13)^2)+(($I$4*$A16)^2))/1000 -> 89.05054744 | CM16: =SQRT((($I$3*CM$13)^2)+(($I$4*$A16)^2))/1000 -> 90.04998612 | CN16: =SQRT((($I$3*CN$13)^2)+(($I$4*$A16)^2))/1000 -> 91.04943712 | CO16: =SQRT((($I$3*CO$13)^2)+(($I$4*$A16)^2))/1000 -> 92.04890005 | CP16: =SQRT((($I$3*CP$13)^2)+(($I$4*$A16)^2))/1000 -> 93.04837452 | CQ16: =SQRT((($I$3*CQ$13)^2)+(($I$4*$A16)^2))/1000 -> 94.04786016 | CR16: =SQRT((($I$3*CR$13)^2)+(($I$4*$A16)^2))/1000 -> 95.04735662 | CS16: =SQRT((($I$3*CS$13)^2)+(($I$4*$A16)^2))/1000 -> 96.04686356 | CT16: =SQRT((($I$3*CT$13)^2)+(($I$4*$A16)^2))/1000 -> 97.04638066 | CU16: =SQRT((($I$3*CU$13)^2)+(($I$4*$A16)^2))/1000 -> 98.04590761 | CV16: =SQRT((($I$3*CV$13)^2)+(($I$4*$A16)^2))/1000 -> 99.04544412 | CW16: =SQRT((($I$3*CW$13)^2)+(($I$4*$A16)^2))/1000 -> 100.0449899 | CX16: =SQRT((($I$3*CX$13)^2)+(($I$4*$A16)^2))/1000 -> 101.0445446 | CY16: =SQRT((($I$3*CY$13)^2)+(($I$4*$A16)^2))/1000 -> 102.0441081 | CZ16: =SQRT((($I$3*CZ$13)^2)+(($I$4*$A16)^2))/1000 -> 103.0436801 | DA16: =SQRT((($I$3*DA$13)^2)+(($I$4*$A16)^2))/1000 -> 104.0432602 | DB16: =SQRT((($I$3*DB$13)^2)+(($I$4*$A16)^2))/1000 -> 105.0428484 | DC16: =SQRT((($I$3*DC$13)^2)+(($I$4*$A16)^2))/1000 -> 106.0424443 | DD16: =SQRT((($I$3*DD$13)^2)+(($I$4*$A16)^2))/1000 -> 107.0420478 | DE16: =SQRT((($I$3*DE$13)^2)+(($I$4*$A16)^2))/1000 -> 108.0416586 | DF16: =SQRT((($I$3*DF$13)^2)+(($I$4*$A16)^2))/1000 -> 109.0412766 | DG16: =SQRT((($I$3*DG$13)^2)+(($I$4*$A16)^2))/1000 -> 110.0409015 | DH16: =SQRT((($I$3*DH$13)^2)+(($I$4*$A16)^2))/1000 -> 111.0405331 | DI16: =SQRT((($I$3*DI$13)^2)+(($I$4*$A16)^2))/1000 -> 112.0401714 | DJ16: =SQRT((($I$3*DJ$13)^2)+(($I$4*$A16)^2))/1000 -> 113.039816 | DK16: =SQRT((($I$3*DK$13)^2)+(($I$4*$A16)^2))/1000 -> 114.0394669 | DL16: =SQRT((($I$3*DL$13)^2)+(($I$4*$A16)^2))/1000 -> 115.0391238 | DM16: =SQRT((($I$3*DM$13)^2)+(($I$4*$A16)^2))/1000 -> 116.0387866 | DN16: =SQRT((($I$3*DN$13)^2)+(($I$4*$A16)^2))/1000 -> 117.0384552 | DO16: =SQRT((($I$3*DO$13)^2)+(($I$4*$A16)^2))/1000 -> 118.0381294 | DP16: =SQRT((($I$3*DP$13)^2)+(($I$4*$A16)^2))/1000 -> 119.0378091 | DQ16: =SQRT((($I$3*DQ$13)^2)+(($I$4*$A16)^2))/1000 -> 120.0374941 | DR16: =SQRT((($I$3*DR$13)^2)+(($I$4*$A16)^2))/1000 -> 121.0371844 | DS16: =SQRT((($I$3*DS$13)^2)+(($I$4*$A16)^2))/1000 -> 122.0368797 | DT16: =SQRT((($I$3*DT$13)^2)+(($I$4*$A16)^2))/1000 -> 123.0365799 | DU16: =SQRT((($I$3*DU$13)^2)+(($I$4*$A16)^2))/1000 -> 124.036285 | DV16: =SQRT((($I$3*DV$13)^2)+(($I$4*$A16)^2))/1000 -> 125.0359948 | DW16: =SQRT((($I$3*DW$13)^2)+(($I$4*$A16)^2))/1000 -> 126.0357092 | DX16: =SQRT((($I$3*DX$13)^2)+(($I$4*$A16)^2))/1000 -> 127.0354281 | DY16: =SQRT((($I$3*DY$13)^2)+(($I$4*$A16)^2))/1000 -> 128.0351514 | DZ16: =SQRT((($I$3*DZ$13)^2)+(($I$4*$A16)^2))/1000 -> 129.034879 | EA16: =SQRT((($I$3*EA$13)^2)+(($I$4*$A16)^2))/1000 -> 130.0346108 | EB16: =SQRT((($I$3*EB$13)^2)+(($I$4*$A16)^2))/1000 -> 131.0343466 | EC16: =SQRT((($I$3*EC$13)^2)+(($I$4*$A16)^2))/1000 -> 132.0340865 | ED16: =SQRT((($I$3*ED$13)^2)+(($I$4*$A16)^2))/1000 -> 133.0338303 | EE16: =SQRT((($I$3*EE$13)^2)+(($I$4*$A16)^2))/1000 -> 134.0335779 | EF16: =SQRT((($I$3*EF$13)^2)+(($I$4*$A16)^2))/1000 -> 135.0333292 | EG16: =SQRT((($I$3*EG$13)^2)+(($I$4*$A16)^2))/1000 -> 136.0330842 | EH16: =SQRT((($I$3*EH$13)^2)+(($I$4*$A16)^2))/1000 -> 137.0328428 | EI16: =SQRT((($I$3*EI$13)^2)+(($I$4*$A16)^2))/1000 -> 138.0326048 | EJ16: =SQRT((($I$3*EJ$13)^2)+(($I$4*$A16)^2))/1000 -> 139.0323703 | EK16: =SQRT((($I$3*EK$13)^2)+(($I$4*$A16)^2))/1000 -> 140.0321392 | EL16: =SQRT((($I$3*EL$13)^2)+(($I$4*$A16)^2))/1000 -> 141.0319113 | EM16: =SQRT((($I$3*EM$13)^2)+(($I$4*$A16)^2))/1000 -> 142.0316866 | EN16: =SQRT((($I$3*EN$13)^2)+(($I$4*$A16)^2))/1000 -> 143.0314651 | EO16: =SQRT((($I$3*EO$13)^2)+(($I$4*$A16)^2))/1000 -> 144.0312466 | EP16: =SQRT((($I$3*EP$13)^2)+(($I$4*$A16)^2))/1000 -> 145.0310312 | EQ16: =SQRT((($I$3*EQ$13)^2)+(($I$4*$A16)^2))/1000 -> 146.0308187 | ER16: =SQRT((($I$3*ER$13)^2)+(($I$4*$A16)^2))/1000 -> 147.0306091 | ES16: =SQRT((($I$3*ES$13)^2)+(($I$4*$A16)^2))/1000 -> 148.0304023 | ET16: =SQRT((($I$3*ET$13)^2)+(($I$4*$A16)^2))/1000 -> 149.0301983 | EU16: =SQRT((($I$3*EU$13)^2)+(($I$4*$A16)^2))/1000 -> 150.029997 | EV16: =SQRT((($I$3*EV$13)^2)+(($I$4*$A16)^2))/1000 -> 151.0297984 | EW16: =SQRT((($I$3*EW$13)^2)+(($I$4*$A16)^2))/1000 -> 152.0296024 | EX16: =SQRT((($I$3*EX$13)^2)+(($I$4*$A16)^2))/1000 -> 153.0294089 | EY16: =SQRT((($I$3*EY$13)^2)+(($I$4*$A16)^2))/1000 -> 154.029218 | EZ16: =SQRT((($I$3*EZ$13)^2)+(($I$4*$A16)^2))/1000 -> 155.0290295 | FA16: =SQRT((($I$3*FA$13)^2)+(($I$4*$A16)^2))/1000 -> 156.0288435 | FB16: =SQRT((($I$3*FB$13)^2)+(($I$4*$A16)^2))/1000 -> 157.0286598 | FC16: =SQRT((($I$3*FC$13)^2)+(($I$4*$A16)^2))/1000 -> 158.0284784 | FD16: =SQRT((($I$3*FD$13)^2)+(($I$4*$A16)^2))/1000 -> 159.0282994 | FE16: =SQRT((($I$3*FE$13)^2)+(($I$4*$A16)^2))/1000 -> 160.0281225 | FF16: =SQRT((($I$3*FF$13)^2)+(($I$4*$A16)^2))/1000 -> 161.0279479 | FG16: =SQRT((($I$3*FG$13)^2)+(($I$4*$A16)^2))/1000 -> 162.0277754 | FH16: =SQRT((($I$3*FH$13)^2)+(($I$4*$A16)^2))/1000 -> 163.027605 | FI16: =SQRT((($I$3*FI$13)^2)+(($I$4*$A16)^2))/1000 -> 164.0274367 | FJ16: =SQRT((($I$3*FJ$13)^2)+(($I$4*$A16)^2))/1000 -> 165.0272705 | FK16: =SQRT((($I$3*FK$13)^2)+(($I$4*$A16)^2))/1000 -> 166.0271062 | FL16: =SQRT((($I$3*FL$13)^2)+(($I$4*$A16)^2))/1000 -> 167.0269439 | FM16: =SQRT((($I$3*FM$13)^2)+(($I$4*$A16)^2))/1000 -> 168.0267836 | FN16: =SQRT((($I$3*FN$13)^2)+(($I$4*$A16)^2))/1000 -> 169.0266251 | FO16: =SQRT((($I$3*FO$13)^2)+(($I$4*$A16)^2))/1000 -> 170.0264685 | FP16: =SQRT((($I$3*FP$13)^2)+(($I$4*$A16)^2))/1000 -> 171.0263138 | FQ16: =SQRT((($I$3*FQ$13)^2)+(($I$4*$A16)^2))/1000 -> 172.0261608 | FR16: =SQRT((($I$3*FR$13)^2)+(($I$4*$A16)^2))/1000 -> 173.0260096 | FS16: =SQRT((($I$3*FS$13)^2)+(($I$4*$A16)^2))/1000 -> 174.0258601 | FT16: =SQRT((($I$3*FT$13)^2)+(($I$4*$A16)^2))/1000 -> 175.0257124 | FU16: =SQRT((($I$3*FU$13)^2)+(($I$4*$A16)^2))/1000 -> 176.0255663 | FV16: =SQRT((($I$3*FV$13)^2)+(($I$4*$A16)^2))/1000 -> 177.0254219 | FW16: =SQRT((($I$3*FW$13)^2)+(($I$4*$A16)^2))/1000 -> 178.0252791 | FX16: =SQRT((($I$3*FX$13)^2)+(($I$4*$A16)^2))/1000 -> 179.0251379 | FY16: =SQRT((($I$3*FY$13)^2)+(($I$4*$A16)^2))/1000 -> 180.0249983 | FZ16: =SQRT((($I$3*FZ$13)^2)+(($I$4*$A16)^2))/1000 -> 181.0248602 | GA16: =SQRT((($I$3*GA$13)^2)+(($I$4*$A16)^2))/1000 -> 182.0247236 | GB16: =SQRT((($I$3*GB$13)^2)+(($I$4*$A16)^2))/1000 -> 183.0245885 | GC16: =SQRT((($I$3*GC$13)^2)+(($I$4*$A16)^2))/1000 -> 184.0244549 | GD16: =SQRT((($I$3*GD$13)^2)+(($I$4*$A16)^2))/1000 -> 185.0243227 | GE16: =SQRT((($I$3*GE$13)^2)+(($I$4*$A16)^2))/1000 -> 186.024192 | GF16: =SQRT((($I$3*GF$13)^2)+(($I$4*$A16)^2))/1000 -> 187.0240626 | GG16: =SQRT((($I$3*GG$13)^2)+(($I$4*$A16)^2))/1000 -> 188.0239346 | GH16: =SQRT((($I$3*GH$13)^2)+(($I$4*$A16)^2))/1000 -> 189.023808 | GI16: =SQRT((($I$3*GI$13)^2)+(($I$4*$A16)^2))/1000 -> 190.0236827 | GJ16: =SQRT((($I$3*GJ$13)^2)+(($I$4*$A16)^2))/1000 -> 191.0235588 | GK16: =SQRT((($I$3*GK$13)^2)+(($I$4*$A16)^2))/1000 -> 192.0234361 | GL16: =SQRT((($I$3*GL$13)^2)+(($I$4*$A16)^2))/1000 -> 193.0233147 | GM16: =SQRT((($I$3*GM$13)^2)+(($I$4*$A16)^2))/1000 -> 194.0231945 | GN16: =SQRT((($I$3*GN$13)^2)+(($I$4*$A16)^2))/1000 -> 195.0230756 | GO16: =SQRT((($I$3*GO$13)^2)+(($I$4*$A16)^2))/1000 -> 196.0229578 | GP16: =SQRT((($I$3*GP$13)^2)+(($I$4*$A16)^2))/1000 -> 197.0228413 | GQ16: =SQRT((($I$3*GQ$13)^2)+(($I$4*$A16)^2))/1000 -> 198.022726 | GR16: =SQRT((($I$3*GR$13)^2)+(($I$4*$A16)^2))/1000 -> 199.0226118 | GS16: =SQRT((($I$3*GS$13)^2)+(($I$4*$A16)^2))/1000 -> 200.0224987 | GT16: =SQRT((($I$3*GT$13)^2)+(($I$4*$A16)^2))/1000 -> 201.0223868 | GU16: =SQRT((($I$3*GU$13)^2)+(($I$4*$A16)^2))/1000 -> 202.022276 | GV16: =SQRT((($I$3*GV$13)^2)+(($I$4*$A16)^2))/1000 -> 203.0221663 | GW16: =SQRT((($I$3*GW$13)^2)+(($I$4*$A16)^2))/1000 -> 204.0220576 | GX16: =SQRT((($I$3*GX$13)^2)+(($I$4*$A16)^2))/1000 -> 205.02195 | GY16: =SQRT((($I$3*GY$13)^2)+(($I$4*$A16)^2))/1000 -> 206.0218435 | GZ16: =SQRT((($I$3*GZ$13)^2)+(($I$4*$A16)^2))/1000 -> 207.021738 | HA16: =SQRT((($I$3*HA$13)^2)+(($I$4*$A16)^2))/1000 -> 208.0216335 | HB16: =SQRT((($I$3*HB$13)^2)+(($I$4*$A16)^2))/1000 -> 209.02153 | HC16: =SQRT((($I$3*HC$13)^2)+(($I$4*$A16)^2))/1000 -> 210.0214275 | HD16: =SQRT((($I$3*HD$13)^2)+(($I$4*$A16)^2))/1000 -> 211.0213259 | HE16: =SQRT((($I$3*HE$13)^2)+(($I$4*$A16)^2))/1000 -> 212.0212254 | HF16: =SQRT((($I$3*HF$13)^2)+(($I$4*$A16)^2))/1000 -> 213.0211257 | HG16: =SQRT((($I$3*HG$13)^2)+(($I$4*$A16)^2))/1000 -> 214.021027 | HH16: =SQRT((($I$3*HH$13)^2)+(($I$4*$A16)^2))/1000 -> 215.0209292 | HI16: =SQRT((($I$3*HI$13)^2)+(($I$4*$A16)^2))/1000 -> 216.0208323 | HJ16: =SQRT((($I$3*HJ$13)^2)+(($I$4*$A16)^2))/1000 -> 217.0207363 | HK16: =SQRT((($I$3*HK$13)^2)+(($I$4*$A16)^2))/1000 -> 218.0206412 | HL16: =SQRT((($I$3*HL$13)^2)+(($I$4*$A16)^2))/1000 -> 219.020547 | HM16: =SQRT((($I$3*HM$13)^2)+(($I$4*$A16)^2))/1000 -> 220.0204536 | HN16: =SQRT((($I$3*HN$13)^2)+(($I$4*$A16)^2))/1000 -> 221.0203611 | HO16: =SQRT((($I$3*HO$13)^2)+(($I$4*$A16)^2))/1000 -> 222.0202693 | HP16: =SQRT((($I$3*HP$13)^2)+(($I$4*$A16)^2))/1000 -> 223.0201785 | HQ16: =SQRT((($I$3*HQ$13)^2)+(($I$4*$A16)^2))/1000 -> 224.0200884 | HR16: =SQRT((($I$3*HR$13)^2)+(($I$4*$A16)^2))/1000 -> 225.0199991 | HS16: =SQRT((($I$3*HS$13)^2)+(($I$4*$A16)^2))/1000 -> 226.0199106 | HT16: =SQRT((($I$3*HT$13)^2)+(($I$4*$A16)^2))/1000 -> 227.0198229 | HU16: =SQRT((($I$3*HU$13)^2)+(($I$4*$A16)^2))/1000 -> 228.019736 | HV16: =SQRT((($I$3*HV$13)^2)+(($I$4*$A16)^2))/1000 -> 229.0196498 | HW16: =SQRT((($I$3*HW$13)^2)+(($I$4*$A16)^2))/1000 -> 230.0195644 | HX16: =SQRT((($I$3*HX$13)^2)+(($I$4*$A16)^2))/1000 -> 231.0194797 | HY16: =SQRT((($I$3*HY$13)^2)+(($I$4*$A16)^2))/1000 -> 232.0193957 | HZ16: =SQRT((($I$3*HZ$13)^2)+(($I$4*$A16)^2))/1000 -> 233.0193125 | IA16: =SQRT((($I$3*IA$13)^2)+(($I$4*$A16)^2))/1000 -> 234.01923 | IB16: =SQRT((($I$3*IB$13)^2)+(($I$4*$A16)^2))/1000 -> 235.0191482 | IC16: =SQRT((($I$3*IC$13)^2)+(($I$4*$A16)^2))/1000 -> 236.019067 | ID16: =SQRT((($I$3*ID$13)^2)+(($I$4*$A16)^2))/1000 -> 237.0189866 | IE16: =SQRT((($I$3*IE$13)^2)+(($I$4*$A16)^2))/1000 -> 238.0189068 | IF16: =SQRT((($I$3*IF$13)^2)+(($I$4*$A16)^2))/1000 -> 239.0188277 | IG16: =SQRT((($I$3*IG$13)^2)+(($I$4*$A16)^2))/1000 -> 240.0187493 | IH16: =SQRT((($I$3*IH$13)^2)+(($I$4*$A16)^2))/1000 -> 241.0186715 | II16: =SQRT((($I$3*II$13)^2)+(($I$4*$A16)^2))/1000 -> 242.0185943 | IJ16: =SQRT((($I$3*IJ$13)^2)+(($I$4*$A16)^2))/1000 -> 243.0185178 | IK16: =SQRT((($I$3*IK$13)^2)+(($I$4*$A16)^2))/1000 -> 244.0184419 | IL16: =SQRT((($I$3*IL$13)^2)+(($I$4*$A16)^2))/1000 -> 245.0183667 | IM16: =SQRT((($I$3*IM$13)^2)+(($I$4*$A16)^2))/1000 -> 246.018292 | IN16: =SQRT((($I$3*IN$13)^2)+(($I$4*$A16)^2))/1000 -> 247.018218 | IO16: =SQRT((($I$3*IO$13)^2)+(($I$4*$A16)^2))/1000 -> 248.0181445 | IP16: =SQRT((($I$3*IP$13)^2)+(($I$4*$A16)^2))/1000 -> 249.0180716 | IQ16: =SQRT((($I$3*IQ$13)^2)+(($I$4*$A16)^2))/1000 -> 250.0179994 | IR16: =SQRT((($I$3*IR$13)^2)+(($I$4*$A16)^2))/1000 -> 251.0179276 | IS16: =SQRT((($I$3*IS$13)^2)+(($I$4*$A16)^2))/1000 -> 252.0178565 | IT16: =SQRT((($I$3*IT$13)^2)+(($I$4*$A16)^2))/1000 -> 253.0177859 | IU16: =SQRT((($I$3*IU$13)^2)+(($I$4*$A16)^2))/1000 -> 254.0177159 | IV16: =SQRT((($I$3*IV$13)^2)+(($I$4*$A16)^2))/1000 -> 255.0176464 | IW16: =SQRT((($I$3*IW$13)^2)+(($I$4*$A16)^2))/1000 -> 256.0175775 | IX16: =SQRT((($I$3*IX$13)^2)+(($I$4*$A16)^2))/1000 -> 257.0175091 | IY16: =SQRT((($I$3*IY$13)^2)+(($I$4*$A16)^2))/1000 -> 258.0174413 | IZ16: =SQRT((($I$3*IZ$13)^2)+(($I$4*$A16)^2))/1000 -> 259.0173739 | JA16: =SQRT((($I$3*JA$13)^2)+(($I$4*$A16)^2))/1000 -> 260.0173071 | JB16: =SQRT((($I$3*JB$13)^2)+(($I$4*$A16)^2))/1000 -> 261.0172408 | JC16: =SQRT((($I$3*JC$13)^2)+(($I$4*$A16)^2))/1000 -> 262.017175 | JD16: =SQRT((($I$3*JD$13)^2)+(($I$4*$A16)^2))/1000 -> 263.0171097 | JE16: =SQRT((($I$3*JE$13)^2)+(($I$4*$A16)^2))/1000 -> 264.0170449 | JF16: =SQRT((($I$3*JF$13)^2)+(($I$4*$A16)^2))/1000 -> 265.0169806 | JG16: =SQRT((($I$3*JG$13)^2)+(($I$4*$A16)^2))/1000 -> 266.0169168 | JH16: =SQRT((($I$3*JH$13)^2)+(($I$4*$A16)^2))/1000 -> 267.0168534 | JI16: =SQRT((($I$3*JI$13)^2)+(($I$4*$A16)^2))/1000 -> 268.0167905 | JJ16: =SQRT((($I$3*JJ$13)^2)+(($I$4*$A16)^2))/1000 -> 269.0167281 | JK16: =SQRT((($I$3*JK$13)^2)+(($I$4*$A16)^2))/1000 -> 270.0166662 | JL16: =SQRT((($I$3*JL$13)^2)+(($I$4*$A16)^2))/1000 -> 271.0166047 | JM16: =SQRT((($I$3*JM$13)^2)+(($I$4*$A16)^2))/1000 -> 272.0165436 | JN16: =SQRT((($I$3*JN$13)^2)+(($I$4*$A16)^2))/1000 -> 273.016483 | JO16: =SQRT((($I$3*JO$13)^2)+(($I$4*$A16)^2))/1000 -> 274.0164229 | JP16: =SQRT((($I$3*JP$13)^2)+(($I$4*$A16)^2))/1000 -> 275.0163631 | JQ16: =SQRT((($I$3*JQ$13)^2)+(($I$4*$A16)^2))/1000 -> 276.0163039 | JR16: =SQRT((($I$3*JR$13)^2)+(($I$4*$A16)^2))/1000 -> 277.016245 | JS16: =SQRT((($I$3*JS$13)^2)+(($I$4*$A16)^2))/1000 -> 278.0161866 | JT16: =SQRT((($I$3*JT$13)^2)+(($I$4*$A16)^2))/1000 -> 279.0161286 | JU16: =SQRT((($I$3*JU$13)^2)+(($I$4*$A16)^2))/1000 -> 280.016071 | JV16: =SQRT((($I$3*JV$13)^2)+(($I$4*$A16)^2))/1000 -> 281.0160138 | JW16: =SQRT((($I$3*JW$13)^2)+(($I$4*$A16)^2))/1000 -> 282.015957 | JX16: =SQRT((($I$3*JX$13)^2)+(($I$4*$A16)^2))/1000 -> 283.0159006 | JY16: =SQRT((($I$3*JY$13)^2)+(($I$4*$A16)^2))/1000 -> 284.0158446 | JZ16: =SQRT((($I$3*JZ$13)^2)+(($I$4*$A16)^2))/1000 -> 285.015789 | KA16: =SQRT((($I$3*KA$13)^2)+(($I$4*$A16)^2))/1000 -> 286.0157338 | KB16: =SQRT((($I$3*KB$13)^2)+(($I$4*$A16)^2))/1000 -> 287.015679 | KC16: =SQRT((($I$3*KC$13)^2)+(($I$4*$A16)^2))/1000 -> 288.0156246 | KD16: =SQRT((($I$3*KD$13)^2)+(($I$4*$A16)^2))/1000 -> 289.0155705 | KE16: =SQRT((($I$3*KE$13)^2)+(($I$4*$A16)^2))/1000 -> 290.0155168 | KF16: =SQRT((($I$3*KF$13)^2)+(($I$4*$A16)^2))/1000 -> 291.0154635 | KG16: =SQRT((($I$3*KG$13)^2)+(($I$4*$A16)^2))/1000 -> 292.0154106 | KH16: =SQRT((($I$3*KH$13)^2)+(($I$4*$A16)^2))/1000 -> 293.015358 | KI16: =SQRT((($I$3*KI$13)^2)+(($I$4*$A16)^2))/1000 -> 294.0153057 | KJ16: =SQRT((($I$3*KJ$13)^2)+(($I$4*$A16)^2))/1000 -> 295.0152538 | KK16: =SQRT((($I$3*KK$13)^2)+(($I$4*$A16)^2))/1000 -> 296.0152023 | KL16: =SQRT((($I$3*KL$13)^2)+(($I$4*$A16)^2))/1000 -> 297.0151511 | KM16: =SQRT((($I$3*KM$13)^2)+(($I$4*$A16)^2))/1000 -> 298.0151003 | KN16: =SQRT((($I$3*KN$13)^2)+(($I$4*$A16)^2))/1000 -> 299.0150498 | KO16: =SQRT((($I$3*KO$13)^2)+(($I$4*$A16)^2))/1000 -> 300.0149996 | KP16: =SQRT((($I$3*KP$13)^2)+(($I$4*$A16)^2))/1000 -> 301.0149498 | KQ16: =SQRT((($I$3*KQ$13)^2)+(($I$4*$A16)^2))/1000 -> 302.0149003 | KR16: =SQRT((($I$3*KR$13)^2)+(($I$4*$A16)^2))/1000 -> 303.0148511 | KS16: =SQRT((($I$3*KS$13)^2)+(($I$4*$A16)^2))/1000 -> 304.0148023 | KT16: =SQRT((($I$3*KT$13)^2)+(($I$4*$A16)^2))/1000 -> 305.0147537 | KU16: =SQRT((($I$3*KU$13)^2)+(($I$4*$A16)^2))/1000 -> 306.0147055 | KV16: =SQRT((($I$3*KV$13)^2)+(($I$4*$A16)^2))/1000 -> 307.0146576 | KW16: =SQRT((($I$3*KW$13)^2)+(($I$4*$A16)^2))/1000 -> 308.01461 | KX16: =SQRT((($I$3*KX$13)^2)+(($I$4*$A16)^2))/1000 -> 309.0145628 | KY16: =SQRT((($I$3*KY$13)^2)+(($I$4*$A16)^2))/1000 -> 310.0145158 | KZ16: =SQRT((($I$3*KZ$13)^2)+(($I$4*$A16)^2))/1000 -> 311.0144691 | LA16: =SQRT((($I$3*LA$13)^2)+(($I$4*$A16)^2))/1000 -> 312.0144227 | LB16: =SQRT((($I$3*LB$13)^2)+(($I$4*$A16)^2))/1000 -> 313.0143767 | LC16: =SQRT((($I$3*LC$13)^2)+(($I$4*$A16)^2))/1000 -> 314.0143309 | LD16: =SQRT((($I$3*LD$13)^2)+(($I$4*$A16)^2))/1000 -> 315.0142854 | LE16: =SQRT((($I$3*LE$13)^2)+(($I$4*$A16)^2))/1000 -> 316.0142402 | LF16: =SQRT((($I$3*LF$13)^2)+(($I$4*$A16)^2))/1000 -> 317.0141953 | LG16: =SQRT((($I$3*LG$13)^2)+(($I$4*$A16)^2))/1000 -> 318.0141506 | LH16: =SQRT((($I$3*LH$13)^2)+(($I$4*$A16)^2))/1000 -> 319.0141063 | LI16: =SQRT((($I$3*LI$13)^2)+(($I$4*$A16)^2))/1000 -> 320.0140622 | LJ16: =SQRT((($I$3*LJ$13)^2)+(($I$4*$A16)^2))/1000 -> 321.0140184 | LK16: =SQRT((($I$3*LK$13)^2)+(($I$4*$A16)^2))/1000 -> 322.0139749 | LL16: =SQRT((($I$3*LL$13)^2)+(($I$4*$A16)^2))/1000 -> 323.0139316 | LM16: =SQRT((($I$3*LM$13)^2)+(($I$4*$A16)^2))/1000 -> 324.0138886 | LN16: =SQRT((($I$3*LN$13)^2)+(($I$4*$A16)^2))/1000 -> 325.0138459 | LO16: =SQRT((($I$3*LO$13)^2)+(($I$4*$A16)^2))/1000 -> 326.0138034 | LP16: =SQRT((($I$3*LP$13)^2)+(($I$4*$A16)^2))/1000 -> 327.0137612 | LQ16: =SQRT((($I$3*LQ$13)^2)+(($I$4*$A16)^2))/1000 -> 328.0137192 | LR16: =SQRT((($I$3*LR$13)^2)+(($I$4*$A16)^2))/1000 -> 329.0136775 | LS16: =SQRT((($I$3*LS$13)^2)+(($I$4*$A16)^2))/1000 -> 330.0136361 | LT16: =SQRT((($I$3*LT$13)^2)+(($I$4*$A16)^2))/1000 -> 331.0135949 | LU16: =SQRT((($I$3*LU$13)^2)+(($I$4*$A16)^2))/1000 -> 332.0135539 | LV16: =SQRT((($I$3*LV$13)^2)+(($I$4*$A16)^2))/1000 -> 333.0135132 | LW16: =SQRT((($I$3*LW$13)^2)+(($I$4*$A16)^2))/1000 -> 334.0134728 | LX16: =SQRT((($I$3*LX$13)^2)+(($I$4*$A16)^2))/1000 -> 335.0134326 | LY16: =SQRT((($I$3*LY$13)^2)+(($I$4*$A16)^2))/1000 -> 336.0133926 | LZ16: =SQRT((($I$3*LZ$13)^2)+(($I$4*$A16)^2))/1000 -> 337.0133529 | MA16: =SQRT((($I$3*MA$13)^2)+(($I$4*$A16)^2))/1000 -> 338.0133133 | MB16: =SQRT((($I$3*MB$13)^2)+(($I$4*$A16)^2))/1000 -> 339.0132741 | MC16: =SQRT((($I$3*MC$13)^2)+(($I$4*$A16)^2))/1000 -> 340.013235 | MD16: =SQRT((($I$3*MD$13)^2)+(($I$4*$A16)^2))/1000 -> 341.0131962 | ME16: =SQRT((($I$3*ME$13)^2)+(($I$4*$A16)^2))/1000 -> 342.0131576 | MF16: =SQRT((($I$3*MF$13)^2)+(($I$4*$A16)^2))/1000 -> 343.0131193 | MG16: =SQRT((($I$3*MG$13)^2)+(($I$4*$A16)^2))/1000 -> 344.0130811 | MH16: =SQRT((($I$3*MH$13)^2)+(($I$4*$A16)^2))/1000 -> 345.0130432 | MI16: =SQRT((($I$3*MI$13)^2)+(($I$4*$A16)^2))/1000 -> 346.0130055 | MJ16: =SQRT((($I$3*MJ$13)^2)+(($I$4*$A16)^2))/1000 -> 347.0129681 | MK16: =SQRT((($I$3*MK$13)^2)+(($I$4*$A16)^2))/1000 -> 348.0129308 | ML16: =SQRT((($I$3*ML$13)^2)+(($I$4*$A16)^2))/1000 -> 349.0128937 | MM16: =SQRT((($I$3*MM$13)^2)+(($I$4*$A16)^2))/1000 -> 350.0128569 | MN16: =SQRT((($I$3*MN$13)^2)+(($I$4*$A16)^2))/1000 -> 351.0128203 | MO16: =SQRT((($I$3*MO$13)^2)+(($I$4*$A16)^2))/1000 -> 352.0127839 | MP16: =SQRT((($I$3*MP$13)^2)+(($I$4*$A16)^2))/1000 -> 353.0127476 | MQ16: =SQRT((($I$3*MQ$13)^2)+(($I$4*$A16)^2))/1000 -> 354.0127116 | MR16: =SQRT((($I$3*MR$13)^2)+(($I$4*$A16)^2))/1000 -> 355.0126758 | MS16: =SQRT((($I$3*MS$13)^2)+(($I$4*$A16)^2))/1000 -> 356.0126402 | MT16: =SQRT((($I$3*MT$13)^2)+(($I$4*$A16)^2))/1000 -> 357.0126048 | MU16: =SQRT((($I$3*MU$13)^2)+(($I$4*$A16)^2))/1000 -> 358.0125696 | MV16: =SQRT((($I$3*MV$13)^2)+(($I$4*$A16)^2))/1000 -> 359.0125346 | MW16: =SQRT((($I$3*MW$13)^2)+(($I$4*$A16)^2))/1000 -> 360.0124998 | MX16: =SQRT((($I$3*MX$13)^2)+(($I$4*$A16)^2))/1000 -> 361.0124652 | MY16: =SQRT((($I$3*MY$13)^2)+(($I$4*$A16)^2))/1000 -> 362.0124307 | MZ16: =SQRT((($I$3*MZ$13)^2)+(($I$4*$A16)^2))/1000 -> 363.0123965 | NA16: =SQRT((($I$3*NA$13)^2)+(($I$4*$A16)^2))/1000 -> 364.0123624 | NB16: =SQRT((($I$3*NB$13)^2)+(($I$4*$A16)^2))/1000 -> 365.0123286 | NC16: =SQRT((($I$3*NC$13)^2)+(($I$4*$A16)^2))/1000 -> 366.0122949 | ND16: =SQRT((($I$3*ND$13)^2)+(($I$4*$A16)^2))/1000 -> 367.0122614 | NE16: =SQRT((($I$3*NE$13)^2)+(($I$4*$A16)^2))/1000 -> 368.0122281 | NF16: =SQRT((($I$3*NF$13)^2)+(($I$4*$A16)^2))/1000 -> 369.0121949 | NG16: =SQRT((($I$3*NG$13)^2)+(($I$4*$A16)^2))/1000 -> 370.012162 | NH16: =SQRT((($I$3*NH$13)^2)+(($I$4*$A16)^2))/1000 -> 371.0121292 | NI16: =SQRT((($I$3*NI$13)^2)+(($I$4*$A16)^2))/1000 -> 372.0120966 | NJ16: =SQRT((($I$3*NJ$13)^2)+(($I$4*$A16)^2))/1000 -> 373.0120641 | NK16: =SQRT((($I$3*NK$13)^2)+(($I$4*$A16)^2))/1000 -> 374.0120319 | NL16: =SQRT((($I$3*NL$13)^2)+(($I$4*$A16)^2))/1000 -> 375.0119998 | NM16: =SQRT((($I$3*NM$13)^2)+(($I$4*$A16)^2))/1000 -> 376.0119679 | NN16: =SQRT((($I$3*NN$13)^2)+(($I$4*$A16)^2))/1000 -> 377.0119362 | NO16: =SQRT((($I$3*NO$13)^2)+(($I$4*$A16)^2))/1000 -> 378.0119046 | NP16: =SQRT((($I$3*NP$13)^2)+(($I$4*$A16)^2))/1000 -> 379.0118732 | NQ16: =SQRT((($I$3*NQ$13)^2)+(($I$4*$A16)^2))/1000 -> 380.0118419 | NR16: =SQRT((($I$3*NR$13)^2)+(($I$4*$A16)^2))/1000 -> 381.0118108 | NS16: =SQRT((($I$3*NS$13)^2)+(($I$4*$A16)^2))/1000 -> 382.0117799 | NT16: =SQRT((($I$3*NT$13)^2)+(($I$4*$A16)^2))/1000 -> 383.0117492 | NU16: =SQRT((($I$3*NU$13)^2)+(($I$4*$A16)^2))/1000 -> 384.0117186 | NV16: =SQRT((($I$3*NV$13)^2)+(($I$4*$A16)^2))/1000 -> 385.0116881 | NW16: =SQRT((($I$3*NW$13)^2)+(($I$4*$A16)^2))/1000 -> 386.0116579 | NX16: =SQRT((($I$3*NX$13)^2)+(($I$4*$A16)^2))/1000 -> 387.0116277 | NY16: =SQRT((($I$3*NY$13)^2)+(($I$4*$A16)^2))/1000 -> 388.0115978 | NZ16: =SQRT((($I$3*NZ$13)^2)+(($I$4*$A16)^2))/1000 -> 389.011568 | OA16: =SQRT((($I$3*OA$13)^2)+(($I$4*$A16)^2))/1000 -> 390.0115383 | OB16: =SQRT((($I$3*OB$13)^2)+(($I$4*$A16)^2))/1000 -> 391.0115088 | OC16: =SQRT((($I$3*OC$13)^2)+(($I$4*$A16)^2))/1000 -> 392.0114794 | OD16: =SQRT((($I$3*OD$13)^2)+(($I$4*$A16)^2))/1000 -> 393.0114502 | OE16: =SQRT((($I$3*OE$13)^2)+(($I$4*$A16)^2))/1000 -> 394.0114212 | OF16: =SQRT((($I$3*OF$13)^2)+(($I$4*$A16)^2))/1000 -> 395.0113922 | OG16: =SQRT((($I$3*OG$13)^2)+(($I$4*$A16)^2))/1000 -> 396.0113635 | OH16: =SQRT((($I$3*OH$13)^2)+(($I$4*$A16)^2))/1000 -> 397.0113349 | OI16: =SQRT((($I$3*OI$13)^2)+(($I$4*$A16)^2))/1000 -> 398.0113064 | OJ16: =SQRT((($I$3*OJ$13)^2)+(($I$4*$A16)^2))/1000 -> 399.011278 | OK16: =SQRT((($I$3*OK$13)^2)+(($I$4*$A16)^2))/1000 -> 400.0112498 | OL16: =SQRT((($I$3*OL$13)^2)+(($I$4*$A16)^2))/1000 -> 401.0112218 | OM16: =SQRT((($I$3*OM$13)^2)+(($I$4*$A16)^2))/1000 -> 402.0111939 | ON16: =SQRT((($I$3*ON$13)^2)+(($I$4*$A16)^2))/1000 -> 403.0111661 | OO16: =SQRT((($I$3*OO$13)^2)+(($I$4*$A16)^2))/1000 -> 404.0111385 | OP16: =SQRT((($I$3*OP$13)^2)+(($I$4*$A16)^2))/1000 -> 405.011111 | OQ16: =SQRT((($I$3*OQ$13)^2)+(($I$4*$A16)^2))/1000 -> 406.0110836 | OR16: =SQRT((($I$3*OR$13)^2)+(($I$4*$A16)^2))/1000 -> 407.0110564 | OS16: =SQRT((($I$3*OS$13)^2)+(($I$4*$A16)^2))/1000 -> 408.0110293 | OT16: =SQRT((($I$3*OT$13)^2)+(($I$4*$A16)^2))/1000 -> 409.0110023 | OU16: =SQRT((($I$3*OU$13)^2)+(($I$4*$A16)^2))/1000 -> 410.0109755 | OV16: =SQRT((($I$3*OV$13)^2)+(($I$4*$A16)^2))/1000 -> 411.0109488 | OW16: =SQRT((($I$3*OW$13)^2)+(($I$4*$A16)^2))/1000 -> 412.0109222 | OX16: =SQRT((($I$3*OX$13)^2)+(($I$4*$A16)^2))/1000 -> 413.0108957 | OY16: =SQRT((($I$3*OY$13)^2)+(($I$4*$A16)^2))/1000 -> 414.0108694 | OZ16: =SQRT((($I$3*OZ$13)^2)+(($I$4*$A16)^2))/1000 -> 415.0108432 | PA16: =SQRT((($I$3*PA$13)^2)+(($I$4*$A16)^2))/1000 -> 416.0108172 | PB16: =SQRT((($I$3*PB$13)^2)+(($I$4*$A16)^2))/1000 -> 417.0107912 | PC16: =SQRT((($I$3*PC$13)^2)+(($I$4*$A16)^2))/1000 -> 418.0107654 | PD16: =SQRT((($I$3*PD$13)^2)+(($I$4*$A16)^2))/1000 -> 419.0107397 | PE16: =SQRT((($I$3*PE$13)^2)+(($I$4*$A16)^2))/1000 -> 420.0107141 | PF16: =SQRT((($I$3*PF$13)^2)+(($I$4*$A16)^2))/1000 -> 421.0106887 | PG16: =SQRT((($I$3*PG$13)^2)+(($I$4*$A16)^2))/1000 -> 422.0106634 | PH16: =SQRT((($I$3*PH$13)^2)+(($I$4*$A16)^2))/1000 -> 423.0106382 | PI16: =SQRT((($I$3*PI$13)^2)+(($I$4*$A16)^2))/1000 -> 424.0106131 | PJ16: =SQRT((($I$3*PJ$13)^2)+(($I$4*$A16)^2))/1000 -> 425.0105881 | PK16: =SQRT((($I$3*PK$13)^2)+(($I$4*$A16)^2))/1000 -> 426.0105632 | PL16: =SQRT((($I$3*PL$13)^2)+(($I$4*$A16)^2))/1000 -> 427.0105385 | PM16: =SQRT((($I$3*PM$13)^2)+(($I$4*$A16)^2))/1000 -> 428.0105139 | PN16: =SQRT((($I$3*PN$13)^2)+(($I$4*$A16)^2))/1000 -> 429.0104894 | PO16: =SQRT((($I$3*PO$13)^2)+(($I$4*$A16)^2))/1000 -> 430.010465 | PP16: =SQRT((($I$3*PP$13)^2)+(($I$4*$A16)^2))/1000 -> 431.0104407 | PQ16: =SQRT((($I$3*PQ$13)^2)+(($I$4*$A16)^2))/1000 -> 432.0104165 | PR16: =SQRT((($I$3*PR$13)^2)+(($I$4*$A16)^2))/1000 -> 433.0103925 | PS16: =SQRT((($I$3*PS$13)^2)+(($I$4*$A16)^2))/1000 -> 434.0103685 | PT16: =SQRT((($I$3*PT$13)^2)+(($I$4*$A16)^2))/1000 -> 435.0103447 | PU16: =SQRT((($I$3*PU$13)^2)+(($I$4*$A16)^2))/1000 -> 436.010321 | PV16: =SQRT((($I$3*PV$13)^2)+(($I$4*$A16)^2))/1000 -> 437.0102974 | PW16: =SQRT((($I$3*PW$13)^2)+(($I$4*$A16)^2))/1000 -> 438.0102739 | PX16: =SQRT((($I$3*PX$13)^2)+(($I$4*$A16)^2))/1000 -> 439.0102504 | PY16: =SQRT((($I$3*PY$13)^2)+(($I$4*$A16)^2))/1000 -> 440.0102272 | PZ16: =SQRT((($I$3*PZ$13)^2)+(($I$4*$A16)^2))/1000 -> 441.010204 | QA16: =SQRT((($I$3*QA$13)^2)+(($I$4*$A16)^2))/1000 -> 442.0101809 | QB16: =SQRT((($I$3*QB$13)^2)+(($I$4*$A16)^2))/1000 -> 443.0101579 | QC16: =SQRT((($I$3*QC$13)^2)+(($I$4*$A16)^2))/1000 -> 444.010135 | QD16: =SQRT((($I$3*QD$13)^2)+(($I$4*$A16)^2))/1000 -> 445.0101122 | QE16: =SQRT((($I$3*QE$13)^2)+(($I$4*$A16)^2))/1000 -> 446.0100896 | QF16: =SQRT((($I$3*QF$13)^2)+(($I$4*$A16)^2))/1000 -> 447.010067 | QG16: =SQRT((($I$3*QG$13)^2)+(($I$4*$A16)^2))/1000 -> 448.0100445 | QH16: =SQRT((($I$3*QH$13)^2)+(($I$4*$A16)^2))/1000 -> 449.0100222 | QI16: =SQRT((($I$3*QI$13)^2)+(($I$4*$A16)^2))/1000 -> 450.0099999 | QJ16: =SQRT((($I$3*QJ$13)^2)+(($I$4*$A16)^2))/1000 -> 451.0099777 | QK16: =SQRT((($I$3*QK$13)^2)+(($I$4*$A16)^2))/1000 -> 452.0099556 | QL16: =SQRT((($I$3*QL$13)^2)+(($I$4*$A16)^2))/1000 -> 453.0099337 | QM16: =SQRT((($I$3*QM$13)^2)+(($I$4*$A16)^2))/1000 -> 454.0099118 | QN16: =SQRT((($I$3*QN$13)^2)+(($I$4*$A16)^2))/1000 -> 455.00989 | QO16: =SQRT((($I$3*QO$13)^2)+(($I$4*$A16)^2))/1000 -> 456.0098683 | QP16: =SQRT((($I$3*QP$13)^2)+(($I$4*$A16)^2))/1000 -> 457.0098467 | QQ16: =SQRT((($I$3*QQ$13)^2)+(($I$4*$A16)^2))/1000 -> 458.0098252 | QR16: =SQRT((($I$3*QR$13)^2)+(($I$4*$A16)^2))/1000 -> 459.0098038 | QS16: =SQRT((($I$3*QS$13)^2)+(($I$4*$A16)^2))/1000 -> 460.0097825 | QT16: =SQRT((($I$3*QT$13)^2)+(($I$4*$A16)^2))/1000 -> 461.0097613 | QU16: =SQRT((($I$3*QU$13)^2)+(($I$4*$A16)^2))/1000 -> 462.0097402 | QV16: =SQRT((($I$3*QV$13)^2)+(($I$4*$A16)^2))/1000 -> 463.0097191 | QW16: =SQRT((($I$3*QW$13)^2)+(($I$4*$A16)^2))/1000 -> 464.0096982 | QX16: =SQRT((($I$3*QX$13)^2)+(($I$4*$A16)^2))/1000 -> 465.0096773 | QY16: =SQRT((($I$3*QY$13)^2)+(($I$4*$A16)^2))/1000 -> 466.0096566 | QZ16: =SQRT((($I$3*QZ$13)^2)+(($I$4*$A16)^2))/1000 -> 467.0096359 | RA16: =SQRT((($I$3*RA$13)^2)+(($I$4*$A16)^2))/1000 -> 468.0096153 | RB16: =SQRT((($I$3*RB$13)^2)+(($I$4*$A16)^2))/1000 -> 469.0095948 | RC16: =SQRT((($I$3*RC$13)^2)+(($I$4*$A16)^2))/1000 -> 470.0095744 | RD16: =SQRT((($I$3*RD$13)^2)+(($I$4*$A16)^2))/1000 -> 471.009554 | RE16: =SQRT((($I$3*RE$13)^2)+(($I$4*$A16)^2))/1000 -> 472.0095338 | RF16: =SQRT((($I$3*RF$13)^2)+(($I$4*$A16)^2))/1000 -> 473.0095136 | RG16: =SQRT((($I$3*RG$13)^2)+(($I$4*$A16)^2))/1000 -> 474.0094936 | RH16: =SQRT((($I$3*RH$13)^2)+(($I$4*$A16)^2))/1000 -> 475.0094736 | RI16: =SQRT((($I$3*RI$13)^2)+(($I$4*$A16)^2))/1000 -> 476.0094537 | RJ16: =SQRT((($I$3*RJ$13)^2)+(($I$4*$A16)^2))/1000 -> 477.0094339 | RK16: =SQRT((($I$3*RK$13)^2)+(($I$4*$A16)^2))/1000 -> 478.0094141 | RL16: =SQRT((($I$3*RL$13)^2)+(($I$4*$A16)^2))/1000 -> 479.0093945 | RM16: =SQRT((($I$3*RM$13)^2)+(($I$4*$A16)^2))/1000 -> 480.0093749 | RN16: =SQRT((($I$3*RN$13)^2)+(($I$4*$A16)^2))/1000 -> 481.0093554 | RO16: =SQRT((($I$3*RO$13)^2)+(($I$4*$A16)^2))/1000 -> 482.009336 | RP16: =SQRT((($I$3*RP$13)^2)+(($I$4*$A16)^2))/1000 -> 483.0093167 | RQ16: =SQRT((($I$3*RQ$13)^2)+(($I$4*$A16)^2))/1000 -> 484.0092974 | RR16: =SQRT((($I$3*RR$13)^2)+(($I$4*$A16)^2))/1000 -> 485.0092783 | RS16: =SQRT((($I$3*RS$13)^2)+(($I$4*$A16)^2))/1000 -> 486.0092592 | RT16: =SQRT((($I$3*RT$13)^2)+(($I$4*$A16)^2))/1000 -> 487.0092402 | RU16: =SQRT((($I$3*RU$13)^2)+(($I$4*$A16)^2))/1000 -> 488.0092212 | RV16: =SQRT((($I$3*RV$13)^2)+(($I$4*$A16)^2))/1000 -> 489.0092024 | RW16: =SQRT((($I$3*RW$13)^2)+(($I$4*$A16)^2))/1000 -> 490.0091836 | RX16: =SQRT((($I$3*RX$13)^2)+(($I$4*$A16)^2))/1000 -> 491.0091649 | RY16: =SQRT((($I$3*RY$13)^2)+(($I$4*$A16)^2))/1000 -> 492.0091463 | RZ16: =SQRT((($I$3*RZ$13)^2)+(($I$4*$A16)^2))/1000 -> 493.0091277 | SA16: =SQRT((($I$3*SA$13)^2)+(($I$4*$A16)^2))/1000 -> 494.0091092 | SB16: =SQRT((($I$3*SB$13)^2)+(($I$4*$A16)^2))/1000 -> 495.0090908 | SC16: =SQRT((($I$3*SC$13)^2)+(($I$4*$A16)^2))/1000 -> 496.0090725 | SD16: =SQRT((($I$3*SD$13)^2)+(($I$4*$A16)^2))/1000 -> 497.0090542 | SE16: =SQRT((($I$3*SE$13)^2)+(($I$4*$A16)^2))/1000 -> 498.0090361 | SF16: =SQRT((($I$3*SF$13)^2)+(($I$4*$A16)^2))/1000 -> 499.009018 | SG16: =SQRT((($I$3*SG$13)^2)+(($I$4*$A16)^2))/1000 -> 500.0089999
A17: 4 | B17: =SQRT((($I$3*B$13)^2)+(($I$4*$A17)^2))/1000 -> 4.123105626 | C17: =SQRT((($I$3*C$13)^2)+(($I$4*$A17)^2))/1000 -> 4.472135955 | D17: =SQRT((($I$3*D$13)^2)+(($I$4*$A17)^2))/1000 -> 5 | E17: =SQRT((($I$3*E$13)^2)+(($I$4*$A17)^2))/1000 -> 5.656854249 | F17: =SQRT((($I$3*F$13)^2)+(($I$4*$A17)^2))/1000 -> 6.403124237 | G17: =SQRT((($I$3*G$13)^2)+(($I$4*$A17)^2))/1000 -> 7.211102551 | H17: =SQRT((($I$3*H$13)^2)+(($I$4*$A17)^2))/1000 -> 8.062257748 | I17: =SQRT((($I$3*I$13)^2)+(($I$4*$A17)^2))/1000 -> 8.94427191 | J17: =SQRT((($I$3*J$13)^2)+(($I$4*$A17)^2))/1000 -> 9.848857802 | K17: =SQRT((($I$3*K$13)^2)+(($I$4*$A17)^2))/1000 -> 10.77032961 | L17: =SQRT((($I$3*L$13)^2)+(($I$4*$A17)^2))/1000 -> 11.70469991 | M17: =SQRT((($I$3*M$13)^2)+(($I$4*$A17)^2))/1000 -> 12.64911064 | N17: =SQRT((($I$3*N$13)^2)+(($I$4*$A17)^2))/1000 -> 13.60147051 | O17: =SQRT((($I$3*O$13)^2)+(($I$4*$A17)^2))/1000 -> 14.56021978 | P17: =SQRT((($I$3*P$13)^2)+(($I$4*$A17)^2))/1000 -> 15.5241747 | Q17: =SQRT((($I$3*Q$13)^2)+(($I$4*$A17)^2))/1000 -> 16.4924225 | R17: =SQRT((($I$3*R$13)^2)+(($I$4*$A17)^2))/1000 -> 17.4642492 | S17: =SQRT((($I$3*S$13)^2)+(($I$4*$A17)^2))/1000 -> 18.43908891 | T17: =SQRT((($I$3*T$13)^2)+(($I$4*$A17)^2))/1000 -> 19.41648784 | U17: =SQRT((($I$3*U$13)^2)+(($I$4*$A17)^2))/1000 -> 20.39607805 | V17: =SQRT((($I$3*V$13)^2)+(($I$4*$A17)^2))/1000 -> 21.37755833 | W17: =SQRT((($I$3*W$13)^2)+(($I$4*$A17)^2))/1000 -> 22.36067977 | X17: =SQRT((($I$3*X$13)^2)+(($I$4*$A17)^2))/1000 -> 23.34523506 | Y17: =SQRT((($I$3*Y$13)^2)+(($I$4*$A17)^2))/1000 -> 24.33105012 | Z17: =SQRT((($I$3*Z$13)^2)+(($I$4*$A17)^2))/1000 -> 25.3179778 | AA17: =SQRT((($I$3*AA$13)^2)+(($I$4*$A17)^2))/1000 -> 26.30589288 | AB17: =SQRT((($I$3*AB$13)^2)+(($I$4*$A17)^2))/1000 -> 27.29468813 | AC17: =SQRT((($I$3*AC$13)^2)+(($I$4*$A17)^2))/1000 -> 28.28427125 | AD17: =SQRT((($I$3*AD$13)^2)+(($I$4*$A17)^2))/1000 -> 29.27456234 | AE17: =SQRT((($I$3*AE$13)^2)+(($I$4*$A17)^2))/1000 -> 30.2654919 | AF17: =SQRT((($I$3*AF$13)^2)+(($I$4*$A17)^2))/1000 -> 31.25699922 | AG17: =SQRT((($I$3*AG$13)^2)+(($I$4*$A17)^2))/1000 -> 32.24903099 | AH17: =SQRT((($I$3*AH$13)^2)+(($I$4*$A17)^2))/1000 -> 33.24154028 | AI17: =SQRT((($I$3*AI$13)^2)+(($I$4*$A17)^2))/1000 -> 34.23448554 | AJ17: =SQRT((($I$3*AJ$13)^2)+(($I$4*$A17)^2))/1000 -> 35.22782991 | AK17: =SQRT((($I$3*AK$13)^2)+(($I$4*$A17)^2))/1000 -> 36.22154055 | AL17: =SQRT((($I$3*AL$13)^2)+(($I$4*$A17)^2))/1000 -> 37.21558813 | AM17: =SQRT((($I$3*AM$13)^2)+(($I$4*$A17)^2))/1000 -> 38.20994635 | AN17: =SQRT((($I$3*AN$13)^2)+(($I$4*$A17)^2))/1000 -> 39.20459157 | AO17: =SQRT((($I$3*AO$13)^2)+(($I$4*$A17)^2))/1000 -> 40.19950248 | AP17: =SQRT((($I$3*AP$13)^2)+(($I$4*$A17)^2))/1000 -> 41.19465985 | AQ17: =SQRT((($I$3*AQ$13)^2)+(($I$4*$A17)^2))/1000 -> 42.19004622 | AR17: =SQRT((($I$3*AR$13)^2)+(($I$4*$A17)^2))/1000 -> 43.18564576 | AS17: =SQRT((($I$3*AS$13)^2)+(($I$4*$A17)^2))/1000 -> 44.18144407 | AT17: =SQRT((($I$3*AT$13)^2)+(($I$4*$A17)^2))/1000 -> 45.17742799 | AU17: =SQRT((($I$3*AU$13)^2)+(($I$4*$A17)^2))/1000 -> 46.17358552 | AV17: =SQRT((($I$3*AV$13)^2)+(($I$4*$A17)^2))/1000 -> 47.16990566 | AW17: =SQRT((($I$3*AW$13)^2)+(($I$4*$A17)^2))/1000 -> 48.16637832 | AX17: =SQRT((($I$3*AX$13)^2)+(($I$4*$A17)^2))/1000 -> 49.16299421 | AY17: =SQRT((($I$3*AY$13)^2)+(($I$4*$A17)^2))/1000 -> 50.15974482 | AZ17: =SQRT((($I$3*AZ$13)^2)+(($I$4*$A17)^2))/1000 -> 51.15662225 | BA17: =SQRT((($I$3*BA$13)^2)+(($I$4*$A17)^2))/1000 -> 52.15361924 | BB17: =SQRT((($I$3*BB$13)^2)+(($I$4*$A17)^2))/1000 -> 53.15072906 | BC17: =SQRT((($I$3*BC$13)^2)+(($I$4*$A17)^2))/1000 -> 54.14794548 | BD17: =SQRT((($I$3*BD$13)^2)+(($I$4*$A17)^2))/1000 -> 55.14526272 | BE17: =SQRT((($I$3*BE$13)^2)+(($I$4*$A17)^2))/1000 -> 56.14267539 | BF17: =SQRT((($I$3*BF$13)^2)+(($I$4*$A17)^2))/1000 -> 57.14017851 | BG17: =SQRT((($I$3*BG$13)^2)+(($I$4*$A17)^2))/1000 -> 58.13776741 | BH17: =SQRT((($I$3*BH$13)^2)+(($I$4*$A17)^2))/1000 -> 59.13543777 | BI17: =SQRT((($I$3*BI$13)^2)+(($I$4*$A17)^2))/1000 -> 60.13318551 | BJ17: =SQRT((($I$3*BJ$13)^2)+(($I$4*$A17)^2))/1000 -> 61.13100686 | BK17: =SQRT((($I$3*BK$13)^2)+(($I$4*$A17)^2))/1000 -> 62.12889827 | BL17: =SQRT((($I$3*BL$13)^2)+(($I$4*$A17)^2))/1000 -> 63.12685641 | BM17: =SQRT((($I$3*BM$13)^2)+(($I$4*$A17)^2))/1000 -> 64.12487817 | BN17: =SQRT((($I$3*BN$13)^2)+(($I$4*$A17)^2))/1000 -> 65.12296062 | BO17: =SQRT((($I$3*BO$13)^2)+(($I$4*$A17)^2))/1000 -> 66.12110102 | BP17: =SQRT((($I$3*BP$13)^2)+(($I$4*$A17)^2))/1000 -> 67.11929678 | BQ17: =SQRT((($I$3*BQ$13)^2)+(($I$4*$A17)^2))/1000 -> 68.11754546 | BR17: =SQRT((($I$3*BR$13)^2)+(($I$4*$A17)^2))/1000 -> 69.11584478 | BS17: =SQRT((($I$3*BS$13)^2)+(($I$4*$A17)^2))/1000 -> 70.11419257 | BT17: =SQRT((($I$3*BT$13)^2)+(($I$4*$A17)^2))/1000 -> 71.11258679 | BU17: =SQRT((($I$3*BU$13)^2)+(($I$4*$A17)^2))/1000 -> 72.11102551 | BV17: =SQRT((($I$3*BV$13)^2)+(($I$4*$A17)^2))/1000 -> 73.10950691 | BW17: =SQRT((($I$3*BW$13)^2)+(($I$4*$A17)^2))/1000 -> 74.10802925 | BX17: =SQRT((($I$3*BX$13)^2)+(($I$4*$A17)^2))/1000 -> 75.10659092 | BY17: =SQRT((($I$3*BY$13)^2)+(($I$4*$A17)^2))/1000 -> 76.10519036 | BZ17: =SQRT((($I$3*BZ$13)^2)+(($I$4*$A17)^2))/1000 -> 77.1038261 | CA17: =SQRT((($I$3*CA$13)^2)+(($I$4*$A17)^2))/1000 -> 78.10249676 | CB17: =SQRT((($I$3*CB$13)^2)+(($I$4*$A17)^2))/1000 -> 79.101201 | CC17: =SQRT((($I$3*CC$13)^2)+(($I$4*$A17)^2))/1000 -> 80.09993758 | CD17: =SQRT((($I$3*CD$13)^2)+(($I$4*$A17)^2))/1000 -> 81.09870529 | CE17: =SQRT((($I$3*CE$13)^2)+(($I$4*$A17)^2))/1000 -> 82.09750301 | CF17: =SQRT((($I$3*CF$13)^2)+(($I$4*$A17)^2))/1000 -> 83.09632964 | CG17: =SQRT((($I$3*CG$13)^2)+(($I$4*$A17)^2))/1000 -> 84.09518417 | CH17: =SQRT((($I$3*CH$13)^2)+(($I$4*$A17)^2))/1000 -> 85.0940656 | CI17: =SQRT((($I$3*CI$13)^2)+(($I$4*$A17)^2))/1000 -> 86.092973 | CJ17: =SQRT((($I$3*CJ$13)^2)+(($I$4*$A17)^2))/1000 -> 87.09190548 | CK17: =SQRT((($I$3*CK$13)^2)+(($I$4*$A17)^2))/1000 -> 88.09086218 | CL17: =SQRT((($I$3*CL$13)^2)+(($I$4*$A17)^2))/1000 -> 89.08984229 | CM17: =SQRT((($I$3*CM$13)^2)+(($I$4*$A17)^2))/1000 -> 90.08884504 | CN17: =SQRT((($I$3*CN$13)^2)+(($I$4*$A17)^2))/1000 -> 91.08786966 | CO17: =SQRT((($I$3*CO$13)^2)+(($I$4*$A17)^2))/1000 -> 92.08691547 | CP17: =SQRT((($I$3*CP$13)^2)+(($I$4*$A17)^2))/1000 -> 93.08598176 | CQ17: =SQRT((($I$3*CQ$13)^2)+(($I$4*$A17)^2))/1000 -> 94.08506789 | CR17: =SQRT((($I$3*CR$13)^2)+(($I$4*$A17)^2))/1000 -> 95.08417324 | CS17: =SQRT((($I$3*CS$13)^2)+(($I$4*$A17)^2))/1000 -> 96.0832972 | CT17: =SQRT((($I$3*CT$13)^2)+(($I$4*$A17)^2))/1000 -> 97.08243919 | CU17: =SQRT((($I$3*CU$13)^2)+(($I$4*$A17)^2))/1000 -> 98.08159868 | CV17: =SQRT((($I$3*CV$13)^2)+(($I$4*$A17)^2))/1000 -> 99.08077513 | CW17: =SQRT((($I$3*CW$13)^2)+(($I$4*$A17)^2))/1000 -> 100.079968 | CX17: =SQRT((($I$3*CX$13)^2)+(($I$4*$A17)^2))/1000 -> 101.0791769 | CY17: =SQRT((($I$3*CY$13)^2)+(($I$4*$A17)^2))/1000 -> 102.0784012 | CZ17: =SQRT((($I$3*CZ$13)^2)+(($I$4*$A17)^2))/1000 -> 103.0776406 | DA17: =SQRT((($I$3*DA$13)^2)+(($I$4*$A17)^2))/1000 -> 104.0768947 | DB17: =SQRT((($I$3*DB$13)^2)+(($I$4*$A17)^2))/1000 -> 105.0761629 | DC17: =SQRT((($I$3*DC$13)^2)+(($I$4*$A17)^2))/1000 -> 106.0754448 | DD17: =SQRT((($I$3*DD$13)^2)+(($I$4*$A17)^2))/1000 -> 107.0747403 | DE17: =SQRT((($I$3*DE$13)^2)+(($I$4*$A17)^2))/1000 -> 108.0740487 | DF17: =SQRT((($I$3*DF$13)^2)+(($I$4*$A17)^2))/1000 -> 109.0733698 | DG17: =SQRT((($I$3*DG$13)^2)+(($I$4*$A17)^2))/1000 -> 110.0727032 | DH17: =SQRT((($I$3*DH$13)^2)+(($I$4*$A17)^2))/1000 -> 111.0720487 | DI17: =SQRT((($I$3*DI$13)^2)+(($I$4*$A17)^2))/1000 -> 112.0714058 | DJ17: =SQRT((($I$3*DJ$13)^2)+(($I$4*$A17)^2))/1000 -> 113.0707743 | DK17: =SQRT((($I$3*DK$13)^2)+(($I$4*$A17)^2))/1000 -> 114.0701539 | DL17: =SQRT((($I$3*DL$13)^2)+(($I$4*$A17)^2))/1000 -> 115.0695442 | DM17: =SQRT((($I$3*DM$13)^2)+(($I$4*$A17)^2))/1000 -> 116.068945 | DN17: =SQRT((($I$3*DN$13)^2)+(($I$4*$A17)^2))/1000 -> 117.0683561 | DO17: =SQRT((($I$3*DO$13)^2)+(($I$4*$A17)^2))/1000 -> 118.0677771 | DP17: =SQRT((($I$3*DP$13)^2)+(($I$4*$A17)^2))/1000 -> 119.0672079 | DQ17: =SQRT((($I$3*DQ$13)^2)+(($I$4*$A17)^2))/1000 -> 120.0666482 | DR17: =SQRT((($I$3*DR$13)^2)+(($I$4*$A17)^2))/1000 -> 121.0660976 | DS17: =SQRT((($I$3*DS$13)^2)+(($I$4*$A17)^2))/1000 -> 122.0655562 | DT17: =SQRT((($I$3*DT$13)^2)+(($I$4*$A17)^2))/1000 -> 123.0650235 | DU17: =SQRT((($I$3*DU$13)^2)+(($I$4*$A17)^2))/1000 -> 124.0644994 | DV17: =SQRT((($I$3*DV$13)^2)+(($I$4*$A17)^2))/1000 -> 125.0639836 | DW17: =SQRT((($I$3*DW$13)^2)+(($I$4*$A17)^2))/1000 -> 126.0634761 | DX17: =SQRT((($I$3*DX$13)^2)+(($I$4*$A17)^2))/1000 -> 127.0629765 | DY17: =SQRT((($I$3*DY$13)^2)+(($I$4*$A17)^2))/1000 -> 128.0624847 | DZ17: =SQRT((($I$3*DZ$13)^2)+(($I$4*$A17)^2))/1000 -> 129.0620006 | EA17: =SQRT((($I$3*EA$13)^2)+(($I$4*$A17)^2))/1000 -> 130.0615239 | EB17: =SQRT((($I$3*EB$13)^2)+(($I$4*$A17)^2))/1000 -> 131.0610545 | EC17: =SQRT((($I$3*EC$13)^2)+(($I$4*$A17)^2))/1000 -> 132.0605922 | ED17: =SQRT((($I$3*ED$13)^2)+(($I$4*$A17)^2))/1000 -> 133.0601368 | EE17: =SQRT((($I$3*EE$13)^2)+(($I$4*$A17)^2))/1000 -> 134.0596882 | EF17: =SQRT((($I$3*EF$13)^2)+(($I$4*$A17)^2))/1000 -> 135.0592463 | EG17: =SQRT((($I$3*EG$13)^2)+(($I$4*$A17)^2))/1000 -> 136.0588108 | EH17: =SQRT((($I$3*EH$13)^2)+(($I$4*$A17)^2))/1000 -> 137.0583817 | EI17: =SQRT((($I$3*EI$13)^2)+(($I$4*$A17)^2))/1000 -> 138.0579588 | EJ17: =SQRT((($I$3*EJ$13)^2)+(($I$4*$A17)^2))/1000 -> 139.057542 | EK17: =SQRT((($I$3*EK$13)^2)+(($I$4*$A17)^2))/1000 -> 140.0571312 | EL17: =SQRT((($I$3*EL$13)^2)+(($I$4*$A17)^2))/1000 -> 141.0567262 | EM17: =SQRT((($I$3*EM$13)^2)+(($I$4*$A17)^2))/1000 -> 142.0563269 | EN17: =SQRT((($I$3*EN$13)^2)+(($I$4*$A17)^2))/1000 -> 143.0559331 | EO17: =SQRT((($I$3*EO$13)^2)+(($I$4*$A17)^2))/1000 -> 144.0555448 | EP17: =SQRT((($I$3*EP$13)^2)+(($I$4*$A17)^2))/1000 -> 145.0551619 | EQ17: =SQRT((($I$3*EQ$13)^2)+(($I$4*$A17)^2))/1000 -> 146.0547842 | ER17: =SQRT((($I$3*ER$13)^2)+(($I$4*$A17)^2))/1000 -> 147.0544117 | ES17: =SQRT((($I$3*ES$13)^2)+(($I$4*$A17)^2))/1000 -> 148.0540442 | ET17: =SQRT((($I$3*ET$13)^2)+(($I$4*$A17)^2))/1000 -> 149.0536816 | EU17: =SQRT((($I$3*EU$13)^2)+(($I$4*$A17)^2))/1000 -> 150.0533239 | EV17: =SQRT((($I$3*EV$13)^2)+(($I$4*$A17)^2))/1000 -> 151.0529708 | EW17: =SQRT((($I$3*EW$13)^2)+(($I$4*$A17)^2))/1000 -> 152.0526225 | EX17: =SQRT((($I$3*EX$13)^2)+(($I$4*$A17)^2))/1000 -> 153.0522787 | EY17: =SQRT((($I$3*EY$13)^2)+(($I$4*$A17)^2))/1000 -> 154.0519393 | EZ17: =SQRT((($I$3*EZ$13)^2)+(($I$4*$A17)^2))/1000 -> 155.0516043 | FA17: =SQRT((($I$3*FA$13)^2)+(($I$4*$A17)^2))/1000 -> 156.0512736 | FB17: =SQRT((($I$3*FB$13)^2)+(($I$4*$A17)^2))/1000 -> 157.0509471 | FC17: =SQRT((($I$3*FC$13)^2)+(($I$4*$A17)^2))/1000 -> 158.0506248 | FD17: =SQRT((($I$3*FD$13)^2)+(($I$4*$A17)^2))/1000 -> 159.0503065 | FE17: =SQRT((($I$3*FE$13)^2)+(($I$4*$A17)^2))/1000 -> 160.0499922 | FF17: =SQRT((($I$3*FF$13)^2)+(($I$4*$A17)^2))/1000 -> 161.0496818 | FG17: =SQRT((($I$3*FG$13)^2)+(($I$4*$A17)^2))/1000 -> 162.0493752 | FH17: =SQRT((($I$3*FH$13)^2)+(($I$4*$A17)^2))/1000 -> 163.0490724 | FI17: =SQRT((($I$3*FI$13)^2)+(($I$4*$A17)^2))/1000 -> 164.0487732 | FJ17: =SQRT((($I$3*FJ$13)^2)+(($I$4*$A17)^2))/1000 -> 165.0484777 | FK17: =SQRT((($I$3*FK$13)^2)+(($I$4*$A17)^2))/1000 -> 166.0481858 | FL17: =SQRT((($I$3*FL$13)^2)+(($I$4*$A17)^2))/1000 -> 167.0478973 | FM17: =SQRT((($I$3*FM$13)^2)+(($I$4*$A17)^2))/1000 -> 168.0476123 | FN17: =SQRT((($I$3*FN$13)^2)+(($I$4*$A17)^2))/1000 -> 169.0473307 | FO17: =SQRT((($I$3*FO$13)^2)+(($I$4*$A17)^2))/1000 -> 170.0470523 | FP17: =SQRT((($I$3*FP$13)^2)+(($I$4*$A17)^2))/1000 -> 171.0467772 | FQ17: =SQRT((($I$3*FQ$13)^2)+(($I$4*$A17)^2))/1000 -> 172.0465053 | FR17: =SQRT((($I$3*FR$13)^2)+(($I$4*$A17)^2))/1000 -> 173.0462366 | FS17: =SQRT((($I$3*FS$13)^2)+(($I$4*$A17)^2))/1000 -> 174.0459709 | FT17: =SQRT((($I$3*FT$13)^2)+(($I$4*$A17)^2))/1000 -> 175.0457083 | FU17: =SQRT((($I$3*FU$13)^2)+(($I$4*$A17)^2))/1000 -> 176.0454487 | FV17: =SQRT((($I$3*FV$13)^2)+(($I$4*$A17)^2))/1000 -> 177.045192 | FW17: =SQRT((($I$3*FW$13)^2)+(($I$4*$A17)^2))/1000 -> 178.0449381 | FX17: =SQRT((($I$3*FX$13)^2)+(($I$4*$A17)^2))/1000 -> 179.0446872 | FY17: =SQRT((($I$3*FY$13)^2)+(($I$4*$A17)^2))/1000 -> 180.044439 | FZ17: =SQRT((($I$3*FZ$13)^2)+(($I$4*$A17)^2))/1000 -> 181.0441935 | GA17: =SQRT((($I$3*GA$13)^2)+(($I$4*$A17)^2))/1000 -> 182.0439507 | GB17: =SQRT((($I$3*GB$13)^2)+(($I$4*$A17)^2))/1000 -> 183.0437106 | GC17: =SQRT((($I$3*GC$13)^2)+(($I$4*$A17)^2))/1000 -> 184.0434731 | GD17: =SQRT((($I$3*GD$13)^2)+(($I$4*$A17)^2))/1000 -> 185.0432382 | GE17: =SQRT((($I$3*GE$13)^2)+(($I$4*$A17)^2))/1000 -> 186.0430058 | GF17: =SQRT((($I$3*GF$13)^2)+(($I$4*$A17)^2))/1000 -> 187.0427759 | GG17: =SQRT((($I$3*GG$13)^2)+(($I$4*$A17)^2))/1000 -> 188.0425484 | GH17: =SQRT((($I$3*GH$13)^2)+(($I$4*$A17)^2))/1000 -> 189.0423233 | GI17: =SQRT((($I$3*GI$13)^2)+(($I$4*$A17)^2))/1000 -> 190.0421006 | GJ17: =SQRT((($I$3*GJ$13)^2)+(($I$4*$A17)^2))/1000 -> 191.0418802 | GK17: =SQRT((($I$3*GK$13)^2)+(($I$4*$A17)^2))/1000 -> 192.0416621 | GL17: =SQRT((($I$3*GL$13)^2)+(($I$4*$A17)^2))/1000 -> 193.0414463 | GM17: =SQRT((($I$3*GM$13)^2)+(($I$4*$A17)^2))/1000 -> 194.0412327 | GN17: =SQRT((($I$3*GN$13)^2)+(($I$4*$A17)^2))/1000 -> 195.0410213 | GO17: =SQRT((($I$3*GO$13)^2)+(($I$4*$A17)^2))/1000 -> 196.0408121 | GP17: =SQRT((($I$3*GP$13)^2)+(($I$4*$A17)^2))/1000 -> 197.040605 | GQ17: =SQRT((($I$3*GQ$13)^2)+(($I$4*$A17)^2))/1000 -> 198.0403999 | GR17: =SQRT((($I$3*GR$13)^2)+(($I$4*$A17)^2))/1000 -> 199.0401969 | GS17: =SQRT((($I$3*GS$13)^2)+(($I$4*$A17)^2))/1000 -> 200.039996 | GT17: =SQRT((($I$3*GT$13)^2)+(($I$4*$A17)^2))/1000 -> 201.0397971 | GU17: =SQRT((($I$3*GU$13)^2)+(($I$4*$A17)^2))/1000 -> 202.0396001 | GV17: =SQRT((($I$3*GV$13)^2)+(($I$4*$A17)^2))/1000 -> 203.039405 | GW17: =SQRT((($I$3*GW$13)^2)+(($I$4*$A17)^2))/1000 -> 204.0392119 | GX17: =SQRT((($I$3*GX$13)^2)+(($I$4*$A17)^2))/1000 -> 205.0390207 | GY17: =SQRT((($I$3*GY$13)^2)+(($I$4*$A17)^2))/1000 -> 206.0388313 | GZ17: =SQRT((($I$3*GZ$13)^2)+(($I$4*$A17)^2))/1000 -> 207.0386437 | HA17: =SQRT((($I$3*HA$13)^2)+(($I$4*$A17)^2))/1000 -> 208.038458 | HB17: =SQRT((($I$3*HB$13)^2)+(($I$4*$A17)^2))/1000 -> 209.038274 | HC17: =SQRT((($I$3*HC$13)^2)+(($I$4*$A17)^2))/1000 -> 210.0380918 | HD17: =SQRT((($I$3*HD$13)^2)+(($I$4*$A17)^2))/1000 -> 211.0379113 | HE17: =SQRT((($I$3*HE$13)^2)+(($I$4*$A17)^2))/1000 -> 212.0377325 | HF17: =SQRT((($I$3*HF$13)^2)+(($I$4*$A17)^2))/1000 -> 213.0375554 | HG17: =SQRT((($I$3*HG$13)^2)+(($I$4*$A17)^2))/1000 -> 214.0373799 | HH17: =SQRT((($I$3*HH$13)^2)+(($I$4*$A17)^2))/1000 -> 215.0372061 | HI17: =SQRT((($I$3*HI$13)^2)+(($I$4*$A17)^2))/1000 -> 216.0370339 | HJ17: =SQRT((($I$3*HJ$13)^2)+(($I$4*$A17)^2))/1000 -> 217.0368632 | HK17: =SQRT((($I$3*HK$13)^2)+(($I$4*$A17)^2))/1000 -> 218.0366942 | HL17: =SQRT((($I$3*HL$13)^2)+(($I$4*$A17)^2))/1000 -> 219.0365266 | HM17: =SQRT((($I$3*HM$13)^2)+(($I$4*$A17)^2))/1000 -> 220.0363606 | HN17: =SQRT((($I$3*HN$13)^2)+(($I$4*$A17)^2))/1000 -> 221.0361961 | HO17: =SQRT((($I$3*HO$13)^2)+(($I$4*$A17)^2))/1000 -> 222.0360331 | HP17: =SQRT((($I$3*HP$13)^2)+(($I$4*$A17)^2))/1000 -> 223.0358716 | HQ17: =SQRT((($I$3*HQ$13)^2)+(($I$4*$A17)^2))/1000 -> 224.0357114 | HR17: =SQRT((($I$3*HR$13)^2)+(($I$4*$A17)^2))/1000 -> 225.0355527 | HS17: =SQRT((($I$3*HS$13)^2)+(($I$4*$A17)^2))/1000 -> 226.0353955 | HT17: =SQRT((($I$3*HT$13)^2)+(($I$4*$A17)^2))/1000 -> 227.0352396 | HU17: =SQRT((($I$3*HU$13)^2)+(($I$4*$A17)^2))/1000 -> 228.035085 | HV17: =SQRT((($I$3*HV$13)^2)+(($I$4*$A17)^2))/1000 -> 229.0349318 | HW17: =SQRT((($I$3*HW$13)^2)+(($I$4*$A17)^2))/1000 -> 230.03478 | HX17: =SQRT((($I$3*HX$13)^2)+(($I$4*$A17)^2))/1000 -> 231.0346294 | HY17: =SQRT((($I$3*HY$13)^2)+(($I$4*$A17)^2))/1000 -> 232.0344802 | HZ17: =SQRT((($I$3*HZ$13)^2)+(($I$4*$A17)^2))/1000 -> 233.0343322 | IA17: =SQRT((($I$3*IA$13)^2)+(($I$4*$A17)^2))/1000 -> 234.0341855 | IB17: =SQRT((($I$3*IB$13)^2)+(($I$4*$A17)^2))/1000 -> 235.0340401 | IC17: =SQRT((($I$3*IC$13)^2)+(($I$4*$A17)^2))/1000 -> 236.0338959 | ID17: =SQRT((($I$3*ID$13)^2)+(($I$4*$A17)^2))/1000 -> 237.0337529 | IE17: =SQRT((($I$3*IE$13)^2)+(($I$4*$A17)^2))/1000 -> 238.0336111 | IF17: =SQRT((($I$3*IF$13)^2)+(($I$4*$A17)^2))/1000 -> 239.0334705 | IG17: =SQRT((($I$3*IG$13)^2)+(($I$4*$A17)^2))/1000 -> 240.033331 | IH17: =SQRT((($I$3*IH$13)^2)+(($I$4*$A17)^2))/1000 -> 241.0331927 | II17: =SQRT((($I$3*II$13)^2)+(($I$4*$A17)^2))/1000 -> 242.0330556 | IJ17: =SQRT((($I$3*IJ$13)^2)+(($I$4*$A17)^2))/1000 -> 243.0329196 | IK17: =SQRT((($I$3*IK$13)^2)+(($I$4*$A17)^2))/1000 -> 244.0327847 | IL17: =SQRT((($I$3*IL$13)^2)+(($I$4*$A17)^2))/1000 -> 245.0326509 | IM17: =SQRT((($I$3*IM$13)^2)+(($I$4*$A17)^2))/1000 -> 246.0325182 | IN17: =SQRT((($I$3*IN$13)^2)+(($I$4*$A17)^2))/1000 -> 247.0323865 | IO17: =SQRT((($I$3*IO$13)^2)+(($I$4*$A17)^2))/1000 -> 248.032256 | IP17: =SQRT((($I$3*IP$13)^2)+(($I$4*$A17)^2))/1000 -> 249.0321264 | IQ17: =SQRT((($I$3*IQ$13)^2)+(($I$4*$A17)^2))/1000 -> 250.031998 | IR17: =SQRT((($I$3*IR$13)^2)+(($I$4*$A17)^2))/1000 -> 251.0318705 | IS17: =SQRT((($I$3*IS$13)^2)+(($I$4*$A17)^2))/1000 -> 252.031744 | IT17: =SQRT((($I$3*IT$13)^2)+(($I$4*$A17)^2))/1000 -> 253.0316186 | IU17: =SQRT((($I$3*IU$13)^2)+(($I$4*$A17)^2))/1000 -> 254.0314941 | IV17: =SQRT((($I$3*IV$13)^2)+(($I$4*$A17)^2))/1000 -> 255.0313706 | IW17: =SQRT((($I$3*IW$13)^2)+(($I$4*$A17)^2))/1000 -> 256.0312481 | IX17: =SQRT((($I$3*IX$13)^2)+(($I$4*$A17)^2))/1000 -> 257.0311265 | IY17: =SQRT((($I$3*IY$13)^2)+(($I$4*$A17)^2))/1000 -> 258.0310059 | IZ17: =SQRT((($I$3*IZ$13)^2)+(($I$4*$A17)^2))/1000 -> 259.0308862 | JA17: =SQRT((($I$3*JA$13)^2)+(($I$4*$A17)^2))/1000 -> 260.0307674 | JB17: =SQRT((($I$3*JB$13)^2)+(($I$4*$A17)^2))/1000 -> 261.0306495 | JC17: =SQRT((($I$3*JC$13)^2)+(($I$4*$A17)^2))/1000 -> 262.0305326 | JD17: =SQRT((($I$3*JD$13)^2)+(($I$4*$A17)^2))/1000 -> 263.0304165 | JE17: =SQRT((($I$3*JE$13)^2)+(($I$4*$A17)^2))/1000 -> 264.0303013 | JF17: =SQRT((($I$3*JF$13)^2)+(($I$4*$A17)^2))/1000 -> 265.030187 | JG17: =SQRT((($I$3*JG$13)^2)+(($I$4*$A17)^2))/1000 -> 266.0300735 | JH17: =SQRT((($I$3*JH$13)^2)+(($I$4*$A17)^2))/1000 -> 267.0299609 | JI17: =SQRT((($I$3*JI$13)^2)+(($I$4*$A17)^2))/1000 -> 268.0298491 | JJ17: =SQRT((($I$3*JJ$13)^2)+(($I$4*$A17)^2))/1000 -> 269.0297381 | JK17: =SQRT((($I$3*JK$13)^2)+(($I$4*$A17)^2))/1000 -> 270.029628 | JL17: =SQRT((($I$3*JL$13)^2)+(($I$4*$A17)^2))/1000 -> 271.0295187 | JM17: =SQRT((($I$3*JM$13)^2)+(($I$4*$A17)^2))/1000 -> 272.0294102 | JN17: =SQRT((($I$3*JN$13)^2)+(($I$4*$A17)^2))/1000 -> 273.0293025 | JO17: =SQRT((($I$3*JO$13)^2)+(($I$4*$A17)^2))/1000 -> 274.0291955 | JP17: =SQRT((($I$3*JP$13)^2)+(($I$4*$A17)^2))/1000 -> 275.0290894 | JQ17: =SQRT((($I$3*JQ$13)^2)+(($I$4*$A17)^2))/1000 -> 276.028984 | JR17: =SQRT((($I$3*JR$13)^2)+(($I$4*$A17)^2))/1000 -> 277.0288794 | JS17: =SQRT((($I$3*JS$13)^2)+(($I$4*$A17)^2))/1000 -> 278.0287755 | JT17: =SQRT((($I$3*JT$13)^2)+(($I$4*$A17)^2))/1000 -> 279.0286724 | JU17: =SQRT((($I$3*JU$13)^2)+(($I$4*$A17)^2))/1000 -> 280.02857 | JV17: =SQRT((($I$3*JV$13)^2)+(($I$4*$A17)^2))/1000 -> 281.0284683 | JW17: =SQRT((($I$3*JW$13)^2)+(($I$4*$A17)^2))/1000 -> 282.0283674 | JX17: =SQRT((($I$3*JX$13)^2)+(($I$4*$A17)^2))/1000 -> 283.0282671 | JY17: =SQRT((($I$3*JY$13)^2)+(($I$4*$A17)^2))/1000 -> 284.0281676 | JZ17: =SQRT((($I$3*JZ$13)^2)+(($I$4*$A17)^2))/1000 -> 285.0280688 | KA17: =SQRT((($I$3*KA$13)^2)+(($I$4*$A17)^2))/1000 -> 286.0279707 | KB17: =SQRT((($I$3*KB$13)^2)+(($I$4*$A17)^2))/1000 -> 287.0278732 | KC17: =SQRT((($I$3*KC$13)^2)+(($I$4*$A17)^2))/1000 -> 288.0277764 | KD17: =SQRT((($I$3*KD$13)^2)+(($I$4*$A17)^2))/1000 -> 289.0276803 | KE17: =SQRT((($I$3*KE$13)^2)+(($I$4*$A17)^2))/1000 -> 290.0275849 | KF17: =SQRT((($I$3*KF$13)^2)+(($I$4*$A17)^2))/1000 -> 291.0274901 | KG17: =SQRT((($I$3*KG$13)^2)+(($I$4*$A17)^2))/1000 -> 292.027396 | KH17: =SQRT((($I$3*KH$13)^2)+(($I$4*$A17)^2))/1000 -> 293.0273025 | KI17: =SQRT((($I$3*KI$13)^2)+(($I$4*$A17)^2))/1000 -> 294.0272096 | KJ17: =SQRT((($I$3*KJ$13)^2)+(($I$4*$A17)^2))/1000 -> 295.0271174 | KK17: =SQRT((($I$3*KK$13)^2)+(($I$4*$A17)^2))/1000 -> 296.0270258 | KL17: =SQRT((($I$3*KL$13)^2)+(($I$4*$A17)^2))/1000 -> 297.0269348 | KM17: =SQRT((($I$3*KM$13)^2)+(($I$4*$A17)^2))/1000 -> 298.0268444 | KN17: =SQRT((($I$3*KN$13)^2)+(($I$4*$A17)^2))/1000 -> 299.0267547 | KO17: =SQRT((($I$3*KO$13)^2)+(($I$4*$A17)^2))/1000 -> 300.0266655 | KP17: =SQRT((($I$3*KP$13)^2)+(($I$4*$A17)^2))/1000 -> 301.0265769 | KQ17: =SQRT((($I$3*KQ$13)^2)+(($I$4*$A17)^2))/1000 -> 302.0264889 | KR17: =SQRT((($I$3*KR$13)^2)+(($I$4*$A17)^2))/1000 -> 303.0264015 | KS17: =SQRT((($I$3*KS$13)^2)+(($I$4*$A17)^2))/1000 -> 304.0263147 | KT17: =SQRT((($I$3*KT$13)^2)+(($I$4*$A17)^2))/1000 -> 305.0262284 | KU17: =SQRT((($I$3*KU$13)^2)+(($I$4*$A17)^2))/1000 -> 306.0261427 | KV17: =SQRT((($I$3*KV$13)^2)+(($I$4*$A17)^2))/1000 -> 307.0260575 | KW17: =SQRT((($I$3*KW$13)^2)+(($I$4*$A17)^2))/1000 -> 308.0259729 | KX17: =SQRT((($I$3*KX$13)^2)+(($I$4*$A17)^2))/1000 -> 309.0258889 | KY17: =SQRT((($I$3*KY$13)^2)+(($I$4*$A17)^2))/1000 -> 310.0258054 | KZ17: =SQRT((($I$3*KZ$13)^2)+(($I$4*$A17)^2))/1000 -> 311.0257224 | LA17: =SQRT((($I$3*LA$13)^2)+(($I$4*$A17)^2))/1000 -> 312.02564 | LB17: =SQRT((($I$3*LB$13)^2)+(($I$4*$A17)^2))/1000 -> 313.0255581 | LC17: =SQRT((($I$3*LC$13)^2)+(($I$4*$A17)^2))/1000 -> 314.0254767 | LD17: =SQRT((($I$3*LD$13)^2)+(($I$4*$A17)^2))/1000 -> 315.0253958 | LE17: =SQRT((($I$3*LE$13)^2)+(($I$4*$A17)^2))/1000 -> 316.0253154 | LF17: =SQRT((($I$3*LF$13)^2)+(($I$4*$A17)^2))/1000 -> 317.0252356 | LG17: =SQRT((($I$3*LG$13)^2)+(($I$4*$A17)^2))/1000 -> 318.0251562 | LH17: =SQRT((($I$3*LH$13)^2)+(($I$4*$A17)^2))/1000 -> 319.0250774 | LI17: =SQRT((($I$3*LI$13)^2)+(($I$4*$A17)^2))/1000 -> 320.024999 | LJ17: =SQRT((($I$3*LJ$13)^2)+(($I$4*$A17)^2))/1000 -> 321.0249212 | LK17: =SQRT((($I$3*LK$13)^2)+(($I$4*$A17)^2))/1000 -> 322.0248438 | LL17: =SQRT((($I$3*LL$13)^2)+(($I$4*$A17)^2))/1000 -> 323.0247669 | LM17: =SQRT((($I$3*LM$13)^2)+(($I$4*$A17)^2))/1000 -> 324.0246904 | LN17: =SQRT((($I$3*LN$13)^2)+(($I$4*$A17)^2))/1000 -> 325.0246145 | LO17: =SQRT((($I$3*LO$13)^2)+(($I$4*$A17)^2))/1000 -> 326.024539 | LP17: =SQRT((($I$3*LP$13)^2)+(($I$4*$A17)^2))/1000 -> 327.0244639 | LQ17: =SQRT((($I$3*LQ$13)^2)+(($I$4*$A17)^2))/1000 -> 328.0243893 | LR17: =SQRT((($I$3*LR$13)^2)+(($I$4*$A17)^2))/1000 -> 329.0243152 | LS17: =SQRT((($I$3*LS$13)^2)+(($I$4*$A17)^2))/1000 -> 330.0242415 | LT17: =SQRT((($I$3*LT$13)^2)+(($I$4*$A17)^2))/1000 -> 331.0241683 | LU17: =SQRT((($I$3*LU$13)^2)+(($I$4*$A17)^2))/1000 -> 332.0240955 | LV17: =SQRT((($I$3*LV$13)^2)+(($I$4*$A17)^2))/1000 -> 333.0240232 | LW17: =SQRT((($I$3*LW$13)^2)+(($I$4*$A17)^2))/1000 -> 334.0239512 | LX17: =SQRT((($I$3*LX$13)^2)+(($I$4*$A17)^2))/1000 -> 335.0238797 | LY17: =SQRT((($I$3*LY$13)^2)+(($I$4*$A17)^2))/1000 -> 336.0238087 | LZ17: =SQRT((($I$3*LZ$13)^2)+(($I$4*$A17)^2))/1000 -> 337.023738 | MA17: =SQRT((($I$3*MA$13)^2)+(($I$4*$A17)^2))/1000 -> 338.0236678 | MB17: =SQRT((($I$3*MB$13)^2)+(($I$4*$A17)^2))/1000 -> 339.023598 | MC17: =SQRT((($I$3*MC$13)^2)+(($I$4*$A17)^2))/1000 -> 340.0235286 | MD17: =SQRT((($I$3*MD$13)^2)+(($I$4*$A17)^2))/1000 -> 341.0234596 | ME17: =SQRT((($I$3*ME$13)^2)+(($I$4*$A17)^2))/1000 -> 342.023391 | MF17: =SQRT((($I$3*MF$13)^2)+(($I$4*$A17)^2))/1000 -> 343.0233228 | MG17: =SQRT((($I$3*MG$13)^2)+(($I$4*$A17)^2))/1000 -> 344.023255 | MH17: =SQRT((($I$3*MH$13)^2)+(($I$4*$A17)^2))/1000 -> 345.0231876 | MI17: =SQRT((($I$3*MI$13)^2)+(($I$4*$A17)^2))/1000 -> 346.0231206 | MJ17: =SQRT((($I$3*MJ$13)^2)+(($I$4*$A17)^2))/1000 -> 347.023054 | MK17: =SQRT((($I$3*MK$13)^2)+(($I$4*$A17)^2))/1000 -> 348.0229877 | ML17: =SQRT((($I$3*ML$13)^2)+(($I$4*$A17)^2))/1000 -> 349.0229219 | MM17: =SQRT((($I$3*MM$13)^2)+(($I$4*$A17)^2))/1000 -> 350.0228564 | MN17: =SQRT((($I$3*MN$13)^2)+(($I$4*$A17)^2))/1000 -> 351.0227913 | MO17: =SQRT((($I$3*MO$13)^2)+(($I$4*$A17)^2))/1000 -> 352.0227265 | MP17: =SQRT((($I$3*MP$13)^2)+(($I$4*$A17)^2))/1000 -> 353.0226622 | MQ17: =SQRT((($I$3*MQ$13)^2)+(($I$4*$A17)^2))/1000 -> 354.0225981 | MR17: =SQRT((($I$3*MR$13)^2)+(($I$4*$A17)^2))/1000 -> 355.0225345 | MS17: =SQRT((($I$3*MS$13)^2)+(($I$4*$A17)^2))/1000 -> 356.0224712 | MT17: =SQRT((($I$3*MT$13)^2)+(($I$4*$A17)^2))/1000 -> 357.0224083 | MU17: =SQRT((($I$3*MU$13)^2)+(($I$4*$A17)^2))/1000 -> 358.0223457 | MV17: =SQRT((($I$3*MV$13)^2)+(($I$4*$A17)^2))/1000 -> 359.0222834 | MW17: =SQRT((($I$3*MW$13)^2)+(($I$4*$A17)^2))/1000 -> 360.0222215 | MX17: =SQRT((($I$3*MX$13)^2)+(($I$4*$A17)^2))/1000 -> 361.02216 | MY17: =SQRT((($I$3*MY$13)^2)+(($I$4*$A17)^2))/1000 -> 362.0220988 | MZ17: =SQRT((($I$3*MZ$13)^2)+(($I$4*$A17)^2))/1000 -> 363.0220379 | NA17: =SQRT((($I$3*NA$13)^2)+(($I$4*$A17)^2))/1000 -> 364.0219774 | NB17: =SQRT((($I$3*NB$13)^2)+(($I$4*$A17)^2))/1000 -> 365.0219172 | NC17: =SQRT((($I$3*NC$13)^2)+(($I$4*$A17)^2))/1000 -> 366.0218573 | ND17: =SQRT((($I$3*ND$13)^2)+(($I$4*$A17)^2))/1000 -> 367.0217977 | NE17: =SQRT((($I$3*NE$13)^2)+(($I$4*$A17)^2))/1000 -> 368.0217385 | NF17: =SQRT((($I$3*NF$13)^2)+(($I$4*$A17)^2))/1000 -> 369.0216796 | NG17: =SQRT((($I$3*NG$13)^2)+(($I$4*$A17)^2))/1000 -> 370.021621 | NH17: =SQRT((($I$3*NH$13)^2)+(($I$4*$A17)^2))/1000 -> 371.0215627 | NI17: =SQRT((($I$3*NI$13)^2)+(($I$4*$A17)^2))/1000 -> 372.0215048 | NJ17: =SQRT((($I$3*NJ$13)^2)+(($I$4*$A17)^2))/1000 -> 373.0214471 | NK17: =SQRT((($I$3*NK$13)^2)+(($I$4*$A17)^2))/1000 -> 374.0213898 | NL17: =SQRT((($I$3*NL$13)^2)+(($I$4*$A17)^2))/1000 -> 375.0213327 | NM17: =SQRT((($I$3*NM$13)^2)+(($I$4*$A17)^2))/1000 -> 376.021276 | NN17: =SQRT((($I$3*NN$13)^2)+(($I$4*$A17)^2))/1000 -> 377.0212196 | NO17: =SQRT((($I$3*NO$13)^2)+(($I$4*$A17)^2))/1000 -> 378.0211634 | NP17: =SQRT((($I$3*NP$13)^2)+(($I$4*$A17)^2))/1000 -> 379.0211076 | NQ17: =SQRT((($I$3*NQ$13)^2)+(($I$4*$A17)^2))/1000 -> 380.021052 | NR17: =SQRT((($I$3*NR$13)^2)+(($I$4*$A17)^2))/1000 -> 381.0209968 | NS17: =SQRT((($I$3*NS$13)^2)+(($I$4*$A17)^2))/1000 -> 382.0209418 | NT17: =SQRT((($I$3*NT$13)^2)+(($I$4*$A17)^2))/1000 -> 383.0208872 | NU17: =SQRT((($I$3*NU$13)^2)+(($I$4*$A17)^2))/1000 -> 384.0208328 | NV17: =SQRT((($I$3*NV$13)^2)+(($I$4*$A17)^2))/1000 -> 385.0207787 | NW17: =SQRT((($I$3*NW$13)^2)+(($I$4*$A17)^2))/1000 -> 386.0207248 | NX17: =SQRT((($I$3*NX$13)^2)+(($I$4*$A17)^2))/1000 -> 387.0206713 | NY17: =SQRT((($I$3*NY$13)^2)+(($I$4*$A17)^2))/1000 -> 388.020618 | NZ17: =SQRT((($I$3*NZ$13)^2)+(($I$4*$A17)^2))/1000 -> 389.020565 | OA17: =SQRT((($I$3*OA$13)^2)+(($I$4*$A17)^2))/1000 -> 390.0205123 | OB17: =SQRT((($I$3*OB$13)^2)+(($I$4*$A17)^2))/1000 -> 391.0204598 | OC17: =SQRT((($I$3*OC$13)^2)+(($I$4*$A17)^2))/1000 -> 392.0204076 | OD17: =SQRT((($I$3*OD$13)^2)+(($I$4*$A17)^2))/1000 -> 393.0203557 | OE17: =SQRT((($I$3*OE$13)^2)+(($I$4*$A17)^2))/1000 -> 394.020304 | OF17: =SQRT((($I$3*OF$13)^2)+(($I$4*$A17)^2))/1000 -> 395.0202526 | OG17: =SQRT((($I$3*OG$13)^2)+(($I$4*$A17)^2))/1000 -> 396.0202015 | OH17: =SQRT((($I$3*OH$13)^2)+(($I$4*$A17)^2))/1000 -> 397.0201506 | OI17: =SQRT((($I$3*OI$13)^2)+(($I$4*$A17)^2))/1000 -> 398.0201 | OJ17: =SQRT((($I$3*OJ$13)^2)+(($I$4*$A17)^2))/1000 -> 399.0200496 | OK17: =SQRT((($I$3*OK$13)^2)+(($I$4*$A17)^2))/1000 -> 400.0199995 | OL17: =SQRT((($I$3*OL$13)^2)+(($I$4*$A17)^2))/1000 -> 401.0199496 | OM17: =SQRT((($I$3*OM$13)^2)+(($I$4*$A17)^2))/1000 -> 402.0199 | ON17: =SQRT((($I$3*ON$13)^2)+(($I$4*$A17)^2))/1000 -> 403.0198506 | OO17: =SQRT((($I$3*OO$13)^2)+(($I$4*$A17)^2))/1000 -> 404.0198015 | OP17: =SQRT((($I$3*OP$13)^2)+(($I$4*$A17)^2))/1000 -> 405.0197526 | OQ17: =SQRT((($I$3*OQ$13)^2)+(($I$4*$A17)^2))/1000 -> 406.019704 | OR17: =SQRT((($I$3*OR$13)^2)+(($I$4*$A17)^2))/1000 -> 407.0196555 | OS17: =SQRT((($I$3*OS$13)^2)+(($I$4*$A17)^2))/1000 -> 408.0196074 | OT17: =SQRT((($I$3*OT$13)^2)+(($I$4*$A17)^2))/1000 -> 409.0195594 | OU17: =SQRT((($I$3*OU$13)^2)+(($I$4*$A17)^2))/1000 -> 410.0195117 | OV17: =SQRT((($I$3*OV$13)^2)+(($I$4*$A17)^2))/1000 -> 411.0194643 | OW17: =SQRT((($I$3*OW$13)^2)+(($I$4*$A17)^2))/1000 -> 412.019417 | OX17: =SQRT((($I$3*OX$13)^2)+(($I$4*$A17)^2))/1000 -> 413.01937 | OY17: =SQRT((($I$3*OY$13)^2)+(($I$4*$A17)^2))/1000 -> 414.0193232 | OZ17: =SQRT((($I$3*OZ$13)^2)+(($I$4*$A17)^2))/1000 -> 415.0192767 | PA17: =SQRT((($I$3*PA$13)^2)+(($I$4*$A17)^2))/1000 -> 416.0192303 | PB17: =SQRT((($I$3*PB$13)^2)+(($I$4*$A17)^2))/1000 -> 417.0191842 | PC17: =SQRT((($I$3*PC$13)^2)+(($I$4*$A17)^2))/1000 -> 418.0191383 | PD17: =SQRT((($I$3*PD$13)^2)+(($I$4*$A17)^2))/1000 -> 419.0190926 | PE17: =SQRT((($I$3*PE$13)^2)+(($I$4*$A17)^2))/1000 -> 420.0190472 | PF17: =SQRT((($I$3*PF$13)^2)+(($I$4*$A17)^2))/1000 -> 421.0190019 | PG17: =SQRT((($I$3*PG$13)^2)+(($I$4*$A17)^2))/1000 -> 422.0189569 | PH17: =SQRT((($I$3*PH$13)^2)+(($I$4*$A17)^2))/1000 -> 423.0189121 | PI17: =SQRT((($I$3*PI$13)^2)+(($I$4*$A17)^2))/1000 -> 424.0188675 | PJ17: =SQRT((($I$3*PJ$13)^2)+(($I$4*$A17)^2))/1000 -> 425.0188231 | PK17: =SQRT((($I$3*PK$13)^2)+(($I$4*$A17)^2))/1000 -> 426.0187789 | PL17: =SQRT((($I$3*PL$13)^2)+(($I$4*$A17)^2))/1000 -> 427.018735 | PM17: =SQRT((($I$3*PM$13)^2)+(($I$4*$A17)^2))/1000 -> 428.0186912 | PN17: =SQRT((($I$3*PN$13)^2)+(($I$4*$A17)^2))/1000 -> 429.0186476 | PO17: =SQRT((($I$3*PO$13)^2)+(($I$4*$A17)^2))/1000 -> 430.0186042 | PP17: =SQRT((($I$3*PP$13)^2)+(($I$4*$A17)^2))/1000 -> 431.0185611 | PQ17: =SQRT((($I$3*PQ$13)^2)+(($I$4*$A17)^2))/1000 -> 432.0185181 | PR17: =SQRT((($I$3*PR$13)^2)+(($I$4*$A17)^2))/1000 -> 433.0184754 | PS17: =SQRT((($I$3*PS$13)^2)+(($I$4*$A17)^2))/1000 -> 434.0184328 | PT17: =SQRT((($I$3*PT$13)^2)+(($I$4*$A17)^2))/1000 -> 435.0183904 | PU17: =SQRT((($I$3*PU$13)^2)+(($I$4*$A17)^2))/1000 -> 436.0183482 | PV17: =SQRT((($I$3*PV$13)^2)+(($I$4*$A17)^2))/1000 -> 437.0183063 | PW17: =SQRT((($I$3*PW$13)^2)+(($I$4*$A17)^2))/1000 -> 438.0182645 | PX17: =SQRT((($I$3*PX$13)^2)+(($I$4*$A17)^2))/1000 -> 439.0182229 | PY17: =SQRT((($I$3*PY$13)^2)+(($I$4*$A17)^2))/1000 -> 440.0181814 | PZ17: =SQRT((($I$3*PZ$13)^2)+(($I$4*$A17)^2))/1000 -> 441.0181402 | QA17: =SQRT((($I$3*QA$13)^2)+(($I$4*$A17)^2))/1000 -> 442.0180992 | QB17: =SQRT((($I$3*QB$13)^2)+(($I$4*$A17)^2))/1000 -> 443.0180583 | QC17: =SQRT((($I$3*QC$13)^2)+(($I$4*$A17)^2))/1000 -> 444.0180177 | QD17: =SQRT((($I$3*QD$13)^2)+(($I$4*$A17)^2))/1000 -> 445.0179772 | QE17: =SQRT((($I$3*QE$13)^2)+(($I$4*$A17)^2))/1000 -> 446.0179369 | QF17: =SQRT((($I$3*QF$13)^2)+(($I$4*$A17)^2))/1000 -> 447.0178967 | QG17: =SQRT((($I$3*QG$13)^2)+(($I$4*$A17)^2))/1000 -> 448.0178568 | QH17: =SQRT((($I$3*QH$13)^2)+(($I$4*$A17)^2))/1000 -> 449.017817 | QI17: =SQRT((($I$3*QI$13)^2)+(($I$4*$A17)^2))/1000 -> 450.0177774 | QJ17: =SQRT((($I$3*QJ$13)^2)+(($I$4*$A17)^2))/1000 -> 451.017738 | QK17: =SQRT((($I$3*QK$13)^2)+(($I$4*$A17)^2))/1000 -> 452.0176988 | QL17: =SQRT((($I$3*QL$13)^2)+(($I$4*$A17)^2))/1000 -> 453.0176597 | QM17: =SQRT((($I$3*QM$13)^2)+(($I$4*$A17)^2))/1000 -> 454.0176208 | QN17: =SQRT((($I$3*QN$13)^2)+(($I$4*$A17)^2))/1000 -> 455.0175821 | QO17: =SQRT((($I$3*QO$13)^2)+(($I$4*$A17)^2))/1000 -> 456.0175435 | QP17: =SQRT((($I$3*QP$13)^2)+(($I$4*$A17)^2))/1000 -> 457.0175051 | QQ17: =SQRT((($I$3*QQ$13)^2)+(($I$4*$A17)^2))/1000 -> 458.0174669 | QR17: =SQRT((($I$3*QR$13)^2)+(($I$4*$A17)^2))/1000 -> 459.0174289 | QS17: =SQRT((($I$3*QS$13)^2)+(($I$4*$A17)^2))/1000 -> 460.017391 | QT17: =SQRT((($I$3*QT$13)^2)+(($I$4*$A17)^2))/1000 -> 461.0173533 | QU17: =SQRT((($I$3*QU$13)^2)+(($I$4*$A17)^2))/1000 -> 462.0173157 | QV17: =SQRT((($I$3*QV$13)^2)+(($I$4*$A17)^2))/1000 -> 463.0172783 | QW17: =SQRT((($I$3*QW$13)^2)+(($I$4*$A17)^2))/1000 -> 464.0172411 | QX17: =SQRT((($I$3*QX$13)^2)+(($I$4*$A17)^2))/1000 -> 465.017204 | QY17: =SQRT((($I$3*QY$13)^2)+(($I$4*$A17)^2))/1000 -> 466.0171671 | QZ17: =SQRT((($I$3*QZ$13)^2)+(($I$4*$A17)^2))/1000 -> 467.0171303 | RA17: =SQRT((($I$3*RA$13)^2)+(($I$4*$A17)^2))/1000 -> 468.0170937 | RB17: =SQRT((($I$3*RB$13)^2)+(($I$4*$A17)^2))/1000 -> 469.0170573 | RC17: =SQRT((($I$3*RC$13)^2)+(($I$4*$A17)^2))/1000 -> 470.017021 | RD17: =SQRT((($I$3*RD$13)^2)+(($I$4*$A17)^2))/1000 -> 471.0169848 | RE17: =SQRT((($I$3*RE$13)^2)+(($I$4*$A17)^2))/1000 -> 472.0169488 | RF17: =SQRT((($I$3*RF$13)^2)+(($I$4*$A17)^2))/1000 -> 473.016913 | RG17: =SQRT((($I$3*RG$13)^2)+(($I$4*$A17)^2))/1000 -> 474.0168773 | RH17: =SQRT((($I$3*RH$13)^2)+(($I$4*$A17)^2))/1000 -> 475.0168418 | RI17: =SQRT((($I$3*RI$13)^2)+(($I$4*$A17)^2))/1000 -> 476.0168064 | RJ17: =SQRT((($I$3*RJ$13)^2)+(($I$4*$A17)^2))/1000 -> 477.0167712 | RK17: =SQRT((($I$3*RK$13)^2)+(($I$4*$A17)^2))/1000 -> 478.0167361 | RL17: =SQRT((($I$3*RL$13)^2)+(($I$4*$A17)^2))/1000 -> 479.0167012 | RM17: =SQRT((($I$3*RM$13)^2)+(($I$4*$A17)^2))/1000 -> 480.0166664 | RN17: =SQRT((($I$3*RN$13)^2)+(($I$4*$A17)^2))/1000 -> 481.0166317 | RO17: =SQRT((($I$3*RO$13)^2)+(($I$4*$A17)^2))/1000 -> 482.0165972 | RP17: =SQRT((($I$3*RP$13)^2)+(($I$4*$A17)^2))/1000 -> 483.0165629 | RQ17: =SQRT((($I$3*RQ$13)^2)+(($I$4*$A17)^2))/1000 -> 484.0165286 | RR17: =SQRT((($I$3*RR$13)^2)+(($I$4*$A17)^2))/1000 -> 485.0164946 | RS17: =SQRT((($I$3*RS$13)^2)+(($I$4*$A17)^2))/1000 -> 486.0164606 | RT17: =SQRT((($I$3*RT$13)^2)+(($I$4*$A17)^2))/1000 -> 487.0164268 | RU17: =SQRT((($I$3*RU$13)^2)+(($I$4*$A17)^2))/1000 -> 488.0163932 | RV17: =SQRT((($I$3*RV$13)^2)+(($I$4*$A17)^2))/1000 -> 489.0163596 | RW17: =SQRT((($I$3*RW$13)^2)+(($I$4*$A17)^2))/1000 -> 490.0163263 | RX17: =SQRT((($I$3*RX$13)^2)+(($I$4*$A17)^2))/1000 -> 491.016293 | RY17: =SQRT((($I$3*RY$13)^2)+(($I$4*$A17)^2))/1000 -> 492.0162599 | RZ17: =SQRT((($I$3*RZ$13)^2)+(($I$4*$A17)^2))/1000 -> 493.0162269 | SA17: =SQRT((($I$3*SA$13)^2)+(($I$4*$A17)^2))/1000 -> 494.0161941 | SB17: =SQRT((($I$3*SB$13)^2)+(($I$4*$A17)^2))/1000 -> 495.0161614 | SC17: =SQRT((($I$3*SC$13)^2)+(($I$4*$A17)^2))/1000 -> 496.0161288 | SD17: =SQRT((($I$3*SD$13)^2)+(($I$4*$A17)^2))/1000 -> 497.0160963 | SE17: =SQRT((($I$3*SE$13)^2)+(($I$4*$A17)^2))/1000 -> 498.016064 | SF17: =SQRT((($I$3*SF$13)^2)+(($I$4*$A17)^2))/1000 -> 499.0160318 | SG17: =SQRT((($I$3*SG$13)^2)+(($I$4*$A17)^2))/1000 -> 500.0159997
A18: 5 | B18: =SQRT((($I$3*B$13)^2)+(($I$4*$A18)^2))/1000 -> 5.099019514 | C18: =SQRT((($I$3*C$13)^2)+(($I$4*$A18)^2))/1000 -> 5.385164807 | D18: =SQRT((($I$3*D$13)^2)+(($I$4*$A18)^2))/1000 -> 5.830951895 | E18: =SQRT((($I$3*E$13)^2)+(($I$4*$A18)^2))/1000 -> 6.403124237 | F18: =SQRT((($I$3*F$13)^2)+(($I$4*$A18)^2))/1000 -> 7.071067812 | G18: =SQRT((($I$3*G$13)^2)+(($I$4*$A18)^2))/1000 -> 7.810249676 | H18: =SQRT((($I$3*H$13)^2)+(($I$4*$A18)^2))/1000 -> 8.602325267 | I18: =SQRT((($I$3*I$13)^2)+(($I$4*$A18)^2))/1000 -> 9.433981132 | J18: =SQRT((($I$3*J$13)^2)+(($I$4*$A18)^2))/1000 -> 10.29563014 | K18: =SQRT((($I$3*K$13)^2)+(($I$4*$A18)^2))/1000 -> 11.18033989 | L18: =SQRT((($I$3*L$13)^2)+(($I$4*$A18)^2))/1000 -> 12.08304597 | M18: =SQRT((($I$3*M$13)^2)+(($I$4*$A18)^2))/1000 -> 13 | N18: =SQRT((($I$3*N$13)^2)+(($I$4*$A18)^2))/1000 -> 13.92838828 | O18: =SQRT((($I$3*O$13)^2)+(($I$4*$A18)^2))/1000 -> 14.86606875 | P18: =SQRT((($I$3*P$13)^2)+(($I$4*$A18)^2))/1000 -> 15.8113883 | Q18: =SQRT((($I$3*Q$13)^2)+(($I$4*$A18)^2))/1000 -> 16.76305461 | R18: =SQRT((($I$3*R$13)^2)+(($I$4*$A18)^2))/1000 -> 17.72004515 | S18: =SQRT((($I$3*S$13)^2)+(($I$4*$A18)^2))/1000 -> 18.68154169 | T18: =SQRT((($I$3*T$13)^2)+(($I$4*$A18)^2))/1000 -> 19.6468827 | U18: =SQRT((($I$3*U$13)^2)+(($I$4*$A18)^2))/1000 -> 20.61552813 | V18: =SQRT((($I$3*V$13)^2)+(($I$4*$A18)^2))/1000 -> 21.58703314 | W18: =SQRT((($I$3*W$13)^2)+(($I$4*$A18)^2))/1000 -> 22.56102835 | X18: =SQRT((($I$3*X$13)^2)+(($I$4*$A18)^2))/1000 -> 23.53720459 | Y18: =SQRT((($I$3*Y$13)^2)+(($I$4*$A18)^2))/1000 -> 24.51530134 | Z18: =SQRT((($I$3*Z$13)^2)+(($I$4*$A18)^2))/1000 -> 25.49509757 | AA18: =SQRT((($I$3*AA$13)^2)+(($I$4*$A18)^2))/1000 -> 26.47640459 | AB18: =SQRT((($I$3*AB$13)^2)+(($I$4*$A18)^2))/1000 -> 27.45906044 | AC18: =SQRT((($I$3*AC$13)^2)+(($I$4*$A18)^2))/1000 -> 28.44292531 | AD18: =SQRT((($I$3*AD$13)^2)+(($I$4*$A18)^2))/1000 -> 29.42787794 | AE18: =SQRT((($I$3*AE$13)^2)+(($I$4*$A18)^2))/1000 -> 30.41381265 | AF18: =SQRT((($I$3*AF$13)^2)+(($I$4*$A18)^2))/1000 -> 31.40063694 | AG18: =SQRT((($I$3*AG$13)^2)+(($I$4*$A18)^2))/1000 -> 32.38826948 | AH18: =SQRT((($I$3*AH$13)^2)+(($I$4*$A18)^2))/1000 -> 33.37663854 | AI18: =SQRT((($I$3*AI$13)^2)+(($I$4*$A18)^2))/1000 -> 34.36568055 | AJ18: =SQRT((($I$3*AJ$13)^2)+(($I$4*$A18)^2))/1000 -> 35.35533906 | AK18: =SQRT((($I$3*AK$13)^2)+(($I$4*$A18)^2))/1000 -> 36.34556369 | AL18: =SQRT((($I$3*AL$13)^2)+(($I$4*$A18)^2))/1000 -> 37.33630941 | AM18: =SQRT((($I$3*AM$13)^2)+(($I$4*$A18)^2))/1000 -> 38.32753579 | AN18: =SQRT((($I$3*AN$13)^2)+(($I$4*$A18)^2))/1000 -> 39.3192065 | AO18: =SQRT((($I$3*AO$13)^2)+(($I$4*$A18)^2))/1000 -> 40.31128874 | AP18: =SQRT((($I$3*AP$13)^2)+(($I$4*$A18)^2))/1000 -> 41.30375286 | AQ18: =SQRT((($I$3*AQ$13)^2)+(($I$4*$A18)^2))/1000 -> 42.29657197 | AR18: =SQRT((($I$3*AR$13)^2)+(($I$4*$A18)^2))/1000 -> 43.28972164 | AS18: =SQRT((($I$3*AS$13)^2)+(($I$4*$A18)^2))/1000 -> 44.28317965 | AT18: =SQRT((($I$3*AT$13)^2)+(($I$4*$A18)^2))/1000 -> 45.27692569 | AU18: =SQRT((($I$3*AU$13)^2)+(($I$4*$A18)^2))/1000 -> 46.27094121 | AV18: =SQRT((($I$3*AV$13)^2)+(($I$4*$A18)^2))/1000 -> 47.26520919 | AW18: =SQRT((($I$3*AW$13)^2)+(($I$4*$A18)^2))/1000 -> 48.25971405 | AX18: =SQRT((($I$3*AX$13)^2)+(($I$4*$A18)^2))/1000 -> 49.25444142 | AY18: =SQRT((($I$3*AY$13)^2)+(($I$4*$A18)^2))/1000 -> 50.24937811 | AZ18: =SQRT((($I$3*AZ$13)^2)+(($I$4*$A18)^2))/1000 -> 51.2445119 | BA18: =SQRT((($I$3*BA$13)^2)+(($I$4*$A18)^2))/1000 -> 52.23983155 | BB18: =SQRT((($I$3*BB$13)^2)+(($I$4*$A18)^2))/1000 -> 53.23532662 | BC18: =SQRT((($I$3*BC$13)^2)+(($I$4*$A18)^2))/1000 -> 54.23098745 | BD18: =SQRT((($I$3*BD$13)^2)+(($I$4*$A18)^2))/1000 -> 55.22680509 | BE18: =SQRT((($I$3*BE$13)^2)+(($I$4*$A18)^2))/1000 -> 56.22277119 | BF18: =SQRT((($I$3*BF$13)^2)+(($I$4*$A18)^2))/1000 -> 57.218878 | BG18: =SQRT((($I$3*BG$13)^2)+(($I$4*$A18)^2))/1000 -> 58.21511831 | BH18: =SQRT((($I$3*BH$13)^2)+(($I$4*$A18)^2))/1000 -> 59.21148537 | BI18: =SQRT((($I$3*BI$13)^2)+(($I$4*$A18)^2))/1000 -> 60.20797289 | BJ18: =SQRT((($I$3*BJ$13)^2)+(($I$4*$A18)^2))/1000 -> 61.20457499 | BK18: =SQRT((($I$3*BK$13)^2)+(($I$4*$A18)^2))/1000 -> 62.20128616 | BL18: =SQRT((($I$3*BL$13)^2)+(($I$4*$A18)^2))/1000 -> 63.19810124 | BM18: =SQRT((($I$3*BM$13)^2)+(($I$4*$A18)^2))/1000 -> 64.19501538 | BN18: =SQRT((($I$3*BN$13)^2)+(($I$4*$A18)^2))/1000 -> 65.19202405 | BO18: =SQRT((($I$3*BO$13)^2)+(($I$4*$A18)^2))/1000 -> 66.18912297 | BP18: =SQRT((($I$3*BP$13)^2)+(($I$4*$A18)^2))/1000 -> 67.18630813 | BQ18: =SQRT((($I$3*BQ$13)^2)+(($I$4*$A18)^2))/1000 -> 68.18357573 | BR18: =SQRT((($I$3*BR$13)^2)+(($I$4*$A18)^2))/1000 -> 69.18092223 | BS18: =SQRT((($I$3*BS$13)^2)+(($I$4*$A18)^2))/1000 -> 70.17834424 | BT18: =SQRT((($I$3*BT$13)^2)+(($I$4*$A18)^2))/1000 -> 71.1758386 | BU18: =SQRT((($I$3*BU$13)^2)+(($I$4*$A18)^2))/1000 -> 72.1734023 | BV18: =SQRT((($I$3*BV$13)^2)+(($I$4*$A18)^2))/1000 -> 73.17103252 | BW18: =SQRT((($I$3*BW$13)^2)+(($I$4*$A18)^2))/1000 -> 74.16872656 | BX18: =SQRT((($I$3*BX$13)^2)+(($I$4*$A18)^2))/1000 -> 75.16648189 | BY18: =SQRT((($I$3*BY$13)^2)+(($I$4*$A18)^2))/1000 -> 76.1642961 | BZ18: =SQRT((($I$3*BZ$13)^2)+(($I$4*$A18)^2))/1000 -> 77.1621669 | CA18: =SQRT((($I$3*CA$13)^2)+(($I$4*$A18)^2))/1000 -> 78.16009212 | CB18: =SQRT((($I$3*CB$13)^2)+(($I$4*$A18)^2))/1000 -> 79.15806971 | CC18: =SQRT((($I$3*CC$13)^2)+(($I$4*$A18)^2))/1000 -> 80.15609771 | CD18: =SQRT((($I$3*CD$13)^2)+(($I$4*$A18)^2))/1000 -> 81.15417426 | CE18: =SQRT((($I$3*CE$13)^2)+(($I$4*$A18)^2))/1000 -> 82.15229759 | CF18: =SQRT((($I$3*CF$13)^2)+(($I$4*$A18)^2))/1000 -> 83.15046602 | CG18: =SQRT((($I$3*CG$13)^2)+(($I$4*$A18)^2))/1000 -> 84.14867795 | CH18: =SQRT((($I$3*CH$13)^2)+(($I$4*$A18)^2))/1000 -> 85.14693183 | CI18: =SQRT((($I$3*CI$13)^2)+(($I$4*$A18)^2))/1000 -> 86.14522622 | CJ18: =SQRT((($I$3*CJ$13)^2)+(($I$4*$A18)^2))/1000 -> 87.14355972 | CK18: =SQRT((($I$3*CK$13)^2)+(($I$4*$A18)^2))/1000 -> 88.141931 | CL18: =SQRT((($I$3*CL$13)^2)+(($I$4*$A18)^2))/1000 -> 89.14033879 | CM18: =SQRT((($I$3*CM$13)^2)+(($I$4*$A18)^2))/1000 -> 90.13878189 | CN18: =SQRT((($I$3*CN$13)^2)+(($I$4*$A18)^2))/1000 -> 91.13725912 | CO18: =SQRT((($I$3*CO$13)^2)+(($I$4*$A18)^2))/1000 -> 92.13576938 | CP18: =SQRT((($I$3*CP$13)^2)+(($I$4*$A18)^2))/1000 -> 93.13431162 | CQ18: =SQRT((($I$3*CQ$13)^2)+(($I$4*$A18)^2))/1000 -> 94.1328848 | CR18: =SQRT((($I$3*CR$13)^2)+(($I$4*$A18)^2))/1000 -> 95.13148795 | CS18: =SQRT((($I$3*CS$13)^2)+(($I$4*$A18)^2))/1000 -> 96.13012015 | CT18: =SQRT((($I$3*CT$13)^2)+(($I$4*$A18)^2))/1000 -> 97.12878049 | CU18: =SQRT((($I$3*CU$13)^2)+(($I$4*$A18)^2))/1000 -> 98.12746812 | CV18: =SQRT((($I$3*CV$13)^2)+(($I$4*$A18)^2))/1000 -> 99.12618221 | CW18: =SQRT((($I$3*CW$13)^2)+(($I$4*$A18)^2))/1000 -> 100.124922 | CX18: =SQRT((($I$3*CX$13)^2)+(($I$4*$A18)^2))/1000 -> 101.1236866 | CY18: =SQRT((($I$3*CY$13)^2)+(($I$4*$A18)^2))/1000 -> 102.1224755 | CZ18: =SQRT((($I$3*CZ$13)^2)+(($I$4*$A18)^2))/1000 -> 103.1212878 | DA18: =SQRT((($I$3*DA$13)^2)+(($I$4*$A18)^2))/1000 -> 104.1201229 | DB18: =SQRT((($I$3*DB$13)^2)+(($I$4*$A18)^2))/1000 -> 105.1189802 | DC18: =SQRT((($I$3*DC$13)^2)+(($I$4*$A18)^2))/1000 -> 106.117859 | DD18: =SQRT((($I$3*DD$13)^2)+(($I$4*$A18)^2))/1000 -> 107.1167587 | DE18: =SQRT((($I$3*DE$13)^2)+(($I$4*$A18)^2))/1000 -> 108.1156788 | DF18: =SQRT((($I$3*DF$13)^2)+(($I$4*$A18)^2))/1000 -> 109.1146186 | DG18: =SQRT((($I$3*DG$13)^2)+(($I$4*$A18)^2))/1000 -> 110.1135777 | DH18: =SQRT((($I$3*DH$13)^2)+(($I$4*$A18)^2))/1000 -> 111.1125555 | DI18: =SQRT((($I$3*DI$13)^2)+(($I$4*$A18)^2))/1000 -> 112.1115516 | DJ18: =SQRT((($I$3*DJ$13)^2)+(($I$4*$A18)^2))/1000 -> 113.1105654 | DK18: =SQRT((($I$3*DK$13)^2)+(($I$4*$A18)^2))/1000 -> 114.1095964 | DL18: =SQRT((($I$3*DL$13)^2)+(($I$4*$A18)^2))/1000 -> 115.1086443 | DM18: =SQRT((($I$3*DM$13)^2)+(($I$4*$A18)^2))/1000 -> 116.1077086 | DN18: =SQRT((($I$3*DN$13)^2)+(($I$4*$A18)^2))/1000 -> 117.1067889 | DO18: =SQRT((($I$3*DO$13)^2)+(($I$4*$A18)^2))/1000 -> 118.1058847 | DP18: =SQRT((($I$3*DP$13)^2)+(($I$4*$A18)^2))/1000 -> 119.1049957 | DQ18: =SQRT((($I$3*DQ$13)^2)+(($I$4*$A18)^2))/1000 -> 120.1041215 | DR18: =SQRT((($I$3*DR$13)^2)+(($I$4*$A18)^2))/1000 -> 121.1032617 | DS18: =SQRT((($I$3*DS$13)^2)+(($I$4*$A18)^2))/1000 -> 122.102416 | DT18: =SQRT((($I$3*DT$13)^2)+(($I$4*$A18)^2))/1000 -> 123.1015841 | DU18: =SQRT((($I$3*DU$13)^2)+(($I$4*$A18)^2))/1000 -> 124.1007655 | DV18: =SQRT((($I$3*DV$13)^2)+(($I$4*$A18)^2))/1000 -> 125.09996 | DW18: =SQRT((($I$3*DW$13)^2)+(($I$4*$A18)^2))/1000 -> 126.0991673 | DX18: =SQRT((($I$3*DX$13)^2)+(($I$4*$A18)^2))/1000 -> 127.0983871 | DY18: =SQRT((($I$3*DY$13)^2)+(($I$4*$A18)^2))/1000 -> 128.097619 | DZ18: =SQRT((($I$3*DZ$13)^2)+(($I$4*$A18)^2))/1000 -> 129.0968629 | EA18: =SQRT((($I$3*EA$13)^2)+(($I$4*$A18)^2))/1000 -> 130.0961183 | EB18: =SQRT((($I$3*EB$13)^2)+(($I$4*$A18)^2))/1000 -> 131.0953851 | EC18: =SQRT((($I$3*EC$13)^2)+(($I$4*$A18)^2))/1000 -> 132.094663 | ED18: =SQRT((($I$3*ED$13)^2)+(($I$4*$A18)^2))/1000 -> 133.0939518 | EE18: =SQRT((($I$3*EE$13)^2)+(($I$4*$A18)^2))/1000 -> 134.0932511 | EF18: =SQRT((($I$3*EF$13)^2)+(($I$4*$A18)^2))/1000 -> 135.0925609 | EG18: =SQRT((($I$3*EG$13)^2)+(($I$4*$A18)^2))/1000 -> 136.0918807 | EH18: =SQRT((($I$3*EH$13)^2)+(($I$4*$A18)^2))/1000 -> 137.0912105 | EI18: =SQRT((($I$3*EI$13)^2)+(($I$4*$A18)^2))/1000 -> 138.09055 | EJ18: =SQRT((($I$3*EJ$13)^2)+(($I$4*$A18)^2))/1000 -> 139.089899 | EK18: =SQRT((($I$3*EK$13)^2)+(($I$4*$A18)^2))/1000 -> 140.0892573 | EL18: =SQRT((($I$3*EL$13)^2)+(($I$4*$A18)^2))/1000 -> 141.0886246 | EM18: =SQRT((($I$3*EM$13)^2)+(($I$4*$A18)^2))/1000 -> 142.0880009 | EN18: =SQRT((($I$3*EN$13)^2)+(($I$4*$A18)^2))/1000 -> 143.0873859 | EO18: =SQRT((($I$3*EO$13)^2)+(($I$4*$A18)^2))/1000 -> 144.0867794 | EP18: =SQRT((($I$3*EP$13)^2)+(($I$4*$A18)^2))/1000 -> 145.0861813 | EQ18: =SQRT((($I$3*EQ$13)^2)+(($I$4*$A18)^2))/1000 -> 146.0855913 | ER18: =SQRT((($I$3*ER$13)^2)+(($I$4*$A18)^2))/1000 -> 147.0850094 | ES18: =SQRT((($I$3*ES$13)^2)+(($I$4*$A18)^2))/1000 -> 148.0844354 | ET18: =SQRT((($I$3*ET$13)^2)+(($I$4*$A18)^2))/1000 -> 149.083869 | EU18: =SQRT((($I$3*EU$13)^2)+(($I$4*$A18)^2))/1000 -> 150.0833102 | EV18: =SQRT((($I$3*EV$13)^2)+(($I$4*$A18)^2))/1000 -> 151.0827588 | EW18: =SQRT((($I$3*EW$13)^2)+(($I$4*$A18)^2))/1000 -> 152.0822146 | EX18: =SQRT((($I$3*EX$13)^2)+(($I$4*$A18)^2))/1000 -> 153.0816775 | EY18: =SQRT((($I$3*EY$13)^2)+(($I$4*$A18)^2))/1000 -> 154.0811475 | EZ18: =SQRT((($I$3*EZ$13)^2)+(($I$4*$A18)^2))/1000 -> 155.0806242 | FA18: =SQRT((($I$3*FA$13)^2)+(($I$4*$A18)^2))/1000 -> 156.0801076 | FB18: =SQRT((($I$3*FB$13)^2)+(($I$4*$A18)^2))/1000 -> 157.0795977 | FC18: =SQRT((($I$3*FC$13)^2)+(($I$4*$A18)^2))/1000 -> 158.0790941 | FD18: =SQRT((($I$3*FD$13)^2)+(($I$4*$A18)^2))/1000 -> 159.0785969 | FE18: =SQRT((($I$3*FE$13)^2)+(($I$4*$A18)^2))/1000 -> 160.0781059 | FF18: =SQRT((($I$3*FF$13)^2)+(($I$4*$A18)^2))/1000 -> 161.077621 | FG18: =SQRT((($I$3*FG$13)^2)+(($I$4*$A18)^2))/1000 -> 162.0771421 | FH18: =SQRT((($I$3*FH$13)^2)+(($I$4*$A18)^2))/1000 -> 163.0766691 | FI18: =SQRT((($I$3*FI$13)^2)+(($I$4*$A18)^2))/1000 -> 164.0762018 | FJ18: =SQRT((($I$3*FJ$13)^2)+(($I$4*$A18)^2))/1000 -> 165.0757402 | FK18: =SQRT((($I$3*FK$13)^2)+(($I$4*$A18)^2))/1000 -> 166.0752841 | FL18: =SQRT((($I$3*FL$13)^2)+(($I$4*$A18)^2))/1000 -> 167.0748335 | FM18: =SQRT((($I$3*FM$13)^2)+(($I$4*$A18)^2))/1000 -> 168.0743883 | FN18: =SQRT((($I$3*FN$13)^2)+(($I$4*$A18)^2))/1000 -> 169.0739483 | FO18: =SQRT((($I$3*FO$13)^2)+(($I$4*$A18)^2))/1000 -> 170.0735135 | FP18: =SQRT((($I$3*FP$13)^2)+(($I$4*$A18)^2))/1000 -> 171.0730838 | FQ18: =SQRT((($I$3*FQ$13)^2)+(($I$4*$A18)^2))/1000 -> 172.0726591 | FR18: =SQRT((($I$3*FR$13)^2)+(($I$4*$A18)^2))/1000 -> 173.0722393 | FS18: =SQRT((($I$3*FS$13)^2)+(($I$4*$A18)^2))/1000 -> 174.0718243 | FT18: =SQRT((($I$3*FT$13)^2)+(($I$4*$A18)^2))/1000 -> 175.071414 | FU18: =SQRT((($I$3*FU$13)^2)+(($I$4*$A18)^2))/1000 -> 176.0710084 | FV18: =SQRT((($I$3*FV$13)^2)+(($I$4*$A18)^2))/1000 -> 177.0706074 | FW18: =SQRT((($I$3*FW$13)^2)+(($I$4*$A18)^2))/1000 -> 178.0702109 | FX18: =SQRT((($I$3*FX$13)^2)+(($I$4*$A18)^2))/1000 -> 179.0698188 | FY18: =SQRT((($I$3*FY$13)^2)+(($I$4*$A18)^2))/1000 -> 180.0694311 | FZ18: =SQRT((($I$3*FZ$13)^2)+(($I$4*$A18)^2))/1000 -> 181.0690476 | GA18: =SQRT((($I$3*GA$13)^2)+(($I$4*$A18)^2))/1000 -> 182.0686684 | GB18: =SQRT((($I$3*GB$13)^2)+(($I$4*$A18)^2))/1000 -> 183.0682933 | GC18: =SQRT((($I$3*GC$13)^2)+(($I$4*$A18)^2))/1000 -> 184.0679222 | GD18: =SQRT((($I$3*GD$13)^2)+(($I$4*$A18)^2))/1000 -> 185.0675552 | GE18: =SQRT((($I$3*GE$13)^2)+(($I$4*$A18)^2))/1000 -> 186.0671922 | GF18: =SQRT((($I$3*GF$13)^2)+(($I$4*$A18)^2))/1000 -> 187.066833 | GG18: =SQRT((($I$3*GG$13)^2)+(($I$4*$A18)^2))/1000 -> 188.0664776 | GH18: =SQRT((($I$3*GH$13)^2)+(($I$4*$A18)^2))/1000 -> 189.066126 | GI18: =SQRT((($I$3*GI$13)^2)+(($I$4*$A18)^2))/1000 -> 190.0657781 | GJ18: =SQRT((($I$3*GJ$13)^2)+(($I$4*$A18)^2))/1000 -> 191.0654338 | GK18: =SQRT((($I$3*GK$13)^2)+(($I$4*$A18)^2))/1000 -> 192.0650931 | GL18: =SQRT((($I$3*GL$13)^2)+(($I$4*$A18)^2))/1000 -> 193.064756 | GM18: =SQRT((($I$3*GM$13)^2)+(($I$4*$A18)^2))/1000 -> 194.0644223 | GN18: =SQRT((($I$3*GN$13)^2)+(($I$4*$A18)^2))/1000 -> 195.064092 | GO18: =SQRT((($I$3*GO$13)^2)+(($I$4*$A18)^2))/1000 -> 196.0637651 | GP18: =SQRT((($I$3*GP$13)^2)+(($I$4*$A18)^2))/1000 -> 197.0634416 | GQ18: =SQRT((($I$3*GQ$13)^2)+(($I$4*$A18)^2))/1000 -> 198.0631213 | GR18: =SQRT((($I$3*GR$13)^2)+(($I$4*$A18)^2))/1000 -> 199.0628042 | GS18: =SQRT((($I$3*GS$13)^2)+(($I$4*$A18)^2))/1000 -> 200.0624902 | GT18: =SQRT((($I$3*GT$13)^2)+(($I$4*$A18)^2))/1000 -> 201.0621794 | GU18: =SQRT((($I$3*GU$13)^2)+(($I$4*$A18)^2))/1000 -> 202.0618717 | GV18: =SQRT((($I$3*GV$13)^2)+(($I$4*$A18)^2))/1000 -> 203.061567 | GW18: =SQRT((($I$3*GW$13)^2)+(($I$4*$A18)^2))/1000 -> 204.0612653 | GX18: =SQRT((($I$3*GX$13)^2)+(($I$4*$A18)^2))/1000 -> 205.0609665 | GY18: =SQRT((($I$3*GY$13)^2)+(($I$4*$A18)^2))/1000 -> 206.0606707 | GZ18: =SQRT((($I$3*GZ$13)^2)+(($I$4*$A18)^2))/1000 -> 207.0603777 | HA18: =SQRT((($I$3*HA$13)^2)+(($I$4*$A18)^2))/1000 -> 208.0600875 | HB18: =SQRT((($I$3*HB$13)^2)+(($I$4*$A18)^2))/1000 -> 209.0598001 | HC18: =SQRT((($I$3*HC$13)^2)+(($I$4*$A18)^2))/1000 -> 210.0595154 | HD18: =SQRT((($I$3*HD$13)^2)+(($I$4*$A18)^2))/1000 -> 211.0592334 | HE18: =SQRT((($I$3*HE$13)^2)+(($I$4*$A18)^2))/1000 -> 212.0589541 | HF18: =SQRT((($I$3*HF$13)^2)+(($I$4*$A18)^2))/1000 -> 213.0586774 | HG18: =SQRT((($I$3*HG$13)^2)+(($I$4*$A18)^2))/1000 -> 214.0584032 | HH18: =SQRT((($I$3*HH$13)^2)+(($I$4*$A18)^2))/1000 -> 215.0581317 | HI18: =SQRT((($I$3*HI$13)^2)+(($I$4*$A18)^2))/1000 -> 216.0578626 | HJ18: =SQRT((($I$3*HJ$13)^2)+(($I$4*$A18)^2))/1000 -> 217.057596 | HK18: =SQRT((($I$3*HK$13)^2)+(($I$4*$A18)^2))/1000 -> 218.0573319 | HL18: =SQRT((($I$3*HL$13)^2)+(($I$4*$A18)^2))/1000 -> 219.0570702 | HM18: =SQRT((($I$3*HM$13)^2)+(($I$4*$A18)^2))/1000 -> 220.0568108 | HN18: =SQRT((($I$3*HN$13)^2)+(($I$4*$A18)^2))/1000 -> 221.0565538 | HO18: =SQRT((($I$3*HO$13)^2)+(($I$4*$A18)^2))/1000 -> 222.0562992 | HP18: =SQRT((($I$3*HP$13)^2)+(($I$4*$A18)^2))/1000 -> 223.0560468 | HQ18: =SQRT((($I$3*HQ$13)^2)+(($I$4*$A18)^2))/1000 -> 224.0557966 | HR18: =SQRT((($I$3*HR$13)^2)+(($I$4*$A18)^2))/1000 -> 225.0555487 | HS18: =SQRT((($I$3*HS$13)^2)+(($I$4*$A18)^2))/1000 -> 226.055303 | HT18: =SQRT((($I$3*HT$13)^2)+(($I$4*$A18)^2))/1000 -> 227.0550594 | HU18: =SQRT((($I$3*HU$13)^2)+(($I$4*$A18)^2))/1000 -> 228.054818 | HV18: =SQRT((($I$3*HV$13)^2)+(($I$4*$A18)^2))/1000 -> 229.0545786 | HW18: =SQRT((($I$3*HW$13)^2)+(($I$4*$A18)^2))/1000 -> 230.0543414 | HX18: =SQRT((($I$3*HX$13)^2)+(($I$4*$A18)^2))/1000 -> 231.0541062 | HY18: =SQRT((($I$3*HY$13)^2)+(($I$4*$A18)^2))/1000 -> 232.0538731 | HZ18: =SQRT((($I$3*HZ$13)^2)+(($I$4*$A18)^2))/1000 -> 233.0536419 | IA18: =SQRT((($I$3*IA$13)^2)+(($I$4*$A18)^2))/1000 -> 234.0534127 | IB18: =SQRT((($I$3*IB$13)^2)+(($I$4*$A18)^2))/1000 -> 235.0531855 | IC18: =SQRT((($I$3*IC$13)^2)+(($I$4*$A18)^2))/1000 -> 236.0529602 | ID18: =SQRT((($I$3*ID$13)^2)+(($I$4*$A18)^2))/1000 -> 237.0527367 | IE18: =SQRT((($I$3*IE$13)^2)+(($I$4*$A18)^2))/1000 -> 238.0525152 | IF18: =SQRT((($I$3*IF$13)^2)+(($I$4*$A18)^2))/1000 -> 239.0522955 | IG18: =SQRT((($I$3*IG$13)^2)+(($I$4*$A18)^2))/1000 -> 240.0520777 | IH18: =SQRT((($I$3*IH$13)^2)+(($I$4*$A18)^2))/1000 -> 241.0518616 | II18: =SQRT((($I$3*II$13)^2)+(($I$4*$A18)^2))/1000 -> 242.0516474 | IJ18: =SQRT((($I$3*IJ$13)^2)+(($I$4*$A18)^2))/1000 -> 243.0514349 | IK18: =SQRT((($I$3*IK$13)^2)+(($I$4*$A18)^2))/1000 -> 244.0512241 | IL18: =SQRT((($I$3*IL$13)^2)+(($I$4*$A18)^2))/1000 -> 245.0510151 | IM18: =SQRT((($I$3*IM$13)^2)+(($I$4*$A18)^2))/1000 -> 246.0508078 | IN18: =SQRT((($I$3*IN$13)^2)+(($I$4*$A18)^2))/1000 -> 247.0506021 | IO18: =SQRT((($I$3*IO$13)^2)+(($I$4*$A18)^2))/1000 -> 248.0503981 | IP18: =SQRT((($I$3*IP$13)^2)+(($I$4*$A18)^2))/1000 -> 249.0501957 | IQ18: =SQRT((($I$3*IQ$13)^2)+(($I$4*$A18)^2))/1000 -> 250.049995 | IR18: =SQRT((($I$3*IR$13)^2)+(($I$4*$A18)^2))/1000 -> 251.0497959 | IS18: =SQRT((($I$3*IS$13)^2)+(($I$4*$A18)^2))/1000 -> 252.0495983 | IT18: =SQRT((($I$3*IT$13)^2)+(($I$4*$A18)^2))/1000 -> 253.0494023 | IU18: =SQRT((($I$3*IU$13)^2)+(($I$4*$A18)^2))/1000 -> 254.0492078 | IV18: =SQRT((($I$3*IV$13)^2)+(($I$4*$A18)^2))/1000 -> 255.0490149 | IW18: =SQRT((($I$3*IW$13)^2)+(($I$4*$A18)^2))/1000 -> 256.0488235 | IX18: =SQRT((($I$3*IX$13)^2)+(($I$4*$A18)^2))/1000 -> 257.0486335 | IY18: =SQRT((($I$3*IY$13)^2)+(($I$4*$A18)^2))/1000 -> 258.0484451 | IZ18: =SQRT((($I$3*IZ$13)^2)+(($I$4*$A18)^2))/1000 -> 259.0482581 | JA18: =SQRT((($I$3*JA$13)^2)+(($I$4*$A18)^2))/1000 -> 260.0480725 | JB18: =SQRT((($I$3*JB$13)^2)+(($I$4*$A18)^2))/1000 -> 261.0478883 | JC18: =SQRT((($I$3*JC$13)^2)+(($I$4*$A18)^2))/1000 -> 262.0477056 | JD18: =SQRT((($I$3*JD$13)^2)+(($I$4*$A18)^2))/1000 -> 263.0475242 | JE18: =SQRT((($I$3*JE$13)^2)+(($I$4*$A18)^2))/1000 -> 264.0473442 | JF18: =SQRT((($I$3*JF$13)^2)+(($I$4*$A18)^2))/1000 -> 265.0471656 | JG18: =SQRT((($I$3*JG$13)^2)+(($I$4*$A18)^2))/1000 -> 266.0469883 | JH18: =SQRT((($I$3*JH$13)^2)+(($I$4*$A18)^2))/1000 -> 267.0468124 | JI18: =SQRT((($I$3*JI$13)^2)+(($I$4*$A18)^2))/1000 -> 268.0466377 | JJ18: =SQRT((($I$3*JJ$13)^2)+(($I$4*$A18)^2))/1000 -> 269.0464644 | JK18: =SQRT((($I$3*JK$13)^2)+(($I$4*$A18)^2))/1000 -> 270.0462923 | JL18: =SQRT((($I$3*JL$13)^2)+(($I$4*$A18)^2))/1000 -> 271.0461215 | JM18: =SQRT((($I$3*JM$13)^2)+(($I$4*$A18)^2))/1000 -> 272.045952 | JN18: =SQRT((($I$3*JN$13)^2)+(($I$4*$A18)^2))/1000 -> 273.0457837 | JO18: =SQRT((($I$3*JO$13)^2)+(($I$4*$A18)^2))/1000 -> 274.0456166 | JP18: =SQRT((($I$3*JP$13)^2)+(($I$4*$A18)^2))/1000 -> 275.0454508 | JQ18: =SQRT((($I$3*JQ$13)^2)+(($I$4*$A18)^2))/1000 -> 276.0452861 | JR18: =SQRT((($I$3*JR$13)^2)+(($I$4*$A18)^2))/1000 -> 277.0451227 | JS18: =SQRT((($I$3*JS$13)^2)+(($I$4*$A18)^2))/1000 -> 278.0449604 | JT18: =SQRT((($I$3*JT$13)^2)+(($I$4*$A18)^2))/1000 -> 279.0447993 | JU18: =SQRT((($I$3*JU$13)^2)+(($I$4*$A18)^2))/1000 -> 280.0446393 | JV18: =SQRT((($I$3*JV$13)^2)+(($I$4*$A18)^2))/1000 -> 281.0444805 | JW18: =SQRT((($I$3*JW$13)^2)+(($I$4*$A18)^2))/1000 -> 282.0443228 | JX18: =SQRT((($I$3*JX$13)^2)+(($I$4*$A18)^2))/1000 -> 283.0441662 | JY18: =SQRT((($I$3*JY$13)^2)+(($I$4*$A18)^2))/1000 -> 284.0440107 | JZ18: =SQRT((($I$3*JZ$13)^2)+(($I$4*$A18)^2))/1000 -> 285.0438563 | KA18: =SQRT((($I$3*KA$13)^2)+(($I$4*$A18)^2))/1000 -> 286.043703 | KB18: =SQRT((($I$3*KB$13)^2)+(($I$4*$A18)^2))/1000 -> 287.0435507 | KC18: =SQRT((($I$3*KC$13)^2)+(($I$4*$A18)^2))/1000 -> 288.0433995 | KD18: =SQRT((($I$3*KD$13)^2)+(($I$4*$A18)^2))/1000 -> 289.0432494 | KE18: =SQRT((($I$3*KE$13)^2)+(($I$4*$A18)^2))/1000 -> 290.0431002 | KF18: =SQRT((($I$3*KF$13)^2)+(($I$4*$A18)^2))/1000 -> 291.0429522 | KG18: =SQRT((($I$3*KG$13)^2)+(($I$4*$A18)^2))/1000 -> 292.0428051 | KH18: =SQRT((($I$3*KH$13)^2)+(($I$4*$A18)^2))/1000 -> 293.042659 | KI18: =SQRT((($I$3*KI$13)^2)+(($I$4*$A18)^2))/1000 -> 294.0425139 | KJ18: =SQRT((($I$3*KJ$13)^2)+(($I$4*$A18)^2))/1000 -> 295.0423698 | KK18: =SQRT((($I$3*KK$13)^2)+(($I$4*$A18)^2))/1000 -> 296.0422267 | KL18: =SQRT((($I$3*KL$13)^2)+(($I$4*$A18)^2))/1000 -> 297.0420846 | KM18: =SQRT((($I$3*KM$13)^2)+(($I$4*$A18)^2))/1000 -> 298.0419434 | KN18: =SQRT((($I$3*KN$13)^2)+(($I$4*$A18)^2))/1000 -> 299.0418031 | KO18: =SQRT((($I$3*KO$13)^2)+(($I$4*$A18)^2))/1000 -> 300.0416638 | KP18: =SQRT((($I$3*KP$13)^2)+(($I$4*$A18)^2))/1000 -> 301.0415254 | KQ18: =SQRT((($I$3*KQ$13)^2)+(($I$4*$A18)^2))/1000 -> 302.0413879 | KR18: =SQRT((($I$3*KR$13)^2)+(($I$4*$A18)^2))/1000 -> 303.0412513 | KS18: =SQRT((($I$3*KS$13)^2)+(($I$4*$A18)^2))/1000 -> 304.0411156 | KT18: =SQRT((($I$3*KT$13)^2)+(($I$4*$A18)^2))/1000 -> 305.0409809 | KU18: =SQRT((($I$3*KU$13)^2)+(($I$4*$A18)^2))/1000 -> 306.0408469 | KV18: =SQRT((($I$3*KV$13)^2)+(($I$4*$A18)^2))/1000 -> 307.0407139 | KW18: =SQRT((($I$3*KW$13)^2)+(($I$4*$A18)^2))/1000 -> 308.0405817 | KX18: =SQRT((($I$3*KX$13)^2)+(($I$4*$A18)^2))/1000 -> 309.0404504 | KY18: =SQRT((($I$3*KY$13)^2)+(($I$4*$A18)^2))/1000 -> 310.04032 | KZ18: =SQRT((($I$3*KZ$13)^2)+(($I$4*$A18)^2))/1000 -> 311.0401903 | LA18: =SQRT((($I$3*LA$13)^2)+(($I$4*$A18)^2))/1000 -> 312.0400615 | LB18: =SQRT((($I$3*LB$13)^2)+(($I$4*$A18)^2))/1000 -> 313.0399336 | LC18: =SQRT((($I$3*LC$13)^2)+(($I$4*$A18)^2))/1000 -> 314.0398064 | LD18: =SQRT((($I$3*LD$13)^2)+(($I$4*$A18)^2))/1000 -> 315.03968 | LE18: =SQRT((($I$3*LE$13)^2)+(($I$4*$A18)^2))/1000 -> 316.0395545 | LF18: =SQRT((($I$3*LF$13)^2)+(($I$4*$A18)^2))/1000 -> 317.0394297 | LG18: =SQRT((($I$3*LG$13)^2)+(($I$4*$A18)^2))/1000 -> 318.0393057 | LH18: =SQRT((($I$3*LH$13)^2)+(($I$4*$A18)^2))/1000 -> 319.0391825 | LI18: =SQRT((($I$3*LI$13)^2)+(($I$4*$A18)^2))/1000 -> 320.0390601 | LJ18: =SQRT((($I$3*LJ$13)^2)+(($I$4*$A18)^2))/1000 -> 321.0389384 | LK18: =SQRT((($I$3*LK$13)^2)+(($I$4*$A18)^2))/1000 -> 322.0388175 | LL18: =SQRT((($I$3*LL$13)^2)+(($I$4*$A18)^2))/1000 -> 323.0386974 | LM18: =SQRT((($I$3*LM$13)^2)+(($I$4*$A18)^2))/1000 -> 324.038578 | LN18: =SQRT((($I$3*LN$13)^2)+(($I$4*$A18)^2))/1000 -> 325.0384593 | LO18: =SQRT((($I$3*LO$13)^2)+(($I$4*$A18)^2))/1000 -> 326.0383413 | LP18: =SQRT((($I$3*LP$13)^2)+(($I$4*$A18)^2))/1000 -> 327.0382241 | LQ18: =SQRT((($I$3*LQ$13)^2)+(($I$4*$A18)^2))/1000 -> 328.0381075 | LR18: =SQRT((($I$3*LR$13)^2)+(($I$4*$A18)^2))/1000 -> 329.0379917 | LS18: =SQRT((($I$3*LS$13)^2)+(($I$4*$A18)^2))/1000 -> 330.0378766 | LT18: =SQRT((($I$3*LT$13)^2)+(($I$4*$A18)^2))/1000 -> 331.0377622 | LU18: =SQRT((($I$3*LU$13)^2)+(($I$4*$A18)^2))/1000 -> 332.0376485 | LV18: =SQRT((($I$3*LV$13)^2)+(($I$4*$A18)^2))/1000 -> 333.0375354 | LW18: =SQRT((($I$3*LW$13)^2)+(($I$4*$A18)^2))/1000 -> 334.0374231 | LX18: =SQRT((($I$3*LX$13)^2)+(($I$4*$A18)^2))/1000 -> 335.0373114 | LY18: =SQRT((($I$3*LY$13)^2)+(($I$4*$A18)^2))/1000 -> 336.0372003 | LZ18: =SQRT((($I$3*LZ$13)^2)+(($I$4*$A18)^2))/1000 -> 337.0370899 | MA18: =SQRT((($I$3*MA$13)^2)+(($I$4*$A18)^2))/1000 -> 338.0369802 | MB18: =SQRT((($I$3*MB$13)^2)+(($I$4*$A18)^2))/1000 -> 339.0368712 | MC18: =SQRT((($I$3*MC$13)^2)+(($I$4*$A18)^2))/1000 -> 340.0367627 | MD18: =SQRT((($I$3*MD$13)^2)+(($I$4*$A18)^2))/1000 -> 341.0366549 | ME18: =SQRT((($I$3*ME$13)^2)+(($I$4*$A18)^2))/1000 -> 342.0365478 | MF18: =SQRT((($I$3*MF$13)^2)+(($I$4*$A18)^2))/1000 -> 343.0364412 | MG18: =SQRT((($I$3*MG$13)^2)+(($I$4*$A18)^2))/1000 -> 344.0363353 | MH18: =SQRT((($I$3*MH$13)^2)+(($I$4*$A18)^2))/1000 -> 345.03623 | MI18: =SQRT((($I$3*MI$13)^2)+(($I$4*$A18)^2))/1000 -> 346.0361253 | MJ18: =SQRT((($I$3*MJ$13)^2)+(($I$4*$A18)^2))/1000 -> 347.0360212 | MK18: =SQRT((($I$3*MK$13)^2)+(($I$4*$A18)^2))/1000 -> 348.0359177 | ML18: =SQRT((($I$3*ML$13)^2)+(($I$4*$A18)^2))/1000 -> 349.0358148 | MM18: =SQRT((($I$3*MM$13)^2)+(($I$4*$A18)^2))/1000 -> 350.0357125 | MN18: =SQRT((($I$3*MN$13)^2)+(($I$4*$A18)^2))/1000 -> 351.0356107 | MO18: =SQRT((($I$3*MO$13)^2)+(($I$4*$A18)^2))/1000 -> 352.0355096 | MP18: =SQRT((($I$3*MP$13)^2)+(($I$4*$A18)^2))/1000 -> 353.035409 | MQ18: =SQRT((($I$3*MQ$13)^2)+(($I$4*$A18)^2))/1000 -> 354.035309 | MR18: =SQRT((($I$3*MR$13)^2)+(($I$4*$A18)^2))/1000 -> 355.0352095 | MS18: =SQRT((($I$3*MS$13)^2)+(($I$4*$A18)^2))/1000 -> 356.0351106 | MT18: =SQRT((($I$3*MT$13)^2)+(($I$4*$A18)^2))/1000 -> 357.0350123 | MU18: =SQRT((($I$3*MU$13)^2)+(($I$4*$A18)^2))/1000 -> 358.0349145 | MV18: =SQRT((($I$3*MV$13)^2)+(($I$4*$A18)^2))/1000 -> 359.0348173 | MW18: =SQRT((($I$3*MW$13)^2)+(($I$4*$A18)^2))/1000 -> 360.0347205 | MX18: =SQRT((($I$3*MX$13)^2)+(($I$4*$A18)^2))/1000 -> 361.0346244 | MY18: =SQRT((($I$3*MY$13)^2)+(($I$4*$A18)^2))/1000 -> 362.0345287 | MZ18: =SQRT((($I$3*MZ$13)^2)+(($I$4*$A18)^2))/1000 -> 363.0344336 | NA18: =SQRT((($I$3*NA$13)^2)+(($I$4*$A18)^2))/1000 -> 364.034339 | NB18: =SQRT((($I$3*NB$13)^2)+(($I$4*$A18)^2))/1000 -> 365.034245 | NC18: =SQRT((($I$3*NC$13)^2)+(($I$4*$A18)^2))/1000 -> 366.0341514 | ND18: =SQRT((($I$3*ND$13)^2)+(($I$4*$A18)^2))/1000 -> 367.0340584 | NE18: =SQRT((($I$3*NE$13)^2)+(($I$4*$A18)^2))/1000 -> 368.0339658 | NF18: =SQRT((($I$3*NF$13)^2)+(($I$4*$A18)^2))/1000 -> 369.0338738 | NG18: =SQRT((($I$3*NG$13)^2)+(($I$4*$A18)^2))/1000 -> 370.0337822 | NH18: =SQRT((($I$3*NH$13)^2)+(($I$4*$A18)^2))/1000 -> 371.0336912 | NI18: =SQRT((($I$3*NI$13)^2)+(($I$4*$A18)^2))/1000 -> 372.0336006 | NJ18: =SQRT((($I$3*NJ$13)^2)+(($I$4*$A18)^2))/1000 -> 373.0335106 | NK18: =SQRT((($I$3*NK$13)^2)+(($I$4*$A18)^2))/1000 -> 374.033421 | NL18: =SQRT((($I$3*NL$13)^2)+(($I$4*$A18)^2))/1000 -> 375.0333319 | NM18: =SQRT((($I$3*NM$13)^2)+(($I$4*$A18)^2))/1000 -> 376.0332432 | NN18: =SQRT((($I$3*NN$13)^2)+(($I$4*$A18)^2))/1000 -> 377.033155 | NO18: =SQRT((($I$3*NO$13)^2)+(($I$4*$A18)^2))/1000 -> 378.0330673 | NP18: =SQRT((($I$3*NP$13)^2)+(($I$4*$A18)^2))/1000 -> 379.0329801 | NQ18: =SQRT((($I$3*NQ$13)^2)+(($I$4*$A18)^2))/1000 -> 380.0328933 | NR18: =SQRT((($I$3*NR$13)^2)+(($I$4*$A18)^2))/1000 -> 381.032807 | NS18: =SQRT((($I$3*NS$13)^2)+(($I$4*$A18)^2))/1000 -> 382.0327211 | NT18: =SQRT((($I$3*NT$13)^2)+(($I$4*$A18)^2))/1000 -> 383.0326357 | NU18: =SQRT((($I$3*NU$13)^2)+(($I$4*$A18)^2))/1000 -> 384.0325507 | NV18: =SQRT((($I$3*NV$13)^2)+(($I$4*$A18)^2))/1000 -> 385.0324662 | NW18: =SQRT((($I$3*NW$13)^2)+(($I$4*$A18)^2))/1000 -> 386.0323821 | NX18: =SQRT((($I$3*NX$13)^2)+(($I$4*$A18)^2))/1000 -> 387.0322984 | NY18: =SQRT((($I$3*NY$13)^2)+(($I$4*$A18)^2))/1000 -> 388.0322152 | NZ18: =SQRT((($I$3*NZ$13)^2)+(($I$4*$A18)^2))/1000 -> 389.0321323 | OA18: =SQRT((($I$3*OA$13)^2)+(($I$4*$A18)^2))/1000 -> 390.03205 | OB18: =SQRT((($I$3*OB$13)^2)+(($I$4*$A18)^2))/1000 -> 391.031968 | OC18: =SQRT((($I$3*OC$13)^2)+(($I$4*$A18)^2))/1000 -> 392.0318865 | OD18: =SQRT((($I$3*OD$13)^2)+(($I$4*$A18)^2))/1000 -> 393.0318053 | OE18: =SQRT((($I$3*OE$13)^2)+(($I$4*$A18)^2))/1000 -> 394.0317246 | OF18: =SQRT((($I$3*OF$13)^2)+(($I$4*$A18)^2))/1000 -> 395.0316443 | OG18: =SQRT((($I$3*OG$13)^2)+(($I$4*$A18)^2))/1000 -> 396.0315644 | OH18: =SQRT((($I$3*OH$13)^2)+(($I$4*$A18)^2))/1000 -> 397.0314849 | OI18: =SQRT((($I$3*OI$13)^2)+(($I$4*$A18)^2))/1000 -> 398.0314058 | OJ18: =SQRT((($I$3*OJ$13)^2)+(($I$4*$A18)^2))/1000 -> 399.0313271 | OK18: =SQRT((($I$3*OK$13)^2)+(($I$4*$A18)^2))/1000 -> 400.0312488 | OL18: =SQRT((($I$3*OL$13)^2)+(($I$4*$A18)^2))/1000 -> 401.0311709 | OM18: =SQRT((($I$3*OM$13)^2)+(($I$4*$A18)^2))/1000 -> 402.0310933 | ON18: =SQRT((($I$3*ON$13)^2)+(($I$4*$A18)^2))/1000 -> 403.0310162 | OO18: =SQRT((($I$3*OO$13)^2)+(($I$4*$A18)^2))/1000 -> 404.0309394 | OP18: =SQRT((($I$3*OP$13)^2)+(($I$4*$A18)^2))/1000 -> 405.030863 | OQ18: =SQRT((($I$3*OQ$13)^2)+(($I$4*$A18)^2))/1000 -> 406.030787 | OR18: =SQRT((($I$3*OR$13)^2)+(($I$4*$A18)^2))/1000 -> 407.0307114 | OS18: =SQRT((($I$3*OS$13)^2)+(($I$4*$A18)^2))/1000 -> 408.0306361 | OT18: =SQRT((($I$3*OT$13)^2)+(($I$4*$A18)^2))/1000 -> 409.0305612 | OU18: =SQRT((($I$3*OU$13)^2)+(($I$4*$A18)^2))/1000 -> 410.0304867 | OV18: =SQRT((($I$3*OV$13)^2)+(($I$4*$A18)^2))/1000 -> 411.0304125 | OW18: =SQRT((($I$3*OW$13)^2)+(($I$4*$A18)^2))/1000 -> 412.0303387 | OX18: =SQRT((($I$3*OX$13)^2)+(($I$4*$A18)^2))/1000 -> 413.0302652 | OY18: =SQRT((($I$3*OY$13)^2)+(($I$4*$A18)^2))/1000 -> 414.0301921 | OZ18: =SQRT((($I$3*OZ$13)^2)+(($I$4*$A18)^2))/1000 -> 415.0301194 | PA18: =SQRT((($I$3*PA$13)^2)+(($I$4*$A18)^2))/1000 -> 416.030047 | PB18: =SQRT((($I$3*PB$13)^2)+(($I$4*$A18)^2))/1000 -> 417.0299749 | PC18: =SQRT((($I$3*PC$13)^2)+(($I$4*$A18)^2))/1000 -> 418.0299032 | PD18: =SQRT((($I$3*PD$13)^2)+(($I$4*$A18)^2))/1000 -> 419.0298319 | PE18: =SQRT((($I$3*PE$13)^2)+(($I$4*$A18)^2))/1000 -> 420.0297609 | PF18: =SQRT((($I$3*PF$13)^2)+(($I$4*$A18)^2))/1000 -> 421.0296902 | PG18: =SQRT((($I$3*PG$13)^2)+(($I$4*$A18)^2))/1000 -> 422.0296198 | PH18: =SQRT((($I$3*PH$13)^2)+(($I$4*$A18)^2))/1000 -> 423.0295498 | PI18: =SQRT((($I$3*PI$13)^2)+(($I$4*$A18)^2))/1000 -> 424.0294801 | PJ18: =SQRT((($I$3*PJ$13)^2)+(($I$4*$A18)^2))/1000 -> 425.0294107 | PK18: =SQRT((($I$3*PK$13)^2)+(($I$4*$A18)^2))/1000 -> 426.0293417 | PL18: =SQRT((($I$3*PL$13)^2)+(($I$4*$A18)^2))/1000 -> 427.029273 | PM18: =SQRT((($I$3*PM$13)^2)+(($I$4*$A18)^2))/1000 -> 428.0292046 | PN18: =SQRT((($I$3*PN$13)^2)+(($I$4*$A18)^2))/1000 -> 429.0291365 | PO18: =SQRT((($I$3*PO$13)^2)+(($I$4*$A18)^2))/1000 -> 430.0290688 | PP18: =SQRT((($I$3*PP$13)^2)+(($I$4*$A18)^2))/1000 -> 431.0290013 | PQ18: =SQRT((($I$3*PQ$13)^2)+(($I$4*$A18)^2))/1000 -> 432.0289342 | PR18: =SQRT((($I$3*PR$13)^2)+(($I$4*$A18)^2))/1000 -> 433.0288674 | PS18: =SQRT((($I$3*PS$13)^2)+(($I$4*$A18)^2))/1000 -> 434.0288009 | PT18: =SQRT((($I$3*PT$13)^2)+(($I$4*$A18)^2))/1000 -> 435.0287347 | PU18: =SQRT((($I$3*PU$13)^2)+(($I$4*$A18)^2))/1000 -> 436.0286688 | PV18: =SQRT((($I$3*PV$13)^2)+(($I$4*$A18)^2))/1000 -> 437.0286032 | PW18: =SQRT((($I$3*PW$13)^2)+(($I$4*$A18)^2))/1000 -> 438.0285379 | PX18: =SQRT((($I$3*PX$13)^2)+(($I$4*$A18)^2))/1000 -> 439.0284729 | PY18: =SQRT((($I$3*PY$13)^2)+(($I$4*$A18)^2))/1000 -> 440.0284082 | PZ18: =SQRT((($I$3*PZ$13)^2)+(($I$4*$A18)^2))/1000 -> 441.0283438 | QA18: =SQRT((($I$3*QA$13)^2)+(($I$4*$A18)^2))/1000 -> 442.0282796 | QB18: =SQRT((($I$3*QB$13)^2)+(($I$4*$A18)^2))/1000 -> 443.0282158 | QC18: =SQRT((($I$3*QC$13)^2)+(($I$4*$A18)^2))/1000 -> 444.0281523 | QD18: =SQRT((($I$3*QD$13)^2)+(($I$4*$A18)^2))/1000 -> 445.028089 | QE18: =SQRT((($I$3*QE$13)^2)+(($I$4*$A18)^2))/1000 -> 446.028026 | QF18: =SQRT((($I$3*QF$13)^2)+(($I$4*$A18)^2))/1000 -> 447.0279633 | QG18: =SQRT((($I$3*QG$13)^2)+(($I$4*$A18)^2))/1000 -> 448.0279009 | QH18: =SQRT((($I$3*QH$13)^2)+(($I$4*$A18)^2))/1000 -> 449.0278388 | QI18: =SQRT((($I$3*QI$13)^2)+(($I$4*$A18)^2))/1000 -> 450.0277769 | QJ18: =SQRT((($I$3*QJ$13)^2)+(($I$4*$A18)^2))/1000 -> 451.0277153 | QK18: =SQRT((($I$3*QK$13)^2)+(($I$4*$A18)^2))/1000 -> 452.027654 | QL18: =SQRT((($I$3*QL$13)^2)+(($I$4*$A18)^2))/1000 -> 453.027593 | QM18: =SQRT((($I$3*QM$13)^2)+(($I$4*$A18)^2))/1000 -> 454.0275322 | QN18: =SQRT((($I$3*QN$13)^2)+(($I$4*$A18)^2))/1000 -> 455.0274717 | QO18: =SQRT((($I$3*QO$13)^2)+(($I$4*$A18)^2))/1000 -> 456.0274115 | QP18: =SQRT((($I$3*QP$13)^2)+(($I$4*$A18)^2))/1000 -> 457.0273515 | QQ18: =SQRT((($I$3*QQ$13)^2)+(($I$4*$A18)^2))/1000 -> 458.0272918 | QR18: =SQRT((($I$3*QR$13)^2)+(($I$4*$A18)^2))/1000 -> 459.0272323 | QS18: =SQRT((($I$3*QS$13)^2)+(($I$4*$A18)^2))/1000 -> 460.0271731 | QT18: =SQRT((($I$3*QT$13)^2)+(($I$4*$A18)^2))/1000 -> 461.0271142 | QU18: =SQRT((($I$3*QU$13)^2)+(($I$4*$A18)^2))/1000 -> 462.0270555 | QV18: =SQRT((($I$3*QV$13)^2)+(($I$4*$A18)^2))/1000 -> 463.0269971 | QW18: =SQRT((($I$3*QW$13)^2)+(($I$4*$A18)^2))/1000 -> 464.0269389 | QX18: =SQRT((($I$3*QX$13)^2)+(($I$4*$A18)^2))/1000 -> 465.0268809 | QY18: =SQRT((($I$3*QY$13)^2)+(($I$4*$A18)^2))/1000 -> 466.0268233 | QZ18: =SQRT((($I$3*QZ$13)^2)+(($I$4*$A18)^2))/1000 -> 467.0267658 | RA18: =SQRT((($I$3*RA$13)^2)+(($I$4*$A18)^2))/1000 -> 468.0267086 | RB18: =SQRT((($I$3*RB$13)^2)+(($I$4*$A18)^2))/1000 -> 469.0266517 | RC18: =SQRT((($I$3*RC$13)^2)+(($I$4*$A18)^2))/1000 -> 470.026595 | RD18: =SQRT((($I$3*RD$13)^2)+(($I$4*$A18)^2))/1000 -> 471.0265385 | RE18: =SQRT((($I$3*RE$13)^2)+(($I$4*$A18)^2))/1000 -> 472.0264823 | RF18: =SQRT((($I$3*RF$13)^2)+(($I$4*$A18)^2))/1000 -> 473.0264263 | RG18: =SQRT((($I$3*RG$13)^2)+(($I$4*$A18)^2))/1000 -> 474.0263706 | RH18: =SQRT((($I$3*RH$13)^2)+(($I$4*$A18)^2))/1000 -> 475.0263151 | RI18: =SQRT((($I$3*RI$13)^2)+(($I$4*$A18)^2))/1000 -> 476.0262598 | RJ18: =SQRT((($I$3*RJ$13)^2)+(($I$4*$A18)^2))/1000 -> 477.0262047 | RK18: =SQRT((($I$3*RK$13)^2)+(($I$4*$A18)^2))/1000 -> 478.0261499 | RL18: =SQRT((($I$3*RL$13)^2)+(($I$4*$A18)^2))/1000 -> 479.0260953 | RM18: =SQRT((($I$3*RM$13)^2)+(($I$4*$A18)^2))/1000 -> 480.026041 | RN18: =SQRT((($I$3*RN$13)^2)+(($I$4*$A18)^2))/1000 -> 481.0259868 | RO18: =SQRT((($I$3*RO$13)^2)+(($I$4*$A18)^2))/1000 -> 482.0259329 | RP18: =SQRT((($I$3*RP$13)^2)+(($I$4*$A18)^2))/1000 -> 483.0258792 | RQ18: =SQRT((($I$3*RQ$13)^2)+(($I$4*$A18)^2))/1000 -> 484.0258258 | RR18: =SQRT((($I$3*RR$13)^2)+(($I$4*$A18)^2))/1000 -> 485.0257725 | RS18: =SQRT((($I$3*RS$13)^2)+(($I$4*$A18)^2))/1000 -> 486.0257195 | RT18: =SQRT((($I$3*RT$13)^2)+(($I$4*$A18)^2))/1000 -> 487.0256667 | RU18: =SQRT((($I$3*RU$13)^2)+(($I$4*$A18)^2))/1000 -> 488.0256141 | RV18: =SQRT((($I$3*RV$13)^2)+(($I$4*$A18)^2))/1000 -> 489.0255617 | RW18: =SQRT((($I$3*RW$13)^2)+(($I$4*$A18)^2))/1000 -> 490.0255095 | RX18: =SQRT((($I$3*RX$13)^2)+(($I$4*$A18)^2))/1000 -> 491.0254576 | RY18: =SQRT((($I$3*RY$13)^2)+(($I$4*$A18)^2))/1000 -> 492.0254058 | RZ18: =SQRT((($I$3*RZ$13)^2)+(($I$4*$A18)^2))/1000 -> 493.0253543 | SA18: =SQRT((($I$3*SA$13)^2)+(($I$4*$A18)^2))/1000 -> 494.025303 | SB18: =SQRT((($I$3*SB$13)^2)+(($I$4*$A18)^2))/1000 -> 495.0252519 | SC18: =SQRT((($I$3*SC$13)^2)+(($I$4*$A18)^2))/1000 -> 496.025201 | SD18: =SQRT((($I$3*SD$13)^2)+(($I$4*$A18)^2))/1000 -> 497.0251503 | SE18: =SQRT((($I$3*SE$13)^2)+(($I$4*$A18)^2))/1000 -> 498.0250998 | SF18: =SQRT((($I$3*SF$13)^2)+(($I$4*$A18)^2))/1000 -> 499.0250495 | SG18: =SQRT((($I$3*SG$13)^2)+(($I$4*$A18)^2))/1000 -> 500.0249994
A19: 6 | B19: =SQRT((($I$3*B$13)^2)+(($I$4*$A19)^2))/1000 -> 6.08276253 | C19: =SQRT((($I$3*C$13)^2)+(($I$4*$A19)^2))/1000 -> 6.32455532 | D19: =SQRT((($I$3*D$13)^2)+(($I$4*$A19)^2))/1000 -> 6.708203932 | E19: =SQRT((($I$3*E$13)^2)+(($I$4*$A19)^2))/1000 -> 7.211102551 | F19: =SQRT((($I$3*F$13)^2)+(($I$4*$A19)^2))/1000 -> 7.810249676 | G19: =SQRT((($I$3*G$13)^2)+(($I$4*$A19)^2))/1000 -> 8.485281374 | H19: =SQRT((($I$3*H$13)^2)+(($I$4*$A19)^2))/1000 -> 9.219544457 | I19: =SQRT((($I$3*I$13)^2)+(($I$4*$A19)^2))/1000 -> 10 | J19: =SQRT((($I$3*J$13)^2)+(($I$4*$A19)^2))/1000 -> 10.81665383 | K19: =SQRT((($I$3*K$13)^2)+(($I$4*$A19)^2))/1000 -> 11.66190379 | L19: =SQRT((($I$3*L$13)^2)+(($I$4*$A19)^2))/1000 -> 12.52996409 | M19: =SQRT((($I$3*M$13)^2)+(($I$4*$A19)^2))/1000 -> 13.41640786 | N19: =SQRT((($I$3*N$13)^2)+(($I$4*$A19)^2))/1000 -> 14.31782106 | O19: =SQRT((($I$3*O$13)^2)+(($I$4*$A19)^2))/1000 -> 15.23154621 | P19: =SQRT((($I$3*P$13)^2)+(($I$4*$A19)^2))/1000 -> 16.15549442 | Q19: =SQRT((($I$3*Q$13)^2)+(($I$4*$A19)^2))/1000 -> 17.08800749 | R19: =SQRT((($I$3*R$13)^2)+(($I$4*$A19)^2))/1000 -> 18.02775638 | S19: =SQRT((($I$3*S$13)^2)+(($I$4*$A19)^2))/1000 -> 18.97366596 | T19: =SQRT((($I$3*T$13)^2)+(($I$4*$A19)^2))/1000 -> 19.92485885 | U19: =SQRT((($I$3*U$13)^2)+(($I$4*$A19)^2))/1000 -> 20.88061302 | V19: =SQRT((($I$3*V$13)^2)+(($I$4*$A19)^2))/1000 -> 21.84032967 | W19: =SQRT((($I$3*W$13)^2)+(($I$4*$A19)^2))/1000 -> 22.8035085 | X19: =SQRT((($I$3*X$13)^2)+(($I$4*$A19)^2))/1000 -> 23.76972865 | Y19: =SQRT((($I$3*Y$13)^2)+(($I$4*$A19)^2))/1000 -> 24.73863375 | Z19: =SQRT((($I$3*Z$13)^2)+(($I$4*$A19)^2))/1000 -> 25.70992026 | AA19: =SQRT((($I$3*AA$13)^2)+(($I$4*$A19)^2))/1000 -> 26.68332813 | AB19: =SQRT((($I$3*AB$13)^2)+(($I$4*$A19)^2))/1000 -> 27.65863337 | AC19: =SQRT((($I$3*AC$13)^2)+(($I$4*$A19)^2))/1000 -> 28.63564213 | AD19: =SQRT((($I$3*AD$13)^2)+(($I$4*$A19)^2))/1000 -> 29.61418579 | AE19: =SQRT((($I$3*AE$13)^2)+(($I$4*$A19)^2))/1000 -> 30.59411708 | AF19: =SQRT((($I$3*AF$13)^2)+(($I$4*$A19)^2))/1000 -> 31.57530681 | AG19: =SQRT((($I$3*AG$13)^2)+(($I$4*$A19)^2))/1000 -> 32.55764119 | AH19: =SQRT((($I$3*AH$13)^2)+(($I$4*$A19)^2))/1000 -> 33.54101966 | AI19: =SQRT((($I$3*AI$13)^2)+(($I$4*$A19)^2))/1000 -> 34.525353 | AJ19: =SQRT((($I$3*AJ$13)^2)+(($I$4*$A19)^2))/1000 -> 35.51056181 | AK19: =SQRT((($I$3*AK$13)^2)+(($I$4*$A19)^2))/1000 -> 36.49657518 | AL19: =SQRT((($I$3*AL$13)^2)+(($I$4*$A19)^2))/1000 -> 37.48332963 | AM19: =SQRT((($I$3*AM$13)^2)+(($I$4*$A19)^2))/1000 -> 38.47076812 | AN19: =SQRT((($I$3*AN$13)^2)+(($I$4*$A19)^2))/1000 -> 39.45883931 | AO19: =SQRT((($I$3*AO$13)^2)+(($I$4*$A19)^2))/1000 -> 40.44749683 | AP19: =SQRT((($I$3*AP$13)^2)+(($I$4*$A19)^2))/1000 -> 41.43669871 | AQ19: =SQRT((($I$3*AQ$13)^2)+(($I$4*$A19)^2))/1000 -> 42.42640687 | AR19: =SQRT((($I$3*AR$13)^2)+(($I$4*$A19)^2))/1000 -> 43.41658669 | AS19: =SQRT((($I$3*AS$13)^2)+(($I$4*$A19)^2))/1000 -> 44.40720662 | AT19: =SQRT((($I$3*AT$13)^2)+(($I$4*$A19)^2))/1000 -> 45.39823785 | AU19: =SQRT((($I$3*AU$13)^2)+(($I$4*$A19)^2))/1000 -> 46.38965402 | AV19: =SQRT((($I$3*AV$13)^2)+(($I$4*$A19)^2))/1000 -> 47.38143096 | AW19: =SQRT((($I$3*AW$13)^2)+(($I$4*$A19)^2))/1000 -> 48.37354649 | AX19: =SQRT((($I$3*AX$13)^2)+(($I$4*$A19)^2))/1000 -> 49.36598019 | AY19: =SQRT((($I$3*AY$13)^2)+(($I$4*$A19)^2))/1000 -> 50.35871325 | AZ19: =SQRT((($I$3*AZ$13)^2)+(($I$4*$A19)^2))/1000 -> 51.35172831 | BA19: =SQRT((($I$3*BA$13)^2)+(($I$4*$A19)^2))/1000 -> 52.34500931 | BB19: =SQRT((($I$3*BB$13)^2)+(($I$4*$A19)^2))/1000 -> 53.33854141 | BC19: =SQRT((($I$3*BC$13)^2)+(($I$4*$A19)^2))/1000 -> 54.33231083 | BD19: =SQRT((($I$3*BD$13)^2)+(($I$4*$A19)^2))/1000 -> 55.32630477 | BE19: =SQRT((($I$3*BE$13)^2)+(($I$4*$A19)^2))/1000 -> 56.32051136 | BF19: =SQRT((($I$3*BF$13)^2)+(($I$4*$A19)^2))/1000 -> 57.31491952 | BG19: =SQRT((($I$3*BG$13)^2)+(($I$4*$A19)^2))/1000 -> 58.30951895 | BH19: =SQRT((($I$3*BH$13)^2)+(($I$4*$A19)^2))/1000 -> 59.30430001 | BI19: =SQRT((($I$3*BI$13)^2)+(($I$4*$A19)^2))/1000 -> 60.29925373 | BJ19: =SQRT((($I$3*BJ$13)^2)+(($I$4*$A19)^2))/1000 -> 61.29437168 | BK19: =SQRT((($I$3*BK$13)^2)+(($I$4*$A19)^2))/1000 -> 62.28964601 | BL19: =SQRT((($I$3*BL$13)^2)+(($I$4*$A19)^2))/1000 -> 63.28506933 | BM19: =SQRT((($I$3*BM$13)^2)+(($I$4*$A19)^2))/1000 -> 64.28063472 | BN19: =SQRT((($I$3*BN$13)^2)+(($I$4*$A19)^2))/1000 -> 65.27633568 | BO19: =SQRT((($I$3*BO$13)^2)+(($I$4*$A19)^2))/1000 -> 66.2721661 | BP19: =SQRT((($I$3*BP$13)^2)+(($I$4*$A19)^2))/1000 -> 67.26812024 | BQ19: =SQRT((($I$3*BQ$13)^2)+(($I$4*$A19)^2))/1000 -> 68.26419266 | BR19: =SQRT((($I$3*BR$13)^2)+(($I$4*$A19)^2))/1000 -> 69.26037828 | BS19: =SQRT((($I$3*BS$13)^2)+(($I$4*$A19)^2))/1000 -> 70.25667228 | BT19: =SQRT((($I$3*BT$13)^2)+(($I$4*$A19)^2))/1000 -> 71.25307011 | BU19: =SQRT((($I$3*BU$13)^2)+(($I$4*$A19)^2))/1000 -> 72.24956747 | BV19: =SQRT((($I$3*BV$13)^2)+(($I$4*$A19)^2))/1000 -> 73.24616031 | BW19: =SQRT((($I$3*BW$13)^2)+(($I$4*$A19)^2))/1000 -> 74.24284477 | BX19: =SQRT((($I$3*BX$13)^2)+(($I$4*$A19)^2))/1000 -> 75.23961722 | BY19: =SQRT((($I$3*BY$13)^2)+(($I$4*$A19)^2))/1000 -> 76.23647421 | BZ19: =SQRT((($I$3*BZ$13)^2)+(($I$4*$A19)^2))/1000 -> 77.23341246 | CA19: =SQRT((($I$3*CA$13)^2)+(($I$4*$A19)^2))/1000 -> 78.23042886 | CB19: =SQRT((($I$3*CB$13)^2)+(($I$4*$A19)^2))/1000 -> 79.22752047 | CC19: =SQRT((($I$3*CC$13)^2)+(($I$4*$A19)^2))/1000 -> 80.22468448 | CD19: =SQRT((($I$3*CD$13)^2)+(($I$4*$A19)^2))/1000 -> 81.22191822 | CE19: =SQRT((($I$3*CE$13)^2)+(($I$4*$A19)^2))/1000 -> 82.21921916 | CF19: =SQRT((($I$3*CF$13)^2)+(($I$4*$A19)^2))/1000 -> 83.21658489 | CG19: =SQRT((($I$3*CG$13)^2)+(($I$4*$A19)^2))/1000 -> 84.21401309 | CH19: =SQRT((($I$3*CH$13)^2)+(($I$4*$A19)^2))/1000 -> 85.21150157 | CI19: =SQRT((($I$3*CI$13)^2)+(($I$4*$A19)^2))/1000 -> 86.20904825 | CJ19: =SQRT((($I$3*CJ$13)^2)+(($I$4*$A19)^2))/1000 -> 87.20665112 | CK19: =SQRT((($I$3*CK$13)^2)+(($I$4*$A19)^2))/1000 -> 88.20430828 | CL19: =SQRT((($I$3*CL$13)^2)+(($I$4*$A19)^2))/1000 -> 89.20201791 | CM19: =SQRT((($I$3*CM$13)^2)+(($I$4*$A19)^2))/1000 -> 90.19977827 | CN19: =SQRT((($I$3*CN$13)^2)+(($I$4*$A19)^2))/1000 -> 91.19758769 | CO19: =SQRT((($I$3*CO$13)^2)+(($I$4*$A19)^2))/1000 -> 92.19544457 | CP19: =SQRT((($I$3*CP$13)^2)+(($I$4*$A19)^2))/1000 -> 93.1933474 | CQ19: =SQRT((($I$3*CQ$13)^2)+(($I$4*$A19)^2))/1000 -> 94.19129471 | CR19: =SQRT((($I$3*CR$13)^2)+(($I$4*$A19)^2))/1000 -> 95.18928511 | CS19: =SQRT((($I$3*CS$13)^2)+(($I$4*$A19)^2))/1000 -> 96.18731725 | CT19: =SQRT((($I$3*CT$13)^2)+(($I$4*$A19)^2))/1000 -> 97.18538985 | CU19: =SQRT((($I$3*CU$13)^2)+(($I$4*$A19)^2))/1000 -> 98.18350167 | CV19: =SQRT((($I$3*CV$13)^2)+(($I$4*$A19)^2))/1000 -> 99.18165153 | CW19: =SQRT((($I$3*CW$13)^2)+(($I$4*$A19)^2))/1000 -> 100.1798383 | CX19: =SQRT((($I$3*CX$13)^2)+(($I$4*$A19)^2))/1000 -> 101.1780609 | CY19: =SQRT((($I$3*CY$13)^2)+(($I$4*$A19)^2))/1000 -> 102.1763182 | CZ19: =SQRT((($I$3*CZ$13)^2)+(($I$4*$A19)^2))/1000 -> 103.1746093 | DA19: =SQRT((($I$3*DA$13)^2)+(($I$4*$A19)^2))/1000 -> 104.1729331 | DB19: =SQRT((($I$3*DB$13)^2)+(($I$4*$A19)^2))/1000 -> 105.1712889 | DC19: =SQRT((($I$3*DC$13)^2)+(($I$4*$A19)^2))/1000 -> 106.1696755 | DD19: =SQRT((($I$3*DD$13)^2)+(($I$4*$A19)^2))/1000 -> 107.1680923 | DE19: =SQRT((($I$3*DE$13)^2)+(($I$4*$A19)^2))/1000 -> 108.1665383 | DF19: =SQRT((($I$3*DF$13)^2)+(($I$4*$A19)^2))/1000 -> 109.1650127 | DG19: =SQRT((($I$3*DG$13)^2)+(($I$4*$A19)^2))/1000 -> 110.1635148 | DH19: =SQRT((($I$3*DH$13)^2)+(($I$4*$A19)^2))/1000 -> 111.1620439 | DI19: =SQRT((($I$3*DI$13)^2)+(($I$4*$A19)^2))/1000 -> 112.1605991 | DJ19: =SQRT((($I$3*DJ$13)^2)+(($I$4*$A19)^2))/1000 -> 113.1591799 | DK19: =SQRT((($I$3*DK$13)^2)+(($I$4*$A19)^2))/1000 -> 114.1577855 | DL19: =SQRT((($I$3*DL$13)^2)+(($I$4*$A19)^2))/1000 -> 115.1564154 | DM19: =SQRT((($I$3*DM$13)^2)+(($I$4*$A19)^2))/1000 -> 116.1550688 | DN19: =SQRT((($I$3*DN$13)^2)+(($I$4*$A19)^2))/1000 -> 117.1537451 | DO19: =SQRT((($I$3*DO$13)^2)+(($I$4*$A19)^2))/1000 -> 118.1524439 | DP19: =SQRT((($I$3*DP$13)^2)+(($I$4*$A19)^2))/1000 -> 119.1511645 | DQ19: =SQRT((($I$3*DQ$13)^2)+(($I$4*$A19)^2))/1000 -> 120.1499064 | DR19: =SQRT((($I$3*DR$13)^2)+(($I$4*$A19)^2))/1000 -> 121.148669 | DS19: =SQRT((($I$3*DS$13)^2)+(($I$4*$A19)^2))/1000 -> 122.1474519 | DT19: =SQRT((($I$3*DT$13)^2)+(($I$4*$A19)^2))/1000 -> 123.1462545 | DU19: =SQRT((($I$3*DU$13)^2)+(($I$4*$A19)^2))/1000 -> 124.1450764 | DV19: =SQRT((($I$3*DV$13)^2)+(($I$4*$A19)^2))/1000 -> 125.1439172 | DW19: =SQRT((($I$3*DW$13)^2)+(($I$4*$A19)^2))/1000 -> 126.1427762 | DX19: =SQRT((($I$3*DX$13)^2)+(($I$4*$A19)^2))/1000 -> 127.1416533 | DY19: =SQRT((($I$3*DY$13)^2)+(($I$4*$A19)^2))/1000 -> 128.1405478 | DZ19: =SQRT((($I$3*DZ$13)^2)+(($I$4*$A19)^2))/1000 -> 129.1394595 | EA19: =SQRT((($I$3*EA$13)^2)+(($I$4*$A19)^2))/1000 -> 130.1383879 | EB19: =SQRT((($I$3*EB$13)^2)+(($I$4*$A19)^2))/1000 -> 131.1373326 | EC19: =SQRT((($I$3*EC$13)^2)+(($I$4*$A19)^2))/1000 -> 132.1362933 | ED19: =SQRT((($I$3*ED$13)^2)+(($I$4*$A19)^2))/1000 -> 133.1352696 | EE19: =SQRT((($I$3*EE$13)^2)+(($I$4*$A19)^2))/1000 -> 134.1342611 | EF19: =SQRT((($I$3*EF$13)^2)+(($I$4*$A19)^2))/1000 -> 135.1332676 | EG19: =SQRT((($I$3*EG$13)^2)+(($I$4*$A19)^2))/1000 -> 136.1322886 | EH19: =SQRT((($I$3*EH$13)^2)+(($I$4*$A19)^2))/1000 -> 137.1313239 | EI19: =SQRT((($I$3*EI$13)^2)+(($I$4*$A19)^2))/1000 -> 138.1303732 | EJ19: =SQRT((($I$3*EJ$13)^2)+(($I$4*$A19)^2))/1000 -> 139.1294361 | EK19: =SQRT((($I$3*EK$13)^2)+(($I$4*$A19)^2))/1000 -> 140.1285124 | EL19: =SQRT((($I$3*EL$13)^2)+(($I$4*$A19)^2))/1000 -> 141.1276018 | EM19: =SQRT((($I$3*EM$13)^2)+(($I$4*$A19)^2))/1000 -> 142.126704 | EN19: =SQRT((($I$3*EN$13)^2)+(($I$4*$A19)^2))/1000 -> 143.1258188 | EO19: =SQRT((($I$3*EO$13)^2)+(($I$4*$A19)^2))/1000 -> 144.1249458 | EP19: =SQRT((($I$3*EP$13)^2)+(($I$4*$A19)^2))/1000 -> 145.1240848 | EQ19: =SQRT((($I$3*EQ$13)^2)+(($I$4*$A19)^2))/1000 -> 146.1232357 | ER19: =SQRT((($I$3*ER$13)^2)+(($I$4*$A19)^2))/1000 -> 147.122398 | ES19: =SQRT((($I$3*ES$13)^2)+(($I$4*$A19)^2))/1000 -> 148.1215717 | ET19: =SQRT((($I$3*ET$13)^2)+(($I$4*$A19)^2))/1000 -> 149.1207564 | EU19: =SQRT((($I$3*EU$13)^2)+(($I$4*$A19)^2))/1000 -> 150.119952 | EV19: =SQRT((($I$3*EV$13)^2)+(($I$4*$A19)^2))/1000 -> 151.1191583 | EW19: =SQRT((($I$3*EW$13)^2)+(($I$4*$A19)^2))/1000 -> 152.118375 | EX19: =SQRT((($I$3*EX$13)^2)+(($I$4*$A19)^2))/1000 -> 153.1176019 | EY19: =SQRT((($I$3*EY$13)^2)+(($I$4*$A19)^2))/1000 -> 154.1168388 | EZ19: =SQRT((($I$3*EZ$13)^2)+(($I$4*$A19)^2))/1000 -> 155.1160856 | FA19: =SQRT((($I$3*FA$13)^2)+(($I$4*$A19)^2))/1000 -> 156.115342 | FB19: =SQRT((($I$3*FB$13)^2)+(($I$4*$A19)^2))/1000 -> 157.1146079 | FC19: =SQRT((($I$3*FC$13)^2)+(($I$4*$A19)^2))/1000 -> 158.113883 | FD19: =SQRT((($I$3*FD$13)^2)+(($I$4*$A19)^2))/1000 -> 159.1131673 | FE19: =SQRT((($I$3*FE$13)^2)+(($I$4*$A19)^2))/1000 -> 160.1124605 | FF19: =SQRT((($I$3*FF$13)^2)+(($I$4*$A19)^2))/1000 -> 161.1117625 | FG19: =SQRT((($I$3*FG$13)^2)+(($I$4*$A19)^2))/1000 -> 162.111073 | FH19: =SQRT((($I$3*FH$13)^2)+(($I$4*$A19)^2))/1000 -> 163.1103921 | FI19: =SQRT((($I$3*FI$13)^2)+(($I$4*$A19)^2))/1000 -> 164.1097194 | FJ19: =SQRT((($I$3*FJ$13)^2)+(($I$4*$A19)^2))/1000 -> 165.1090549 | FK19: =SQRT((($I$3*FK$13)^2)+(($I$4*$A19)^2))/1000 -> 166.1083983 | FL19: =SQRT((($I$3*FL$13)^2)+(($I$4*$A19)^2))/1000 -> 167.1077497 | FM19: =SQRT((($I$3*FM$13)^2)+(($I$4*$A19)^2))/1000 -> 168.1071087 | FN19: =SQRT((($I$3*FN$13)^2)+(($I$4*$A19)^2))/1000 -> 169.1064753 | FO19: =SQRT((($I$3*FO$13)^2)+(($I$4*$A19)^2))/1000 -> 170.1058494 | FP19: =SQRT((($I$3*FP$13)^2)+(($I$4*$A19)^2))/1000 -> 171.1052308 | FQ19: =SQRT((($I$3*FQ$13)^2)+(($I$4*$A19)^2))/1000 -> 172.1046193 | FR19: =SQRT((($I$3*FR$13)^2)+(($I$4*$A19)^2))/1000 -> 173.104015 | FS19: =SQRT((($I$3*FS$13)^2)+(($I$4*$A19)^2))/1000 -> 174.1034175 | FT19: =SQRT((($I$3*FT$13)^2)+(($I$4*$A19)^2))/1000 -> 175.1028269 | FU19: =SQRT((($I$3*FU$13)^2)+(($I$4*$A19)^2))/1000 -> 176.102243 | FV19: =SQRT((($I$3*FV$13)^2)+(($I$4*$A19)^2))/1000 -> 177.1016657 | FW19: =SQRT((($I$3*FW$13)^2)+(($I$4*$A19)^2))/1000 -> 178.1010949 | FX19: =SQRT((($I$3*FX$13)^2)+(($I$4*$A19)^2))/1000 -> 179.1005304 | FY19: =SQRT((($I$3*FY$13)^2)+(($I$4*$A19)^2))/1000 -> 180.0999722 | FZ19: =SQRT((($I$3*FZ$13)^2)+(($I$4*$A19)^2))/1000 -> 181.0994202 | GA19: =SQRT((($I$3*GA$13)^2)+(($I$4*$A19)^2))/1000 -> 182.0988742 | GB19: =SQRT((($I$3*GB$13)^2)+(($I$4*$A19)^2))/1000 -> 183.0983342 | GC19: =SQRT((($I$3*GC$13)^2)+(($I$4*$A19)^2))/1000 -> 184.0978001 | GD19: =SQRT((($I$3*GD$13)^2)+(($I$4*$A19)^2))/1000 -> 185.0972717 | GE19: =SQRT((($I$3*GE$13)^2)+(($I$4*$A19)^2))/1000 -> 186.096749 | GF19: =SQRT((($I$3*GF$13)^2)+(($I$4*$A19)^2))/1000 -> 187.0962319 | GG19: =SQRT((($I$3*GG$13)^2)+(($I$4*$A19)^2))/1000 -> 188.0957203 | GH19: =SQRT((($I$3*GH$13)^2)+(($I$4*$A19)^2))/1000 -> 189.0952141 | GI19: =SQRT((($I$3*GI$13)^2)+(($I$4*$A19)^2))/1000 -> 190.0947132 | GJ19: =SQRT((($I$3*GJ$13)^2)+(($I$4*$A19)^2))/1000 -> 191.0942176 | GK19: =SQRT((($I$3*GK$13)^2)+(($I$4*$A19)^2))/1000 -> 192.0937271 | GL19: =SQRT((($I$3*GL$13)^2)+(($I$4*$A19)^2))/1000 -> 193.0932417 | GM19: =SQRT((($I$3*GM$13)^2)+(($I$4*$A19)^2))/1000 -> 194.0927613 | GN19: =SQRT((($I$3*GN$13)^2)+(($I$4*$A19)^2))/1000 -> 195.0922859 | GO19: =SQRT((($I$3*GO$13)^2)+(($I$4*$A19)^2))/1000 -> 196.0918152 | GP19: =SQRT((($I$3*GP$13)^2)+(($I$4*$A19)^2))/1000 -> 197.0913494 | GQ19: =SQRT((($I$3*GQ$13)^2)+(($I$4*$A19)^2))/1000 -> 198.0908882 | GR19: =SQRT((($I$3*GR$13)^2)+(($I$4*$A19)^2))/1000 -> 199.0904317 | GS19: =SQRT((($I$3*GS$13)^2)+(($I$4*$A19)^2))/1000 -> 200.0899798 | GT19: =SQRT((($I$3*GT$13)^2)+(($I$4*$A19)^2))/1000 -> 201.0895323 | GU19: =SQRT((($I$3*GU$13)^2)+(($I$4*$A19)^2))/1000 -> 202.0890893 | GV19: =SQRT((($I$3*GV$13)^2)+(($I$4*$A19)^2))/1000 -> 203.0886506 | GW19: =SQRT((($I$3*GW$13)^2)+(($I$4*$A19)^2))/1000 -> 204.0882162 | GX19: =SQRT((($I$3*GX$13)^2)+(($I$4*$A19)^2))/1000 -> 205.0877861 | GY19: =SQRT((($I$3*GY$13)^2)+(($I$4*$A19)^2))/1000 -> 206.0873601 | GZ19: =SQRT((($I$3*GZ$13)^2)+(($I$4*$A19)^2))/1000 -> 207.0869383 | HA19: =SQRT((($I$3*HA$13)^2)+(($I$4*$A19)^2))/1000 -> 208.0865205 | HB19: =SQRT((($I$3*HB$13)^2)+(($I$4*$A19)^2))/1000 -> 209.0861067 | HC19: =SQRT((($I$3*HC$13)^2)+(($I$4*$A19)^2))/1000 -> 210.0856968 | HD19: =SQRT((($I$3*HD$13)^2)+(($I$4*$A19)^2))/1000 -> 211.0852908 | HE19: =SQRT((($I$3*HE$13)^2)+(($I$4*$A19)^2))/1000 -> 212.0848887 | HF19: =SQRT((($I$3*HF$13)^2)+(($I$4*$A19)^2))/1000 -> 213.0844903 | HG19: =SQRT((($I$3*HG$13)^2)+(($I$4*$A19)^2))/1000 -> 214.0840956 | HH19: =SQRT((($I$3*HH$13)^2)+(($I$4*$A19)^2))/1000 -> 215.0837046 | HI19: =SQRT((($I$3*HI$13)^2)+(($I$4*$A19)^2))/1000 -> 216.0833173 | HJ19: =SQRT((($I$3*HJ$13)^2)+(($I$4*$A19)^2))/1000 -> 217.0829335 | HK19: =SQRT((($I$3*HK$13)^2)+(($I$4*$A19)^2))/1000 -> 218.0825532 | HL19: =SQRT((($I$3*HL$13)^2)+(($I$4*$A19)^2))/1000 -> 219.0821764 | HM19: =SQRT((($I$3*HM$13)^2)+(($I$4*$A19)^2))/1000 -> 220.081803 | HN19: =SQRT((($I$3*HN$13)^2)+(($I$4*$A19)^2))/1000 -> 221.081433 | HO19: =SQRT((($I$3*HO$13)^2)+(($I$4*$A19)^2))/1000 -> 222.0810663 | HP19: =SQRT((($I$3*HP$13)^2)+(($I$4*$A19)^2))/1000 -> 223.0807029 | HQ19: =SQRT((($I$3*HQ$13)^2)+(($I$4*$A19)^2))/1000 -> 224.0803427 | HR19: =SQRT((($I$3*HR$13)^2)+(($I$4*$A19)^2))/1000 -> 225.0799858 | HS19: =SQRT((($I$3*HS$13)^2)+(($I$4*$A19)^2))/1000 -> 226.079632 | HT19: =SQRT((($I$3*HT$13)^2)+(($I$4*$A19)^2))/1000 -> 227.0792813 | HU19: =SQRT((($I$3*HU$13)^2)+(($I$4*$A19)^2))/1000 -> 228.0789337 | HV19: =SQRT((($I$3*HV$13)^2)+(($I$4*$A19)^2))/1000 -> 229.0785891 | HW19: =SQRT((($I$3*HW$13)^2)+(($I$4*$A19)^2))/1000 -> 230.0782476 | HX19: =SQRT((($I$3*HX$13)^2)+(($I$4*$A19)^2))/1000 -> 231.0779089 | HY19: =SQRT((($I$3*HY$13)^2)+(($I$4*$A19)^2))/1000 -> 232.0775732 | HZ19: =SQRT((($I$3*HZ$13)^2)+(($I$4*$A19)^2))/1000 -> 233.0772404 | IA19: =SQRT((($I$3*IA$13)^2)+(($I$4*$A19)^2))/1000 -> 234.0769104 | IB19: =SQRT((($I$3*IB$13)^2)+(($I$4*$A19)^2))/1000 -> 235.0765833 | IC19: =SQRT((($I$3*IC$13)^2)+(($I$4*$A19)^2))/1000 -> 236.0762589 | ID19: =SQRT((($I$3*ID$13)^2)+(($I$4*$A19)^2))/1000 -> 237.0759372 | IE19: =SQRT((($I$3*IE$13)^2)+(($I$4*$A19)^2))/1000 -> 238.0756182 | IF19: =SQRT((($I$3*IF$13)^2)+(($I$4*$A19)^2))/1000 -> 239.0753019 | IG19: =SQRT((($I$3*IG$13)^2)+(($I$4*$A19)^2))/1000 -> 240.0749883 | IH19: =SQRT((($I$3*IH$13)^2)+(($I$4*$A19)^2))/1000 -> 241.0746772 | II19: =SQRT((($I$3*II$13)^2)+(($I$4*$A19)^2))/1000 -> 242.0743687 | IJ19: =SQRT((($I$3*IJ$13)^2)+(($I$4*$A19)^2))/1000 -> 243.0740628 | IK19: =SQRT((($I$3*IK$13)^2)+(($I$4*$A19)^2))/1000 -> 244.0737593 | IL19: =SQRT((($I$3*IL$13)^2)+(($I$4*$A19)^2))/1000 -> 245.0734584 | IM19: =SQRT((($I$3*IM$13)^2)+(($I$4*$A19)^2))/1000 -> 246.0731599 | IN19: =SQRT((($I$3*IN$13)^2)+(($I$4*$A19)^2))/1000 -> 247.0728637 | IO19: =SQRT((($I$3*IO$13)^2)+(($I$4*$A19)^2))/1000 -> 248.07257 | IP19: =SQRT((($I$3*IP$13)^2)+(($I$4*$A19)^2))/1000 -> 249.0722787 | IQ19: =SQRT((($I$3*IQ$13)^2)+(($I$4*$A19)^2))/1000 -> 250.0719896 | IR19: =SQRT((($I$3*IR$13)^2)+(($I$4*$A19)^2))/1000 -> 251.0717029 | IS19: =SQRT((($I$3*IS$13)^2)+(($I$4*$A19)^2))/1000 -> 252.0714185 | IT19: =SQRT((($I$3*IT$13)^2)+(($I$4*$A19)^2))/1000 -> 253.0711362 | IU19: =SQRT((($I$3*IU$13)^2)+(($I$4*$A19)^2))/1000 -> 254.0708563 | IV19: =SQRT((($I$3*IV$13)^2)+(($I$4*$A19)^2))/1000 -> 255.0705785 | IW19: =SQRT((($I$3*IW$13)^2)+(($I$4*$A19)^2))/1000 -> 256.0703028 | IX19: =SQRT((($I$3*IX$13)^2)+(($I$4*$A19)^2))/1000 -> 257.0700294 | IY19: =SQRT((($I$3*IY$13)^2)+(($I$4*$A19)^2))/1000 -> 258.069758 | IZ19: =SQRT((($I$3*IZ$13)^2)+(($I$4*$A19)^2))/1000 -> 259.0694887 | JA19: =SQRT((($I$3*JA$13)^2)+(($I$4*$A19)^2))/1000 -> 260.0692216 | JB19: =SQRT((($I$3*JB$13)^2)+(($I$4*$A19)^2))/1000 -> 261.0689564 | JC19: =SQRT((($I$3*JC$13)^2)+(($I$4*$A19)^2))/1000 -> 262.0686933 | JD19: =SQRT((($I$3*JD$13)^2)+(($I$4*$A19)^2))/1000 -> 263.0684322 | JE19: =SQRT((($I$3*JE$13)^2)+(($I$4*$A19)^2))/1000 -> 264.068173 | JF19: =SQRT((($I$3*JF$13)^2)+(($I$4*$A19)^2))/1000 -> 265.0679158 | JG19: =SQRT((($I$3*JG$13)^2)+(($I$4*$A19)^2))/1000 -> 266.0676606 | JH19: =SQRT((($I$3*JH$13)^2)+(($I$4*$A19)^2))/1000 -> 267.0674072 | JI19: =SQRT((($I$3*JI$13)^2)+(($I$4*$A19)^2))/1000 -> 268.0671558 | JJ19: =SQRT((($I$3*JJ$13)^2)+(($I$4*$A19)^2))/1000 -> 269.0669062 | JK19: =SQRT((($I$3*JK$13)^2)+(($I$4*$A19)^2))/1000 -> 270.0666584 | JL19: =SQRT((($I$3*JL$13)^2)+(($I$4*$A19)^2))/1000 -> 271.0664125 | JM19: =SQRT((($I$3*JM$13)^2)+(($I$4*$A19)^2))/1000 -> 272.0661684 | JN19: =SQRT((($I$3*JN$13)^2)+(($I$4*$A19)^2))/1000 -> 273.0659261 | JO19: =SQRT((($I$3*JO$13)^2)+(($I$4*$A19)^2))/1000 -> 274.0656856 | JP19: =SQRT((($I$3*JP$13)^2)+(($I$4*$A19)^2))/1000 -> 275.0654468 | JQ19: =SQRT((($I$3*JQ$13)^2)+(($I$4*$A19)^2))/1000 -> 276.0652097 | JR19: =SQRT((($I$3*JR$13)^2)+(($I$4*$A19)^2))/1000 -> 277.0649743 | JS19: =SQRT((($I$3*JS$13)^2)+(($I$4*$A19)^2))/1000 -> 278.0647407 | JT19: =SQRT((($I$3*JT$13)^2)+(($I$4*$A19)^2))/1000 -> 279.0645087 | JU19: =SQRT((($I$3*JU$13)^2)+(($I$4*$A19)^2))/1000 -> 280.0642783 | JV19: =SQRT((($I$3*JV$13)^2)+(($I$4*$A19)^2))/1000 -> 281.0640496 | JW19: =SQRT((($I$3*JW$13)^2)+(($I$4*$A19)^2))/1000 -> 282.0638226 | JX19: =SQRT((($I$3*JX$13)^2)+(($I$4*$A19)^2))/1000 -> 283.0635971 | JY19: =SQRT((($I$3*JY$13)^2)+(($I$4*$A19)^2))/1000 -> 284.0633732 | JZ19: =SQRT((($I$3*JZ$13)^2)+(($I$4*$A19)^2))/1000 -> 285.0631509 | KA19: =SQRT((($I$3*KA$13)^2)+(($I$4*$A19)^2))/1000 -> 286.0629301 | KB19: =SQRT((($I$3*KB$13)^2)+(($I$4*$A19)^2))/1000 -> 287.0627109 | KC19: =SQRT((($I$3*KC$13)^2)+(($I$4*$A19)^2))/1000 -> 288.0624932 | KD19: =SQRT((($I$3*KD$13)^2)+(($I$4*$A19)^2))/1000 -> 289.062277 | KE19: =SQRT((($I$3*KE$13)^2)+(($I$4*$A19)^2))/1000 -> 290.0620623 | KF19: =SQRT((($I$3*KF$13)^2)+(($I$4*$A19)^2))/1000 -> 291.0618491 | KG19: =SQRT((($I$3*KG$13)^2)+(($I$4*$A19)^2))/1000 -> 292.0616373 | KH19: =SQRT((($I$3*KH$13)^2)+(($I$4*$A19)^2))/1000 -> 293.061427 | KI19: =SQRT((($I$3*KI$13)^2)+(($I$4*$A19)^2))/1000 -> 294.0612181 | KJ19: =SQRT((($I$3*KJ$13)^2)+(($I$4*$A19)^2))/1000 -> 295.0610106 | KK19: =SQRT((($I$3*KK$13)^2)+(($I$4*$A19)^2))/1000 -> 296.0608046 | KL19: =SQRT((($I$3*KL$13)^2)+(($I$4*$A19)^2))/1000 -> 297.0605999 | KM19: =SQRT((($I$3*KM$13)^2)+(($I$4*$A19)^2))/1000 -> 298.0603966 | KN19: =SQRT((($I$3*KN$13)^2)+(($I$4*$A19)^2))/1000 -> 299.0601946 | KO19: =SQRT((($I$3*KO$13)^2)+(($I$4*$A19)^2))/1000 -> 300.059994 | KP19: =SQRT((($I$3*KP$13)^2)+(($I$4*$A19)^2))/1000 -> 301.0597947 | KQ19: =SQRT((($I$3*KQ$13)^2)+(($I$4*$A19)^2))/1000 -> 302.0595968 | KR19: =SQRT((($I$3*KR$13)^2)+(($I$4*$A19)^2))/1000 -> 303.0594001 | KS19: =SQRT((($I$3*KS$13)^2)+(($I$4*$A19)^2))/1000 -> 304.0592048 | KT19: =SQRT((($I$3*KT$13)^2)+(($I$4*$A19)^2))/1000 -> 305.0590107 | KU19: =SQRT((($I$3*KU$13)^2)+(($I$4*$A19)^2))/1000 -> 306.0588179 | KV19: =SQRT((($I$3*KV$13)^2)+(($I$4*$A19)^2))/1000 -> 307.0586263 | KW19: =SQRT((($I$3*KW$13)^2)+(($I$4*$A19)^2))/1000 -> 308.058436 | KX19: =SQRT((($I$3*KX$13)^2)+(($I$4*$A19)^2))/1000 -> 309.0582469 | KY19: =SQRT((($I$3*KY$13)^2)+(($I$4*$A19)^2))/1000 -> 310.0580591 | KZ19: =SQRT((($I$3*KZ$13)^2)+(($I$4*$A19)^2))/1000 -> 311.0578724 | LA19: =SQRT((($I$3*LA$13)^2)+(($I$4*$A19)^2))/1000 -> 312.057687 | LB19: =SQRT((($I$3*LB$13)^2)+(($I$4*$A19)^2))/1000 -> 313.0575027 | LC19: =SQRT((($I$3*LC$13)^2)+(($I$4*$A19)^2))/1000 -> 314.0573196 | LD19: =SQRT((($I$3*LD$13)^2)+(($I$4*$A19)^2))/1000 -> 315.0571377 | LE19: =SQRT((($I$3*LE$13)^2)+(($I$4*$A19)^2))/1000 -> 316.0569569 | LF19: =SQRT((($I$3*LF$13)^2)+(($I$4*$A19)^2))/1000 -> 317.0567772 | LG19: =SQRT((($I$3*LG$13)^2)+(($I$4*$A19)^2))/1000 -> 318.0565987 | LH19: =SQRT((($I$3*LH$13)^2)+(($I$4*$A19)^2))/1000 -> 319.0564213 | LI19: =SQRT((($I$3*LI$13)^2)+(($I$4*$A19)^2))/1000 -> 320.0562451 | LJ19: =SQRT((($I$3*LJ$13)^2)+(($I$4*$A19)^2))/1000 -> 321.0560699 | LK19: =SQRT((($I$3*LK$13)^2)+(($I$4*$A19)^2))/1000 -> 322.0558958 | LL19: =SQRT((($I$3*LL$13)^2)+(($I$4*$A19)^2))/1000 -> 323.0557227 | LM19: =SQRT((($I$3*LM$13)^2)+(($I$4*$A19)^2))/1000 -> 324.0555508 | LN19: =SQRT((($I$3*LN$13)^2)+(($I$4*$A19)^2))/1000 -> 325.0553799 | LO19: =SQRT((($I$3*LO$13)^2)+(($I$4*$A19)^2))/1000 -> 326.05521 | LP19: =SQRT((($I$3*LP$13)^2)+(($I$4*$A19)^2))/1000 -> 327.0550412 | LQ19: =SQRT((($I$3*LQ$13)^2)+(($I$4*$A19)^2))/1000 -> 328.0548735 | LR19: =SQRT((($I$3*LR$13)^2)+(($I$4*$A19)^2))/1000 -> 329.0547067 | LS19: =SQRT((($I$3*LS$13)^2)+(($I$4*$A19)^2))/1000 -> 330.0545409 | LT19: =SQRT((($I$3*LT$13)^2)+(($I$4*$A19)^2))/1000 -> 331.0543762 | LU19: =SQRT((($I$3*LU$13)^2)+(($I$4*$A19)^2))/1000 -> 332.0542124 | LV19: =SQRT((($I$3*LV$13)^2)+(($I$4*$A19)^2))/1000 -> 333.0540497 | LW19: =SQRT((($I$3*LW$13)^2)+(($I$4*$A19)^2))/1000 -> 334.0538879 | LX19: =SQRT((($I$3*LX$13)^2)+(($I$4*$A19)^2))/1000 -> 335.053727 | LY19: =SQRT((($I$3*LY$13)^2)+(($I$4*$A19)^2))/1000 -> 336.0535672 | LZ19: =SQRT((($I$3*LZ$13)^2)+(($I$4*$A19)^2))/1000 -> 337.0534082 | MA19: =SQRT((($I$3*MA$13)^2)+(($I$4*$A19)^2))/1000 -> 338.0532502 | MB19: =SQRT((($I$3*MB$13)^2)+(($I$4*$A19)^2))/1000 -> 339.0530932 | MC19: =SQRT((($I$3*MC$13)^2)+(($I$4*$A19)^2))/1000 -> 340.0529371 | MD19: =SQRT((($I$3*MD$13)^2)+(($I$4*$A19)^2))/1000 -> 341.0527818 | ME19: =SQRT((($I$3*ME$13)^2)+(($I$4*$A19)^2))/1000 -> 342.0526275 | MF19: =SQRT((($I$3*MF$13)^2)+(($I$4*$A19)^2))/1000 -> 343.0524741 | MG19: =SQRT((($I$3*MG$13)^2)+(($I$4*$A19)^2))/1000 -> 344.0523216 | MH19: =SQRT((($I$3*MH$13)^2)+(($I$4*$A19)^2))/1000 -> 345.05217 | MI19: =SQRT((($I$3*MI$13)^2)+(($I$4*$A19)^2))/1000 -> 346.0520192 | MJ19: =SQRT((($I$3*MJ$13)^2)+(($I$4*$A19)^2))/1000 -> 347.0518693 | MK19: =SQRT((($I$3*MK$13)^2)+(($I$4*$A19)^2))/1000 -> 348.0517203 | ML19: =SQRT((($I$3*ML$13)^2)+(($I$4*$A19)^2))/1000 -> 349.0515721 | MM19: =SQRT((($I$3*MM$13)^2)+(($I$4*$A19)^2))/1000 -> 350.0514248 | MN19: =SQRT((($I$3*MN$13)^2)+(($I$4*$A19)^2))/1000 -> 351.0512783 | MO19: =SQRT((($I$3*MO$13)^2)+(($I$4*$A19)^2))/1000 -> 352.0511326 | MP19: =SQRT((($I$3*MP$13)^2)+(($I$4*$A19)^2))/1000 -> 353.0509878 | MQ19: =SQRT((($I$3*MQ$13)^2)+(($I$4*$A19)^2))/1000 -> 354.0508438 | MR19: =SQRT((($I$3*MR$13)^2)+(($I$4*$A19)^2))/1000 -> 355.0507006 | MS19: =SQRT((($I$3*MS$13)^2)+(($I$4*$A19)^2))/1000 -> 356.0505582 | MT19: =SQRT((($I$3*MT$13)^2)+(($I$4*$A19)^2))/1000 -> 357.0504166 | MU19: =SQRT((($I$3*MU$13)^2)+(($I$4*$A19)^2))/1000 -> 358.0502758 | MV19: =SQRT((($I$3*MV$13)^2)+(($I$4*$A19)^2))/1000 -> 359.0501358 | MW19: =SQRT((($I$3*MW$13)^2)+(($I$4*$A19)^2))/1000 -> 360.0499965 | MX19: =SQRT((($I$3*MX$13)^2)+(($I$4*$A19)^2))/1000 -> 361.0498581 | MY19: =SQRT((($I$3*MY$13)^2)+(($I$4*$A19)^2))/1000 -> 362.0497203 | MZ19: =SQRT((($I$3*MZ$13)^2)+(($I$4*$A19)^2))/1000 -> 363.0495834 | NA19: =SQRT((($I$3*NA$13)^2)+(($I$4*$A19)^2))/1000 -> 364.0494472 | NB19: =SQRT((($I$3*NB$13)^2)+(($I$4*$A19)^2))/1000 -> 365.0493117 | NC19: =SQRT((($I$3*NC$13)^2)+(($I$4*$A19)^2))/1000 -> 366.049177 | ND19: =SQRT((($I$3*ND$13)^2)+(($I$4*$A19)^2))/1000 -> 367.049043 | NE19: =SQRT((($I$3*NE$13)^2)+(($I$4*$A19)^2))/1000 -> 368.0489098 | NF19: =SQRT((($I$3*NF$13)^2)+(($I$4*$A19)^2))/1000 -> 369.0487773 | NG19: =SQRT((($I$3*NG$13)^2)+(($I$4*$A19)^2))/1000 -> 370.0486455 | NH19: =SQRT((($I$3*NH$13)^2)+(($I$4*$A19)^2))/1000 -> 371.0485143 | NI19: =SQRT((($I$3*NI$13)^2)+(($I$4*$A19)^2))/1000 -> 372.048384 | NJ19: =SQRT((($I$3*NJ$13)^2)+(($I$4*$A19)^2))/1000 -> 373.0482543 | NK19: =SQRT((($I$3*NK$13)^2)+(($I$4*$A19)^2))/1000 -> 374.0481252 | NL19: =SQRT((($I$3*NL$13)^2)+(($I$4*$A19)^2))/1000 -> 375.0479969 | NM19: =SQRT((($I$3*NM$13)^2)+(($I$4*$A19)^2))/1000 -> 376.0478693 | NN19: =SQRT((($I$3*NN$13)^2)+(($I$4*$A19)^2))/1000 -> 377.0477423 | NO19: =SQRT((($I$3*NO$13)^2)+(($I$4*$A19)^2))/1000 -> 378.047616 | NP19: =SQRT((($I$3*NP$13)^2)+(($I$4*$A19)^2))/1000 -> 379.0474904 | NQ19: =SQRT((($I$3*NQ$13)^2)+(($I$4*$A19)^2))/1000 -> 380.0473655 | NR19: =SQRT((($I$3*NR$13)^2)+(($I$4*$A19)^2))/1000 -> 381.0472412 | NS19: =SQRT((($I$3*NS$13)^2)+(($I$4*$A19)^2))/1000 -> 382.0471175 | NT19: =SQRT((($I$3*NT$13)^2)+(($I$4*$A19)^2))/1000 -> 383.0469945 | NU19: =SQRT((($I$3*NU$13)^2)+(($I$4*$A19)^2))/1000 -> 384.0468721 | NV19: =SQRT((($I$3*NV$13)^2)+(($I$4*$A19)^2))/1000 -> 385.0467504 | NW19: =SQRT((($I$3*NW$13)^2)+(($I$4*$A19)^2))/1000 -> 386.0466293 | NX19: =SQRT((($I$3*NX$13)^2)+(($I$4*$A19)^2))/1000 -> 387.0465088 | NY19: =SQRT((($I$3*NY$13)^2)+(($I$4*$A19)^2))/1000 -> 388.046389 | NZ19: =SQRT((($I$3*NZ$13)^2)+(($I$4*$A19)^2))/1000 -> 389.0462697 | OA19: =SQRT((($I$3*OA$13)^2)+(($I$4*$A19)^2))/1000 -> 390.0461511 | OB19: =SQRT((($I$3*OB$13)^2)+(($I$4*$A19)^2))/1000 -> 391.0460331 | OC19: =SQRT((($I$3*OC$13)^2)+(($I$4*$A19)^2))/1000 -> 392.0459157 | OD19: =SQRT((($I$3*OD$13)^2)+(($I$4*$A19)^2))/1000 -> 393.0457989 | OE19: =SQRT((($I$3*OE$13)^2)+(($I$4*$A19)^2))/1000 -> 394.0456826 | OF19: =SQRT((($I$3*OF$13)^2)+(($I$4*$A19)^2))/1000 -> 395.045567 | OG19: =SQRT((($I$3*OG$13)^2)+(($I$4*$A19)^2))/1000 -> 396.0454519 | OH19: =SQRT((($I$3*OH$13)^2)+(($I$4*$A19)^2))/1000 -> 397.0453375 | OI19: =SQRT((($I$3*OI$13)^2)+(($I$4*$A19)^2))/1000 -> 398.0452236 | OJ19: =SQRT((($I$3*OJ$13)^2)+(($I$4*$A19)^2))/1000 -> 399.0451102 | OK19: =SQRT((($I$3*OK$13)^2)+(($I$4*$A19)^2))/1000 -> 400.0449975 | OL19: =SQRT((($I$3*OL$13)^2)+(($I$4*$A19)^2))/1000 -> 401.0448853 | OM19: =SQRT((($I$3*OM$13)^2)+(($I$4*$A19)^2))/1000 -> 402.0447736 | ON19: =SQRT((($I$3*ON$13)^2)+(($I$4*$A19)^2))/1000 -> 403.0446625 | OO19: =SQRT((($I$3*OO$13)^2)+(($I$4*$A19)^2))/1000 -> 404.044552 | OP19: =SQRT((($I$3*OP$13)^2)+(($I$4*$A19)^2))/1000 -> 405.044442 | OQ19: =SQRT((($I$3*OQ$13)^2)+(($I$4*$A19)^2))/1000 -> 406.0443326 | OR19: =SQRT((($I$3*OR$13)^2)+(($I$4*$A19)^2))/1000 -> 407.0442236 | OS19: =SQRT((($I$3*OS$13)^2)+(($I$4*$A19)^2))/1000 -> 408.0441153 | OT19: =SQRT((($I$3*OT$13)^2)+(($I$4*$A19)^2))/1000 -> 409.0440074 | OU19: =SQRT((($I$3*OU$13)^2)+(($I$4*$A19)^2))/1000 -> 410.0439001 | OV19: =SQRT((($I$3*OV$13)^2)+(($I$4*$A19)^2))/1000 -> 411.0437933 | OW19: =SQRT((($I$3*OW$13)^2)+(($I$4*$A19)^2))/1000 -> 412.043687 | OX19: =SQRT((($I$3*OX$13)^2)+(($I$4*$A19)^2))/1000 -> 413.0435812 | OY19: =SQRT((($I$3*OY$13)^2)+(($I$4*$A19)^2))/1000 -> 414.043476 | OZ19: =SQRT((($I$3*OZ$13)^2)+(($I$4*$A19)^2))/1000 -> 415.0433712 | PA19: =SQRT((($I$3*PA$13)^2)+(($I$4*$A19)^2))/1000 -> 416.043267 | PB19: =SQRT((($I$3*PB$13)^2)+(($I$4*$A19)^2))/1000 -> 417.0431632 | PC19: =SQRT((($I$3*PC$13)^2)+(($I$4*$A19)^2))/1000 -> 418.04306 | PD19: =SQRT((($I$3*PD$13)^2)+(($I$4*$A19)^2))/1000 -> 419.0429572 | PE19: =SQRT((($I$3*PE$13)^2)+(($I$4*$A19)^2))/1000 -> 420.042855 | PF19: =SQRT((($I$3*PF$13)^2)+(($I$4*$A19)^2))/1000 -> 421.0427532 | PG19: =SQRT((($I$3*PG$13)^2)+(($I$4*$A19)^2))/1000 -> 422.0426519 | PH19: =SQRT((($I$3*PH$13)^2)+(($I$4*$A19)^2))/1000 -> 423.0425511 | PI19: =SQRT((($I$3*PI$13)^2)+(($I$4*$A19)^2))/1000 -> 424.0424507 | PJ19: =SQRT((($I$3*PJ$13)^2)+(($I$4*$A19)^2))/1000 -> 425.0423508 | PK19: =SQRT((($I$3*PK$13)^2)+(($I$4*$A19)^2))/1000 -> 426.0422514 | PL19: =SQRT((($I$3*PL$13)^2)+(($I$4*$A19)^2))/1000 -> 427.0421525 | PM19: =SQRT((($I$3*PM$13)^2)+(($I$4*$A19)^2))/1000 -> 428.042054 | PN19: =SQRT((($I$3*PN$13)^2)+(($I$4*$A19)^2))/1000 -> 429.041956 | PO19: =SQRT((($I$3*PO$13)^2)+(($I$4*$A19)^2))/1000 -> 430.0418584 | PP19: =SQRT((($I$3*PP$13)^2)+(($I$4*$A19)^2))/1000 -> 431.0417613 | PQ19: =SQRT((($I$3*PQ$13)^2)+(($I$4*$A19)^2))/1000 -> 432.0416647 | PR19: =SQRT((($I$3*PR$13)^2)+(($I$4*$A19)^2))/1000 -> 433.0415684 | PS19: =SQRT((($I$3*PS$13)^2)+(($I$4*$A19)^2))/1000 -> 434.0414727 | PT19: =SQRT((($I$3*PT$13)^2)+(($I$4*$A19)^2))/1000 -> 435.0413773 | PU19: =SQRT((($I$3*PU$13)^2)+(($I$4*$A19)^2))/1000 -> 436.0412824 | PV19: =SQRT((($I$3*PV$13)^2)+(($I$4*$A19)^2))/1000 -> 437.041188 | PW19: =SQRT((($I$3*PW$13)^2)+(($I$4*$A19)^2))/1000 -> 438.041094 | PX19: =SQRT((($I$3*PX$13)^2)+(($I$4*$A19)^2))/1000 -> 439.0410004 | PY19: =SQRT((($I$3*PY$13)^2)+(($I$4*$A19)^2))/1000 -> 440.0409072 | PZ19: =SQRT((($I$3*PZ$13)^2)+(($I$4*$A19)^2))/1000 -> 441.0408144 | QA19: =SQRT((($I$3*QA$13)^2)+(($I$4*$A19)^2))/1000 -> 442.0407221 | QB19: =SQRT((($I$3*QB$13)^2)+(($I$4*$A19)^2))/1000 -> 443.0406302 | QC19: =SQRT((($I$3*QC$13)^2)+(($I$4*$A19)^2))/1000 -> 444.0405387 | QD19: =SQRT((($I$3*QD$13)^2)+(($I$4*$A19)^2))/1000 -> 445.0404476 | QE19: =SQRT((($I$3*QE$13)^2)+(($I$4*$A19)^2))/1000 -> 446.0403569 | QF19: =SQRT((($I$3*QF$13)^2)+(($I$4*$A19)^2))/1000 -> 447.0402666 | QG19: =SQRT((($I$3*QG$13)^2)+(($I$4*$A19)^2))/1000 -> 448.0401768 | QH19: =SQRT((($I$3*QH$13)^2)+(($I$4*$A19)^2))/1000 -> 449.0400873 | QI19: =SQRT((($I$3*QI$13)^2)+(($I$4*$A19)^2))/1000 -> 450.0399982 | QJ19: =SQRT((($I$3*QJ$13)^2)+(($I$4*$A19)^2))/1000 -> 451.0399095 | QK19: =SQRT((($I$3*QK$13)^2)+(($I$4*$A19)^2))/1000 -> 452.0398213 | QL19: =SQRT((($I$3*QL$13)^2)+(($I$4*$A19)^2))/1000 -> 453.0397334 | QM19: =SQRT((($I$3*QM$13)^2)+(($I$4*$A19)^2))/1000 -> 454.0396458 | QN19: =SQRT((($I$3*QN$13)^2)+(($I$4*$A19)^2))/1000 -> 455.0395587 | QO19: =SQRT((($I$3*QO$13)^2)+(($I$4*$A19)^2))/1000 -> 456.039472 | QP19: =SQRT((($I$3*QP$13)^2)+(($I$4*$A19)^2))/1000 -> 457.0393856 | QQ19: =SQRT((($I$3*QQ$13)^2)+(($I$4*$A19)^2))/1000 -> 458.0392996 | QR19: =SQRT((($I$3*QR$13)^2)+(($I$4*$A19)^2))/1000 -> 459.039214 | QS19: =SQRT((($I$3*QS$13)^2)+(($I$4*$A19)^2))/1000 -> 460.0391288 | QT19: =SQRT((($I$3*QT$13)^2)+(($I$4*$A19)^2))/1000 -> 461.0390439 | QU19: =SQRT((($I$3*QU$13)^2)+(($I$4*$A19)^2))/1000 -> 462.0389594 | QV19: =SQRT((($I$3*QV$13)^2)+(($I$4*$A19)^2))/1000 -> 463.0388753 | QW19: =SQRT((($I$3*QW$13)^2)+(($I$4*$A19)^2))/1000 -> 464.0387915 | QX19: =SQRT((($I$3*QX$13)^2)+(($I$4*$A19)^2))/1000 -> 465.0387081 | QY19: =SQRT((($I$3*QY$13)^2)+(($I$4*$A19)^2))/1000 -> 466.038625 | QZ19: =SQRT((($I$3*QZ$13)^2)+(($I$4*$A19)^2))/1000 -> 467.0385423 | RA19: =SQRT((($I$3*RA$13)^2)+(($I$4*$A19)^2))/1000 -> 468.03846 | RB19: =SQRT((($I$3*RB$13)^2)+(($I$4*$A19)^2))/1000 -> 469.038378 | RC19: =SQRT((($I$3*RC$13)^2)+(($I$4*$A19)^2))/1000 -> 470.0382963 | RD19: =SQRT((($I$3*RD$13)^2)+(($I$4*$A19)^2))/1000 -> 471.038215 | RE19: =SQRT((($I$3*RE$13)^2)+(($I$4*$A19)^2))/1000 -> 472.0381341 | RF19: =SQRT((($I$3*RF$13)^2)+(($I$4*$A19)^2))/1000 -> 473.0380534 | RG19: =SQRT((($I$3*RG$13)^2)+(($I$4*$A19)^2))/1000 -> 474.0379732 | RH19: =SQRT((($I$3*RH$13)^2)+(($I$4*$A19)^2))/1000 -> 475.0378932 | RI19: =SQRT((($I$3*RI$13)^2)+(($I$4*$A19)^2))/1000 -> 476.0378136 | RJ19: =SQRT((($I$3*RJ$13)^2)+(($I$4*$A19)^2))/1000 -> 477.0377344 | RK19: =SQRT((($I$3*RK$13)^2)+(($I$4*$A19)^2))/1000 -> 478.0376554 | RL19: =SQRT((($I$3*RL$13)^2)+(($I$4*$A19)^2))/1000 -> 479.0375768 | RM19: =SQRT((($I$3*RM$13)^2)+(($I$4*$A19)^2))/1000 -> 480.0374985 | RN19: =SQRT((($I$3*RN$13)^2)+(($I$4*$A19)^2))/1000 -> 481.0374206 | RO19: =SQRT((($I$3*RO$13)^2)+(($I$4*$A19)^2))/1000 -> 482.037343 | RP19: =SQRT((($I$3*RP$13)^2)+(($I$4*$A19)^2))/1000 -> 483.0372656 | RQ19: =SQRT((($I$3*RQ$13)^2)+(($I$4*$A19)^2))/1000 -> 484.0371887 | RR19: =SQRT((($I$3*RR$13)^2)+(($I$4*$A19)^2))/1000 -> 485.037112 | RS19: =SQRT((($I$3*RS$13)^2)+(($I$4*$A19)^2))/1000 -> 486.0370356 | RT19: =SQRT((($I$3*RT$13)^2)+(($I$4*$A19)^2))/1000 -> 487.0369596 | RU19: =SQRT((($I$3*RU$13)^2)+(($I$4*$A19)^2))/1000 -> 488.0368839 | RV19: =SQRT((($I$3*RV$13)^2)+(($I$4*$A19)^2))/1000 -> 489.0368084 | RW19: =SQRT((($I$3*RW$13)^2)+(($I$4*$A19)^2))/1000 -> 490.0367333 | RX19: =SQRT((($I$3*RX$13)^2)+(($I$4*$A19)^2))/1000 -> 491.0366585 | RY19: =SQRT((($I$3*RY$13)^2)+(($I$4*$A19)^2))/1000 -> 492.036584 | RZ19: =SQRT((($I$3*RZ$13)^2)+(($I$4*$A19)^2))/1000 -> 493.0365098 | SA19: =SQRT((($I$3*SA$13)^2)+(($I$4*$A19)^2))/1000 -> 494.0364359 | SB19: =SQRT((($I$3*SB$13)^2)+(($I$4*$A19)^2))/1000 -> 495.0363623 | SC19: =SQRT((($I$3*SC$13)^2)+(($I$4*$A19)^2))/1000 -> 496.036289 | SD19: =SQRT((($I$3*SD$13)^2)+(($I$4*$A19)^2))/1000 -> 497.036216 | SE19: =SQRT((($I$3*SE$13)^2)+(($I$4*$A19)^2))/1000 -> 498.0361433 | SF19: =SQRT((($I$3*SF$13)^2)+(($I$4*$A19)^2))/1000 -> 499.0360708 | SG19: =SQRT((($I$3*SG$13)^2)+(($I$4*$A19)^2))/1000 -> 500.0359987
A20: 7 | B20: =SQRT((($I$3*B$13)^2)+(($I$4*$A20)^2))/1000 -> 7.071067812 | C20: =SQRT((($I$3*C$13)^2)+(($I$4*$A20)^2))/1000 -> 7.280109889 | D20: =SQRT((($I$3*D$13)^2)+(($I$4*$A20)^2))/1000 -> 7.615773106 | E20: =SQRT((($I$3*E$13)^2)+(($I$4*$A20)^2))/1000 -> 8.062257748 | F20: =SQRT((($I$3*F$13)^2)+(($I$4*$A20)^2))/1000 -> 8.602325267 | G20: =SQRT((($I$3*G$13)^2)+(($I$4*$A20)^2))/1000 -> 9.219544457 | H20: =SQRT((($I$3*H$13)^2)+(($I$4*$A20)^2))/1000 -> 9.899494937 | I20: =SQRT((($I$3*I$13)^2)+(($I$4*$A20)^2))/1000 -> 10.63014581 | J20: =SQRT((($I$3*J$13)^2)+(($I$4*$A20)^2))/1000 -> 11.40175425 | K20: =SQRT((($I$3*K$13)^2)+(($I$4*$A20)^2))/1000 -> 12.20655562 | L20: =SQRT((($I$3*L$13)^2)+(($I$4*$A20)^2))/1000 -> 13.03840481 | M20: =SQRT((($I$3*M$13)^2)+(($I$4*$A20)^2))/1000 -> 13.89244399 | N20: =SQRT((($I$3*N$13)^2)+(($I$4*$A20)^2))/1000 -> 14.76482306 | O20: =SQRT((($I$3*O$13)^2)+(($I$4*$A20)^2))/1000 -> 15.65247584 | P20: =SQRT((($I$3*P$13)^2)+(($I$4*$A20)^2))/1000 -> 16.55294536 | Q20: =SQRT((($I$3*Q$13)^2)+(($I$4*$A20)^2))/1000 -> 17.4642492 | R20: =SQRT((($I$3*R$13)^2)+(($I$4*$A20)^2))/1000 -> 18.38477631 | S20: =SQRT((($I$3*S$13)^2)+(($I$4*$A20)^2))/1000 -> 19.31320792 | T20: =SQRT((($I$3*T$13)^2)+(($I$4*$A20)^2))/1000 -> 20.24845673 | U20: =SQRT((($I$3*U$13)^2)+(($I$4*$A20)^2))/1000 -> 21.1896201 | V20: =SQRT((($I$3*V$13)^2)+(($I$4*$A20)^2))/1000 -> 22.13594362 | W20: =SQRT((($I$3*W$13)^2)+(($I$4*$A20)^2))/1000 -> 23.08679276 | X20: =SQRT((($I$3*X$13)^2)+(($I$4*$A20)^2))/1000 -> 24.04163056 | Y20: =SQRT((($I$3*Y$13)^2)+(($I$4*$A20)^2))/1000 -> 25 | Z20: =SQRT((($I$3*Z$13)^2)+(($I$4*$A20)^2))/1000 -> 25.96150997 | AA20: =SQRT((($I$3*AA$13)^2)+(($I$4*$A20)^2))/1000 -> 26.92582404 | AB20: =SQRT((($I$3*AB$13)^2)+(($I$4*$A20)^2))/1000 -> 27.89265136 | AC20: =SQRT((($I$3*AC$13)^2)+(($I$4*$A20)^2))/1000 -> 28.86173938 | AD20: =SQRT((($I$3*AD$13)^2)+(($I$4*$A20)^2))/1000 -> 29.83286778 | AE20: =SQRT((($I$3*AE$13)^2)+(($I$4*$A20)^2))/1000 -> 30.8058436 | AF20: =SQRT((($I$3*AF$13)^2)+(($I$4*$A20)^2))/1000 -> 31.78049716 | AG20: =SQRT((($I$3*AG$13)^2)+(($I$4*$A20)^2))/1000 -> 32.75667871 | AH20: =SQRT((($I$3*AH$13)^2)+(($I$4*$A20)^2))/1000 -> 33.73425559 | AI20: =SQRT((($I$3*AI$13)^2)+(($I$4*$A20)^2))/1000 -> 34.71310992 | AJ20: =SQRT((($I$3*AJ$13)^2)+(($I$4*$A20)^2))/1000 -> 35.6931366 | AK20: =SQRT((($I$3*AK$13)^2)+(($I$4*$A20)^2))/1000 -> 36.67424164 | AL20: =SQRT((($I$3*AL$13)^2)+(($I$4*$A20)^2))/1000 -> 37.65634077 | AM20: =SQRT((($I$3*AM$13)^2)+(($I$4*$A20)^2))/1000 -> 38.63935817 | AN20: =SQRT((($I$3*AN$13)^2)+(($I$4*$A20)^2))/1000 -> 39.62322551 | AO20: =SQRT((($I$3*AO$13)^2)+(($I$4*$A20)^2))/1000 -> 40.60788101 | AP20: =SQRT((($I$3*AP$13)^2)+(($I$4*$A20)^2))/1000 -> 41.59326869 | AQ20: =SQRT((($I$3*AQ$13)^2)+(($I$4*$A20)^2))/1000 -> 42.57933771 | AR20: =SQRT((($I$3*AR$13)^2)+(($I$4*$A20)^2))/1000 -> 43.56604182 | AS20: =SQRT((($I$3*AS$13)^2)+(($I$4*$A20)^2))/1000 -> 44.55333882 | AT20: =SQRT((($I$3*AT$13)^2)+(($I$4*$A20)^2))/1000 -> 45.54119015 | AU20: =SQRT((($I$3*AU$13)^2)+(($I$4*$A20)^2))/1000 -> 46.5295605 | AV20: =SQRT((($I$3*AV$13)^2)+(($I$4*$A20)^2))/1000 -> 47.51841748 | AW20: =SQRT((($I$3*AW$13)^2)+(($I$4*$A20)^2))/1000 -> 48.50773134 | AX20: =SQRT((($I$3*AX$13)^2)+(($I$4*$A20)^2))/1000 -> 49.49747468 | AY20: =SQRT((($I$3*AY$13)^2)+(($I$4*$A20)^2))/1000 -> 50.48762225 | AZ20: =SQRT((($I$3*AZ$13)^2)+(($I$4*$A20)^2))/1000 -> 51.4781507 | BA20: =SQRT((($I$3*BA$13)^2)+(($I$4*$A20)^2))/1000 -> 52.46903849 | BB20: =SQRT((($I$3*BB$13)^2)+(($I$4*$A20)^2))/1000 -> 53.46026562 | BC20: =SQRT((($I$3*BC$13)^2)+(($I$4*$A20)^2))/1000 -> 54.45181356 | BD20: =SQRT((($I$3*BD$13)^2)+(($I$4*$A20)^2))/1000 -> 55.4436651 | BE20: =SQRT((($I$3*BE$13)^2)+(($I$4*$A20)^2))/1000 -> 56.43580424 | BF20: =SQRT((($I$3*BF$13)^2)+(($I$4*$A20)^2))/1000 -> 57.42821606 | BG20: =SQRT((($I$3*BG$13)^2)+(($I$4*$A20)^2))/1000 -> 58.42088668 | BH20: =SQRT((($I$3*BH$13)^2)+(($I$4*$A20)^2))/1000 -> 59.41380311 | BI20: =SQRT((($I$3*BI$13)^2)+(($I$4*$A20)^2))/1000 -> 60.40695324 | BJ20: =SQRT((($I$3*BJ$13)^2)+(($I$4*$A20)^2))/1000 -> 61.40032573 | BK20: =SQRT((($I$3*BK$13)^2)+(($I$4*$A20)^2))/1000 -> 62.39390996 | BL20: =SQRT((($I$3*BL$13)^2)+(($I$4*$A20)^2))/1000 -> 63.38769597 | BM20: =SQRT((($I$3*BM$13)^2)+(($I$4*$A20)^2))/1000 -> 64.38167441 | BN20: =SQRT((($I$3*BN$13)^2)+(($I$4*$A20)^2))/1000 -> 65.37583651 | BO20: =SQRT((($I$3*BO$13)^2)+(($I$4*$A20)^2))/1000 -> 66.37017402 | BP20: =SQRT((($I$3*BP$13)^2)+(($I$4*$A20)^2))/1000 -> 67.36467917 | BQ20: =SQRT((($I$3*BQ$13)^2)+(($I$4*$A20)^2))/1000 -> 68.35934464 | BR20: =SQRT((($I$3*BR$13)^2)+(($I$4*$A20)^2))/1000 -> 69.35416354 | BS20: =SQRT((($I$3*BS$13)^2)+(($I$4*$A20)^2))/1000 -> 70.34912935 | BT20: =SQRT((($I$3*BT$13)^2)+(($I$4*$A20)^2))/1000 -> 71.34423593 | BU20: =SQRT((($I$3*BU$13)^2)+(($I$4*$A20)^2))/1000 -> 72.33947747 | BV20: =SQRT((($I$3*BV$13)^2)+(($I$4*$A20)^2))/1000 -> 73.33484847 | BW20: =SQRT((($I$3*BW$13)^2)+(($I$4*$A20)^2))/1000 -> 74.33034374 | BX20: =SQRT((($I$3*BX$13)^2)+(($I$4*$A20)^2))/1000 -> 75.32595834 | BY20: =SQRT((($I$3*BY$13)^2)+(($I$4*$A20)^2))/1000 -> 76.32168761 | BZ20: =SQRT((($I$3*BZ$13)^2)+(($I$4*$A20)^2))/1000 -> 77.31752712 | CA20: =SQRT((($I$3*CA$13)^2)+(($I$4*$A20)^2))/1000 -> 78.31347266 | CB20: =SQRT((($I$3*CB$13)^2)+(($I$4*$A20)^2))/1000 -> 79.30952024 | CC20: =SQRT((($I$3*CC$13)^2)+(($I$4*$A20)^2))/1000 -> 80.30566605 | CD20: =SQRT((($I$3*CD$13)^2)+(($I$4*$A20)^2))/1000 -> 81.3019065 | CE20: =SQRT((($I$3*CE$13)^2)+(($I$4*$A20)^2))/1000 -> 82.29823813 | CF20: =SQRT((($I$3*CF$13)^2)+(($I$4*$A20)^2))/1000 -> 83.29465769 | CG20: =SQRT((($I$3*CG$13)^2)+(($I$4*$A20)^2))/1000 -> 84.29116205 | CH20: =SQRT((($I$3*CH$13)^2)+(($I$4*$A20)^2))/1000 -> 85.28774824 | CI20: =SQRT((($I$3*CI$13)^2)+(($I$4*$A20)^2))/1000 -> 86.28441342 | CJ20: =SQRT((($I$3*CJ$13)^2)+(($I$4*$A20)^2))/1000 -> 87.2811549 | CK20: =SQRT((($I$3*CK$13)^2)+(($I$4*$A20)^2))/1000 -> 88.27797007 | CL20: =SQRT((($I$3*CL$13)^2)+(($I$4*$A20)^2))/1000 -> 89.27485648 | CM20: =SQRT((($I$3*CM$13)^2)+(($I$4*$A20)^2))/1000 -> 90.27181177 | CN20: =SQRT((($I$3*CN$13)^2)+(($I$4*$A20)^2))/1000 -> 91.26883367 | CO20: =SQRT((($I$3*CO$13)^2)+(($I$4*$A20)^2))/1000 -> 92.26592004 | CP20: =SQRT((($I$3*CP$13)^2)+(($I$4*$A20)^2))/1000 -> 93.26306879 | CQ20: =SQRT((($I$3*CQ$13)^2)+(($I$4*$A20)^2))/1000 -> 94.26027795 | CR20: =SQRT((($I$3*CR$13)^2)+(($I$4*$A20)^2))/1000 -> 95.25754563 | CS20: =SQRT((($I$3*CS$13)^2)+(($I$4*$A20)^2))/1000 -> 96.25487001 | CT20: =SQRT((($I$3*CT$13)^2)+(($I$4*$A20)^2))/1000 -> 97.25224933 | CU20: =SQRT((($I$3*CU$13)^2)+(($I$4*$A20)^2))/1000 -> 98.24968193 | CV20: =SQRT((($I$3*CV$13)^2)+(($I$4*$A20)^2))/1000 -> 99.24716621 | CW20: =SQRT((($I$3*CW$13)^2)+(($I$4*$A20)^2))/1000 -> 100.2447006 | CX20: =SQRT((($I$3*CX$13)^2)+(($I$4*$A20)^2))/1000 -> 101.2422837 | CY20: =SQRT((($I$3*CY$13)^2)+(($I$4*$A20)^2))/1000 -> 102.2399139 | CZ20: =SQRT((($I$3*CZ$13)^2)+(($I$4*$A20)^2))/1000 -> 103.2375901 | DA20: =SQRT((($I$3*DA$13)^2)+(($I$4*$A20)^2))/1000 -> 104.2353107 | DB20: =SQRT((($I$3*DB$13)^2)+(($I$4*$A20)^2))/1000 -> 105.2330746 | DC20: =SQRT((($I$3*DC$13)^2)+(($I$4*$A20)^2))/1000 -> 106.2308806 | DD20: =SQRT((($I$3*DD$13)^2)+(($I$4*$A20)^2))/1000 -> 107.2287275 | DE20: =SQRT((($I$3*DE$13)^2)+(($I$4*$A20)^2))/1000 -> 108.2266141 | DF20: =SQRT((($I$3*DF$13)^2)+(($I$4*$A20)^2))/1000 -> 109.2245394 | DG20: =SQRT((($I$3*DG$13)^2)+(($I$4*$A20)^2))/1000 -> 110.2225022 | DH20: =SQRT((($I$3*DH$13)^2)+(($I$4*$A20)^2))/1000 -> 111.2205017 | DI20: =SQRT((($I$3*DI$13)^2)+(($I$4*$A20)^2))/1000 -> 112.2185368 | DJ20: =SQRT((($I$3*DJ$13)^2)+(($I$4*$A20)^2))/1000 -> 113.2166066 | DK20: =SQRT((($I$3*DK$13)^2)+(($I$4*$A20)^2))/1000 -> 114.2147101 | DL20: =SQRT((($I$3*DL$13)^2)+(($I$4*$A20)^2))/1000 -> 115.2128465 | DM20: =SQRT((($I$3*DM$13)^2)+(($I$4*$A20)^2))/1000 -> 116.211015 | DN20: =SQRT((($I$3*DN$13)^2)+(($I$4*$A20)^2))/1000 -> 117.2092147 | DO20: =SQRT((($I$3*DO$13)^2)+(($I$4*$A20)^2))/1000 -> 118.2074448 | DP20: =SQRT((($I$3*DP$13)^2)+(($I$4*$A20)^2))/1000 -> 119.2057046 | DQ20: =SQRT((($I$3*DQ$13)^2)+(($I$4*$A20)^2))/1000 -> 120.2039933 | DR20: =SQRT((($I$3*DR$13)^2)+(($I$4*$A20)^2))/1000 -> 121.2023102 | DS20: =SQRT((($I$3*DS$13)^2)+(($I$4*$A20)^2))/1000 -> 122.2006547 | DT20: =SQRT((($I$3*DT$13)^2)+(($I$4*$A20)^2))/1000 -> 123.199026 | DU20: =SQRT((($I$3*DU$13)^2)+(($I$4*$A20)^2))/1000 -> 124.1974235 | DV20: =SQRT((($I$3*DV$13)^2)+(($I$4*$A20)^2))/1000 -> 125.1958466 | DW20: =SQRT((($I$3*DW$13)^2)+(($I$4*$A20)^2))/1000 -> 126.1942946 | DX20: =SQRT((($I$3*DX$13)^2)+(($I$4*$A20)^2))/1000 -> 127.1927671 | DY20: =SQRT((($I$3*DY$13)^2)+(($I$4*$A20)^2))/1000 -> 128.1912634 | DZ20: =SQRT((($I$3*DZ$13)^2)+(($I$4*$A20)^2))/1000 -> 129.1897829 | EA20: =SQRT((($I$3*EA$13)^2)+(($I$4*$A20)^2))/1000 -> 130.1883251 | EB20: =SQRT((($I$3*EB$13)^2)+(($I$4*$A20)^2))/1000 -> 131.1868896 | EC20: =SQRT((($I$3*EC$13)^2)+(($I$4*$A20)^2))/1000 -> 132.1854758 | ED20: =SQRT((($I$3*ED$13)^2)+(($I$4*$A20)^2))/1000 -> 133.1840831 | EE20: =SQRT((($I$3*EE$13)^2)+(($I$4*$A20)^2))/1000 -> 134.1827113 | EF20: =SQRT((($I$3*EF$13)^2)+(($I$4*$A20)^2))/1000 -> 135.1813597 | EG20: =SQRT((($I$3*EG$13)^2)+(($I$4*$A20)^2))/1000 -> 136.1800279 | EH20: =SQRT((($I$3*EH$13)^2)+(($I$4*$A20)^2))/1000 -> 137.1787156 | EI20: =SQRT((($I$3*EI$13)^2)+(($I$4*$A20)^2))/1000 -> 138.1774222 | EJ20: =SQRT((($I$3*EJ$13)^2)+(($I$4*$A20)^2))/1000 -> 139.1761474 | EK20: =SQRT((($I$3*EK$13)^2)+(($I$4*$A20)^2))/1000 -> 140.1748908 | EL20: =SQRT((($I$3*EL$13)^2)+(($I$4*$A20)^2))/1000 -> 141.1736519 | EM20: =SQRT((($I$3*EM$13)^2)+(($I$4*$A20)^2))/1000 -> 142.1724305 | EN20: =SQRT((($I$3*EN$13)^2)+(($I$4*$A20)^2))/1000 -> 143.1712262 | EO20: =SQRT((($I$3*EO$13)^2)+(($I$4*$A20)^2))/1000 -> 144.1700385 | EP20: =SQRT((($I$3*EP$13)^2)+(($I$4*$A20)^2))/1000 -> 145.1688672 | EQ20: =SQRT((($I$3*EQ$13)^2)+(($I$4*$A20)^2))/1000 -> 146.1677119 | ER20: =SQRT((($I$3*ER$13)^2)+(($I$4*$A20)^2))/1000 -> 147.1665723 | ES20: =SQRT((($I$3*ES$13)^2)+(($I$4*$A20)^2))/1000 -> 148.1654481 | ET20: =SQRT((($I$3*ET$13)^2)+(($I$4*$A20)^2))/1000 -> 149.1643389 | EU20: =SQRT((($I$3*EU$13)^2)+(($I$4*$A20)^2))/1000 -> 150.1632445 | EV20: =SQRT((($I$3*EV$13)^2)+(($I$4*$A20)^2))/1000 -> 151.1621646 | EW20: =SQRT((($I$3*EW$13)^2)+(($I$4*$A20)^2))/1000 -> 152.1610988 | EX20: =SQRT((($I$3*EX$13)^2)+(($I$4*$A20)^2))/1000 -> 153.160047 | EY20: =SQRT((($I$3*EY$13)^2)+(($I$4*$A20)^2))/1000 -> 154.1590088 | EZ20: =SQRT((($I$3*EZ$13)^2)+(($I$4*$A20)^2))/1000 -> 155.157984 | FA20: =SQRT((($I$3*FA$13)^2)+(($I$4*$A20)^2))/1000 -> 156.1569723 | FB20: =SQRT((($I$3*FB$13)^2)+(($I$4*$A20)^2))/1000 -> 157.1559735 | FC20: =SQRT((($I$3*FC$13)^2)+(($I$4*$A20)^2))/1000 -> 158.1549873 | FD20: =SQRT((($I$3*FD$13)^2)+(($I$4*$A20)^2))/1000 -> 159.1540135 | FE20: =SQRT((($I$3*FE$13)^2)+(($I$4*$A20)^2))/1000 -> 160.1530518 | FF20: =SQRT((($I$3*FF$13)^2)+(($I$4*$A20)^2))/1000 -> 161.1521021 | FG20: =SQRT((($I$3*FG$13)^2)+(($I$4*$A20)^2))/1000 -> 162.151164 | FH20: =SQRT((($I$3*FH$13)^2)+(($I$4*$A20)^2))/1000 -> 163.1502375 | FI20: =SQRT((($I$3*FI$13)^2)+(($I$4*$A20)^2))/1000 -> 164.1493223 | FJ20: =SQRT((($I$3*FJ$13)^2)+(($I$4*$A20)^2))/1000 -> 165.1484181 | FK20: =SQRT((($I$3*FK$13)^2)+(($I$4*$A20)^2))/1000 -> 166.1475248 | FL20: =SQRT((($I$3*FL$13)^2)+(($I$4*$A20)^2))/1000 -> 167.1466422 | FM20: =SQRT((($I$3*FM$13)^2)+(($I$4*$A20)^2))/1000 -> 168.1457701 | FN20: =SQRT((($I$3*FN$13)^2)+(($I$4*$A20)^2))/1000 -> 169.1449083 | FO20: =SQRT((($I$3*FO$13)^2)+(($I$4*$A20)^2))/1000 -> 170.1440566 | FP20: =SQRT((($I$3*FP$13)^2)+(($I$4*$A20)^2))/1000 -> 171.1432149 | FQ20: =SQRT((($I$3*FQ$13)^2)+(($I$4*$A20)^2))/1000 -> 172.1423829 | FR20: =SQRT((($I$3*FR$13)^2)+(($I$4*$A20)^2))/1000 -> 173.1415606 | FS20: =SQRT((($I$3*FS$13)^2)+(($I$4*$A20)^2))/1000 -> 174.1407477 | FT20: =SQRT((($I$3*FT$13)^2)+(($I$4*$A20)^2))/1000 -> 175.139944 | FU20: =SQRT((($I$3*FU$13)^2)+(($I$4*$A20)^2))/1000 -> 176.1391495 | FV20: =SQRT((($I$3*FV$13)^2)+(($I$4*$A20)^2))/1000 -> 177.138364 | FW20: =SQRT((($I$3*FW$13)^2)+(($I$4*$A20)^2))/1000 -> 178.1375873 | FX20: =SQRT((($I$3*FX$13)^2)+(($I$4*$A20)^2))/1000 -> 179.1368192 | FY20: =SQRT((($I$3*FY$13)^2)+(($I$4*$A20)^2))/1000 -> 180.1360597 | FZ20: =SQRT((($I$3*FZ$13)^2)+(($I$4*$A20)^2))/1000 -> 181.1353085 | GA20: =SQRT((($I$3*GA$13)^2)+(($I$4*$A20)^2))/1000 -> 182.1345656 | GB20: =SQRT((($I$3*GB$13)^2)+(($I$4*$A20)^2))/1000 -> 183.1338308 | GC20: =SQRT((($I$3*GC$13)^2)+(($I$4*$A20)^2))/1000 -> 184.133104 | GD20: =SQRT((($I$3*GD$13)^2)+(($I$4*$A20)^2))/1000 -> 185.1323851 | GE20: =SQRT((($I$3*GE$13)^2)+(($I$4*$A20)^2))/1000 -> 186.1316738 | GF20: =SQRT((($I$3*GF$13)^2)+(($I$4*$A20)^2))/1000 -> 187.1309702 | GG20: =SQRT((($I$3*GG$13)^2)+(($I$4*$A20)^2))/1000 -> 188.130274 | GH20: =SQRT((($I$3*GH$13)^2)+(($I$4*$A20)^2))/1000 -> 189.1295852 | GI20: =SQRT((($I$3*GI$13)^2)+(($I$4*$A20)^2))/1000 -> 190.1289036 | GJ20: =SQRT((($I$3*GJ$13)^2)+(($I$4*$A20)^2))/1000 -> 191.1282292 | GK20: =SQRT((($I$3*GK$13)^2)+(($I$4*$A20)^2))/1000 -> 192.1275618 | GL20: =SQRT((($I$3*GL$13)^2)+(($I$4*$A20)^2))/1000 -> 193.1269013 | GM20: =SQRT((($I$3*GM$13)^2)+(($I$4*$A20)^2))/1000 -> 194.1262476 | GN20: =SQRT((($I$3*GN$13)^2)+(($I$4*$A20)^2))/1000 -> 195.1256006 | GO20: =SQRT((($I$3*GO$13)^2)+(($I$4*$A20)^2))/1000 -> 196.1249602 | GP20: =SQRT((($I$3*GP$13)^2)+(($I$4*$A20)^2))/1000 -> 197.1243263 | GQ20: =SQRT((($I$3*GQ$13)^2)+(($I$4*$A20)^2))/1000 -> 198.1236987 | GR20: =SQRT((($I$3*GR$13)^2)+(($I$4*$A20)^2))/1000 -> 199.1230775 | GS20: =SQRT((($I$3*GS$13)^2)+(($I$4*$A20)^2))/1000 -> 200.1224625 | GT20: =SQRT((($I$3*GT$13)^2)+(($I$4*$A20)^2))/1000 -> 201.1218536 | GU20: =SQRT((($I$3*GU$13)^2)+(($I$4*$A20)^2))/1000 -> 202.1212507 | GV20: =SQRT((($I$3*GV$13)^2)+(($I$4*$A20)^2))/1000 -> 203.1206538 | GW20: =SQRT((($I$3*GW$13)^2)+(($I$4*$A20)^2))/1000 -> 204.1200627 | GX20: =SQRT((($I$3*GX$13)^2)+(($I$4*$A20)^2))/1000 -> 205.1194774 | GY20: =SQRT((($I$3*GY$13)^2)+(($I$4*$A20)^2))/1000 -> 206.1188977 | GZ20: =SQRT((($I$3*GZ$13)^2)+(($I$4*$A20)^2))/1000 -> 207.1183237 | HA20: =SQRT((($I$3*HA$13)^2)+(($I$4*$A20)^2))/1000 -> 208.1177551 | HB20: =SQRT((($I$3*HB$13)^2)+(($I$4*$A20)^2))/1000 -> 209.117192 | HC20: =SQRT((($I$3*HC$13)^2)+(($I$4*$A20)^2))/1000 -> 210.1166343 | HD20: =SQRT((($I$3*HD$13)^2)+(($I$4*$A20)^2))/1000 -> 211.1160818 | HE20: =SQRT((($I$3*HE$13)^2)+(($I$4*$A20)^2))/1000 -> 212.1155346 | HF20: =SQRT((($I$3*HF$13)^2)+(($I$4*$A20)^2))/1000 -> 213.1149924 | HG20: =SQRT((($I$3*HG$13)^2)+(($I$4*$A20)^2))/1000 -> 214.1144554 | HH20: =SQRT((($I$3*HH$13)^2)+(($I$4*$A20)^2))/1000 -> 215.1139233 | HI20: =SQRT((($I$3*HI$13)^2)+(($I$4*$A20)^2))/1000 -> 216.1133962 | HJ20: =SQRT((($I$3*HJ$13)^2)+(($I$4*$A20)^2))/1000 -> 217.1128739 | HK20: =SQRT((($I$3*HK$13)^2)+(($I$4*$A20)^2))/1000 -> 218.1123564 | HL20: =SQRT((($I$3*HL$13)^2)+(($I$4*$A20)^2))/1000 -> 219.1118436 | HM20: =SQRT((($I$3*HM$13)^2)+(($I$4*$A20)^2))/1000 -> 220.1113355 | HN20: =SQRT((($I$3*HN$13)^2)+(($I$4*$A20)^2))/1000 -> 221.1108319 | HO20: =SQRT((($I$3*HO$13)^2)+(($I$4*$A20)^2))/1000 -> 222.1103329 | HP20: =SQRT((($I$3*HP$13)^2)+(($I$4*$A20)^2))/1000 -> 223.1098384 | HQ20: =SQRT((($I$3*HQ$13)^2)+(($I$4*$A20)^2))/1000 -> 224.1093483 | HR20: =SQRT((($I$3*HR$13)^2)+(($I$4*$A20)^2))/1000 -> 225.1088626 | HS20: =SQRT((($I$3*HS$13)^2)+(($I$4*$A20)^2))/1000 -> 226.1083811 | HT20: =SQRT((($I$3*HT$13)^2)+(($I$4*$A20)^2))/1000 -> 227.1079039 | HU20: =SQRT((($I$3*HU$13)^2)+(($I$4*$A20)^2))/1000 -> 228.1074308 | HV20: =SQRT((($I$3*HV$13)^2)+(($I$4*$A20)^2))/1000 -> 229.1069619 | HW20: =SQRT((($I$3*HW$13)^2)+(($I$4*$A20)^2))/1000 -> 230.1064971 | HX20: =SQRT((($I$3*HX$13)^2)+(($I$4*$A20)^2))/1000 -> 231.1060363 | HY20: =SQRT((($I$3*HY$13)^2)+(($I$4*$A20)^2))/1000 -> 232.1055794 | HZ20: =SQRT((($I$3*HZ$13)^2)+(($I$4*$A20)^2))/1000 -> 233.1051265 | IA20: =SQRT((($I$3*IA$13)^2)+(($I$4*$A20)^2))/1000 -> 234.1046774 | IB20: =SQRT((($I$3*IB$13)^2)+(($I$4*$A20)^2))/1000 -> 235.1042322 | IC20: =SQRT((($I$3*IC$13)^2)+(($I$4*$A20)^2))/1000 -> 236.1037907 | ID20: =SQRT((($I$3*ID$13)^2)+(($I$4*$A20)^2))/1000 -> 237.103353 | IE20: =SQRT((($I$3*IE$13)^2)+(($I$4*$A20)^2))/1000 -> 238.1029189 | IF20: =SQRT((($I$3*IF$13)^2)+(($I$4*$A20)^2))/1000 -> 239.1024885 | IG20: =SQRT((($I$3*IG$13)^2)+(($I$4*$A20)^2))/1000 -> 240.1020616 | IH20: =SQRT((($I$3*IH$13)^2)+(($I$4*$A20)^2))/1000 -> 241.1016383 | II20: =SQRT((($I$3*II$13)^2)+(($I$4*$A20)^2))/1000 -> 242.1012185 | IJ20: =SQRT((($I$3*IJ$13)^2)+(($I$4*$A20)^2))/1000 -> 243.1008021 | IK20: =SQRT((($I$3*IK$13)^2)+(($I$4*$A20)^2))/1000 -> 244.1003892 | IL20: =SQRT((($I$3*IL$13)^2)+(($I$4*$A20)^2))/1000 -> 245.0999796 | IM20: =SQRT((($I$3*IM$13)^2)+(($I$4*$A20)^2))/1000 -> 246.0995733 | IN20: =SQRT((($I$3*IN$13)^2)+(($I$4*$A20)^2))/1000 -> 247.0991704 | IO20: =SQRT((($I$3*IO$13)^2)+(($I$4*$A20)^2))/1000 -> 248.0987707 | IP20: =SQRT((($I$3*IP$13)^2)+(($I$4*$A20)^2))/1000 -> 249.0983741 | IQ20: =SQRT((($I$3*IQ$13)^2)+(($I$4*$A20)^2))/1000 -> 250.0979808 | IR20: =SQRT((($I$3*IR$13)^2)+(($I$4*$A20)^2))/1000 -> 251.0975906 | IS20: =SQRT((($I$3*IS$13)^2)+(($I$4*$A20)^2))/1000 -> 252.0972035 | IT20: =SQRT((($I$3*IT$13)^2)+(($I$4*$A20)^2))/1000 -> 253.0968194 | IU20: =SQRT((($I$3*IU$13)^2)+(($I$4*$A20)^2))/1000 -> 254.0964384 | IV20: =SQRT((($I$3*IV$13)^2)+(($I$4*$A20)^2))/1000 -> 255.0960603 | IW20: =SQRT((($I$3*IW$13)^2)+(($I$4*$A20)^2))/1000 -> 256.0956852 | IX20: =SQRT((($I$3*IX$13)^2)+(($I$4*$A20)^2))/1000 -> 257.0953131 | IY20: =SQRT((($I$3*IY$13)^2)+(($I$4*$A20)^2))/1000 -> 258.0949438 | IZ20: =SQRT((($I$3*IZ$13)^2)+(($I$4*$A20)^2))/1000 -> 259.0945773 | JA20: =SQRT((($I$3*JA$13)^2)+(($I$4*$A20)^2))/1000 -> 260.0942137 | JB20: =SQRT((($I$3*JB$13)^2)+(($I$4*$A20)^2))/1000 -> 261.0938529 | JC20: =SQRT((($I$3*JC$13)^2)+(($I$4*$A20)^2))/1000 -> 262.0934948 | JD20: =SQRT((($I$3*JD$13)^2)+(($I$4*$A20)^2))/1000 -> 263.0931394 | JE20: =SQRT((($I$3*JE$13)^2)+(($I$4*$A20)^2))/1000 -> 264.0927867 | JF20: =SQRT((($I$3*JF$13)^2)+(($I$4*$A20)^2))/1000 -> 265.0924367 | JG20: =SQRT((($I$3*JG$13)^2)+(($I$4*$A20)^2))/1000 -> 266.0920893 | JH20: =SQRT((($I$3*JH$13)^2)+(($I$4*$A20)^2))/1000 -> 267.0917445 | JI20: =SQRT((($I$3*JI$13)^2)+(($I$4*$A20)^2))/1000 -> 268.0914023 | JJ20: =SQRT((($I$3*JJ$13)^2)+(($I$4*$A20)^2))/1000 -> 269.0910627 | JK20: =SQRT((($I$3*JK$13)^2)+(($I$4*$A20)^2))/1000 -> 270.0907255 | JL20: =SQRT((($I$3*JL$13)^2)+(($I$4*$A20)^2))/1000 -> 271.0903908 | JM20: =SQRT((($I$3*JM$13)^2)+(($I$4*$A20)^2))/1000 -> 272.0900586 | JN20: =SQRT((($I$3*JN$13)^2)+(($I$4*$A20)^2))/1000 -> 273.0897288 | JO20: =SQRT((($I$3*JO$13)^2)+(($I$4*$A20)^2))/1000 -> 274.0894015 | JP20: =SQRT((($I$3*JP$13)^2)+(($I$4*$A20)^2))/1000 -> 275.0890765 | JQ20: =SQRT((($I$3*JQ$13)^2)+(($I$4*$A20)^2))/1000 -> 276.0887538 | JR20: =SQRT((($I$3*JR$13)^2)+(($I$4*$A20)^2))/1000 -> 277.0884335 | JS20: =SQRT((($I$3*JS$13)^2)+(($I$4*$A20)^2))/1000 -> 278.0881155 | JT20: =SQRT((($I$3*JT$13)^2)+(($I$4*$A20)^2))/1000 -> 279.0877998 | JU20: =SQRT((($I$3*JU$13)^2)+(($I$4*$A20)^2))/1000 -> 280.0874863 | JV20: =SQRT((($I$3*JV$13)^2)+(($I$4*$A20)^2))/1000 -> 281.0871751 | JW20: =SQRT((($I$3*JW$13)^2)+(($I$4*$A20)^2))/1000 -> 282.0868661 | JX20: =SQRT((($I$3*JX$13)^2)+(($I$4*$A20)^2))/1000 -> 283.0865592 | JY20: =SQRT((($I$3*JY$13)^2)+(($I$4*$A20)^2))/1000 -> 284.0862545 | JZ20: =SQRT((($I$3*JZ$13)^2)+(($I$4*$A20)^2))/1000 -> 285.085952 | KA20: =SQRT((($I$3*KA$13)^2)+(($I$4*$A20)^2))/1000 -> 286.0856515 | KB20: =SQRT((($I$3*KB$13)^2)+(($I$4*$A20)^2))/1000 -> 287.0853532 | KC20: =SQRT((($I$3*KC$13)^2)+(($I$4*$A20)^2))/1000 -> 288.0850569 | KD20: =SQRT((($I$3*KD$13)^2)+(($I$4*$A20)^2))/1000 -> 289.0847627 | KE20: =SQRT((($I$3*KE$13)^2)+(($I$4*$A20)^2))/1000 -> 290.0844705 | KF20: =SQRT((($I$3*KF$13)^2)+(($I$4*$A20)^2))/1000 -> 291.0841803 | KG20: =SQRT((($I$3*KG$13)^2)+(($I$4*$A20)^2))/1000 -> 292.0838921 | KH20: =SQRT((($I$3*KH$13)^2)+(($I$4*$A20)^2))/1000 -> 293.0836058 | KI20: =SQRT((($I$3*KI$13)^2)+(($I$4*$A20)^2))/1000 -> 294.0833215 | KJ20: =SQRT((($I$3*KJ$13)^2)+(($I$4*$A20)^2))/1000 -> 295.0830392 | KK20: =SQRT((($I$3*KK$13)^2)+(($I$4*$A20)^2))/1000 -> 296.0827587 | KL20: =SQRT((($I$3*KL$13)^2)+(($I$4*$A20)^2))/1000 -> 297.0824801 | KM20: =SQRT((($I$3*KM$13)^2)+(($I$4*$A20)^2))/1000 -> 298.0822034 | KN20: =SQRT((($I$3*KN$13)^2)+(($I$4*$A20)^2))/1000 -> 299.0819286 | KO20: =SQRT((($I$3*KO$13)^2)+(($I$4*$A20)^2))/1000 -> 300.0816556 | KP20: =SQRT((($I$3*KP$13)^2)+(($I$4*$A20)^2))/1000 -> 301.0813843 | KQ20: =SQRT((($I$3*KQ$13)^2)+(($I$4*$A20)^2))/1000 -> 302.0811149 | KR20: =SQRT((($I$3*KR$13)^2)+(($I$4*$A20)^2))/1000 -> 303.0808473 | KS20: =SQRT((($I$3*KS$13)^2)+(($I$4*$A20)^2))/1000 -> 304.0805814 | KT20: =SQRT((($I$3*KT$13)^2)+(($I$4*$A20)^2))/1000 -> 305.0803173 | KU20: =SQRT((($I$3*KU$13)^2)+(($I$4*$A20)^2))/1000 -> 306.0800549 | KV20: =SQRT((($I$3*KV$13)^2)+(($I$4*$A20)^2))/1000 -> 307.0797942 | KW20: =SQRT((($I$3*KW$13)^2)+(($I$4*$A20)^2))/1000 -> 308.0795352 | KX20: =SQRT((($I$3*KX$13)^2)+(($I$4*$A20)^2))/1000 -> 309.0792779 | KY20: =SQRT((($I$3*KY$13)^2)+(($I$4*$A20)^2))/1000 -> 310.0790222 | KZ20: =SQRT((($I$3*KZ$13)^2)+(($I$4*$A20)^2))/1000 -> 311.0787682 | LA20: =SQRT((($I$3*LA$13)^2)+(($I$4*$A20)^2))/1000 -> 312.0785158 | LB20: =SQRT((($I$3*LB$13)^2)+(($I$4*$A20)^2))/1000 -> 313.078265 | LC20: =SQRT((($I$3*LC$13)^2)+(($I$4*$A20)^2))/1000 -> 314.0780158 | LD20: =SQRT((($I$3*LD$13)^2)+(($I$4*$A20)^2))/1000 -> 315.0777682 | LE20: =SQRT((($I$3*LE$13)^2)+(($I$4*$A20)^2))/1000 -> 316.0775221 | LF20: =SQRT((($I$3*LF$13)^2)+(($I$4*$A20)^2))/1000 -> 317.0772776 | LG20: =SQRT((($I$3*LG$13)^2)+(($I$4*$A20)^2))/1000 -> 318.0770347 | LH20: =SQRT((($I$3*LH$13)^2)+(($I$4*$A20)^2))/1000 -> 319.0767933 | LI20: =SQRT((($I$3*LI$13)^2)+(($I$4*$A20)^2))/1000 -> 320.0765533 | LJ20: =SQRT((($I$3*LJ$13)^2)+(($I$4*$A20)^2))/1000 -> 321.0763149 | LK20: =SQRT((($I$3*LK$13)^2)+(($I$4*$A20)^2))/1000 -> 322.076078 | LL20: =SQRT((($I$3*LL$13)^2)+(($I$4*$A20)^2))/1000 -> 323.0758425 | LM20: =SQRT((($I$3*LM$13)^2)+(($I$4*$A20)^2))/1000 -> 324.0756085 | LN20: =SQRT((($I$3*LN$13)^2)+(($I$4*$A20)^2))/1000 -> 325.0753759 | LO20: =SQRT((($I$3*LO$13)^2)+(($I$4*$A20)^2))/1000 -> 326.0751447 | LP20: =SQRT((($I$3*LP$13)^2)+(($I$4*$A20)^2))/1000 -> 327.074915 | LQ20: =SQRT((($I$3*LQ$13)^2)+(($I$4*$A20)^2))/1000 -> 328.0746866 | LR20: =SQRT((($I$3*LR$13)^2)+(($I$4*$A20)^2))/1000 -> 329.0744597 | LS20: =SQRT((($I$3*LS$13)^2)+(($I$4*$A20)^2))/1000 -> 330.0742341 | LT20: =SQRT((($I$3*LT$13)^2)+(($I$4*$A20)^2))/1000 -> 331.0740099 | LU20: =SQRT((($I$3*LU$13)^2)+(($I$4*$A20)^2))/1000 -> 332.073787 | LV20: =SQRT((($I$3*LV$13)^2)+(($I$4*$A20)^2))/1000 -> 333.0735654 | LW20: =SQRT((($I$3*LW$13)^2)+(($I$4*$A20)^2))/1000 -> 334.0733452 | LX20: =SQRT((($I$3*LX$13)^2)+(($I$4*$A20)^2))/1000 -> 335.0731263 | LY20: =SQRT((($I$3*LY$13)^2)+(($I$4*$A20)^2))/1000 -> 336.0729088 | LZ20: =SQRT((($I$3*LZ$13)^2)+(($I$4*$A20)^2))/1000 -> 337.0726925 | MA20: =SQRT((($I$3*MA$13)^2)+(($I$4*$A20)^2))/1000 -> 338.0724774 | MB20: =SQRT((($I$3*MB$13)^2)+(($I$4*$A20)^2))/1000 -> 339.0722637 | MC20: =SQRT((($I$3*MC$13)^2)+(($I$4*$A20)^2))/1000 -> 340.0720512 | MD20: =SQRT((($I$3*MD$13)^2)+(($I$4*$A20)^2))/1000 -> 341.0718399 | ME20: =SQRT((($I$3*ME$13)^2)+(($I$4*$A20)^2))/1000 -> 342.0716299 | MF20: =SQRT((($I$3*MF$13)^2)+(($I$4*$A20)^2))/1000 -> 343.0714211 | MG20: =SQRT((($I$3*MG$13)^2)+(($I$4*$A20)^2))/1000 -> 344.0712136 | MH20: =SQRT((($I$3*MH$13)^2)+(($I$4*$A20)^2))/1000 -> 345.0710072 | MI20: =SQRT((($I$3*MI$13)^2)+(($I$4*$A20)^2))/1000 -> 346.070802 | MJ20: =SQRT((($I$3*MJ$13)^2)+(($I$4*$A20)^2))/1000 -> 347.070598 | MK20: =SQRT((($I$3*MK$13)^2)+(($I$4*$A20)^2))/1000 -> 348.0703952 | ML20: =SQRT((($I$3*ML$13)^2)+(($I$4*$A20)^2))/1000 -> 349.0701935 | MM20: =SQRT((($I$3*MM$13)^2)+(($I$4*$A20)^2))/1000 -> 350.069993 | MN20: =SQRT((($I$3*MN$13)^2)+(($I$4*$A20)^2))/1000 -> 351.0697936 | MO20: =SQRT((($I$3*MO$13)^2)+(($I$4*$A20)^2))/1000 -> 352.0695954 | MP20: =SQRT((($I$3*MP$13)^2)+(($I$4*$A20)^2))/1000 -> 353.0693983 | MQ20: =SQRT((($I$3*MQ$13)^2)+(($I$4*$A20)^2))/1000 -> 354.0692023 | MR20: =SQRT((($I$3*MR$13)^2)+(($I$4*$A20)^2))/1000 -> 355.0690074 | MS20: =SQRT((($I$3*MS$13)^2)+(($I$4*$A20)^2))/1000 -> 356.0688136 | MT20: =SQRT((($I$3*MT$13)^2)+(($I$4*$A20)^2))/1000 -> 357.0686209 | MU20: =SQRT((($I$3*MU$13)^2)+(($I$4*$A20)^2))/1000 -> 358.0684292 | MV20: =SQRT((($I$3*MV$13)^2)+(($I$4*$A20)^2))/1000 -> 359.0682386 | MW20: =SQRT((($I$3*MW$13)^2)+(($I$4*$A20)^2))/1000 -> 360.0680491 | MX20: =SQRT((($I$3*MX$13)^2)+(($I$4*$A20)^2))/1000 -> 361.0678607 | MY20: =SQRT((($I$3*MY$13)^2)+(($I$4*$A20)^2))/1000 -> 362.0676732 | MZ20: =SQRT((($I$3*MZ$13)^2)+(($I$4*$A20)^2))/1000 -> 363.0674868 | NA20: =SQRT((($I$3*NA$13)^2)+(($I$4*$A20)^2))/1000 -> 364.0673015 | NB20: =SQRT((($I$3*NB$13)^2)+(($I$4*$A20)^2))/1000 -> 365.0671171 | NC20: =SQRT((($I$3*NC$13)^2)+(($I$4*$A20)^2))/1000 -> 366.0669338 | ND20: =SQRT((($I$3*ND$13)^2)+(($I$4*$A20)^2))/1000 -> 367.0667514 | NE20: =SQRT((($I$3*NE$13)^2)+(($I$4*$A20)^2))/1000 -> 368.0665701 | NF20: =SQRT((($I$3*NF$13)^2)+(($I$4*$A20)^2))/1000 -> 369.0663897 | NG20: =SQRT((($I$3*NG$13)^2)+(($I$4*$A20)^2))/1000 -> 370.0662103 | NH20: =SQRT((($I$3*NH$13)^2)+(($I$4*$A20)^2))/1000 -> 371.0660319 | NI20: =SQRT((($I$3*NI$13)^2)+(($I$4*$A20)^2))/1000 -> 372.0658544 | NJ20: =SQRT((($I$3*NJ$13)^2)+(($I$4*$A20)^2))/1000 -> 373.0656779 | NK20: =SQRT((($I$3*NK$13)^2)+(($I$4*$A20)^2))/1000 -> 374.0655023 | NL20: =SQRT((($I$3*NL$13)^2)+(($I$4*$A20)^2))/1000 -> 375.0653276 | NM20: =SQRT((($I$3*NM$13)^2)+(($I$4*$A20)^2))/1000 -> 376.0651539 | NN20: =SQRT((($I$3*NN$13)^2)+(($I$4*$A20)^2))/1000 -> 377.0649811 | NO20: =SQRT((($I$3*NO$13)^2)+(($I$4*$A20)^2))/1000 -> 378.0648093 | NP20: =SQRT((($I$3*NP$13)^2)+(($I$4*$A20)^2))/1000 -> 379.0646383 | NQ20: =SQRT((($I$3*NQ$13)^2)+(($I$4*$A20)^2))/1000 -> 380.0644682 | NR20: =SQRT((($I$3*NR$13)^2)+(($I$4*$A20)^2))/1000 -> 381.064299 | NS20: =SQRT((($I$3*NS$13)^2)+(($I$4*$A20)^2))/1000 -> 382.0641307 | NT20: =SQRT((($I$3*NT$13)^2)+(($I$4*$A20)^2))/1000 -> 383.0639633 | NU20: =SQRT((($I$3*NU$13)^2)+(($I$4*$A20)^2))/1000 -> 384.0637968 | NV20: =SQRT((($I$3*NV$13)^2)+(($I$4*$A20)^2))/1000 -> 385.0636311 | NW20: =SQRT((($I$3*NW$13)^2)+(($I$4*$A20)^2))/1000 -> 386.0634663 | NX20: =SQRT((($I$3*NX$13)^2)+(($I$4*$A20)^2))/1000 -> 387.0633023 | NY20: =SQRT((($I$3*NY$13)^2)+(($I$4*$A20)^2))/1000 -> 388.0631392 | NZ20: =SQRT((($I$3*NZ$13)^2)+(($I$4*$A20)^2))/1000 -> 389.0629769 | OA20: =SQRT((($I$3*OA$13)^2)+(($I$4*$A20)^2))/1000 -> 390.0628155 | OB20: =SQRT((($I$3*OB$13)^2)+(($I$4*$A20)^2))/1000 -> 391.0626548 | OC20: =SQRT((($I$3*OC$13)^2)+(($I$4*$A20)^2))/1000 -> 392.062495 | OD20: =SQRT((($I$3*OD$13)^2)+(($I$4*$A20)^2))/1000 -> 393.062336 | OE20: =SQRT((($I$3*OE$13)^2)+(($I$4*$A20)^2))/1000 -> 394.0621778 | OF20: =SQRT((($I$3*OF$13)^2)+(($I$4*$A20)^2))/1000 -> 395.0620204 | OG20: =SQRT((($I$3*OG$13)^2)+(($I$4*$A20)^2))/1000 -> 396.0618639 | OH20: =SQRT((($I$3*OH$13)^2)+(($I$4*$A20)^2))/1000 -> 397.0617081 | OI20: =SQRT((($I$3*OI$13)^2)+(($I$4*$A20)^2))/1000 -> 398.061553 | OJ20: =SQRT((($I$3*OJ$13)^2)+(($I$4*$A20)^2))/1000 -> 399.0613988 | OK20: =SQRT((($I$3*OK$13)^2)+(($I$4*$A20)^2))/1000 -> 400.0612453 | OL20: =SQRT((($I$3*OL$13)^2)+(($I$4*$A20)^2))/1000 -> 401.0610926 | OM20: =SQRT((($I$3*OM$13)^2)+(($I$4*$A20)^2))/1000 -> 402.0609407 | ON20: =SQRT((($I$3*ON$13)^2)+(($I$4*$A20)^2))/1000 -> 403.0607895 | OO20: =SQRT((($I$3*OO$13)^2)+(($I$4*$A20)^2))/1000 -> 404.060639 | OP20: =SQRT((($I$3*OP$13)^2)+(($I$4*$A20)^2))/1000 -> 405.0604893 | OQ20: =SQRT((($I$3*OQ$13)^2)+(($I$4*$A20)^2))/1000 -> 406.0603403 | OR20: =SQRT((($I$3*OR$13)^2)+(($I$4*$A20)^2))/1000 -> 407.0601921 | OS20: =SQRT((($I$3*OS$13)^2)+(($I$4*$A20)^2))/1000 -> 408.0600446 | OT20: =SQRT((($I$3*OT$13)^2)+(($I$4*$A20)^2))/1000 -> 409.0598978 | OU20: =SQRT((($I$3*OU$13)^2)+(($I$4*$A20)^2))/1000 -> 410.0597517 | OV20: =SQRT((($I$3*OV$13)^2)+(($I$4*$A20)^2))/1000 -> 411.0596064 | OW20: =SQRT((($I$3*OW$13)^2)+(($I$4*$A20)^2))/1000 -> 412.0594617 | OX20: =SQRT((($I$3*OX$13)^2)+(($I$4*$A20)^2))/1000 -> 413.0593178 | OY20: =SQRT((($I$3*OY$13)^2)+(($I$4*$A20)^2))/1000 -> 414.0591745 | OZ20: =SQRT((($I$3*OZ$13)^2)+(($I$4*$A20)^2))/1000 -> 415.0590319 | PA20: =SQRT((($I$3*PA$13)^2)+(($I$4*$A20)^2))/1000 -> 416.0588901 | PB20: =SQRT((($I$3*PB$13)^2)+(($I$4*$A20)^2))/1000 -> 417.0587489 | PC20: =SQRT((($I$3*PC$13)^2)+(($I$4*$A20)^2))/1000 -> 418.0586083 | PD20: =SQRT((($I$3*PD$13)^2)+(($I$4*$A20)^2))/1000 -> 419.0584685 | PE20: =SQRT((($I$3*PE$13)^2)+(($I$4*$A20)^2))/1000 -> 420.0583293 | PF20: =SQRT((($I$3*PF$13)^2)+(($I$4*$A20)^2))/1000 -> 421.0581908 | PG20: =SQRT((($I$3*PG$13)^2)+(($I$4*$A20)^2))/1000 -> 422.0580529 | PH20: =SQRT((($I$3*PH$13)^2)+(($I$4*$A20)^2))/1000 -> 423.0579157 | PI20: =SQRT((($I$3*PI$13)^2)+(($I$4*$A20)^2))/1000 -> 424.0577791 | PJ20: =SQRT((($I$3*PJ$13)^2)+(($I$4*$A20)^2))/1000 -> 425.0576431 | PK20: =SQRT((($I$3*PK$13)^2)+(($I$4*$A20)^2))/1000 -> 426.0575079 | PL20: =SQRT((($I$3*PL$13)^2)+(($I$4*$A20)^2))/1000 -> 427.0573732 | PM20: =SQRT((($I$3*PM$13)^2)+(($I$4*$A20)^2))/1000 -> 428.0572392 | PN20: =SQRT((($I$3*PN$13)^2)+(($I$4*$A20)^2))/1000 -> 429.0571058 | PO20: =SQRT((($I$3*PO$13)^2)+(($I$4*$A20)^2))/1000 -> 430.056973 | PP20: =SQRT((($I$3*PP$13)^2)+(($I$4*$A20)^2))/1000 -> 431.0568408 | PQ20: =SQRT((($I$3*PQ$13)^2)+(($I$4*$A20)^2))/1000 -> 432.0567092 | PR20: =SQRT((($I$3*PR$13)^2)+(($I$4*$A20)^2))/1000 -> 433.0565783 | PS20: =SQRT((($I$3*PS$13)^2)+(($I$4*$A20)^2))/1000 -> 434.0564479 | PT20: =SQRT((($I$3*PT$13)^2)+(($I$4*$A20)^2))/1000 -> 435.0563182 | PU20: =SQRT((($I$3*PU$13)^2)+(($I$4*$A20)^2))/1000 -> 436.056189 | PV20: =SQRT((($I$3*PV$13)^2)+(($I$4*$A20)^2))/1000 -> 437.0560605 | PW20: =SQRT((($I$3*PW$13)^2)+(($I$4*$A20)^2))/1000 -> 438.0559325 | PX20: =SQRT((($I$3*PX$13)^2)+(($I$4*$A20)^2))/1000 -> 439.0558051 | PY20: =SQRT((($I$3*PY$13)^2)+(($I$4*$A20)^2))/1000 -> 440.0556783 | PZ20: =SQRT((($I$3*PZ$13)^2)+(($I$4*$A20)^2))/1000 -> 441.0555521 | QA20: =SQRT((($I$3*QA$13)^2)+(($I$4*$A20)^2))/1000 -> 442.0554264 | QB20: =SQRT((($I$3*QB$13)^2)+(($I$4*$A20)^2))/1000 -> 443.0553013 | QC20: =SQRT((($I$3*QC$13)^2)+(($I$4*$A20)^2))/1000 -> 444.0551768 | QD20: =SQRT((($I$3*QD$13)^2)+(($I$4*$A20)^2))/1000 -> 445.0550528 | QE20: =SQRT((($I$3*QE$13)^2)+(($I$4*$A20)^2))/1000 -> 446.0549294 | QF20: =SQRT((($I$3*QF$13)^2)+(($I$4*$A20)^2))/1000 -> 447.0548065 | QG20: =SQRT((($I$3*QG$13)^2)+(($I$4*$A20)^2))/1000 -> 448.0546842 | QH20: =SQRT((($I$3*QH$13)^2)+(($I$4*$A20)^2))/1000 -> 449.0545624 | QI20: =SQRT((($I$3*QI$13)^2)+(($I$4*$A20)^2))/1000 -> 450.0544412 | QJ20: =SQRT((($I$3*QJ$13)^2)+(($I$4*$A20)^2))/1000 -> 451.0543205 | QK20: =SQRT((($I$3*QK$13)^2)+(($I$4*$A20)^2))/1000 -> 452.0542003 | QL20: =SQRT((($I$3*QL$13)^2)+(($I$4*$A20)^2))/1000 -> 453.0540807 | QM20: =SQRT((($I$3*QM$13)^2)+(($I$4*$A20)^2))/1000 -> 454.0539616 | QN20: =SQRT((($I$3*QN$13)^2)+(($I$4*$A20)^2))/1000 -> 455.053843 | QO20: =SQRT((($I$3*QO$13)^2)+(($I$4*$A20)^2))/1000 -> 456.0537249 | QP20: =SQRT((($I$3*QP$13)^2)+(($I$4*$A20)^2))/1000 -> 457.0536074 | QQ20: =SQRT((($I$3*QQ$13)^2)+(($I$4*$A20)^2))/1000 -> 458.0534903 | QR20: =SQRT((($I$3*QR$13)^2)+(($I$4*$A20)^2))/1000 -> 459.0533738 | QS20: =SQRT((($I$3*QS$13)^2)+(($I$4*$A20)^2))/1000 -> 460.0532578 | QT20: =SQRT((($I$3*QT$13)^2)+(($I$4*$A20)^2))/1000 -> 461.0531423 | QU20: =SQRT((($I$3*QU$13)^2)+(($I$4*$A20)^2))/1000 -> 462.0530273 | QV20: =SQRT((($I$3*QV$13)^2)+(($I$4*$A20)^2))/1000 -> 463.0529127 | QW20: =SQRT((($I$3*QW$13)^2)+(($I$4*$A20)^2))/1000 -> 464.0527987 | QX20: =SQRT((($I$3*QX$13)^2)+(($I$4*$A20)^2))/1000 -> 465.0526852 | QY20: =SQRT((($I$3*QY$13)^2)+(($I$4*$A20)^2))/1000 -> 466.0525721 | QZ20: =SQRT((($I$3*QZ$13)^2)+(($I$4*$A20)^2))/1000 -> 467.0524596 | RA20: =SQRT((($I$3*RA$13)^2)+(($I$4*$A20)^2))/1000 -> 468.0523475 | RB20: =SQRT((($I$3*RB$13)^2)+(($I$4*$A20)^2))/1000 -> 469.0522359 | RC20: =SQRT((($I$3*RC$13)^2)+(($I$4*$A20)^2))/1000 -> 470.0521248 | RD20: =SQRT((($I$3*RD$13)^2)+(($I$4*$A20)^2))/1000 -> 471.0520141 | RE20: =SQRT((($I$3*RE$13)^2)+(($I$4*$A20)^2))/1000 -> 472.0519039 | RF20: =SQRT((($I$3*RF$13)^2)+(($I$4*$A20)^2))/1000 -> 473.0517942 | RG20: =SQRT((($I$3*RG$13)^2)+(($I$4*$A20)^2))/1000 -> 474.0516849 | RH20: =SQRT((($I$3*RH$13)^2)+(($I$4*$A20)^2))/1000 -> 475.0515761 | RI20: =SQRT((($I$3*RI$13)^2)+(($I$4*$A20)^2))/1000 -> 476.0514678 | RJ20: =SQRT((($I$3*RJ$13)^2)+(($I$4*$A20)^2))/1000 -> 477.0513599 | RK20: =SQRT((($I$3*RK$13)^2)+(($I$4*$A20)^2))/1000 -> 478.0512525 | RL20: =SQRT((($I$3*RL$13)^2)+(($I$4*$A20)^2))/1000 -> 479.0511455 | RM20: =SQRT((($I$3*RM$13)^2)+(($I$4*$A20)^2))/1000 -> 480.051039 | RN20: =SQRT((($I$3*RN$13)^2)+(($I$4*$A20)^2))/1000 -> 481.0509329 | RO20: =SQRT((($I$3*RO$13)^2)+(($I$4*$A20)^2))/1000 -> 482.0508272 | RP20: =SQRT((($I$3*RP$13)^2)+(($I$4*$A20)^2))/1000 -> 483.050722 | RQ20: =SQRT((($I$3*RQ$13)^2)+(($I$4*$A20)^2))/1000 -> 484.0506172 | RR20: =SQRT((($I$3*RR$13)^2)+(($I$4*$A20)^2))/1000 -> 485.0505128 | RS20: =SQRT((($I$3*RS$13)^2)+(($I$4*$A20)^2))/1000 -> 486.0504089 | RT20: =SQRT((($I$3*RT$13)^2)+(($I$4*$A20)^2))/1000 -> 487.0503054 | RU20: =SQRT((($I$3*RU$13)^2)+(($I$4*$A20)^2))/1000 -> 488.0502023 | RV20: =SQRT((($I$3*RV$13)^2)+(($I$4*$A20)^2))/1000 -> 489.0500997 | RW20: =SQRT((($I$3*RW$13)^2)+(($I$4*$A20)^2))/1000 -> 490.0499974 | RX20: =SQRT((($I$3*RX$13)^2)+(($I$4*$A20)^2))/1000 -> 491.0498956 | RY20: =SQRT((($I$3*RY$13)^2)+(($I$4*$A20)^2))/1000 -> 492.0497942 | RZ20: =SQRT((($I$3*RZ$13)^2)+(($I$4*$A20)^2))/1000 -> 493.0496932 | SA20: =SQRT((($I$3*SA$13)^2)+(($I$4*$A20)^2))/1000 -> 494.0495927 | SB20: =SQRT((($I$3*SB$13)^2)+(($I$4*$A20)^2))/1000 -> 495.0494925 | SC20: =SQRT((($I$3*SC$13)^2)+(($I$4*$A20)^2))/1000 -> 496.0493927 | SD20: =SQRT((($I$3*SD$13)^2)+(($I$4*$A20)^2))/1000 -> 497.0492933 | SE20: =SQRT((($I$3*SE$13)^2)+(($I$4*$A20)^2))/1000 -> 498.0491944 | SF20: =SQRT((($I$3*SF$13)^2)+(($I$4*$A20)^2))/1000 -> 499.0490958 | SG20: =SQRT((($I$3*SG$13)^2)+(($I$4*$A20)^2))/1000 -> 500.0489976
A21: 8 | B21: =SQRT((($I$3*B$13)^2)+(($I$4*$A21)^2))/1000 -> 8.062257748 | C21: =SQRT((($I$3*C$13)^2)+(($I$4*$A21)^2))/1000 -> 8.246211251 | D21: =SQRT((($I$3*D$13)^2)+(($I$4*$A21)^2))/1000 -> 8.544003745 | E21: =SQRT((($I$3*E$13)^2)+(($I$4*$A21)^2))/1000 -> 8.94427191 | F21: =SQRT((($I$3*F$13)^2)+(($I$4*$A21)^2))/1000 -> 9.433981132 | G21: =SQRT((($I$3*G$13)^2)+(($I$4*$A21)^2))/1000 -> 10 | H21: =SQRT((($I$3*H$13)^2)+(($I$4*$A21)^2))/1000 -> 10.63014581 | I21: =SQRT((($I$3*I$13)^2)+(($I$4*$A21)^2))/1000 -> 11.3137085 | J21: =SQRT((($I$3*J$13)^2)+(($I$4*$A21)^2))/1000 -> 12.04159458 | K21: =SQRT((($I$3*K$13)^2)+(($I$4*$A21)^2))/1000 -> 12.80624847 | L21: =SQRT((($I$3*L$13)^2)+(($I$4*$A21)^2))/1000 -> 13.60147051 | M21: =SQRT((($I$3*M$13)^2)+(($I$4*$A21)^2))/1000 -> 14.4222051 | N21: =SQRT((($I$3*N$13)^2)+(($I$4*$A21)^2))/1000 -> 15.26433752 | O21: =SQRT((($I$3*O$13)^2)+(($I$4*$A21)^2))/1000 -> 16.1245155 | P21: =SQRT((($I$3*P$13)^2)+(($I$4*$A21)^2))/1000 -> 17 | Q21: =SQRT((($I$3*Q$13)^2)+(($I$4*$A21)^2))/1000 -> 17.88854382 | R21: =SQRT((($I$3*R$13)^2)+(($I$4*$A21)^2))/1000 -> 18.78829423 | S21: =SQRT((($I$3*S$13)^2)+(($I$4*$A21)^2))/1000 -> 19.6977156 | T21: =SQRT((($I$3*T$13)^2)+(($I$4*$A21)^2))/1000 -> 20.61552813 | U21: =SQRT((($I$3*U$13)^2)+(($I$4*$A21)^2))/1000 -> 21.54065923 | V21: =SQRT((($I$3*V$13)^2)+(($I$4*$A21)^2))/1000 -> 22.47220505 | W21: =SQRT((($I$3*W$13)^2)+(($I$4*$A21)^2))/1000 -> 23.40939982 | X21: =SQRT((($I$3*X$13)^2)+(($I$4*$A21)^2))/1000 -> 24.35159132 | Y21: =SQRT((($I$3*Y$13)^2)+(($I$4*$A21)^2))/1000 -> 25.29822128 | Z21: =SQRT((($I$3*Z$13)^2)+(($I$4*$A21)^2))/1000 -> 26.2488095 | AA21: =SQRT((($I$3*AA$13)^2)+(($I$4*$A21)^2))/1000 -> 27.20294102 | AB21: =SQRT((($I$3*AB$13)^2)+(($I$4*$A21)^2))/1000 -> 28.16025568 | AC21: =SQRT((($I$3*AC$13)^2)+(($I$4*$A21)^2))/1000 -> 29.12043956 | AD21: =SQRT((($I$3*AD$13)^2)+(($I$4*$A21)^2))/1000 -> 30.08321791 | AE21: =SQRT((($I$3*AE$13)^2)+(($I$4*$A21)^2))/1000 -> 31.04834939 | AF21: =SQRT((($I$3*AF$13)^2)+(($I$4*$A21)^2))/1000 -> 32.01562119 | AG21: =SQRT((($I$3*AG$13)^2)+(($I$4*$A21)^2))/1000 -> 32.984845 | AH21: =SQRT((($I$3*AH$13)^2)+(($I$4*$A21)^2))/1000 -> 33.95585369 | AI21: =SQRT((($I$3*AI$13)^2)+(($I$4*$A21)^2))/1000 -> 34.92849839 | AJ21: =SQRT((($I$3*AJ$13)^2)+(($I$4*$A21)^2))/1000 -> 35.90264614 | AK21: =SQRT((($I$3*AK$13)^2)+(($I$4*$A21)^2))/1000 -> 36.87817783 | AL21: =SQRT((($I$3*AL$13)^2)+(($I$4*$A21)^2))/1000 -> 37.85498646 | AM21: =SQRT((($I$3*AM$13)^2)+(($I$4*$A21)^2))/1000 -> 38.83297568 | AN21: =SQRT((($I$3*AN$13)^2)+(($I$4*$A21)^2))/1000 -> 39.81205847 | AO21: =SQRT((($I$3*AO$13)^2)+(($I$4*$A21)^2))/1000 -> 40.79215611 | AP21: =SQRT((($I$3*AP$13)^2)+(($I$4*$A21)^2))/1000 -> 41.77319715 | AQ21: =SQRT((($I$3*AQ$13)^2)+(($I$4*$A21)^2))/1000 -> 42.75511665 | AR21: =SQRT((($I$3*AR$13)^2)+(($I$4*$A21)^2))/1000 -> 43.73785546 | AS21: =SQRT((($I$3*AS$13)^2)+(($I$4*$A21)^2))/1000 -> 44.72135955 | AT21: =SQRT((($I$3*AT$13)^2)+(($I$4*$A21)^2))/1000 -> 45.70557953 | AU21: =SQRT((($I$3*AU$13)^2)+(($I$4*$A21)^2))/1000 -> 46.69047012 | AV21: =SQRT((($I$3*AV$13)^2)+(($I$4*$A21)^2))/1000 -> 47.67598976 | AW21: =SQRT((($I$3*AW$13)^2)+(($I$4*$A21)^2))/1000 -> 48.66210024 | AX21: =SQRT((($I$3*AX$13)^2)+(($I$4*$A21)^2))/1000 -> 49.64876635 | AY21: =SQRT((($I$3*AY$13)^2)+(($I$4*$A21)^2))/1000 -> 50.6359556 | AZ21: =SQRT((($I$3*AZ$13)^2)+(($I$4*$A21)^2))/1000 -> 51.623638 | BA21: =SQRT((($I$3*BA$13)^2)+(($I$4*$A21)^2))/1000 -> 52.61178575 | BB21: =SQRT((($I$3*BB$13)^2)+(($I$4*$A21)^2))/1000 -> 53.60037313 | BC21: =SQRT((($I$3*BC$13)^2)+(($I$4*$A21)^2))/1000 -> 54.58937626 | BD21: =SQRT((($I$3*BD$13)^2)+(($I$4*$A21)^2))/1000 -> 55.57877293 | BE21: =SQRT((($I$3*BE$13)^2)+(($I$4*$A21)^2))/1000 -> 56.56854249 | BF21: =SQRT((($I$3*BF$13)^2)+(($I$4*$A21)^2))/1000 -> 57.55866572 | BG21: =SQRT((($I$3*BG$13)^2)+(($I$4*$A21)^2))/1000 -> 58.54912467 | BH21: =SQRT((($I$3*BH$13)^2)+(($I$4*$A21)^2))/1000 -> 59.53990259 | BI21: =SQRT((($I$3*BI$13)^2)+(($I$4*$A21)^2))/1000 -> 60.5309838 | BJ21: =SQRT((($I$3*BJ$13)^2)+(($I$4*$A21)^2))/1000 -> 61.52235366 | BK21: =SQRT((($I$3*BK$13)^2)+(($I$4*$A21)^2))/1000 -> 62.51399843 | BL21: =SQRT((($I$3*BL$13)^2)+(($I$4*$A21)^2))/1000 -> 63.50590524 | BM21: =SQRT((($I$3*BM$13)^2)+(($I$4*$A21)^2))/1000 -> 64.49806199 | BN21: =SQRT((($I$3*BN$13)^2)+(($I$4*$A21)^2))/1000 -> 65.49045732 | BO21: =SQRT((($I$3*BO$13)^2)+(($I$4*$A21)^2))/1000 -> 66.48308055 | BP21: =SQRT((($I$3*BP$13)^2)+(($I$4*$A21)^2))/1000 -> 67.47592163 | BQ21: =SQRT((($I$3*BQ$13)^2)+(($I$4*$A21)^2))/1000 -> 68.46897107 | BR21: =SQRT((($I$3*BR$13)^2)+(($I$4*$A21)^2))/1000 -> 69.46221995 | BS21: =SQRT((($I$3*BS$13)^2)+(($I$4*$A21)^2))/1000 -> 70.45565982 | BT21: =SQRT((($I$3*BT$13)^2)+(($I$4*$A21)^2))/1000 -> 71.44928271 | BU21: =SQRT((($I$3*BU$13)^2)+(($I$4*$A21)^2))/1000 -> 72.44308111 | BV21: =SQRT((($I$3*BV$13)^2)+(($I$4*$A21)^2))/1000 -> 73.43704787 | BW21: =SQRT((($I$3*BW$13)^2)+(($I$4*$A21)^2))/1000 -> 74.43117626 | BX21: =SQRT((($I$3*BX$13)^2)+(($I$4*$A21)^2))/1000 -> 75.42545989 | BY21: =SQRT((($I$3*BY$13)^2)+(($I$4*$A21)^2))/1000 -> 76.4198927 | BZ21: =SQRT((($I$3*BZ$13)^2)+(($I$4*$A21)^2))/1000 -> 77.41446893 | CA21: =SQRT((($I$3*CA$13)^2)+(($I$4*$A21)^2))/1000 -> 78.40918314 | CB21: =SQRT((($I$3*CB$13)^2)+(($I$4*$A21)^2))/1000 -> 79.40403012 | CC21: =SQRT((($I$3*CC$13)^2)+(($I$4*$A21)^2))/1000 -> 80.39900497 | CD21: =SQRT((($I$3*CD$13)^2)+(($I$4*$A21)^2))/1000 -> 81.39410298 | CE21: =SQRT((($I$3*CE$13)^2)+(($I$4*$A21)^2))/1000 -> 82.3893197 | CF21: =SQRT((($I$3*CF$13)^2)+(($I$4*$A21)^2))/1000 -> 83.38465087 | CG21: =SQRT((($I$3*CG$13)^2)+(($I$4*$A21)^2))/1000 -> 84.38009244 | CH21: =SQRT((($I$3*CH$13)^2)+(($I$4*$A21)^2))/1000 -> 85.37564055 | CI21: =SQRT((($I$3*CI$13)^2)+(($I$4*$A21)^2))/1000 -> 86.37129153 | CJ21: =SQRT((($I$3*CJ$13)^2)+(($I$4*$A21)^2))/1000 -> 87.36704184 | CK21: =SQRT((($I$3*CK$13)^2)+(($I$4*$A21)^2))/1000 -> 88.36288814 | CL21: =SQRT((($I$3*CL$13)^2)+(($I$4*$A21)^2))/1000 -> 89.35882721 | CM21: =SQRT((($I$3*CM$13)^2)+(($I$4*$A21)^2))/1000 -> 90.35485598 | CN21: =SQRT((($I$3*CN$13)^2)+(($I$4*$A21)^2))/1000 -> 91.35097153 | CO21: =SQRT((($I$3*CO$13)^2)+(($I$4*$A21)^2))/1000 -> 92.34717104 | CP21: =SQRT((($I$3*CP$13)^2)+(($I$4*$A21)^2))/1000 -> 93.34345183 | CQ21: =SQRT((($I$3*CQ$13)^2)+(($I$4*$A21)^2))/1000 -> 94.33981132 | CR21: =SQRT((($I$3*CR$13)^2)+(($I$4*$A21)^2))/1000 -> 95.33624704 | CS21: =SQRT((($I$3*CS$13)^2)+(($I$4*$A21)^2))/1000 -> 96.33275663 | CT21: =SQRT((($I$3*CT$13)^2)+(($I$4*$A21)^2))/1000 -> 97.32933782 | CU21: =SQRT((($I$3*CU$13)^2)+(($I$4*$A21)^2))/1000 -> 98.32598843 | CV21: =SQRT((($I$3*CV$13)^2)+(($I$4*$A21)^2))/1000 -> 99.32270637 | CW21: =SQRT((($I$3*CW$13)^2)+(($I$4*$A21)^2))/1000 -> 100.3194896 | CX21: =SQRT((($I$3*CX$13)^2)+(($I$4*$A21)^2))/1000 -> 101.3163363 | CY21: =SQRT((($I$3*CY$13)^2)+(($I$4*$A21)^2))/1000 -> 102.3132445 | CZ21: =SQRT((($I$3*CZ$13)^2)+(($I$4*$A21)^2))/1000 -> 103.3102125 | DA21: =SQRT((($I$3*DA$13)^2)+(($I$4*$A21)^2))/1000 -> 104.3072385 | DB21: =SQRT((($I$3*DB$13)^2)+(($I$4*$A21)^2))/1000 -> 105.3043209 | DC21: =SQRT((($I$3*DC$13)^2)+(($I$4*$A21)^2))/1000 -> 106.3014581 | DD21: =SQRT((($I$3*DD$13)^2)+(($I$4*$A21)^2))/1000 -> 107.2986486 | DE21: =SQRT((($I$3*DE$13)^2)+(($I$4*$A21)^2))/1000 -> 108.295891 | DF21: =SQRT((($I$3*DF$13)^2)+(($I$4*$A21)^2))/1000 -> 109.2931837 | DG21: =SQRT((($I$3*DG$13)^2)+(($I$4*$A21)^2))/1000 -> 110.2905254 | DH21: =SQRT((($I$3*DH$13)^2)+(($I$4*$A21)^2))/1000 -> 111.2879149 | DI21: =SQRT((($I$3*DI$13)^2)+(($I$4*$A21)^2))/1000 -> 112.2853508 | DJ21: =SQRT((($I$3*DJ$13)^2)+(($I$4*$A21)^2))/1000 -> 113.2828319 | DK21: =SQRT((($I$3*DK$13)^2)+(($I$4*$A21)^2))/1000 -> 114.280357 | DL21: =SQRT((($I$3*DL$13)^2)+(($I$4*$A21)^2))/1000 -> 115.277925 | DM21: =SQRT((($I$3*DM$13)^2)+(($I$4*$A21)^2))/1000 -> 116.2755348 | DN21: =SQRT((($I$3*DN$13)^2)+(($I$4*$A21)^2))/1000 -> 117.2731853 | DO21: =SQRT((($I$3*DO$13)^2)+(($I$4*$A21)^2))/1000 -> 118.2708755 | DP21: =SQRT((($I$3*DP$13)^2)+(($I$4*$A21)^2))/1000 -> 119.2686044 | DQ21: =SQRT((($I$3*DQ$13)^2)+(($I$4*$A21)^2))/1000 -> 120.266371 | DR21: =SQRT((($I$3*DR$13)^2)+(($I$4*$A21)^2))/1000 -> 121.2641744 | DS21: =SQRT((($I$3*DS$13)^2)+(($I$4*$A21)^2))/1000 -> 122.2620137 | DT21: =SQRT((($I$3*DT$13)^2)+(($I$4*$A21)^2))/1000 -> 123.259888 | DU21: =SQRT((($I$3*DU$13)^2)+(($I$4*$A21)^2))/1000 -> 124.2577965 | DV21: =SQRT((($I$3*DV$13)^2)+(($I$4*$A21)^2))/1000 -> 125.2557384 | DW21: =SQRT((($I$3*DW$13)^2)+(($I$4*$A21)^2))/1000 -> 126.2537128 | DX21: =SQRT((($I$3*DX$13)^2)+(($I$4*$A21)^2))/1000 -> 127.251719 | DY21: =SQRT((($I$3*DY$13)^2)+(($I$4*$A21)^2))/1000 -> 128.2497563 | DZ21: =SQRT((($I$3*DZ$13)^2)+(($I$4*$A21)^2))/1000 -> 129.247824 | EA21: =SQRT((($I$3*EA$13)^2)+(($I$4*$A21)^2))/1000 -> 130.2459212 | EB21: =SQRT((($I$3*EB$13)^2)+(($I$4*$A21)^2))/1000 -> 131.2440475 | EC21: =SQRT((($I$3*EC$13)^2)+(($I$4*$A21)^2))/1000 -> 132.242202 | ED21: =SQRT((($I$3*ED$13)^2)+(($I$4*$A21)^2))/1000 -> 133.2403843 | EE21: =SQRT((($I$3*EE$13)^2)+(($I$4*$A21)^2))/1000 -> 134.2385936 | EF21: =SQRT((($I$3*EF$13)^2)+(($I$4*$A21)^2))/1000 -> 135.2368293 | EG21: =SQRT((($I$3*EG$13)^2)+(($I$4*$A21)^2))/1000 -> 136.2350909 | EH21: =SQRT((($I$3*EH$13)^2)+(($I$4*$A21)^2))/1000 -> 137.2333779 | EI21: =SQRT((($I$3*EI$13)^2)+(($I$4*$A21)^2))/1000 -> 138.2316896 | EJ21: =SQRT((($I$3*EJ$13)^2)+(($I$4*$A21)^2))/1000 -> 139.2300255 | EK21: =SQRT((($I$3*EK$13)^2)+(($I$4*$A21)^2))/1000 -> 140.2283851 | EL21: =SQRT((($I$3*EL$13)^2)+(($I$4*$A21)^2))/1000 -> 141.226768 | EM21: =SQRT((($I$3*EM$13)^2)+(($I$4*$A21)^2))/1000 -> 142.2251736 | EN21: =SQRT((($I$3*EN$13)^2)+(($I$4*$A21)^2))/1000 -> 143.2236014 | EO21: =SQRT((($I$3*EO$13)^2)+(($I$4*$A21)^2))/1000 -> 144.222051 | EP21: =SQRT((($I$3*EP$13)^2)+(($I$4*$A21)^2))/1000 -> 145.220522 | EQ21: =SQRT((($I$3*EQ$13)^2)+(($I$4*$A21)^2))/1000 -> 146.2190138 | ER21: =SQRT((($I$3*ER$13)^2)+(($I$4*$A21)^2))/1000 -> 147.2175261 | ES21: =SQRT((($I$3*ES$13)^2)+(($I$4*$A21)^2))/1000 -> 148.2160585 | ET21: =SQRT((($I$3*ET$13)^2)+(($I$4*$A21)^2))/1000 -> 149.2146105 | EU21: =SQRT((($I$3*EU$13)^2)+(($I$4*$A21)^2))/1000 -> 150.2131818 | EV21: =SQRT((($I$3*EV$13)^2)+(($I$4*$A21)^2))/1000 -> 151.211772 | EW21: =SQRT((($I$3*EW$13)^2)+(($I$4*$A21)^2))/1000 -> 152.2103807 | EX21: =SQRT((($I$3*EX$13)^2)+(($I$4*$A21)^2))/1000 -> 153.2090076 | EY21: =SQRT((($I$3*EY$13)^2)+(($I$4*$A21)^2))/1000 -> 154.2076522 | EZ21: =SQRT((($I$3*EZ$13)^2)+(($I$4*$A21)^2))/1000 -> 155.2063143 | FA21: =SQRT((($I$3*FA$13)^2)+(($I$4*$A21)^2))/1000 -> 156.2049935 | FB21: =SQRT((($I$3*FB$13)^2)+(($I$4*$A21)^2))/1000 -> 157.2036895 | FC21: =SQRT((($I$3*FC$13)^2)+(($I$4*$A21)^2))/1000 -> 158.202402 | FD21: =SQRT((($I$3*FD$13)^2)+(($I$4*$A21)^2))/1000 -> 159.2011306 | FE21: =SQRT((($I$3*FE$13)^2)+(($I$4*$A21)^2))/1000 -> 160.1998752 | FF21: =SQRT((($I$3*FF$13)^2)+(($I$4*$A21)^2))/1000 -> 161.1986352 | FG21: =SQRT((($I$3*FG$13)^2)+(($I$4*$A21)^2))/1000 -> 162.1974106 | FH21: =SQRT((($I$3*FH$13)^2)+(($I$4*$A21)^2))/1000 -> 163.1962009 | FI21: =SQRT((($I$3*FI$13)^2)+(($I$4*$A21)^2))/1000 -> 164.195006 | FJ21: =SQRT((($I$3*FJ$13)^2)+(($I$4*$A21)^2))/1000 -> 165.1938256 | FK21: =SQRT((($I$3*FK$13)^2)+(($I$4*$A21)^2))/1000 -> 166.1926593 | FL21: =SQRT((($I$3*FL$13)^2)+(($I$4*$A21)^2))/1000 -> 167.191507 | FM21: =SQRT((($I$3*FM$13)^2)+(($I$4*$A21)^2))/1000 -> 168.1903683 | FN21: =SQRT((($I$3*FN$13)^2)+(($I$4*$A21)^2))/1000 -> 169.1892432 | FO21: =SQRT((($I$3*FO$13)^2)+(($I$4*$A21)^2))/1000 -> 170.1881312 | FP21: =SQRT((($I$3*FP$13)^2)+(($I$4*$A21)^2))/1000 -> 171.1870322 | FQ21: =SQRT((($I$3*FQ$13)^2)+(($I$4*$A21)^2))/1000 -> 172.185946 | FR21: =SQRT((($I$3*FR$13)^2)+(($I$4*$A21)^2))/1000 -> 173.1848723 | FS21: =SQRT((($I$3*FS$13)^2)+(($I$4*$A21)^2))/1000 -> 174.183811 | FT21: =SQRT((($I$3*FT$13)^2)+(($I$4*$A21)^2))/1000 -> 175.1827617 | FU21: =SQRT((($I$3*FU$13)^2)+(($I$4*$A21)^2))/1000 -> 176.1817244 | FV21: =SQRT((($I$3*FV$13)^2)+(($I$4*$A21)^2))/1000 -> 177.1806987 | FW21: =SQRT((($I$3*FW$13)^2)+(($I$4*$A21)^2))/1000 -> 178.1796846 | FX21: =SQRT((($I$3*FX$13)^2)+(($I$4*$A21)^2))/1000 -> 179.1786818 | FY21: =SQRT((($I$3*FY$13)^2)+(($I$4*$A21)^2))/1000 -> 180.1776901 | FZ21: =SQRT((($I$3*FZ$13)^2)+(($I$4*$A21)^2))/1000 -> 181.1767093 | GA21: =SQRT((($I$3*GA$13)^2)+(($I$4*$A21)^2))/1000 -> 182.1757393 | GB21: =SQRT((($I$3*GB$13)^2)+(($I$4*$A21)^2))/1000 -> 183.1747799 | GC21: =SQRT((($I$3*GC$13)^2)+(($I$4*$A21)^2))/1000 -> 184.1738309 | GD21: =SQRT((($I$3*GD$13)^2)+(($I$4*$A21)^2))/1000 -> 185.1728922 | GE21: =SQRT((($I$3*GE$13)^2)+(($I$4*$A21)^2))/1000 -> 186.1719635 | GF21: =SQRT((($I$3*GF$13)^2)+(($I$4*$A21)^2))/1000 -> 187.1710448 | GG21: =SQRT((($I$3*GG$13)^2)+(($I$4*$A21)^2))/1000 -> 188.1701358 | GH21: =SQRT((($I$3*GH$13)^2)+(($I$4*$A21)^2))/1000 -> 189.1692364 | GI21: =SQRT((($I$3*GI$13)^2)+(($I$4*$A21)^2))/1000 -> 190.1683465 | GJ21: =SQRT((($I$3*GJ$13)^2)+(($I$4*$A21)^2))/1000 -> 191.1674659 | GK21: =SQRT((($I$3*GK$13)^2)+(($I$4*$A21)^2))/1000 -> 192.1665944 | GL21: =SQRT((($I$3*GL$13)^2)+(($I$4*$A21)^2))/1000 -> 193.165732 | GM21: =SQRT((($I$3*GM$13)^2)+(($I$4*$A21)^2))/1000 -> 194.1648784 | GN21: =SQRT((($I$3*GN$13)^2)+(($I$4*$A21)^2))/1000 -> 195.1640336 | GO21: =SQRT((($I$3*GO$13)^2)+(($I$4*$A21)^2))/1000 -> 196.1631974 | GP21: =SQRT((($I$3*GP$13)^2)+(($I$4*$A21)^2))/1000 -> 197.1623696 | GQ21: =SQRT((($I$3*GQ$13)^2)+(($I$4*$A21)^2))/1000 -> 198.1615503 | GR21: =SQRT((($I$3*GR$13)^2)+(($I$4*$A21)^2))/1000 -> 199.1607391 | GS21: =SQRT((($I$3*GS$13)^2)+(($I$4*$A21)^2))/1000 -> 200.1599361 | GT21: =SQRT((($I$3*GT$13)^2)+(($I$4*$A21)^2))/1000 -> 201.159141 | GU21: =SQRT((($I$3*GU$13)^2)+(($I$4*$A21)^2))/1000 -> 202.1583538 | GV21: =SQRT((($I$3*GV$13)^2)+(($I$4*$A21)^2))/1000 -> 203.1575743 | GW21: =SQRT((($I$3*GW$13)^2)+(($I$4*$A21)^2))/1000 -> 204.1568025 | GX21: =SQRT((($I$3*GX$13)^2)+(($I$4*$A21)^2))/1000 -> 205.1560382 | GY21: =SQRT((($I$3*GY$13)^2)+(($I$4*$A21)^2))/1000 -> 206.1552813 | GZ21: =SQRT((($I$3*GZ$13)^2)+(($I$4*$A21)^2))/1000 -> 207.1545317 | HA21: =SQRT((($I$3*HA$13)^2)+(($I$4*$A21)^2))/1000 -> 208.1537893 | HB21: =SQRT((($I$3*HB$13)^2)+(($I$4*$A21)^2))/1000 -> 209.153054 | HC21: =SQRT((($I$3*HC$13)^2)+(($I$4*$A21)^2))/1000 -> 210.1523257 | HD21: =SQRT((($I$3*HD$13)^2)+(($I$4*$A21)^2))/1000 -> 211.1516043 | HE21: =SQRT((($I$3*HE$13)^2)+(($I$4*$A21)^2))/1000 -> 212.1508897 | HF21: =SQRT((($I$3*HF$13)^2)+(($I$4*$A21)^2))/1000 -> 213.1501818 | HG21: =SQRT((($I$3*HG$13)^2)+(($I$4*$A21)^2))/1000 -> 214.1494805 | HH21: =SQRT((($I$3*HH$13)^2)+(($I$4*$A21)^2))/1000 -> 215.1487857 | HI21: =SQRT((($I$3*HI$13)^2)+(($I$4*$A21)^2))/1000 -> 216.1480974 | HJ21: =SQRT((($I$3*HJ$13)^2)+(($I$4*$A21)^2))/1000 -> 217.1474154 | HK21: =SQRT((($I$3*HK$13)^2)+(($I$4*$A21)^2))/1000 -> 218.1467396 | HL21: =SQRT((($I$3*HL$13)^2)+(($I$4*$A21)^2))/1000 -> 219.14607 | HM21: =SQRT((($I$3*HM$13)^2)+(($I$4*$A21)^2))/1000 -> 220.1454065 | HN21: =SQRT((($I$3*HN$13)^2)+(($I$4*$A21)^2))/1000 -> 221.144749 | HO21: =SQRT((($I$3*HO$13)^2)+(($I$4*$A21)^2))/1000 -> 222.1440974 | HP21: =SQRT((($I$3*HP$13)^2)+(($I$4*$A21)^2))/1000 -> 223.1434516 | HQ21: =SQRT((($I$3*HQ$13)^2)+(($I$4*$A21)^2))/1000 -> 224.1428116 | HR21: =SQRT((($I$3*HR$13)^2)+(($I$4*$A21)^2))/1000 -> 225.1421773 | HS21: =SQRT((($I$3*HS$13)^2)+(($I$4*$A21)^2))/1000 -> 226.1415486 | HT21: =SQRT((($I$3*HT$13)^2)+(($I$4*$A21)^2))/1000 -> 227.1409254 | HU21: =SQRT((($I$3*HU$13)^2)+(($I$4*$A21)^2))/1000 -> 228.1403077 | HV21: =SQRT((($I$3*HV$13)^2)+(($I$4*$A21)^2))/1000 -> 229.1396954 | HW21: =SQRT((($I$3*HW$13)^2)+(($I$4*$A21)^2))/1000 -> 230.1390884 | HX21: =SQRT((($I$3*HX$13)^2)+(($I$4*$A21)^2))/1000 -> 231.1384866 | HY21: =SQRT((($I$3*HY$13)^2)+(($I$4*$A21)^2))/1000 -> 232.1378901 | HZ21: =SQRT((($I$3*HZ$13)^2)+(($I$4*$A21)^2))/1000 -> 233.1372986 | IA21: =SQRT((($I$3*IA$13)^2)+(($I$4*$A21)^2))/1000 -> 234.1367122 | IB21: =SQRT((($I$3*IB$13)^2)+(($I$4*$A21)^2))/1000 -> 235.1361308 | IC21: =SQRT((($I$3*IC$13)^2)+(($I$4*$A21)^2))/1000 -> 236.1355543 | ID21: =SQRT((($I$3*ID$13)^2)+(($I$4*$A21)^2))/1000 -> 237.1349827 | IE21: =SQRT((($I$3*IE$13)^2)+(($I$4*$A21)^2))/1000 -> 238.1344158 | IF21: =SQRT((($I$3*IF$13)^2)+(($I$4*$A21)^2))/1000 -> 239.1338537 | IG21: =SQRT((($I$3*IG$13)^2)+(($I$4*$A21)^2))/1000 -> 240.1332963 | IH21: =SQRT((($I$3*IH$13)^2)+(($I$4*$A21)^2))/1000 -> 241.1327435 | II21: =SQRT((($I$3*II$13)^2)+(($I$4*$A21)^2))/1000 -> 242.1321953 | IJ21: =SQRT((($I$3*IJ$13)^2)+(($I$4*$A21)^2))/1000 -> 243.1316516 | IK21: =SQRT((($I$3*IK$13)^2)+(($I$4*$A21)^2))/1000 -> 244.1311123 | IL21: =SQRT((($I$3*IL$13)^2)+(($I$4*$A21)^2))/1000 -> 245.1305774 | IM21: =SQRT((($I$3*IM$13)^2)+(($I$4*$A21)^2))/1000 -> 246.1300469 | IN21: =SQRT((($I$3*IN$13)^2)+(($I$4*$A21)^2))/1000 -> 247.1295207 | IO21: =SQRT((($I$3*IO$13)^2)+(($I$4*$A21)^2))/1000 -> 248.1289987 | IP21: =SQRT((($I$3*IP$13)^2)+(($I$4*$A21)^2))/1000 -> 249.1284809 | IQ21: =SQRT((($I$3*IQ$13)^2)+(($I$4*$A21)^2))/1000 -> 250.1279672 | IR21: =SQRT((($I$3*IR$13)^2)+(($I$4*$A21)^2))/1000 -> 251.1274577 | IS21: =SQRT((($I$3*IS$13)^2)+(($I$4*$A21)^2))/1000 -> 252.1269521 | IT21: =SQRT((($I$3*IT$13)^2)+(($I$4*$A21)^2))/1000 -> 253.1264506 | IU21: =SQRT((($I$3*IU$13)^2)+(($I$4*$A21)^2))/1000 -> 254.125953 | IV21: =SQRT((($I$3*IV$13)^2)+(($I$4*$A21)^2))/1000 -> 255.1254593 | IW21: =SQRT((($I$3*IW$13)^2)+(($I$4*$A21)^2))/1000 -> 256.1249695 | IX21: =SQRT((($I$3*IX$13)^2)+(($I$4*$A21)^2))/1000 -> 257.1244835 | IY21: =SQRT((($I$3*IY$13)^2)+(($I$4*$A21)^2))/1000 -> 258.1240012 | IZ21: =SQRT((($I$3*IZ$13)^2)+(($I$4*$A21)^2))/1000 -> 259.1235227 | JA21: =SQRT((($I$3*JA$13)^2)+(($I$4*$A21)^2))/1000 -> 260.1230478 | JB21: =SQRT((($I$3*JB$13)^2)+(($I$4*$A21)^2))/1000 -> 261.1225766 | JC21: =SQRT((($I$3*JC$13)^2)+(($I$4*$A21)^2))/1000 -> 262.1221089 | JD21: =SQRT((($I$3*JD$13)^2)+(($I$4*$A21)^2))/1000 -> 263.1216449 | JE21: =SQRT((($I$3*JE$13)^2)+(($I$4*$A21)^2))/1000 -> 264.1211843 | JF21: =SQRT((($I$3*JF$13)^2)+(($I$4*$A21)^2))/1000 -> 265.1207272 | JG21: =SQRT((($I$3*JG$13)^2)+(($I$4*$A21)^2))/1000 -> 266.1202736 | JH21: =SQRT((($I$3*JH$13)^2)+(($I$4*$A21)^2))/1000 -> 267.1198233 | JI21: =SQRT((($I$3*JI$13)^2)+(($I$4*$A21)^2))/1000 -> 268.1193764 | JJ21: =SQRT((($I$3*JJ$13)^2)+(($I$4*$A21)^2))/1000 -> 269.1189328 | JK21: =SQRT((($I$3*JK$13)^2)+(($I$4*$A21)^2))/1000 -> 270.1184925 | JL21: =SQRT((($I$3*JL$13)^2)+(($I$4*$A21)^2))/1000 -> 271.1180555 | JM21: =SQRT((($I$3*JM$13)^2)+(($I$4*$A21)^2))/1000 -> 272.1176216 | JN21: =SQRT((($I$3*JN$13)^2)+(($I$4*$A21)^2))/1000 -> 273.117191 | JO21: =SQRT((($I$3*JO$13)^2)+(($I$4*$A21)^2))/1000 -> 274.1167634 | JP21: =SQRT((($I$3*JP$13)^2)+(($I$4*$A21)^2))/1000 -> 275.116339 | JQ21: =SQRT((($I$3*JQ$13)^2)+(($I$4*$A21)^2))/1000 -> 276.1159177 | JR21: =SQRT((($I$3*JR$13)^2)+(($I$4*$A21)^2))/1000 -> 277.1154994 | JS21: =SQRT((($I$3*JS$13)^2)+(($I$4*$A21)^2))/1000 -> 278.1150841 | JT21: =SQRT((($I$3*JT$13)^2)+(($I$4*$A21)^2))/1000 -> 279.1146718 | JU21: =SQRT((($I$3*JU$13)^2)+(($I$4*$A21)^2))/1000 -> 280.1142624 | JV21: =SQRT((($I$3*JV$13)^2)+(($I$4*$A21)^2))/1000 -> 281.1138559 | JW21: =SQRT((($I$3*JW$13)^2)+(($I$4*$A21)^2))/1000 -> 282.1134524 | JX21: =SQRT((($I$3*JX$13)^2)+(($I$4*$A21)^2))/1000 -> 283.1130516 | JY21: =SQRT((($I$3*JY$13)^2)+(($I$4*$A21)^2))/1000 -> 284.1126537 | JZ21: =SQRT((($I$3*JZ$13)^2)+(($I$4*$A21)^2))/1000 -> 285.1122586 | KA21: =SQRT((($I$3*KA$13)^2)+(($I$4*$A21)^2))/1000 -> 286.1118662 | KB21: =SQRT((($I$3*KB$13)^2)+(($I$4*$A21)^2))/1000 -> 287.1114766 | KC21: =SQRT((($I$3*KC$13)^2)+(($I$4*$A21)^2))/1000 -> 288.1110897 | KD21: =SQRT((($I$3*KD$13)^2)+(($I$4*$A21)^2))/1000 -> 289.1107054 | KE21: =SQRT((($I$3*KE$13)^2)+(($I$4*$A21)^2))/1000 -> 290.1103238 | KF21: =SQRT((($I$3*KF$13)^2)+(($I$4*$A21)^2))/1000 -> 291.1099449 | KG21: =SQRT((($I$3*KG$13)^2)+(($I$4*$A21)^2))/1000 -> 292.1095685 | KH21: =SQRT((($I$3*KH$13)^2)+(($I$4*$A21)^2))/1000 -> 293.1091947 | KI21: =SQRT((($I$3*KI$13)^2)+(($I$4*$A21)^2))/1000 -> 294.1088234 | KJ21: =SQRT((($I$3*KJ$13)^2)+(($I$4*$A21)^2))/1000 -> 295.1084546 | KK21: =SQRT((($I$3*KK$13)^2)+(($I$4*$A21)^2))/1000 -> 296.1080884 | KL21: =SQRT((($I$3*KL$13)^2)+(($I$4*$A21)^2))/1000 -> 297.1077246 | KM21: =SQRT((($I$3*KM$13)^2)+(($I$4*$A21)^2))/1000 -> 298.1073632 | KN21: =SQRT((($I$3*KN$13)^2)+(($I$4*$A21)^2))/1000 -> 299.1070043 | KO21: =SQRT((($I$3*KO$13)^2)+(($I$4*$A21)^2))/1000 -> 300.1066477 | KP21: =SQRT((($I$3*KP$13)^2)+(($I$4*$A21)^2))/1000 -> 301.1062935 | KQ21: =SQRT((($I$3*KQ$13)^2)+(($I$4*$A21)^2))/1000 -> 302.1059417 | KR21: =SQRT((($I$3*KR$13)^2)+(($I$4*$A21)^2))/1000 -> 303.1055922 | KS21: =SQRT((($I$3*KS$13)^2)+(($I$4*$A21)^2))/1000 -> 304.1052449 | KT21: =SQRT((($I$3*KT$13)^2)+(($I$4*$A21)^2))/1000 -> 305.1049 | KU21: =SQRT((($I$3*KU$13)^2)+(($I$4*$A21)^2))/1000 -> 306.1045573 | KV21: =SQRT((($I$3*KV$13)^2)+(($I$4*$A21)^2))/1000 -> 307.1042168 | KW21: =SQRT((($I$3*KW$13)^2)+(($I$4*$A21)^2))/1000 -> 308.1038786 | KX21: =SQRT((($I$3*KX$13)^2)+(($I$4*$A21)^2))/1000 -> 309.1035425 | KY21: =SQRT((($I$3*KY$13)^2)+(($I$4*$A21)^2))/1000 -> 310.1032086 | KZ21: =SQRT((($I$3*KZ$13)^2)+(($I$4*$A21)^2))/1000 -> 311.1028769 | LA21: =SQRT((($I$3*LA$13)^2)+(($I$4*$A21)^2))/1000 -> 312.1025473 | LB21: =SQRT((($I$3*LB$13)^2)+(($I$4*$A21)^2))/1000 -> 313.1022197 | LC21: =SQRT((($I$3*LC$13)^2)+(($I$4*$A21)^2))/1000 -> 314.1018943 | LD21: =SQRT((($I$3*LD$13)^2)+(($I$4*$A21)^2))/1000 -> 315.1015709 | LE21: =SQRT((($I$3*LE$13)^2)+(($I$4*$A21)^2))/1000 -> 316.1012496 | LF21: =SQRT((($I$3*LF$13)^2)+(($I$4*$A21)^2))/1000 -> 317.1009303 | LG21: =SQRT((($I$3*LG$13)^2)+(($I$4*$A21)^2))/1000 -> 318.100613 | LH21: =SQRT((($I$3*LH$13)^2)+(($I$4*$A21)^2))/1000 -> 319.1002977 | LI21: =SQRT((($I$3*LI$13)^2)+(($I$4*$A21)^2))/1000 -> 320.0999844 | LJ21: =SQRT((($I$3*LJ$13)^2)+(($I$4*$A21)^2))/1000 -> 321.099673 | LK21: =SQRT((($I$3*LK$13)^2)+(($I$4*$A21)^2))/1000 -> 322.0993636 | LL21: =SQRT((($I$3*LL$13)^2)+(($I$4*$A21)^2))/1000 -> 323.099056 | LM21: =SQRT((($I$3*LM$13)^2)+(($I$4*$A21)^2))/1000 -> 324.0987504 | LN21: =SQRT((($I$3*LN$13)^2)+(($I$4*$A21)^2))/1000 -> 325.0984466 | LO21: =SQRT((($I$3*LO$13)^2)+(($I$4*$A21)^2))/1000 -> 326.0981447 | LP21: =SQRT((($I$3*LP$13)^2)+(($I$4*$A21)^2))/1000 -> 327.0978447 | LQ21: =SQRT((($I$3*LQ$13)^2)+(($I$4*$A21)^2))/1000 -> 328.0975465 | LR21: =SQRT((($I$3*LR$13)^2)+(($I$4*$A21)^2))/1000 -> 329.0972501 | LS21: =SQRT((($I$3*LS$13)^2)+(($I$4*$A21)^2))/1000 -> 330.0969555 | LT21: =SQRT((($I$3*LT$13)^2)+(($I$4*$A21)^2))/1000 -> 331.0966626 | LU21: =SQRT((($I$3*LU$13)^2)+(($I$4*$A21)^2))/1000 -> 332.0963716 | LV21: =SQRT((($I$3*LV$13)^2)+(($I$4*$A21)^2))/1000 -> 333.0960822 | LW21: =SQRT((($I$3*LW$13)^2)+(($I$4*$A21)^2))/1000 -> 334.0957946 | LX21: =SQRT((($I$3*LX$13)^2)+(($I$4*$A21)^2))/1000 -> 335.0955088 | LY21: =SQRT((($I$3*LY$13)^2)+(($I$4*$A21)^2))/1000 -> 336.0952246 | LZ21: =SQRT((($I$3*LZ$13)^2)+(($I$4*$A21)^2))/1000 -> 337.0949421 | MA21: =SQRT((($I$3*MA$13)^2)+(($I$4*$A21)^2))/1000 -> 338.0946613 | MB21: =SQRT((($I$3*MB$13)^2)+(($I$4*$A21)^2))/1000 -> 339.0943821 | MC21: =SQRT((($I$3*MC$13)^2)+(($I$4*$A21)^2))/1000 -> 340.0941046 | MD21: =SQRT((($I$3*MD$13)^2)+(($I$4*$A21)^2))/1000 -> 341.0938287 | ME21: =SQRT((($I$3*ME$13)^2)+(($I$4*$A21)^2))/1000 -> 342.0935545 | MF21: =SQRT((($I$3*MF$13)^2)+(($I$4*$A21)^2))/1000 -> 343.0932818 | MG21: =SQRT((($I$3*MG$13)^2)+(($I$4*$A21)^2))/1000 -> 344.0930107 | MH21: =SQRT((($I$3*MH$13)^2)+(($I$4*$A21)^2))/1000 -> 345.0927412 | MI21: =SQRT((($I$3*MI$13)^2)+(($I$4*$A21)^2))/1000 -> 346.0924732 | MJ21: =SQRT((($I$3*MJ$13)^2)+(($I$4*$A21)^2))/1000 -> 347.0922068 | MK21: =SQRT((($I$3*MK$13)^2)+(($I$4*$A21)^2))/1000 -> 348.0919419 | ML21: =SQRT((($I$3*ML$13)^2)+(($I$4*$A21)^2))/1000 -> 349.0916785 | MM21: =SQRT((($I$3*MM$13)^2)+(($I$4*$A21)^2))/1000 -> 350.0914166 | MN21: =SQRT((($I$3*MN$13)^2)+(($I$4*$A21)^2))/1000 -> 351.0911563 | MO21: =SQRT((($I$3*MO$13)^2)+(($I$4*$A21)^2))/1000 -> 352.0908974 | MP21: =SQRT((($I$3*MP$13)^2)+(($I$4*$A21)^2))/1000 -> 353.0906399 | MQ21: =SQRT((($I$3*MQ$13)^2)+(($I$4*$A21)^2))/1000 -> 354.0903839 | MR21: =SQRT((($I$3*MR$13)^2)+(($I$4*$A21)^2))/1000 -> 355.0901294 | MS21: =SQRT((($I$3*MS$13)^2)+(($I$4*$A21)^2))/1000 -> 356.0898763 | MT21: =SQRT((($I$3*MT$13)^2)+(($I$4*$A21)^2))/1000 -> 357.0896246 | MU21: =SQRT((($I$3*MU$13)^2)+(($I$4*$A21)^2))/1000 -> 358.0893743 | MV21: =SQRT((($I$3*MV$13)^2)+(($I$4*$A21)^2))/1000 -> 359.0891254 | MW21: =SQRT((($I$3*MW$13)^2)+(($I$4*$A21)^2))/1000 -> 360.0888779 | MX21: =SQRT((($I$3*MX$13)^2)+(($I$4*$A21)^2))/1000 -> 361.0886318 | MY21: =SQRT((($I$3*MY$13)^2)+(($I$4*$A21)^2))/1000 -> 362.088387 | MZ21: =SQRT((($I$3*MZ$13)^2)+(($I$4*$A21)^2))/1000 -> 363.0881436 | NA21: =SQRT((($I$3*NA$13)^2)+(($I$4*$A21)^2))/1000 -> 364.0879015 | NB21: =SQRT((($I$3*NB$13)^2)+(($I$4*$A21)^2))/1000 -> 365.0876607 | NC21: =SQRT((($I$3*NC$13)^2)+(($I$4*$A21)^2))/1000 -> 366.0874213 | ND21: =SQRT((($I$3*ND$13)^2)+(($I$4*$A21)^2))/1000 -> 367.0871831 | NE21: =SQRT((($I$3*NE$13)^2)+(($I$4*$A21)^2))/1000 -> 368.0869463 | NF21: =SQRT((($I$3*NF$13)^2)+(($I$4*$A21)^2))/1000 -> 369.0867107 | NG21: =SQRT((($I$3*NG$13)^2)+(($I$4*$A21)^2))/1000 -> 370.0864764 | NH21: =SQRT((($I$3*NH$13)^2)+(($I$4*$A21)^2))/1000 -> 371.0862433 | NI21: =SQRT((($I$3*NI$13)^2)+(($I$4*$A21)^2))/1000 -> 372.0860116 | NJ21: =SQRT((($I$3*NJ$13)^2)+(($I$4*$A21)^2))/1000 -> 373.085781 | NK21: =SQRT((($I$3*NK$13)^2)+(($I$4*$A21)^2))/1000 -> 374.0855517 | NL21: =SQRT((($I$3*NL$13)^2)+(($I$4*$A21)^2))/1000 -> 375.0853236 | NM21: =SQRT((($I$3*NM$13)^2)+(($I$4*$A21)^2))/1000 -> 376.0850968 | NN21: =SQRT((($I$3*NN$13)^2)+(($I$4*$A21)^2))/1000 -> 377.0848711 | NO21: =SQRT((($I$3*NO$13)^2)+(($I$4*$A21)^2))/1000 -> 378.0846466 | NP21: =SQRT((($I$3*NP$13)^2)+(($I$4*$A21)^2))/1000 -> 379.0844233 | NQ21: =SQRT((($I$3*NQ$13)^2)+(($I$4*$A21)^2))/1000 -> 380.0842012 | NR21: =SQRT((($I$3*NR$13)^2)+(($I$4*$A21)^2))/1000 -> 381.0839802 | NS21: =SQRT((($I$3*NS$13)^2)+(($I$4*$A21)^2))/1000 -> 382.0837605 | NT21: =SQRT((($I$3*NT$13)^2)+(($I$4*$A21)^2))/1000 -> 383.0835418 | NU21: =SQRT((($I$3*NU$13)^2)+(($I$4*$A21)^2))/1000 -> 384.0833243 | NV21: =SQRT((($I$3*NV$13)^2)+(($I$4*$A21)^2))/1000 -> 385.0831079 | NW21: =SQRT((($I$3*NW$13)^2)+(($I$4*$A21)^2))/1000 -> 386.0828927 | NX21: =SQRT((($I$3*NX$13)^2)+(($I$4*$A21)^2))/1000 -> 387.0826785 | NY21: =SQRT((($I$3*NY$13)^2)+(($I$4*$A21)^2))/1000 -> 388.0824655 | NZ21: =SQRT((($I$3*NZ$13)^2)+(($I$4*$A21)^2))/1000 -> 389.0822535 | OA21: =SQRT((($I$3*OA$13)^2)+(($I$4*$A21)^2))/1000 -> 390.0820427 | OB21: =SQRT((($I$3*OB$13)^2)+(($I$4*$A21)^2))/1000 -> 391.0818329 | OC21: =SQRT((($I$3*OC$13)^2)+(($I$4*$A21)^2))/1000 -> 392.0816242 | OD21: =SQRT((($I$3*OD$13)^2)+(($I$4*$A21)^2))/1000 -> 393.0814165 | OE21: =SQRT((($I$3*OE$13)^2)+(($I$4*$A21)^2))/1000 -> 394.0812099 | OF21: =SQRT((($I$3*OF$13)^2)+(($I$4*$A21)^2))/1000 -> 395.0810044 | OG21: =SQRT((($I$3*OG$13)^2)+(($I$4*$A21)^2))/1000 -> 396.0807998 | OH21: =SQRT((($I$3*OH$13)^2)+(($I$4*$A21)^2))/1000 -> 397.0805964 | OI21: =SQRT((($I$3*OI$13)^2)+(($I$4*$A21)^2))/1000 -> 398.0803939 | OJ21: =SQRT((($I$3*OJ$13)^2)+(($I$4*$A21)^2))/1000 -> 399.0801924 | OK21: =SQRT((($I$3*OK$13)^2)+(($I$4*$A21)^2))/1000 -> 400.079992 | OL21: =SQRT((($I$3*OL$13)^2)+(($I$4*$A21)^2))/1000 -> 401.0797926 | OM21: =SQRT((($I$3*OM$13)^2)+(($I$4*$A21)^2))/1000 -> 402.0795941 | ON21: =SQRT((($I$3*ON$13)^2)+(($I$4*$A21)^2))/1000 -> 403.0793966 | OO21: =SQRT((($I$3*OO$13)^2)+(($I$4*$A21)^2))/1000 -> 404.0792002 | OP21: =SQRT((($I$3*OP$13)^2)+(($I$4*$A21)^2))/1000 -> 405.0790046 | OQ21: =SQRT((($I$3*OQ$13)^2)+(($I$4*$A21)^2))/1000 -> 406.0788101 | OR21: =SQRT((($I$3*OR$13)^2)+(($I$4*$A21)^2))/1000 -> 407.0786165 | OS21: =SQRT((($I$3*OS$13)^2)+(($I$4*$A21)^2))/1000 -> 408.0784238 | OT21: =SQRT((($I$3*OT$13)^2)+(($I$4*$A21)^2))/1000 -> 409.0782321 | OU21: =SQRT((($I$3*OU$13)^2)+(($I$4*$A21)^2))/1000 -> 410.0780414 | OV21: =SQRT((($I$3*OV$13)^2)+(($I$4*$A21)^2))/1000 -> 411.0778515 | OW21: =SQRT((($I$3*OW$13)^2)+(($I$4*$A21)^2))/1000 -> 412.0776626 | OX21: =SQRT((($I$3*OX$13)^2)+(($I$4*$A21)^2))/1000 -> 413.0774746 | OY21: =SQRT((($I$3*OY$13)^2)+(($I$4*$A21)^2))/1000 -> 414.0772875 | OZ21: =SQRT((($I$3*OZ$13)^2)+(($I$4*$A21)^2))/1000 -> 415.0771013 | PA21: =SQRT((($I$3*PA$13)^2)+(($I$4*$A21)^2))/1000 -> 416.076916 | PB21: =SQRT((($I$3*PB$13)^2)+(($I$4*$A21)^2))/1000 -> 417.0767315 | PC21: =SQRT((($I$3*PC$13)^2)+(($I$4*$A21)^2))/1000 -> 418.076548 | PD21: =SQRT((($I$3*PD$13)^2)+(($I$4*$A21)^2))/1000 -> 419.0763654 | PE21: =SQRT((($I$3*PE$13)^2)+(($I$4*$A21)^2))/1000 -> 420.0761836 | PF21: =SQRT((($I$3*PF$13)^2)+(($I$4*$A21)^2))/1000 -> 421.0760026 | PG21: =SQRT((($I$3*PG$13)^2)+(($I$4*$A21)^2))/1000 -> 422.0758226 | PH21: =SQRT((($I$3*PH$13)^2)+(($I$4*$A21)^2))/1000 -> 423.0756434 | PI21: =SQRT((($I$3*PI$13)^2)+(($I$4*$A21)^2))/1000 -> 424.075465 | PJ21: =SQRT((($I$3*PJ$13)^2)+(($I$4*$A21)^2))/1000 -> 425.0752874 | PK21: =SQRT((($I$3*PK$13)^2)+(($I$4*$A21)^2))/1000 -> 426.0751107 | PL21: =SQRT((($I$3*PL$13)^2)+(($I$4*$A21)^2))/1000 -> 427.0749349 | PM21: =SQRT((($I$3*PM$13)^2)+(($I$4*$A21)^2))/1000 -> 428.0747598 | PN21: =SQRT((($I$3*PN$13)^2)+(($I$4*$A21)^2))/1000 -> 429.0745856 | PO21: =SQRT((($I$3*PO$13)^2)+(($I$4*$A21)^2))/1000 -> 430.0744122 | PP21: =SQRT((($I$3*PP$13)^2)+(($I$4*$A21)^2))/1000 -> 431.0742395 | PQ21: =SQRT((($I$3*PQ$13)^2)+(($I$4*$A21)^2))/1000 -> 432.0740677 | PR21: =SQRT((($I$3*PR$13)^2)+(($I$4*$A21)^2))/1000 -> 433.0738967 | PS21: =SQRT((($I$3*PS$13)^2)+(($I$4*$A21)^2))/1000 -> 434.0737265 | PT21: =SQRT((($I$3*PT$13)^2)+(($I$4*$A21)^2))/1000 -> 435.073557 | PU21: =SQRT((($I$3*PU$13)^2)+(($I$4*$A21)^2))/1000 -> 436.0733883 | PV21: =SQRT((($I$3*PV$13)^2)+(($I$4*$A21)^2))/1000 -> 437.0732204 | PW21: =SQRT((($I$3*PW$13)^2)+(($I$4*$A21)^2))/1000 -> 438.0730533 | PX21: =SQRT((($I$3*PX$13)^2)+(($I$4*$A21)^2))/1000 -> 439.0728869 | PY21: =SQRT((($I$3*PY$13)^2)+(($I$4*$A21)^2))/1000 -> 440.0727213 | PZ21: =SQRT((($I$3*PZ$13)^2)+(($I$4*$A21)^2))/1000 -> 441.0725564 | QA21: =SQRT((($I$3*QA$13)^2)+(($I$4*$A21)^2))/1000 -> 442.0723923 | QB21: =SQRT((($I$3*QB$13)^2)+(($I$4*$A21)^2))/1000 -> 443.0722289 | QC21: =SQRT((($I$3*QC$13)^2)+(($I$4*$A21)^2))/1000 -> 444.0720662 | QD21: =SQRT((($I$3*QD$13)^2)+(($I$4*$A21)^2))/1000 -> 445.0719043 | QE21: =SQRT((($I$3*QE$13)^2)+(($I$4*$A21)^2))/1000 -> 446.0717431 | QF21: =SQRT((($I$3*QF$13)^2)+(($I$4*$A21)^2))/1000 -> 447.0715826 | QG21: =SQRT((($I$3*QG$13)^2)+(($I$4*$A21)^2))/1000 -> 448.0714229 | QH21: =SQRT((($I$3*QH$13)^2)+(($I$4*$A21)^2))/1000 -> 449.0712638 | QI21: =SQRT((($I$3*QI$13)^2)+(($I$4*$A21)^2))/1000 -> 450.0711055 | QJ21: =SQRT((($I$3*QJ$13)^2)+(($I$4*$A21)^2))/1000 -> 451.0709479 | QK21: =SQRT((($I$3*QK$13)^2)+(($I$4*$A21)^2))/1000 -> 452.0707909 | QL21: =SQRT((($I$3*QL$13)^2)+(($I$4*$A21)^2))/1000 -> 453.0706347 | QM21: =SQRT((($I$3*QM$13)^2)+(($I$4*$A21)^2))/1000 -> 454.0704791 | QN21: =SQRT((($I$3*QN$13)^2)+(($I$4*$A21)^2))/1000 -> 455.0703242 | QO21: =SQRT((($I$3*QO$13)^2)+(($I$4*$A21)^2))/1000 -> 456.07017 | QP21: =SQRT((($I$3*QP$13)^2)+(($I$4*$A21)^2))/1000 -> 457.0700165 | QQ21: =SQRT((($I$3*QQ$13)^2)+(($I$4*$A21)^2))/1000 -> 458.0698637 | QR21: =SQRT((($I$3*QR$13)^2)+(($I$4*$A21)^2))/1000 -> 459.0697115 | QS21: =SQRT((($I$3*QS$13)^2)+(($I$4*$A21)^2))/1000 -> 460.06956 | QT21: =SQRT((($I$3*QT$13)^2)+(($I$4*$A21)^2))/1000 -> 461.0694091 | QU21: =SQRT((($I$3*QU$13)^2)+(($I$4*$A21)^2))/1000 -> 462.0692589 | QV21: =SQRT((($I$3*QV$13)^2)+(($I$4*$A21)^2))/1000 -> 463.0691093 | QW21: =SQRT((($I$3*QW$13)^2)+(($I$4*$A21)^2))/1000 -> 464.0689604 | QX21: =SQRT((($I$3*QX$13)^2)+(($I$4*$A21)^2))/1000 -> 465.0688121 | QY21: =SQRT((($I$3*QY$13)^2)+(($I$4*$A21)^2))/1000 -> 466.0686645 | QZ21: =SQRT((($I$3*QZ$13)^2)+(($I$4*$A21)^2))/1000 -> 467.0685175 | RA21: =SQRT((($I$3*RA$13)^2)+(($I$4*$A21)^2))/1000 -> 468.0683711 | RB21: =SQRT((($I$3*RB$13)^2)+(($I$4*$A21)^2))/1000 -> 469.0682253 | RC21: =SQRT((($I$3*RC$13)^2)+(($I$4*$A21)^2))/1000 -> 470.0680802 | RD21: =SQRT((($I$3*RD$13)^2)+(($I$4*$A21)^2))/1000 -> 471.0679357 | RE21: =SQRT((($I$3*RE$13)^2)+(($I$4*$A21)^2))/1000 -> 472.0677917 | RF21: =SQRT((($I$3*RF$13)^2)+(($I$4*$A21)^2))/1000 -> 473.0676484 | RG21: =SQRT((($I$3*RG$13)^2)+(($I$4*$A21)^2))/1000 -> 474.0675057 | RH21: =SQRT((($I$3*RH$13)^2)+(($I$4*$A21)^2))/1000 -> 475.0673636 | RI21: =SQRT((($I$3*RI$13)^2)+(($I$4*$A21)^2))/1000 -> 476.0672221 | RJ21: =SQRT((($I$3*RJ$13)^2)+(($I$4*$A21)^2))/1000 -> 477.0670812 | RK21: =SQRT((($I$3*RK$13)^2)+(($I$4*$A21)^2))/1000 -> 478.0669409 | RL21: =SQRT((($I$3*RL$13)^2)+(($I$4*$A21)^2))/1000 -> 479.0668012 | RM21: =SQRT((($I$3*RM$13)^2)+(($I$4*$A21)^2))/1000 -> 480.066662 | RN21: =SQRT((($I$3*RN$13)^2)+(($I$4*$A21)^2))/1000 -> 481.0665235 | RO21: =SQRT((($I$3*RO$13)^2)+(($I$4*$A21)^2))/1000 -> 482.0663855 | RP21: =SQRT((($I$3*RP$13)^2)+(($I$4*$A21)^2))/1000 -> 483.066248 | RQ21: =SQRT((($I$3*RQ$13)^2)+(($I$4*$A21)^2))/1000 -> 484.0661112 | RR21: =SQRT((($I$3*RR$13)^2)+(($I$4*$A21)^2))/1000 -> 485.0659749 | RS21: =SQRT((($I$3*RS$13)^2)+(($I$4*$A21)^2))/1000 -> 486.0658392 | RT21: =SQRT((($I$3*RT$13)^2)+(($I$4*$A21)^2))/1000 -> 487.065704 | RU21: =SQRT((($I$3*RU$13)^2)+(($I$4*$A21)^2))/1000 -> 488.0655694 | RV21: =SQRT((($I$3*RV$13)^2)+(($I$4*$A21)^2))/1000 -> 489.0654353 | RW21: =SQRT((($I$3*RW$13)^2)+(($I$4*$A21)^2))/1000 -> 490.0653018 | RX21: =SQRT((($I$3*RX$13)^2)+(($I$4*$A21)^2))/1000 -> 491.0651688 | RY21: =SQRT((($I$3*RY$13)^2)+(($I$4*$A21)^2))/1000 -> 492.0650364 | RZ21: =SQRT((($I$3*RZ$13)^2)+(($I$4*$A21)^2))/1000 -> 493.0649044 | SA21: =SQRT((($I$3*SA$13)^2)+(($I$4*$A21)^2))/1000 -> 494.0647731 | SB21: =SQRT((($I$3*SB$13)^2)+(($I$4*$A21)^2))/1000 -> 495.0646422 | SC21: =SQRT((($I$3*SC$13)^2)+(($I$4*$A21)^2))/1000 -> 496.0645119 | SD21: =SQRT((($I$3*SD$13)^2)+(($I$4*$A21)^2))/1000 -> 497.0643821 | SE21: =SQRT((($I$3*SE$13)^2)+(($I$4*$A21)^2))/1000 -> 498.0642529 | SF21: =SQRT((($I$3*SF$13)^2)+(($I$4*$A21)^2))/1000 -> 499.0641241 | SG21: =SQRT((($I$3*SG$13)^2)+(($I$4*$A21)^2))/1000 -> 500.0639959
